Workbook

Sheet General
B1: Módulo de Ingreso de Información
B5: Código | C5: 3
B6: Nombre | C6: Prueba 1 | E6: Permisos Ambiental obtenida | F6: NO
B7: Fecha Radicación | C7: 2022-02-08
B8: Hora Radicación | C8: 12:35:00
B9: Capacidad (MW) | C9: 50
B10: Tecnología | C10: Solar FV | E10: Costo Activos de Uso ($COP) | F10: 0
B11: Barra 1 | C11: Chinú | E11: Delta pérdidas (GWh) | F11: 100
B12: Código Asociado | E12: Reducción Marginal VPN ($COP) | F12: 1000000
B13: FPO | C13: 2025-12-31
B14: FPO 2 | C14: 2026-12-31
B15: Obligaciones | C15: NO
B16: Requiere Expansión | C16: NO
B17: Área Eléctrica | C17: Antioquia

Sheet Tablas
B1: Tecnologia | C1: Factor de planta | D1: Iflex | E1: IE-RP | F1: Factor ENFICC | G1: Factor emisiones | H1: Oferta promedio | I1: Comentarios | J1: Area Eléctrica | N1: FPO | P1: Fecha Radicacion | Q1: Hora Radicacion | S1: Gestion Ambiental | U1: Consulta Previa | W1: Permiso Arquelogico
B2: Solar FV | C2: 0.26 | D2: 0 | E2: 0.3190502279 | F2: 0.15 | G2: 0 | H2: 83577.2 | I2: Los parámetros fueron calculados conforme a la metodología presentada en la Circular UPME 057 de 2022. | J2: Altántico | L2: SI | N2: 2023-01-01 | P2: 2022-01-01 | Q2: 00:00:00 | S2: No hay avances | U2: No hay avances | W2: No hay avances
B3: Eólico Onshore | C3: 0.57 | D3: 0 | E3: 0.3190502279 | F3: 0.06 | G3: 0 | H3: 83577.2 | I3: Los parámetros fueron calculados conforme a la metodología presentada en la Circular UPME 057 de 2022. | J3: Bolívar | L3: NO | N3: 2037-12-31 | P3: 2022-03-31 | Q3: 23:59:59 | S3: EIA | U3: Resolución. No Procede | W3: Aprobado
B4: Eólico Offshore | C4: 0.57 | D4: 0 | E4: 0.3190502279 | F4: 0.06 | G4: 0 | H4: 83577.2 | I4: Los parámetros fueron calculados conforme a la metodología presentada en la Circular UPME 057 de 2022. | J4: Córdoba - Sucre, Chinú | S4: LA | U4: Resolución. Si Procede | W4: No Aplica
B5: Biomasa y Residuos | C5: 0.7 | D5: 0.25 | E5: 0.3190502279 | F5: 0.83 | G5: 0.37 | H5: 83577.2 | I5: Los parámetros fueron calculados conforme a la metodología presentada en la Circular UPME 057 de 2022. | J5: Córdoba - Sucre, Cerromatoso | S5: PA | U5: Finalizada
B6: Geotérmica | C6: 0.8 | D6: 0.25 | E6: 0.3190502279 | F6: 0.7 | G6: 0 | H6: 83577.2 | I6: Los parámetros fueron calculados conforme a la metodología presentada en la Circular UPME 057 de 2022. | J6: Guajira - Cesar - Madgalena | S6: No Aplica
B7: PCH | C7: 0.54 | D7: 0.61 | E7: 0.1550930337 | F7: 0.15 | G7: 0 | H7: 158280.5 | I7: Los parámetros fueron calculados conforme a la metodología presentada en la Circular UPME 057 de 2022. | J7: Santander
B8: Termica - Ciclo abierto | C8: 0.85 | D8: 0.4 | E8: -0.5761741581 | F8: 0.83 | G8: 0.95 | H8: 267152.5 | I8: Los parámetros fueron calculados conforme a la metodología presentada en la Circular UPME 057 de 2022. | J8: Norte de Santander
B9: Termica - Ciclo combinado | C9: 0.85 | D9: 0.27 | E9: -0.5761741581 | F9: 0.83 | G9: 0.95 | H9: 267152.5 | I9: Los parámetros fueron calculados conforme a la metodología presentada en la Circular UPME 057 de 2022. | J9: Boyacá - Casanare
B10: Termica a vapor | C10: 0.85 | D10: 0.25 | E10: -0.5761741581 | F10: 0.83 | G10: 0.37 | H10: 267152.5 | I10: Los parámetros fueron calculados conforme a la metodología presentada en la Circular UPME 057 de 2022. | J10: Arauca
B11: Termica - diesel | C11: 0.85 | D11: 0.6 | E11: -4.282826571 | F11: 0.83 | G11: 0.77 | H11: 709472.9 | I11: Los parámetros fueron calculados conforme a la metodología presentada en la Circular UPME 057 de 2022. | J11: Antioquia
B12: Hidraulica | C12: 0.6 | D12: 0.61 | E12: 0.1550930337 | F12: 0.31 | G12: 0 | H12: 158280.5 | I12: Los parámetros fueron calculados conforme a la metodología presentada en la Circular UPME 057 de 2022. | J12: Chocó
B13: Cogeneracion | C13: 0.85 | D13: 0.1 | E13: 0.3190502279 | F13: 0.83 | G13: 0.37 | H13: 83577.2 | I13: Los parámetros fueron calculados conforme a la metodología presentada en la Circular UPME 057 de 2022. | J13: Bogotá
J14: Meta - Guaviare
J15: Caldas - Quidio - Risaralda
J16: Valle
J17: Cauca - Nariño
J18: Tolima - Huila Caquetá
J19: Putumayo

Sheet InfoPro
A1: Código | B1: Nombre | C1: Fecha Radicación | D1: Hora Radicación | E1: Capacidad | F1: Tipo | G1: Barra 1 | H1: Código Asociado | I1: FPO | J1: FPO 2 | K1: Obligaciones | L1: Requiere Expansión | M1: Area Eléctrica | N1: Permisos Ambiental obtenida | O1: Costo Activos de Uso | P1: Pérdidas STN
A2: SC_481_A1 | B2: DIAMANTE | C2: 2022-07-12T15:55:00 | D2: 44754.66319 | E2: 70 | F2: Solar FV | G2: El Rio 115 | H2: SC_481 | I2: 2025-12-31 | J2: 2025-12-31 | K2: NO | L2: NO | M2: Bogotá | N2: NO | O2: NA | P2: -0.02842 | Q2: 1
A3: SC_2288_A1 | B3: PARQUE SOLAR FOTOVOLTAICO ESTEROS SOL DE 199MW | C3: 2022-07-13T16:12:00 | D3: 44755.675 | E3: 199 | F3: Solar FV | G3: Suria (DelSur) 220 | H3: SC_2288 | I3: 2025-12-31 | J3: 2025-12-31 | K3: NO | L3: NO | M3: Meta - Guaviare | N3: NO | O3: NA | P3: -90.1 | Q3: 2
A4: SC_2288_A2 | B4: PARQUE SOLAR FOTOVOLTAICO ESTEROS SOL DE 199MW | C4: 2022-07-13T16:12:00 | D4: 44755.675 | E4: 199 | F4: Solar FV | G4: Santa Helena 115 | H4: SC_2288 | I4: 2025-12-31 | J4: 2025-12-31 | K4: NO | L4: NO | M4: Meta - Guaviare | N4: NO | O4: NA | P4: -127.8 | Q4: 3
A5: SC_924_A1 | B5: PARQUE FOTOVOLTAICO LA SABANA | C5: 2022-07-15T16:22:00 | D5: 44757.68194 | E5: 100 | F5: Solar FV | G5: Noroeste 220 | H5: SC_924 | I5: 2026-12-31 | J5: 2026-12-31 | K5: NO | L5: NO | M5: Bogotá | N5: NO | O5: NA | P5: -0.96 | Q5: 4
A6: SC_924_A2 | B6: PARQUE FOTOVOLTAICO LA SABANA | C6: 2022-07-15T16:22:00 | D6: 44757.68194 | E6: 100 | F6: Solar FV | G6: Noroeste 115 | H6: SC_924 | I6: 2026-12-31 | J6: 2026-12-31 | K6: NO | L6: NO | M6: Bogotá | N6: NO | O6: NA | P6: -0.48 | Q6: 5
A7: SC_756_A1 | B7: PARQUE FOTOVOLTAICO BALSILLAS | C7: 2022-07-15T10:56:00 | D7: 44757.45556 | E7: 100 | F7: Solar FV | G7: Balsillas 115 | H7: SC_756 | I7: 2025-12-31 | J7: 2025-12-31 | K7: NO | L7: NO | M7: Bogotá | N7: NO | O7: NA | P7: -3.77 | Q7: 6
A8: SC_756_A2 | B8: PARQUE FOTOVOLTAICO BALSILLAS | C8: 2022-07-15T10:56:00 | D8: 44757.45556 | E8: 100 | F8: Solar FV | G8: Balsillas 220 | H8: SC_756 | I8: 2025-12-31 | J8: 2025-12-31 | K8: NO | L8: NO | M8: Bogotá | N8: NO | O8: NA | P8: -3.46 | Q8: 7
A9: SC_1207_A1 | B9: Guacaná | C9: 2022-07-15T11:58:00 | D9: 44757.49861 | E9: 19.9 | F9: Solar FV | G9: Tocaima 34.5 | H9: SC_1207 | I9: 2025-12-31 | J9: 2025-12-31 | K9: NO | L9: NO | M9: Bogotá | N9: NO | O9: NA | P9: -3.9326 | Q9: 8
A10: SC_709_A1 | B10: PARQUE FOTOVOLTAICO SUÉ 2 | C10: 2022-07-15T12:11:00 | D10: 44757.50764 | E10: 9.9 | F10: Solar FV | G10: La Guacheta 34.5 | H10: SC_709 | I10: 2026-12-31 | J10: 2026-12-31 | K10: NO | L10: NO | M10: Bogotá | N10: NO | O10: NA | P10: -0.000628372 | Q10: 9
A11: SC_1299_A1 | B11: Parque Eólico Sisga | C11: 2022-07-15T15:50:00 | D11: 44757.65972 | E11: 20 | F11: Eólico Onshore | G11: Sesquile 115 | H11: SC_1299 | I11: 2027-06-30 | J11: 2027-06-30 | K11: NO | L11: NO | M11: Bogotá | N11: NO | O11: NA | P11: 4.77 | Q11: 10
A12: SC_1299_A2 | B12: Parque Eólico Sisga | C12: 2022-07-15T15:50:00 | D12: 44757.65972 | E12: 20 | F12: Eólico Onshore | G12: Chocontá 34.5 | H12: SC_1299 | I12: 2027-06-30 | J12: 2027-06-30 | K12: NO | L12: NO | M12: Bogotá | N12: NO | O12: NA | P12: 0.07 | Q12: 11
A13: SC_416_A1 | B13: Solar Jagüey | C13: 2022-07-15T09:30:00 | D13: 44757.39583 | E13: 112 | F13: Solar FV | G13: Chivor II 220 | H13: SC_416 | I13: 2026-12-18 | J13: 2026-12-18 | K13: NO | L13: NO | M13: Boyacá - Casanare | N13: NO | O13: NA | P13: -12.115085 | Q13: 12
A14: SC_416_A2 | B14: Solar Jagüey | C14: 2022-07-15T09:30:00 | D14: 44757.39583 | E14: 112 | F14: Solar FV | G14: Chivor II 220 | H14: SC_416 | I14: 2026-12-18 | J14: 2026-12-18 | K14: NO | L14: NO | M14: Boyacá - Casanare | N14: NO | O14: NA | P14: -11.90540108 | Q14: 13
A15: SC_1023_A1 | B15: PARQUE SOLAR LOS HELECHOS | C15: 2022-07-17T17:36:00 | D15: 44759.73333 | E15: 9.9 | F15: Solar FV | G15: Colegio 34.5 | H15: SC_1023 | I15: 2024-12-31 | J15: 2024-12-31 | K15: NO | L15: NO | M15: Bogotá | N15: NO | O15: NA | P15: -0.21 | Q15: 14
A16: SC_1023_A2 | B16: PARQUE SOLAR LOS HELECHOS | C16: 2022-07-17T17:36:00 | D16: 44759.73333 | E16: 9.9 | F16: Solar FV | G16: Colegio 115 | H16: SC_1023 | I16: 2024-12-31 | J16: 2024-12-31 | K16: NO | L16: NO | M16: Bogotá | N16: NO | O16: NA | P16: -0.24 | Q16: 15
A17: SC_1449_A1 | B17: Autogeneración Geopark | C17: 2022-07-17T09:10:00 | D17: 44759.38194 | E17: 0 | F17: Solar FV | G17: Chivor II 220 | H17: SC_1449 | I17: 2023-01-31 | J17: 2023-01-31 | K17: NO | L17: NO | M17: Boyacá - Casanare | N17: NO | O17: NA | P17: -4.241 | Q17: 16
A18: SC_1590_A1 | B18: PCH Ventana de 7MW (entrega 6,7 MW) | C18: 2022-07-18T11:05:00 | D18: 44760.46181 | E18: 6.7 | F18: PCH | G18: Calera 34.5 | H18: SC_1590 | I18: 2024-08-31 | J18: 2024-08-31 | K18: NO | L18: NO | M18: Bogotá | N18: NO | O18: NA | P18: -2.058 | Q18: 17
A19: SC_2156_A1 | B19: CENTRAL DE GENERACIÓN BIOMASA BOGOTÁ III | C19: 2022-10-04T19:47:00 | D19: 44838.82431 | E19: 9.88 | F19: Biomasa y Residuos | G19: 5781 | H19: SC_2156 | I19: 2024-01-31 | J19: 2024-01-31 | K19: NO | L19: NO | M19: Bogotá | N19: NO | O19: NA | P19: -2.267 | Q19: 18
A20: SC_2156_A2 | B20: CENTRAL DE GENERACIÓN BIOMASA BOGOTÁ III | C20: 2022-10-04T19:47:00 | D20: 44838.82431 | E20: 9.88 | F20: Biomasa y Residuos | G20: CD10.4.120758 | H20: SC_2156 | I20: 2024-01-31 | J20: 2024-01-31 | K20: NO | L20: NO | M20: Bogotá | N20: NO | O20: NA | P20: -2.267 | Q20: 19
A21: SC_936_A1 | B21: Parque Fotovoltaico La Vaca 80 MW | C21: 2022-07-18T19:34:00 | D21: 44760.81528 | E21: 80 | F21: Solar FV | G21: Ocoa 115 | H21: SC_936 | I21: 2026-12-31 | J21: 2026-12-31 | K21: NO | L21: NO | M21: Meta - Guaviare | N21: NO | O21: NA | P21: -15.85821 | Q21: 20
A22: SC_936_A2 | B22: Parque Fotovoltaico La Vaca 80 MW | C22: 2022-07-18T19:34:00 | D22: 44760.81528 | E22: 80 | F22: Solar FV | G22: Villavicencio 115 | H22: SC_936 | I22: 2026-12-31 | J22: 2026-12-31 | K22: NO | L22: NO | M22: Meta - Guaviare | N22: NO | O22: NA | P22: -15.40156 | Q22: 21
A23: SC_1799_A1 | B23: EXCEDENTES AUTOGENERACION VRO | C23: 2022-07-26T10:40:00 | D23: 44768.44444 | E23: 46.71 | F23: Solar FV | G23: Reforma 220 | H23: SC_1799 | I23: 2028-12-31 | J23: 2028-12-31 | K23: NO | L23: NO | M23: Meta - Guaviare | N23: SI | O23: NA | P23: -0.562 | Q23: 22
A24: SC_1757_A1 | B24: PGF La Escuela | C24: 2022-07-27T16:11:00 | D24: 44769.67431 | E24: 40 | F24: Solar FV | G24: Colegio 115 | H24: SC_1757 | I24: 2025-12-31 | J24: 2025-12-31 | K24: NO | L24: NO | M24: Bogotá | N24: NO | O24: NA | P24: 0.73 | Q24: 23
A25: SC_1757_A3 | B25: PGF La Escuela | C25: 2022-07-27T16:11:00 | D25: 44769.67431 | E25: 40 | F25: Solar FV | G25: Laguneta 115 | H25: SC_1757 | I25: 2025-12-31 | J25: 2025-12-31 | K25: NO | L25: NO | M25: Bogotá | N25: NO | O25: NA | P25: 0.962 | Q25: 24
A26: SC_1870_A1 | B26: Helios Puerto Lopez - 15MW | C26: 2022-06-21T10:20:00 | D26: 44733.43056 | E26: 15 | F26: Solar FV | G26: Tropezón 34.5 | H26: SC_1870 | I26: 2024-12-31 | J26: 2024-12-31 | K26: NO | L26: NO | M26: Meta - Guaviare | N26: NO | O26: NA | P26: 2.672618 | Q26: 25
A27: SC_1870_A2 | B27: Helios Puerto Lopez - 15MW | C27: 2022-06-21T10:20:00 | D27: 44733.43056 | E27: 15 | F27: Solar FV | G27: Serrania 34.5 | H27: SC_1870 | I27: 2024-12-31 | J27: 2024-12-31 | K27: NO | L27: NO | M27: Meta - Guaviare | N27: NO | O27: NA | P27: -10.62554 | Q27: 26
A28: SC_1892_A1 | B28: PARQUE SOLAR MESITAS | C28: 2022-08-01T18:53:00 | D28: 44774.78681 | E28: 9.9 | F28: Solar FV | G28: Colegio 34.5 | H28: SC_1892 | I28: 2024-12-31 | J28: 2024-12-31 | K28: NO | L28: NO | M28: Bogotá | N28: NO | O28: NA | P28: -0.21 | Q28: 27
A29: SC_1892_A2 | B29: PARQUE SOLAR MESITAS | C29: 2022-08-01T18:53:00 | D29: 44774.78681 | E29: 9.9 | F29: Solar FV | G29: Colegio 115 | H29: SC_1892 | I29: 2024-12-31 | J29: 2024-12-31 | K29: NO | L29: NO | M29: Bogotá | N29: NO | O29: NA | P29: -0.24 | Q29: 28
A30: SC_1930_A2 | B30: PV José Maria Cordova 9.9 MW | C30: 2022-08-05T18:01:00 | D30: 44778.75069 | E30: 9.9 | F30: Solar FV | G30: Tocaima 34.5 | H30: SC_1930 | I30: 2025-12-31 | J30: 2025-12-31 | K30: NO | L30: NO | M30: Bogotá | N30: NO | O30: NA | P30: 0.015 | Q30: 29
A31: SC_2060_A1 | B31: EL DANUBIO - 50 MW | C31: 2022-07-01T10:25:00 | D31: 44743.43403 | E31: 50 | F31: Solar FV | G31: Guamal 115 | H31: SC_2060 | I31: 2026-12-31 | J31: 2026-12-31 | K31: NO | L31: NO | M31: Meta - Guaviare | N31: NO | O31: NA | P31: -0.62 | Q31: 30
A32: SC_2060_A2 | B32: EL DANUBIO - 50 MW | C32: 2022-07-01T10:25:00 | D32: 44743.43403 | E32: 50 | F32: Solar FV | G32: Ocoa 115 | H32: SC_2060 | I32: 2026-12-31 | J32: 2026-12-31 | K32: NO | L32: NO | M32: Meta - Guaviare | N32: NO | O32: NA | P32: 0.94 | Q32: 31
A33: SC_1836_A1 | B33: PARQUE SOLAR LA MERCED 9.9 MW | C33: 2022-08-16T22:32:00 | D33: 44789.93889 | E33: 9.9 | F33: Solar FV | G33: Puerto Gaitan 34.5 | H33: SC_1836 | I33: 2024-12-31 | J33: 2024-12-31 | K33: NO | L33: NO | M33: Meta - Guaviare | N33: NO | O33: NA | P33: -0.053 | Q33: 32
A34: SC_2071_A1 | B34: Morichal - 9.9 MW | C34: 2022-07-22T14:11:00 | D34: 44764.59097 | E34: 9.9 | F34: Solar FV | G34: Guamal 34.5 | H34: SC_2071 | I34: 2025-07-31 | J34: 2025-07-31 | K34: NO | L34: NO | M34: Meta - Guaviare | N34: NO | O34: NA | P34: -0.02 | Q34: 34
A35: SC_2281_A1 | B35: PARQUE EÓLICO SAUCES de 288 MW | C35: 2022-07-26T17:11:00 | D35: 44768.71597 | E35: 288 | F35: Eólico Onshore | G35: Bacata 220 | H35: SC_2281 | I35: 2025-12-31 | J35: 2025-12-31 | K35: NO | L35: NO | M35: Bogotá | N35: NO | O35: NA | P35: -11.47 | Q35: 35
A36: SC_2281_A2 | B36: PARQUE EÓLICO SAUCES de 288 MW | C36: 2022-07-26T17:11:00 | D36: 44768.71597 | E36: 288 | F36: Eólico Onshore | G36: Bacata 500 | H36: SC_2281 | I36: 2025-12-31 | J36: 2025-12-31 | K36: NO | L36: NO | M36: Bogotá | N36: NO | O36: NA | P36: -9.4 | Q36: 36
A37: SC_2116_A1 | B37: Parque Eólico Los Cerezos 60 MW | C37: 2022-08-22T16:31:00 | D37: 44795.68819 | E37: 60 | F37: Eólico Onshore | G37: Norte 115 | H37: SC_2116 | I37: 2027-12-31 | J37: 2027-12-31 | K37: NO | L37: NO | M37: Bogotá | N37: NO | O37: NA | P37: -14.11 | Q37: 37
A38: SC_2116_A2 | B38: Parque Eólico Los Cerezos 60 MW | C38: 2022-08-22T16:31:00 | D38: 44795.68819 | E38: 60 | F38: Eólico Onshore | G38: Sesquile 115 | H38: SC_2116 | I38: 2027-12-31 | J38: 2027-12-31 | K38: NO | L38: NO | M38: Bogotá | N38: NO | O38: NA | P38: -14.23 | Q38: 38
A39: SC_2078_A1 | B39: PARQUE SOLAR SANTA HELENA 19.9 | C39: 2022-08-22T14:29:00 | D39: 44795.60347 | E39: 19.9 | F39: Solar FV | G39: Suria 34.5 | H39: SC_2078 | I39: 2024-12-31 | J39: 2024-12-31 | K39: NO | L39: NO | M39: Meta - Guaviare | N39: NO | O39: NA | P39: -0.1808 | Q39: 39
A40: SC_1899_A1 | B40: Sikaramá 9.9 MW | C40: 2022-08-23T19:05:00 | D40: 44796.79514 | E40: 9.9 | F40: Solar FV | G40: Sopó 34.5 | H40: SC_1899 | I40: 2026-12-31 | J40: 2026-12-31 | K40: NO | L40: NO | M40: Bogotá | N40: NO | O40: NA | P40: -0.46 | Q40: 40
A41: SC_1899_A2 | B41: Sikaramá 9.9 MW | C41: 2022-08-23T19:05:00 | D41: 44796.79514 | E41: 9.9 | F41: Solar FV | G41: CD10.3.035937 | H41: SC_1899 | I41: 2026-12-31 | J41: 2026-12-31 | K41: NO | L41: NO | M41: Bogotá | N41: NO | O41: NA | P41: -0.03 | Q41: 41
A42: SC_2144_A1 | B42: PGFV Andes I | C42: 2022-08-23T18:28:00 | D42: 44796.76944 | E42: 19.9 | F42: Solar FV | G42: Granada 115 | H42: SC_2144 | I42: 2024-03-01 | J42: 2024-03-01 | K42: NO | L42: SI | M42: Meta - Guaviare | N42: NO | O42: NR | P42: 561 | Q42: 42
A43: SC_2144_A2 | B43: PGFV Andes I | C43: 2022-08-23T18:28:00 | D43: 44796.76944 | E43: 19.9 | F43: Solar FV | G43: Ocoa 115 | H43: SC_2144 | I43: 2024-03-01 | J43: 2024-03-01 | K43: NO | L43: NO | M43: Meta - Guaviare | N43: NO | O43: NA | P43: 929 | Q43: 43
A44: SC_2176_A1 | B44: PGFV Andes II | C44: 2022-08-23T06:19:00 | D44: 44796.26319 | E44: 19.9 | F44: Solar FV | G44: Granada - Ocoa 115 KV | H44: SC_2176 | I44: 2024-03-01 | J44: 2024-03-01 | K44: NO | L44: SI | M44: Meta - Guaviare | N44: NO | O44: NR | P44: 1419 | Q44: 44
A45: SC_2176_A2 | B45: PGFV Andes II | C45: 2022-08-23T06:19:00 | D45: 44796.26319 | E45: 19.9 | F45: Solar FV | G45: Ocoa 115 | H45: SC_2176 | I45: 2024-03-01 | J45: 2024-03-01 | K45: NO | L45: NO | M45: Meta - Guaviare | N45: NO | O45: NA | P45: 1051 | Q45: 45
A46: SC_1886_A1 | B46: Rúkura 60 MW | C46: 2022-08-23T18:45:00 | D46: 44796.78125 | E46: 60 | F46: Solar FV | G46: Norte 115 | H46: SC_1886 | I46: 2028-12-31 | J46: 2028-12-31 | K46: NO | L46: NO | M46: Bogotá | N46: NO | O46: NA | P46: -4.91 | Q46: 46
A47: SC_1886_A2 | B47: Rúkura 60 MW | C47: 2022-08-23T18:45:00 | D47: 44796.78125 | E47: 60 | F47: Solar FV | G47: Zipaquira 115 | H47: SC_1886 | I47: 2028-12-31 | J47: 2028-12-31 | K47: NO | L47: NO | M47: Bogotá | N47: NO | O47: NA | P47: -4.36 | Q47: 47
A48: SC_2002_A1 | B48: Bosques Solares de los Llanos 8 | C48: 2022-08-23T13:59:00 | D48: 44796.58264 | E48: 170 | F48: Solar FV | G48: Suria (DelSur) 220 | H48: SC_2002 | I48: 2026-12-31 | J48: 2026-12-31 | K48: NO | L48: SI | M48: Meta - Guaviare | N48: NO | O48: NR | P48: -9.97995 | Q48: 48
A49: SC_2002_A2 | B49: Bosques Solares de los Llanos 8 | C49: 2022-08-23T13:59:00 | D49: 44796.58264 | E49: 170 | F49: Solar FV | G49: Ocoa 115 | H49: SC_2002 | I49: 2026-12-31 | J49: 2026-12-31 | K49: NO | L49: SI | M49: Meta - Guaviare | N49: NO | O49: NR | P49: -13.54917 | Q49: 49
A50: SC_1881_A1 | B50: PARQUE FOTOVOLTAICO SIMIJACA | C50: 2022-08-27T10:56:00 | D50: 44800.45556 | E50: 60 | F50: Solar FV | G50: Simijaca 115 | H50: SC_1881 | I50: 2026-12-31 | J50: 2026-12-31 | K50: NO | L50: NO | M50: Bogotá | N50: NO | O50: NA | P50: -6.16 | Q50: 50
A51: SC_1881_A2 | B51: PARQUE FOTOVOLTAICO SIMIJACA | C51: 2022-08-27T10:56:00 | D51: 44800.45556 | E51: 60 | F51: Solar FV | G51: Ubate 115 | H51: SC_1881 | I51: 2026-12-31 | J51: 2026-12-31 | K51: NO | L51: NO | M51: Bogotá | N51: NO | O51: NA | P51: -3.49 | Q51: 51
A52: SC_2326_A1 | B52: ARQUE EÓLICO ORQUIDEAS de 288 MW | C52: 2022-07-26T15:09:00 | D52: 44768.63125 | E52: 288 | F52: Eólico Onshore | G52: Nva Esperanza 500 | H52: SC_2326 | I52: 2025-12-31 | J52: 2025-12-31 | K52: NO | L52: NO | M52: Bogotá | N52: NO | O52: NA | P52: -1.79 | Q52: 52
A53: SC_2326_A2 | B53: ARQUE EÓLICO ORQUIDEAS de 288 MW | C53: 2022-07-26T15:09:00 | D53: 44768.63125 | E53: 288 | F53: Eólico Onshore | G53: Nva Esperanza 220 | H53: SC_2326 | I53: 2025-12-31 | J53: 2025-12-31 | K53: NO | L53: NO | M53: Bogotá | N53: NO | O53: NA | P53: -5.92 | Q53: 53
A54: SC_2075_A1 | B54: Ubaté Solar | C54: 2022-09-02T14:16:00 | D54: 44806.59444 | E54: 19.9 | F54: Solar FV | G54: Reconfigurando el circuito Ubaté – Tpeldar 115 kV de 30,57 km en Ubaté – Proyecto Solar de 1,55 km y Proyecto Solar – Tpeldar 115 kV de 29,02 km | H54: SC_2075 | I54: 2023-12-31 | J54: 2023-12-31 | K54: NO | L54: SI | M54: Bogotá | N54: SI | O54: 5897.18 | P54: -2.0978 | Q54: 54
A55: SC_2075_A2 | B55: Ubaté Solar | C55: 2022-09-02T14:16:00 | D55: 44806.59444 | E55: 19.9 | F55: Solar FV | G55: Ubate 115 | H55: SC_2075 | I55: 2023-12-31 | J55: 2023-12-31 | K55: NO | L55: NO | M55: Bogotá | N55: SI | O55: NA | P55: -1.9678 | Q55: 55
A56: SC_2217_A1 | B56: CENTRAL DE GENERACIÓN BIOMASA BOGOTÁ II 9,88 MW | C56: 2022-10-04T09:12:00 | D56: 44838.38333 | E56: 9.88 | F56: Biomasa y Residuos | G56: CD10.4.120758 | H56: SC_2217 | I56: 2023-07-31 | J56: 2023-07-31 | K56: NO | L56: NO | M56: Bogotá | N56: NO | O56: NA | P56: -0.463 | Q56: 56
A57: SC_2217_A2 | B57: CENTRAL DE GENERACIÓN BIOMASA BOGOTÁ II 9,88 MW | C57: 2022-10-04T09:12:00 | D57: 44838.38333 | E57: 9.88 | F57: Biomasa y Residuos | G57: Victoria 34.5 | H57: SC_2217 | I57: 2023-07-31 | J57: 2023-07-31 | K57: NO | L57: NO | M57: Bogotá | N57: NO | O57: NA | P57: -0.233 | Q57: 57

Sheet IT-TA
B1: Codigo | C1: Nombre | D1: Capacidad | E1: Licencia Ambiental obtenida | F1: Año de entrada | G1: P | H1: Total | J1: Año de Referencia
B2: =IF(ISBLANK(InfoPro!A2),"",InfoPro!A2) -> SC_481_A1 | C2: =IF(ISBLANK(InfoPro!B2),"",InfoPro!B2) -> DIAMANTE | D2: =IF(ISBLANK(InfoPro!E2),"",InfoPro!E2) -> 70 | E2: =IF(ISBLANK(InfoPro!N2),"",InfoPro!N2) -> NO | F2: =IF(ISBLANK(InfoPro!I2),"",YEAR(InfoPro!I2)-$J$2) -> 2 | G2: =IF(E2="SI",100,IF(E2="NO",0,"")) -> 0 | H2: =IF(G2="","",(G2)) -> 0 | J2: 2023
B3: =IF(ISBLANK(InfoPro!A3),"",InfoPro!A3) -> SC_2288_A1 | C3: =IF(ISBLANK(InfoPro!B3),"",InfoPro!B3) -> PARQUE SOLAR FOTOVOLTAICO ESTEROS SOL DE 199MW | D3: =IF(ISBLANK(InfoPro!E3),"",InfoPro!E3) -> 199 | E3: =IF(ISBLANK(InfoPro!N3),"",InfoPro!N3) -> NO | F3: =IF(ISBLANK(InfoPro!I3),"",YEAR(InfoPro!I3)-$J$2) -> 2 | G3: =IF(E3="SI",100,IF(E3="NO",0,"")) -> 0 | H3: =IF(G3="","",(G3)) -> 0
B4: =IF(ISBLANK(InfoPro!A4),"",InfoPro!A4) -> SC_2288_A2 | C4: =IF(ISBLANK(InfoPro!B4),"",InfoPro!B4) -> PARQUE SOLAR FOTOVOLTAICO ESTEROS SOL DE 199MW | D4: =IF(ISBLANK(InfoPro!E4),"",InfoPro!E4) -> 199 | E4: =IF(ISBLANK(InfoPro!N4),"",InfoPro!N4) -> NO | F4: =IF(ISBLANK(InfoPro!I4),"",YEAR(InfoPro!I4)-$J$2) -> 2 | G4: 0 | H4: 0
B5: =IF(ISBLANK(InfoPro!A5),"",InfoPro!A5) -> SC_924_A1 | C5: =IF(ISBLANK(InfoPro!B5),"",InfoPro!B5) -> PARQUE FOTOVOLTAICO LA SABANA | D5: =IF(ISBLANK(InfoPro!E5),"",InfoPro!E5) -> 100 | E5: =IF(ISBLANK(InfoPro!N5),"",InfoPro!N5) -> NO | F5: =IF(ISBLANK(InfoPro!I5),"",YEAR(InfoPro!I5)-$J$2) -> 3 | G5: 0 | H5: 0
B6: =IF(ISBLANK(InfoPro!A6),"",InfoPro!A6) -> SC_924_A2 | C6: =IF(ISBLANK(InfoPro!B6),"",InfoPro!B6) -> PARQUE FOTOVOLTAICO LA SABANA | D6: =IF(ISBLANK(InfoPro!E6),"",InfoPro!E6) -> 100 | E6: =IF(ISBLANK(InfoPro!N6),"",InfoPro!N6) -> NO | F6: =IF(ISBLANK(InfoPro!I6),"",YEAR(InfoPro!I6)-$J$2) -> 3 | G6: 0 | H6: 0
B7: =IF(ISBLANK(InfoPro!A7),"",InfoPro!A7) -> SC_756_A1 | C7: =IF(ISBLANK(InfoPro!B7),"",InfoPro!B7) -> PARQUE FOTOVOLTAICO BALSILLAS | D7: =IF(ISBLANK(InfoPro!E7),"",InfoPro!E7) -> 100 | E7: =IF(ISBLANK(InfoPro!N7),"",InfoPro!N7) -> NO | F7: =IF(ISBLANK(InfoPro!I7),"",YEAR(InfoPro!I7)-$J$2) -> 2 | G7: 0 | H7: 0
B8: =IF(ISBLANK(InfoPro!A8),"",InfoPro!A8) -> SC_756_A2 | C8: =IF(ISBLANK(InfoPro!B8),"",InfoPro!B8) -> PARQUE FOTOVOLTAICO BALSILLAS | D8: =IF(ISBLANK(InfoPro!E8),"",InfoPro!E8) -> 100 | E8: =IF(ISBLANK(InfoPro!N8),"",InfoPro!N8) -> NO | F8: =IF(ISBLANK(InfoPro!I8),"",YEAR(InfoPro!I8)-$J$2) -> 2 | G8: 0 | H8: 0
B9: =IF(ISBLANK(InfoPro!A9),"",InfoPro!A9) -> SC_1207_A1 | C9: =IF(ISBLANK(InfoPro!B9),"",InfoPro!B9) -> Guacaná | D9: =IF(ISBLANK(InfoPro!E9),"",InfoPro!E9) -> 19.9 | E9: =IF(ISBLANK(InfoPro!N9),"",InfoPro!N9) -> NO | F9: =IF(ISBLANK(InfoPro!I9),"",YEAR(InfoPro!I9)-$J$2) -> 2 | G9: 0 | H9: 0
B10: =IF(ISBLANK(InfoPro!A10),"",InfoPro!A10) -> SC_709_A1 | C10: =IF(ISBLANK(InfoPro!B10),"",InfoPro!B10) -> PARQUE FOTOVOLTAICO SUÉ 2 | D10: =IF(ISBLANK(InfoPro!E10),"",InfoPro!E10) -> 9.9 | E10: =IF(ISBLANK(InfoPro!N10),"",InfoPro!N10) -> NO | F10: =IF(ISBLANK(InfoPro!I10),"",YEAR(InfoPro!I10)-$J$2) -> 3 | G10: 0 | H10: 0
B11: =IF(ISBLANK(InfoPro!A11),"",InfoPro!A11) -> SC_1299_A1 | C11: =IF(ISBLANK(InfoPro!B11),"",InfoPro!B11) -> Parque Eólico Sisga | D11: =IF(ISBLANK(InfoPro!E11),"",InfoPro!E11) -> 20 | E11: =IF(ISBLANK(InfoPro!N11),"",InfoPro!N11) -> NO | F11: =IF(ISBLANK(InfoPro!I11),"",YEAR(InfoPro!I11)-$J$2) -> 4 | G11: 0 | H11: 0
B12: =IF(ISBLANK(InfoPro!A12),"",InfoPro!A12) -> SC_1299_A2 | C12: =IF(ISBLANK(InfoPro!B12),"",InfoPro!B12) -> Parque Eólico Sisga | D12: =IF(ISBLANK(InfoPro!E12),"",InfoPro!E12) -> 20 | E12: =IF(ISBLANK(InfoPro!N12),"",InfoPro!N12) -> NO | F12: =IF(ISBLANK(InfoPro!I12),"",YEAR(InfoPro!I12)-$J$2) -> 4 | G12: 0 | H12: 0
B13: =IF(ISBLANK(InfoPro!A13),"",InfoPro!A13) -> SC_416_A1 | C13: =IF(ISBLANK(InfoPro!B13),"",InfoPro!B13) -> Solar Jagüey | D13: =IF(ISBLANK(InfoPro!E13),"",InfoPro!E13) -> 112 | E13: =IF(ISBLANK(InfoPro!N13),"",InfoPro!N13) -> NO | F13: =IF(ISBLANK(InfoPro!I13),"",YEAR(InfoPro!I13)-$J$2) -> 3 | G13: 0 | H13: 0
B14: =IF(ISBLANK(InfoPro!A14),"",InfoPro!A14) -> SC_416_A2 | C14: =IF(ISBLANK(InfoPro!B14),"",InfoPro!B14) -> Solar Jagüey | D14: =IF(ISBLANK(InfoPro!E14),"",InfoPro!E14) -> 112 | E14: =IF(ISBLANK(InfoPro!N14),"",InfoPro!N14) -> NO | F14: =IF(ISBLANK(InfoPro!I14),"",YEAR(InfoPro!I14)-$J$2) -> 3 | G14: 0 | H14: 0
B15: =IF(ISBLANK(InfoPro!A15),"",InfoPro!A15) -> SC_1023_A1 | C15: =IF(ISBLANK(InfoPro!B15),"",InfoPro!B15) -> PARQUE SOLAR LOS HELECHOS | D15: =IF(ISBLANK(InfoPro!E15),"",InfoPro!E15) -> 9.9 | E15: =IF(ISBLANK(InfoPro!N15),"",InfoPro!N15) -> NO | F15: =IF(ISBLANK(InfoPro!I15),"",YEAR(InfoPro!I15)-$J$2) -> 1 | G15: 0 | H15: 0
B16: =IF(ISBLANK(InfoPro!A16),"",InfoPro!A16) -> SC_1023_A2 | C16: =IF(ISBLANK(InfoPro!B16),"",InfoPro!B16) -> PARQUE SOLAR LOS HELECHOS | D16: =IF(ISBLANK(InfoPro!E16),"",InfoPro!E16) -> 9.9 | E16: =IF(ISBLANK(InfoPro!N16),"",InfoPro!N16) -> NO | F16: =IF(ISBLANK(InfoPro!I16),"",YEAR(InfoPro!I16)-$J$2) -> 1 | G16: 0 | H16: 0
B17: =IF(ISBLANK(InfoPro!A17),"",InfoPro!A17) -> SC_1449_A1 | C17: =IF(ISBLANK(InfoPro!B17),"",InfoPro!B17) -> Autogeneración Geopark | D17: =IF(ISBLANK(InfoPro!E17),"",InfoPro!E17) -> 0 | E17: =IF(ISBLANK(InfoPro!N17),"",InfoPro!N17) -> NO | F17: =IF(ISBLANK(InfoPro!I17),"",YEAR(InfoPro!I17)-$J$2) -> 0 | G17: 0 | H17: 0
B18: =IF(ISBLANK(InfoPro!A18),"",InfoPro!A18) -> SC_1590_A1 | C18: =IF(ISBLANK(InfoPro!B18),"",InfoPro!B18) -> PCH Ventana de 7MW (entrega 6,7 MW) | D18: =IF(ISBLANK(InfoPro!E18),"",InfoPro!E18) -> 6.7 | E18: =IF(ISBLANK(InfoPro!N18),"",InfoPro!N18) -> NO | F18: =IF(ISBLANK(InfoPro!I18),"",YEAR(InfoPro!I18)-$J$2) -> 1 | G18: 0 | H18: 0
B19: =IF(ISBLANK(InfoPro!A19),"",InfoPro!A19) -> SC_2156_A1 | C19: =IF(ISBLANK(InfoPro!B19),"",InfoPro!B19) -> CENTRAL DE GENERACIÓN BIOMASA BOGOTÁ III | D19: =IF(ISBLANK(InfoPro!E19),"",InfoPro!E19) -> 9.88 | E19: =IF(ISBLANK(InfoPro!N19),"",InfoPro!N19) -> NO | F19: =IF(ISBLANK(InfoPro!I19),"",YEAR(InfoPro!I19)-$J$2) -> 1 | G19: 0 | H19: 0
B20: =IF(ISBLANK(InfoPro!A20),"",InfoPro!A20) -> SC_2156_A2 | C20: =IF(ISBLANK(InfoPro!B20),"",InfoPro!B20) -> CENTRAL DE GENERACIÓN BIOMASA BOGOTÁ III | D20: =IF(ISBLANK(InfoPro!E20),"",InfoPro!E20) -> 9.88 | E20: =IF(ISBLANK(InfoPro!N20),"",InfoPro!N20) -> NO | F20: =IF(ISBLANK(InfoPro!I20),"",YEAR(InfoPro!I20)-$J$2) -> 1 | G20: 0 | H20: 0
B21: =IF(ISBLANK(InfoPro!A21),"",InfoPro!A21) -> SC_936_A1 | C21: =IF(ISBLANK(InfoPro!B21),"",InfoPro!B21) -> Parque Fotovoltaico La Vaca 80 MW | D21: =IF(ISBLANK(InfoPro!E21),"",InfoPro!E21) -> 80 | E21: =IF(ISBLANK(InfoPro!N21),"",InfoPro!N21) -> NO | F21: =IF(ISBLANK(InfoPro!I21),"",YEAR(InfoPro!I21)-$J$2) -> 3 | G21: 0 | H21: 0
B22: =IF(ISBLANK(InfoPro!A22),"",InfoPro!A22) -> SC_936_A2 | C22: =IF(ISBLANK(InfoPro!B22),"",InfoPro!B22) -> Parque Fotovoltaico La Vaca 80 MW | D22: =IF(ISBLANK(InfoPro!E22),"",InfoPro!E22) -> 80 | E22: =IF(ISBLANK(InfoPro!N22),"",InfoPro!N22) -> NO | F22: =IF(ISBLANK(InfoPro!I22),"",YEAR(InfoPro!I22)-$J$2) -> 3 | G22: 0 | H22: 0
B23: =IF(ISBLANK(InfoPro!A23),"",InfoPro!A23) -> SC_1799_A1 | C23: =IF(ISBLANK(InfoPro!B23),"",InfoPro!B23) -> EXCEDENTES AUTOGENERACION VRO | D23: =IF(ISBLANK(InfoPro!E23),"",InfoPro!E23) -> 46.71 | E23: =IF(ISBLANK(InfoPro!N23),"",InfoPro!N23) -> SI | F23: =IF(ISBLANK(InfoPro!I23),"",YEAR(InfoPro!I23)-$J$2) -> 5 | G23: 100 | H23: 100
B24: =IF(ISBLANK(InfoPro!A24),"",InfoPro!A24) -> SC_1757_A1 | C24: =IF(ISBLANK(InfoPro!B24),"",InfoPro!B24) -> PGF La Escuela | D24: =IF(ISBLANK(InfoPro!E24),"",InfoPro!E24) -> 40 | E24: =IF(ISBLANK(InfoPro!N24),"",InfoPro!N24) -> NO | F24: =IF(ISBLANK(InfoPro!I24),"",YEAR(InfoPro!I24)-$J$2) -> 2 | G24: 0 | H24: 0
B25: =IF(ISBLANK(InfoPro!A25),"",InfoPro!A25) -> SC_1757_A3 | C25: =IF(ISBLANK(InfoPro!B25),"",InfoPro!B25) -> PGF La Escuela | D25: =IF(ISBLANK(InfoPro!E25),"",InfoPro!E25) -> 40 | E25: =IF(ISBLANK(InfoPro!N25),"",InfoPro!N25) -> NO | F25: =IF(ISBLANK(InfoPro!I25),"",YEAR(InfoPro!I25)-$J$2) -> 2 | G25: 0 | H25: 0
B26: =IF(ISBLANK(InfoPro!A26),"",InfoPro!A26) -> SC_1870_A1 | C26: =IF(ISBLANK(InfoPro!B26),"",InfoPro!B26) -> Helios Puerto Lopez - 15MW | D26: =IF(ISBLANK(InfoPro!E26),"",InfoPro!E26) -> 15 | E26: =IF(ISBLANK(InfoPro!N26),"",InfoPro!N26) -> NO | F26: =IF(ISBLANK(InfoPro!I26),"",YEAR(InfoPro!I26)-$J$2) -> 1 | G26: 0 | H26: 0
B27: =IF(ISBLANK(InfoPro!A27),"",InfoPro!A27) -> SC_1870_A2 | C27: =IF(ISBLANK(InfoPro!B27),"",InfoPro!B27) -> Helios Puerto Lopez - 15MW | D27: =IF(ISBLANK(InfoPro!E27),"",InfoPro!E27) -> 15 | E27: =IF(ISBLANK(InfoPro!N27),"",InfoPro!N27) -> NO | F27: =IF(ISBLANK(InfoPro!I27),"",YEAR(InfoPro!I27)-$J$2) -> 1 | G27: 0 | H27: 0
B28: =IF(ISBLANK(InfoPro!A28),"",InfoPro!A28) -> SC_1892_A1 | C28: =IF(ISBLANK(InfoPro!B28),"",InfoPro!B28) -> PARQUE SOLAR MESITAS | D28: =IF(ISBLANK(InfoPro!E28),"",InfoPro!E28) -> 9.9 | E28: =IF(ISBLANK(InfoPro!N28),"",InfoPro!N28) -> NO | F28: =IF(ISBLANK(InfoPro!I28),"",YEAR(InfoPro!I28)-$J$2) -> 1 | G28: 0 | H28: 0
B29: =IF(ISBLANK(InfoPro!A29),"",InfoPro!A29) -> SC_1892_A2 | C29: =IF(ISBLANK(InfoPro!B29),"",InfoPro!B29) -> PARQUE SOLAR MESITAS | D29: =IF(ISBLANK(InfoPro!E29),"",InfoPro!E29) -> 9.9 | E29: =IF(ISBLANK(InfoPro!N29),"",InfoPro!N29) -> NO | F29: =IF(ISBLANK(InfoPro!I29),"",YEAR(InfoPro!I29)-$J$2) -> 1 | G29: 0 | H29: 0
B30: =IF(ISBLANK(InfoPro!A30),"",InfoPro!A30) -> SC_1930_A2 | C30: =IF(ISBLANK(InfoPro!B30),"",InfoPro!B30) -> PV José Maria Cordova 9.9 MW | D30: =IF(ISBLANK(InfoPro!E30),"",InfoPro!E30) -> 9.9 | E30: =IF(ISBLANK(InfoPro!N30),"",InfoPro!N30) -> NO | F30: =IF(ISBLANK(InfoPro!I30),"",YEAR(InfoPro!I30)-$J$2) -> 2 | G30: 0 | H30: 0
B31: =IF(ISBLANK(InfoPro!A31),"",InfoPro!A31) -> SC_2060_A1 | C31: =IF(ISBLANK(InfoPro!B31),"",InfoPro!B31) -> EL DANUBIO - 50 MW | D31: =IF(ISBLANK(InfoPro!E31),"",InfoPro!E31) -> 50 | E31: =IF(ISBLANK(InfoPro!N31),"",InfoPro!N31) -> NO | F31: =IF(ISBLANK(InfoPro!I31),"",YEAR(InfoPro!I31)-$J$2) -> 3 | G31: 0 | H31: 0
B32: =IF(ISBLANK(InfoPro!A32),"",InfoPro!A32) -> SC_2060_A2 | C32: =IF(ISBLANK(InfoPro!B32),"",InfoPro!B32) -> EL DANUBIO - 50 MW | D32: =IF(ISBLANK(InfoPro!E32),"",InfoPro!E32) -> 50 | E32: =IF(ISBLANK(InfoPro!N32),"",InfoPro!N32) -> NO | F32: =IF(ISBLANK(InfoPro!I32),"",YEAR(InfoPro!I32)-$J$2) -> 3 | G32: 0 | H32: 0
B33: =IF(ISBLANK(InfoPro!A33),"",InfoPro!A33) -> SC_1836_A1 | C33: =IF(ISBLANK(InfoPro!B33),"",InfoPro!B33) -> PARQUE SOLAR LA MERCED 9.9 MW | D33: =IF(ISBLANK(InfoPro!E33),"",InfoPro!E33) -> 9.9 | E33: =IF(ISBLANK(InfoPro!N33),"",InfoPro!N33) -> NO | F33: =IF(ISBLANK(InfoPro!I33),"",YEAR(InfoPro!I33)-$J$2) -> 1 | G33: 0 | H33: 0
B34: =IF(ISBLANK(InfoPro!#REF!),"",InfoPro!#REF!) ->  | C34: =IF(ISBLANK(InfoPro!#REF!),"",InfoPro!#REF!) ->  | D34: =IF(ISBLANK(InfoPro!#REF!),"",InfoPro!#REF!) ->  | E34: =IF(ISBLANK(InfoPro!#REF!),"",InfoPro!#REF!) ->  | F34: =IF(ISBLANK(InfoPro!#REF!),"",YEAR(InfoPro!#REF!)-$J$2) -> 
B35: =IF(ISBLANK(InfoPro!A34),"",InfoPro!A34) -> SC_2071_A1 | C35: =IF(ISBLANK(InfoPro!B34),"",InfoPro!B34) -> Morichal - 9.9 MW | D35: =IF(ISBLANK(InfoPro!E34),"",InfoPro!E34) -> 9.9 | E35: =IF(ISBLANK(InfoPro!N34),"",InfoPro!N34) -> NO | F35: =IF(ISBLANK(InfoPro!I34),"",YEAR(InfoPro!I34)-$J$2) -> 2 | G35: 0 | H35: 0
B36: =IF(ISBLANK(InfoPro!A35),"",InfoPro!A35) -> SC_2281_A1 | C36: =IF(ISBLANK(InfoPro!B35),"",InfoPro!B35) -> PARQUE EÓLICO SAUCES de 288 MW | D36: =IF(ISBLANK(InfoPro!E35),"",InfoPro!E35) -> 288 | E36: =IF(ISBLANK(InfoPro!N35),"",InfoPro!N35) -> NO | F36: =IF(ISBLANK(InfoPro!I35),"",YEAR(InfoPro!I35)-$J$2) -> 2 | G36: 0 | H36: 0
B37: =IF(ISBLANK(InfoPro!A36),"",InfoPro!A36) -> SC_2281_A2 | C37: =IF(ISBLANK(InfoPro!B36),"",InfoPro!B36) -> PARQUE EÓLICO SAUCES de 288 MW | D37: =IF(ISBLANK(InfoPro!E36),"",InfoPro!E36) -> 288 | E37: =IF(ISBLANK(InfoPro!N36),"",InfoPro!N36) -> NO | F37: =IF(ISBLANK(InfoPro!I36),"",YEAR(InfoPro!I36)-$J$2) -> 2 | G37: 0 | H37: 0
B38: =IF(ISBLANK(InfoPro!A37),"",InfoPro!A37) -> SC_2116_A1 | C38: =IF(ISBLANK(InfoPro!B37),"",InfoPro!B37) -> Parque Eólico Los Cerezos 60 MW | D38: =IF(ISBLANK(InfoPro!E37),"",InfoPro!E37) -> 60 | E38: =IF(ISBLANK(InfoPro!N37),"",InfoPro!N37) -> NO | F38: =IF(ISBLANK(InfoPro!I37),"",YEAR(InfoPro!I37)-$J$2) -> 4 | G38: 0 | H38: 0
B39: =IF(ISBLANK(InfoPro!A38),"",InfoPro!A38) -> SC_2116_A2 | C39: =IF(ISBLANK(InfoPro!B38),"",InfoPro!B38) -> Parque Eólico Los Cerezos 60 MW | D39: =IF(ISBLANK(InfoPro!E38),"",InfoPro!E38) -> 60 | E39: =IF(ISBLANK(InfoPro!N38),"",InfoPro!N38) -> NO | F39: =IF(ISBLANK(InfoPro!I38),"",YEAR(InfoPro!I38)-$J$2) -> 4 | G39: 0 | H39: 0
B40: =IF(ISBLANK(InfoPro!A39),"",InfoPro!A39) -> SC_2078_A1 | C40: =IF(ISBLANK(InfoPro!B39),"",InfoPro!B39) -> PARQUE SOLAR SANTA HELENA 19.9 | D40: =IF(ISBLANK(InfoPro!E39),"",InfoPro!E39) -> 19.9 | E40: =IF(ISBLANK(InfoPro!N39),"",InfoPro!N39) -> NO | F40: =IF(ISBLANK(InfoPro!I39),"",YEAR(InfoPro!I39)-$J$2) -> 1 | G40: 0 | H40: 0
B41: =IF(ISBLANK(InfoPro!A40),"",InfoPro!A40) -> SC_1899_A1 | C41: =IF(ISBLANK(InfoPro!B40),"",InfoPro!B40) -> Sikaramá 9.9 MW | D41: =IF(ISBLANK(InfoPro!E40),"",InfoPro!E40) -> 9.9 | E41: =IF(ISBLANK(InfoPro!N40),"",InfoPro!N40) -> NO | F41: =IF(ISBLANK(InfoPro!I40),"",YEAR(InfoPro!I40)-$J$2) -> 3 | G41: 0 | H41: 0
B42: =IF(ISBLANK(InfoPro!A41),"",InfoPro!A41) -> SC_1899_A2 | C42: =IF(ISBLANK(InfoPro!B41),"",InfoPro!B41) -> Sikaramá 9.9 MW | D42: =IF(ISBLANK(InfoPro!E41),"",InfoPro!E41) -> 9.9 | E42: =IF(ISBLANK(InfoPro!N41),"",InfoPro!N41) -> NO | F42: =IF(ISBLANK(InfoPro!I41),"",YEAR(InfoPro!I41)-$J$2) -> 3 | G42: 0 | H42: 0
B43: =IF(ISBLANK(InfoPro!A42),"",InfoPro!A42) -> SC_2144_A1 | C43: =IF(ISBLANK(InfoPro!B42),"",InfoPro!B42) -> PGFV Andes I | D43: =IF(ISBLANK(InfoPro!E42),"",InfoPro!E42) -> 19.9 | E43: =IF(ISBLANK(InfoPro!N42),"",InfoPro!N42) -> NO | F43: =IF(ISBLANK(InfoPro!I42),"",YEAR(InfoPro!I42)-$J$2) -> 1 | G43: 0 | H43: 0
B44: =IF(ISBLANK(InfoPro!A43),"",InfoPro!A43) -> SC_2144_A2 | C44: =IF(ISBLANK(InfoPro!B43),"",InfoPro!B43) -> PGFV Andes I | D44: =IF(ISBLANK(InfoPro!E43),"",InfoPro!E43) -> 19.9 | E44: =IF(ISBLANK(InfoPro!N43),"",InfoPro!N43) -> NO | F44: =IF(ISBLANK(InfoPro!I43),"",YEAR(InfoPro!I43)-$J$2) -> 1 | G44: 0 | H44: 0
B45: =IF(ISBLANK(InfoPro!A44),"",InfoPro!A44) -> SC_2176_A1 | C45: =IF(ISBLANK(InfoPro!B44),"",InfoPro!B44) -> PGFV Andes II | D45: =IF(ISBLANK(InfoPro!E44),"",InfoPro!E44) -> 19.9 | E45: =IF(ISBLANK(InfoPro!N44),"",InfoPro!N44) -> NO | F45: =IF(ISBLANK(InfoPro!I44),"",YEAR(InfoPro!I44)-$J$2) -> 1 | G45: 0 | H45: 0
B46: =IF(ISBLANK(InfoPro!A45),"",InfoPro!A45) -> SC_2176_A2 | C46: =IF(ISBLANK(InfoPro!B45),"",InfoPro!B45) -> PGFV Andes II | D46: =IF(ISBLANK(InfoPro!E45),"",InfoPro!E45) -> 19.9 | E46: =IF(ISBLANK(InfoPro!N45),"",InfoPro!N45) -> NO | F46: =IF(ISBLANK(InfoPro!I45),"",YEAR(InfoPro!I45)-$J$2) -> 1 | G46: 0 | H46: 0
B47: =IF(ISBLANK(InfoPro!A46),"",InfoPro!A46) -> SC_1886_A1 | C47: =IF(ISBLANK(InfoPro!B46),"",InfoPro!B46) -> Rúkura 60 MW | D47: =IF(ISBLANK(InfoPro!E46),"",InfoPro!E46) -> 60 | E47: =IF(ISBLANK(InfoPro!N46),"",InfoPro!N46) -> NO | F47: =IF(ISBLANK(InfoPro!I46),"",YEAR(InfoPro!I46)-$J$2) -> 5 | G47: 0 | H47: 0
B48: =IF(ISBLANK(InfoPro!A47),"",InfoPro!A47) -> SC_1886_A2 | C48: =IF(ISBLANK(InfoPro!B47),"",InfoPro!B47) -> Rúkura 60 MW | D48: =IF(ISBLANK(InfoPro!E47),"",InfoPro!E47) -> 60 | E48: =IF(ISBLANK(InfoPro!N47),"",InfoPro!N47) -> NO | F48: =IF(ISBLANK(InfoPro!I47),"",YEAR(InfoPro!I47)-$J$2) -> 5 | G48: 0 | H48: 0
B49: =IF(ISBLANK(InfoPro!A48),"",InfoPro!A48) -> SC_2002_A1 | C49: =IF(ISBLANK(InfoPro!B48),"",InfoPro!B48) -> Bosques Solares de los Llanos 8 | D49: =IF(ISBLANK(InfoPro!E48),"",InfoPro!E48) -> 170 | E49: =IF(ISBLANK(InfoPro!N48),"",InfoPro!N48) -> NO | F49: =IF(ISBLANK(InfoPro!I48),"",YEAR(InfoPro!I48)-$J$2) -> 3 | G49: 0 | H49: 0
B50: =IF(ISBLANK(InfoPro!A49),"",InfoPro!A49) -> SC_2002_A2 | C50: =IF(ISBLANK(InfoPro!B49),"",InfoPro!B49) -> Bosques Solares de los Llanos 8 | D50: =IF(ISBLANK(InfoPro!E49),"",InfoPro!E49) -> 170 | E50: =IF(ISBLANK(InfoPro!N49),"",InfoPro!N49) -> NO | F50: =IF(ISBLANK(InfoPro!I49),"",YEAR(InfoPro!I49)-$J$2) -> 3 | G50: 0 | H50: 0
B51: =IF(ISBLANK(InfoPro!A50),"",InfoPro!A50) -> SC_1881_A1 | C51: =IF(ISBLANK(InfoPro!B50),"",InfoPro!B50) -> PARQUE FOTOVOLTAICO SIMIJACA | D51: =IF(ISBLANK(InfoPro!E50),"",InfoPro!E50) -> 60 | E51: =IF(ISBLANK(InfoPro!N50),"",InfoPro!N50) -> NO | F51: =IF(ISBLANK(InfoPro!I50),"",YEAR(InfoPro!I50)-$J$2) -> 3 | G51: 0 | H51: 0
B52: =IF(ISBLANK(InfoPro!A51),"",InfoPro!A51) -> SC_1881_A2 | C52: =IF(ISBLANK(InfoPro!B51),"",InfoPro!B51) -> PARQUE FOTOVOLTAICO SIMIJACA | D52: =IF(ISBLANK(InfoPro!E51),"",InfoPro!E51) -> 60 | E52: =IF(ISBLANK(InfoPro!N51),"",InfoPro!N51) -> NO | F52: =IF(ISBLANK(InfoPro!I51),"",YEAR(InfoPro!I51)-$J$2) -> 3 | G52: 0 | H52: 0
B53: =IF(ISBLANK(InfoPro!A52),"",InfoPro!A52) -> SC_2326_A1 | C53: =IF(ISBLANK(InfoPro!B52),"",InfoPro!B52) -> ARQUE EÓLICO ORQUIDEAS de 288 MW | D53: =IF(ISBLANK(InfoPro!E52),"",InfoPro!E52) -> 288 | E53: =IF(ISBLANK(InfoPro!N52),"",InfoPro!N52) -> NO | F53: =IF(ISBLANK(InfoPro!I52),"",YEAR(InfoPro!I52)-$J$2) -> 2 | G53: 0 | H53: 0
B54: =IF(ISBLANK(InfoPro!A53),"",InfoPro!A53) -> SC_2326_A2 | C54: =IF(ISBLANK(InfoPro!B53),"",InfoPro!B53) -> ARQUE EÓLICO ORQUIDEAS de 288 MW | D54: =IF(ISBLANK(InfoPro!E53),"",InfoPro!E53) -> 288 | E54: =IF(ISBLANK(InfoPro!N53),"",InfoPro!N53) -> NO | F54: =IF(ISBLANK(InfoPro!I53),"",YEAR(InfoPro!I53)-$J$2) -> 2 | G54: 0 | H54: 0
B55: =IF(ISBLANK(InfoPro!A54),"",InfoPro!A54) -> SC_2075_A1 | C55: =IF(ISBLANK(InfoPro!B54),"",InfoPro!B54) -> Ubaté Solar | D55: =IF(ISBLANK(InfoPro!E54),"",InfoPro!E54) -> 19.9 | E55: =IF(ISBLANK(InfoPro!N54),"",InfoPro!N54) -> SI | F55: =IF(ISBLANK(InfoPro!I54),"",YEAR(InfoPro!I54)-$J$2) -> 0 | G55: 100 | H55: 100
B56: =IF(ISBLANK(InfoPro!A55),"",InfoPro!A55) -> SC_2075_A2 | C56: =IF(ISBLANK(InfoPro!B55),"",InfoPro!B55) -> Ubaté Solar | D56: =IF(ISBLANK(InfoPro!E55),"",InfoPro!E55) -> 19.9 | E56: =IF(ISBLANK(InfoPro!N55),"",InfoPro!N55) -> SI | F56: =IF(ISBLANK(InfoPro!I55),"",YEAR(InfoPro!I55)-$J$2) -> 0 | G56: 100 | H56: 100
B57: =IF(ISBLANK(InfoPro!A56),"",InfoPro!A56) -> SC_2217_A1 | C57: =IF(ISBLANK(InfoPro!B56),"",InfoPro!B56) -> CENTRAL DE GENERACIÓN BIOMASA BOGOTÁ II 9,88 MW | D57: =IF(ISBLANK(InfoPro!E56),"",InfoPro!E56) -> 9.88 | E57: =IF(ISBLANK(InfoPro!N56),"",InfoPro!N56) -> NO | F57: =IF(ISBLANK(InfoPro!I56),"",YEAR(InfoPro!I56)-$J$2) -> 0 | G57: 0 | H57: 0
B58: =IF(ISBLANK(InfoPro!A57),"",InfoPro!A57) -> SC_2217_A2 | C58: =IF(ISBLANK(InfoPro!B57),"",InfoPro!B57) -> CENTRAL DE GENERACIÓN BIOMASA BOGOTÁ II 9,88 MW | D58: =IF(ISBLANK(InfoPro!E57),"",InfoPro!E57) -> 9.88 | E58: =IF(ISBLANK(InfoPro!N57),"",InfoPro!N57) -> NO | F58: =IF(ISBLANK(InfoPro!I57),"",YEAR(InfoPro!I57)-$J$2) -> 0 | G58: 0 | H58: 0

Sheet EC-RE
B3: Factor emisiones sistema | C3: 0.127283 | D3: Ton/MWh | F3: Año de Referencia | G3: 2023
B4: Tasa de descuento | C4: 0.118 | F4: Mínimo | G4: =MIN(Z9:Z254) -> 
B5: Costo emisiones Ton | C5: 91.94 | D5: USD/Ton
B6: TRM | C6: 4070 | D6: COP/USD
J7: 0 | K7: 1 | L7: 2 | M7: 3 | N7: 4 | O7: 5 | P7: 6 | Q7: 7 | R7: 8 | S7: 9 | T7: 10 | U7: 11 | V7: 12 | W7: 13 | X7: 14
A8: Codigo | B8: Nombre | C8: capacidad | D8: tipo | E8: Año de entrada | F8: FP | G8: Factor emisiones | H8: Produccion media/a MWh/a | I8: Emisiones evitadas Ton/a | J8: Flujo Descontado 0 | K8: Flujo Descontado 1 | L8: Flujo Descontado 2 | M8: Flujo Descontado 3 | N8: Flujo Descontado 4 | O8: Flujo Descontado 5 | P8: Flujo Descontado 6 | Q8: Flujo Descontado 7 | R8: Flujo Descontado 8 | S8: Flujo Descontado 9 | T8: Flujo Descontado 10 | U8: Flujo Descontado 11 | V8: Flujo Descontado 12 | W8: Flujo Descontado 13 | X8: Flujo Descontado 14 | Y8: VPN | Z8: (Beneficio)/kW
A9: =IF(ISBLANK(InfoPro!A2),"",InfoPro!A2) -> SC_481_A1 | B9: =IF(ISBLANK(InfoPro!B2),"",InfoPro!B2) -> DIAMANTE | C9: =IF(ISBLANK(InfoPro!E2),"",InfoPro!E2) -> 70 | D9: =IF(ISBLANK(InfoPro!F2),"",InfoPro!F2) -> Solar FV | E9: =IF(ISBLANK(InfoPro!I2),"",YEAR(InfoPro!I2)-$G$3) -> 2 | F9: =IF(B9="","",VLOOKUP(D9,Tablas!$B$2:$E$13,2,FALSE)) -> 0.26 | G9: =IF(B9="","",VLOOKUP(D9,Tablas!$B$2:$G$13,6,FALSE)) -> 0 | H9: =IF(C9="","",+C9*F9*24*365) -> 159432 | I9: =IF(H9="","",+H9*($C$3-G9)) -> 20292.98326 | J9: =IF($I9="","",(1/(1+$C$4)^(J$7+$E9))*$I9*$C$5) -> 1492680.259 | K9: =IF($I9="","",(1/(1+$C$4)^(K$7+$E9))*$I9*$C$5) -> 1335134.4 | L9: 1194216.816 | M9: 1068172.465 | N9: 955431.543 | O9: 854589.9311 | P9: 764391.7094 | Q9: 683713.5147 | R9: 611550.5498 | S9: 547004.0696 | T9: 489270.1875 | U9: 437629.8636 | V9: 391439.9495 | W9: 350125.1785 | X9: 313171.0004 | Y9: =IF(X9="","",SUM(J9:X9)*$C$6) -> 4.675828225e+10 | Z9: =IF(C9=0,0,IF(Y9="","",Y9/(C9*1000))) -> 667975.4607
A10: =IF(ISBLANK(InfoPro!A3),"",InfoPro!A3) -> SC_2288_A1 | B10: =IF(ISBLANK(InfoPro!B3),"",InfoPro!B3) -> PARQUE SOLAR FOTOVOLTAICO ESTEROS SOL DE 199MW | C10: =IF(ISBLANK(InfoPro!E3),"",InfoPro!E3) -> 199 | D10: =IF(ISBLANK(InfoPro!F3),"",InfoPro!F3) -> Solar FV | E10: =IF(ISBLANK(InfoPro!I3),"",YEAR(InfoPro!I3)-$G$3) -> 2 | F10: =IF(B10="","",VLOOKUP(D10,Tablas!$B$2:$E$13,2,FALSE)) -> 0.26 | G10: =IF(B10="","",VLOOKUP(D10,Tablas!$B$2:$G$13,6,FALSE)) -> 0 | H10: =IF(C10="","",+C10*F10*24*365) -> 453242.4 | I10: =IF(H10="","",+H10*($C$3-G10)) -> 57690.0524 | J10: 4243476.737 | K10: 3795596.366 | L10: 3394987.805 | M10: 3036661.722 | N10: 2716155.386 | O10: 2429477.09 | P10: 2173056.431 | Q10: 1943699.849 | R10: 1738550.849 | S10: 1555054.426 | T10: 1390925.247 | U10: 1244119.184 | V10: 1112807.856 | W10: 995355.8645 | X10: 890300.4154 | Y10: =IF(X10="","",SUM(J10:X10)*$C$6) -> 1.329271167e+11 | Z10: =IF(C10=0,0,IF(Y10="","",Y10/(C10*1000))) -> 667975.4607
A11: =IF(ISBLANK(InfoPro!A4),"",InfoPro!A4) -> SC_2288_A2 | B11: =IF(ISBLANK(InfoPro!B4),"",InfoPro!B4) -> PARQUE SOLAR FOTOVOLTAICO ESTEROS SOL DE 199MW | C11: =IF(ISBLANK(InfoPro!E4),"",InfoPro!E4) -> 199 | D11: =IF(ISBLANK(InfoPro!F4),"",InfoPro!F4) -> Solar FV | E11: =IF(ISBLANK(InfoPro!I4),"",YEAR(InfoPro!I4)-$G$3) -> 2 | F11: =IF(B11="","",VLOOKUP(D11,Tablas!$B$2:$E$13,2,FALSE)) -> 0.26 | G11: =IF(B11="","",VLOOKUP(D11,Tablas!$B$2:$G$13,6,FALSE)) -> 0 | H11: =IF(C11="","",+C11*F11*24*365) -> 453242.4 | I11: 57690.0524 | J11: 4243476.737 | K11: 3795596.366 | L11: 3394987.805 | M11: 3036661.722 | N11: 2716155.386 | O11: 2429477.09 | P11: 2173056.431 | Q11: 1943699.849 | R11: 1738550.849 | S11: 1555054.426 | T11: 1390925.247 | U11: 1244119.184 | V11: 1112807.856 | W11: 995355.8645 | X11: 890300.4154 | Y11: 1.329271167e+11 | Z11: 667975.4607
A12: =IF(ISBLANK(InfoPro!A5),"",InfoPro!A5) -> SC_924_A1 | B12: =IF(ISBLANK(InfoPro!B5),"",InfoPro!B5) -> PARQUE FOTOVOLTAICO LA SABANA | C12: =IF(ISBLANK(InfoPro!E5),"",InfoPro!E5) -> 100 | D12: =IF(ISBLANK(InfoPro!F5),"",InfoPro!F5) -> Solar FV | E12: =IF(ISBLANK(InfoPro!I5),"",YEAR(InfoPro!I5)-$G$3) -> 3 | F12: =IF(B12="","",VLOOKUP(D12,Tablas!$B$2:$E$13,2,FALSE)) -> 0.26 | G12: =IF(B12="","",VLOOKUP(D12,Tablas!$B$2:$G$13,6,FALSE)) -> 0 | H12: 227760 | I12: 28989.97608 | J12: 1907334.857 | K12: 1706024.023 | L12: 1525960.664 | M12: 1364902.204 | N12: 1220842.759 | O12: 1091988.156 | P12: 976733.5924 | Q12: 873643.6425 | R12: 781434.3851 | S12: 698957.4106 | T12: 625185.5194 | U12: 559199.9279 | V12: 500178.8264 | W12: 447387.1434 | X12: 400167.3913 | Y12: 5.974735785e+10 | Z12: 597473.5785
A13: =IF(ISBLANK(InfoPro!A6),"",InfoPro!A6) -> SC_924_A2 | B13: =IF(ISBLANK(InfoPro!B6),"",InfoPro!B6) -> PARQUE FOTOVOLTAICO LA SABANA | C13: =IF(ISBLANK(InfoPro!E6),"",InfoPro!E6) -> 100 | D13: =IF(ISBLANK(InfoPro!F6),"",InfoPro!F6) -> Solar FV | E13: =IF(ISBLANK(InfoPro!I6),"",YEAR(InfoPro!I6)-$G$3) -> 3 | F13: =IF(B13="","",VLOOKUP(D13,Tablas!$B$2:$E$13,2,FALSE)) -> 0.26 | G13: =IF(B13="","",VLOOKUP(D13,Tablas!$B$2:$G$13,6,FALSE)) -> 0 | H13: 227760 | I13: 28989.97608 | J13: 1907334.857 | K13: 1706024.023 | L13: 1525960.664 | M13: 1364902.204 | N13: 1220842.759 | O13: 1091988.156 | P13: 976733.5924 | Q13: 873643.6425 | R13: 781434.3851 | S13: 698957.4106 | T13: 625185.5194 | U13: 559199.9279 | V13: 500178.8264 | W13: 447387.1434 | X13: 400167.3913 | Y13: 5.974735785e+10 | Z13: 597473.5785
A14: =IF(ISBLANK(InfoPro!A7),"",InfoPro!A7) -> SC_756_A1 | B14: =IF(ISBLANK(InfoPro!B7),"",InfoPro!B7) -> PARQUE FOTOVOLTAICO BALSILLAS | C14: =IF(ISBLANK(InfoPro!E7),"",InfoPro!E7) -> 100 | D14: =IF(ISBLANK(InfoPro!F7),"",InfoPro!F7) -> Solar FV | E14: =IF(ISBLANK(InfoPro!I7),"",YEAR(InfoPro!I7)-$G$3) -> 2 | F14: =IF(B14="","",VLOOKUP(D14,Tablas!$B$2:$E$13,2,FALSE)) -> 0.26 | G14: =IF(B14="","",VLOOKUP(D14,Tablas!$B$2:$G$13,6,FALSE)) -> 0 | H14: 227760 | I14: 28989.97608 | J14: 2132400.371 | K14: 1907334.857 | L14: 1706024.023 | M14: 1525960.664 | N14: 1364902.204 | O14: 1220842.759 | P14: 1091988.156 | Q14: 976733.5924 | R14: 873643.6425 | S14: 781434.3851 | T14: 698957.4106 | U14: 625185.5194 | V14: 559199.9279 | W14: 500178.8264 | X14: 447387.1434 | Y14: 6.679754607e+10 | Z14: 667975.4607
A15: =IF(ISBLANK(InfoPro!A8),"",InfoPro!A8) -> SC_756_A2 | B15: =IF(ISBLANK(InfoPro!B8),"",InfoPro!B8) -> PARQUE FOTOVOLTAICO BALSILLAS | C15: =IF(ISBLANK(InfoPro!E8),"",InfoPro!E8) -> 100 | D15: =IF(ISBLANK(InfoPro!F8),"",InfoPro!F8) -> Solar FV | E15: =IF(ISBLANK(InfoPro!I8),"",YEAR(InfoPro!I8)-$G$3) -> 2 | F15: =IF(B15="","",VLOOKUP(D15,Tablas!$B$2:$E$13,2,FALSE)) -> 0.26 | G15: =IF(B15="","",VLOOKUP(D15,Tablas!$B$2:$G$13,6,FALSE)) -> 0 | H15: 227760 | I15: 28989.97608 | J15: 2132400.371 | K15: 1907334.857 | L15: 1706024.023 | M15: 1525960.664 | N15: 1364902.204 | O15: 1220842.759 | P15: 1091988.156 | Q15: 976733.5924 | R15: 873643.6425 | S15: 781434.3851 | T15: 698957.4106 | U15: 625185.5194 | V15: 559199.9279 | W15: 500178.8264 | X15: 447387.1434 | Y15: 6.679754607e+10 | Z15: 667975.4607
A16: =IF(ISBLANK(InfoPro!A9),"",InfoPro!A9) -> SC_1207_A1 | B16: =IF(ISBLANK(InfoPro!B9),"",InfoPro!B9) -> Guacaná | C16: =IF(ISBLANK(InfoPro!E9),"",InfoPro!E9) -> 19.9 | D16: =IF(ISBLANK(InfoPro!F9),"",InfoPro!F9) -> Solar FV | E16: =IF(ISBLANK(InfoPro!I9),"",YEAR(InfoPro!I9)-$G$3) -> 2 | F16: =IF(B16="","",VLOOKUP(D16,Tablas!$B$2:$E$13,2,FALSE)) -> 0.26 | G16: =IF(B16="","",VLOOKUP(D16,Tablas!$B$2:$G$13,6,FALSE)) -> 0 | H16: 45324.24 | I16: 5769.00524 | J16: 424347.6737 | K16: 379559.6366 | L16: 339498.7805 | M16: 303666.1722 | N16: 271615.5386 | O16: 242947.709 | P16: 217305.6431 | Q16: 194369.9849 | R16: 173855.0849 | S16: 155505.4426 | T16: 139092.5247 | U16: 124411.9184 | V16: 111280.7856 | W16: 99535.58645 | X16: 89030.04154 | Y16: 1.329271167e+10 | Z16: 667975.4607
A17: =IF(ISBLANK(InfoPro!A10),"",InfoPro!A10) -> SC_709_A1 | B17: =IF(ISBLANK(InfoPro!B10),"",InfoPro!B10) -> PARQUE FOTOVOLTAICO SUÉ 2 | C17: =IF(ISBLANK(InfoPro!E10),"",InfoPro!E10) -> 9.9 | D17: =IF(ISBLANK(InfoPro!F10),"",InfoPro!F10) -> Solar FV | E17: =IF(ISBLANK(InfoPro!I10),"",YEAR(InfoPro!I10)-$G$3) -> 3 | F17: =IF(B17="","",VLOOKUP(D17,Tablas!$B$2:$E$13,2,FALSE)) -> 0.26 | G17: =IF(B17="","",VLOOKUP(D17,Tablas!$B$2:$G$13,6,FALSE)) -> 0 | H17: 22548.24 | I17: 2870.007632 | J17: 188826.1509 | K17: 168896.3782 | L17: 151070.1058 | M17: 135125.3182 | N17: 120863.4331 | O17: 108106.8275 | P17: 96696.62564 | Q17: 86490.72061 | R17: 77362.00413 | S17: 69196.78365 | T17: 61893.36642 | U17: 55360.79286 | V17: 49517.70381 | W17: 44291.3272 | X17: 39616.57174 | Y17: 5914988427 | Z17: 597473.5785
A18: =IF(ISBLANK(InfoPro!A11),"",InfoPro!A11) -> SC_1299_A1 | B18: =IF(ISBLANK(InfoPro!B11),"",InfoPro!B11) -> Parque Eólico Sisga | C18: =IF(ISBLANK(InfoPro!E11),"",InfoPro!E11) -> 20 | D18: =IF(ISBLANK(InfoPro!F11),"",InfoPro!F11) -> Eólico Onshore | E18: =IF(ISBLANK(InfoPro!I11),"",YEAR(InfoPro!I11)-$G$3) -> 4 | F18: =IF(B18="","",VLOOKUP(D18,Tablas!$B$2:$E$13,2,FALSE)) -> 0.57 | G18: =IF(B18="","",VLOOKUP(D18,Tablas!$B$2:$G$13,6,FALSE)) -> 0 | H18: 99864 | I18: 12710.98951 | J18: 748025.9177 | K18: 669075.0605 | L18: 598457.1203 | M18: 535292.5942 | N18: 478794.807 | O18: 428260.1136 | P18: 383059.1356 | Q18: 342628.9227 | R18: 306465.9416 | S18: 274119.8046 | T18: 245187.6607 | U18: 219309.1777 | V18: 196162.0552 | W18: 175458.01 | X18: 156939.1861 | Y18: 2.343194852e+10 | Z18: 1171597.426
A19: =IF(ISBLANK(InfoPro!A12),"",InfoPro!A12) -> SC_1299_A2 | B19: =IF(ISBLANK(InfoPro!B12),"",InfoPro!B12) -> Parque Eólico Sisga | C19: =IF(ISBLANK(InfoPro!E12),"",InfoPro!E12) -> 20 | D19: =IF(ISBLANK(InfoPro!F12),"",InfoPro!F12) -> Eólico Onshore | E19: =IF(ISBLANK(InfoPro!I12),"",YEAR(InfoPro!I12)-$G$3) -> 4 | F19: =IF(B19="","",VLOOKUP(D19,Tablas!$B$2:$E$13,2,FALSE)) -> 0.57 | G19: =IF(B19="","",VLOOKUP(D19,Tablas!$B$2:$G$13,6,FALSE)) -> 0 | H19: 99864 | I19: 12710.98951 | J19: =IF($I19="","",(1/(1+$C$4)^(J$7+$E19))*$I19*$C$5) -> 748025.9177 | K19: 669075.0605 | L19: 598457.1203 | M19: 535292.5942 | N19: 478794.807 | O19: 428260.1136 | P19: 383059.1356 | Q19: 342628.9227 | R19: 306465.9416 | S19: 274119.8046 | T19: 245187.6607 | U19: 219309.1777 | V19: 196162.0552 | W19: 175458.01 | X19: 156939.1861 | Y19: 2.343194852e+10 | Z19: 1171597.426
A20: =IF(ISBLANK(InfoPro!A13),"",InfoPro!A13) -> SC_416_A1 | B20: =IF(ISBLANK(InfoPro!B13),"",InfoPro!B13) -> Solar Jagüey | C20: =IF(ISBLANK(InfoPro!E13),"",InfoPro!E13) -> 112 | D20: =IF(ISBLANK(InfoPro!F13),"",InfoPro!F13) -> Solar FV | E20: =IF(ISBLANK(InfoPro!I13),"",YEAR(InfoPro!I13)-$G$3) -> 3 | F20: =IF(B20="","",VLOOKUP(D20,Tablas!$B$2:$E$13,2,FALSE)) -> 0.26 | G20: =IF(B20="","",VLOOKUP(D20,Tablas!$B$2:$G$13,6,FALSE)) -> 0 | H20: 255091.2 | I20: 32468.77321 | J20: 2136215.04 | K20: 1910746.905 | L20: 1709075.944 | M20: 1528690.469 | N20: 1367343.89 | O20: 1223026.735 | P20: 1093941.623 | Q20: 978480.8797 | R20: 875206.5113 | S20: 782832.2999 | T20: 700207.7817 | U20: 626303.9192 | V20: 560200.2855 | W20: 501073.6006 | X20: 448187.4782 | Y20: 6.691704079e+10 | Z20: 597473.5785
A21: =IF(ISBLANK(InfoPro!A14),"",InfoPro!A14) -> SC_416_A2 | B21: =IF(ISBLANK(InfoPro!B14),"",InfoPro!B14) -> Solar Jagüey | C21: =IF(ISBLANK(InfoPro!E14),"",InfoPro!E14) -> 112 | D21: =IF(ISBLANK(InfoPro!F14),"",InfoPro!F14) -> Solar FV | E21: =IF(ISBLANK(InfoPro!I14),"",YEAR(InfoPro!I14)-$G$3) -> 3 | F21: =IF(B21="","",VLOOKUP(D21,Tablas!$B$2:$E$13,2,FALSE)) -> 0.26 | G21: =IF(B21="","",VLOOKUP(D21,Tablas!$B$2:$G$13,6,FALSE)) -> 0 | H21: 255091.2 | I21: 32468.77321 | J21: 2136215.04 | K21: 1910746.905 | L21: 1709075.944 | M21: 1528690.469 | N21: 1367343.89 | O21: 1223026.735 | P21: 1093941.623 | Q21: 978480.8797 | R21: 875206.5113 | S21: 782832.2999 | T21: 700207.7817 | U21: 626303.9192 | V21: 560200.2855 | W21: 501073.6006 | X21: 448187.4782 | Y21: 6.691704079e+10 | Z21: 597473.5785
A22: =IF(ISBLANK(InfoPro!A15),"",InfoPro!A15) -> SC_1023_A1 | B22: =IF(ISBLANK(InfoPro!B15),"",InfoPro!B15) -> PARQUE SOLAR LOS HELECHOS | C22: =IF(ISBLANK(InfoPro!E15),"",InfoPro!E15) -> 9.9 | D22: =IF(ISBLANK(InfoPro!F15),"",InfoPro!F15) -> Solar FV | E22: =IF(ISBLANK(InfoPro!I15),"",YEAR(InfoPro!I15)-$G$3) -> 1 | F22: =IF(B22="","",VLOOKUP(D22,Tablas!$B$2:$E$13,2,FALSE)) -> 0.26 | G22: =IF(B22="","",VLOOKUP(D22,Tablas!$B$2:$G$13,6,FALSE)) -> 0 | H22: =IF(C22="","",+C22*F22*24*365) -> 22548.24 | I22: =IF(H22="","",+H22*($C$3-G22)) -> 2870.007632 | J22: 236018.3378 | K22: 211107.6367 | L22: 188826.1509 | M22: 168896.3782 | N22: 151070.1058 | O22: 135125.3182 | P22: 120863.4331 | Q22: 108106.8275 | R22: 96696.62564 | S22: 86490.72061 | T22: 77362.00413 | U22: 69196.78365 | V22: 61893.36642 | W22: 55360.79286 | X22: 49517.70381 | Y22: =IF(X22="","",SUM(J22:X22)*$C$6) -> 7393285994 | Z22: =IF(C22=0,0,IF(Y22="","",Y22/(C22*1000))) -> 746796.5651
A23: =IF(ISBLANK(InfoPro!A16),"",InfoPro!A16) -> SC_1023_A2 | B23: =IF(ISBLANK(InfoPro!B16),"",InfoPro!B16) -> PARQUE SOLAR LOS HELECHOS | C23: =IF(ISBLANK(InfoPro!E16),"",InfoPro!E16) -> 9.9 | D23: =IF(ISBLANK(InfoPro!F16),"",InfoPro!F16) -> Solar FV | E23: =IF(ISBLANK(InfoPro!I16),"",YEAR(InfoPro!I16)-$G$3) -> 1 | F23: =IF(B23="","",VLOOKUP(D23,Tablas!$B$2:$E$13,2,FALSE)) -> 0.26 | G23: =IF(B23="","",VLOOKUP(D23,Tablas!$B$2:$G$13,6,FALSE)) -> 0 | H23: 22548.24 | I23: 2870.007632 | J23: 236018.3378 | K23: 211107.6367 | L23: 188826.1509 | M23: 168896.3782 | N23: 151070.1058 | O23: 135125.3182 | P23: 120863.4331 | Q23: 108106.8275 | R23: 96696.62564 | S23: 86490.72061 | T23: 77362.00413 | U23: 69196.78365 | V23: 61893.36642 | W23: 55360.79286 | X23: 49517.70381 | Y23: 7393285994 | Z23: 746796.5651
A24: =IF(ISBLANK(InfoPro!A17),"",InfoPro!A17) -> SC_1449_A1 | B24: =IF(ISBLANK(InfoPro!B17),"",InfoPro!B17) -> Autogeneración Geopark | C24: =IF(ISBLANK(InfoPro!E17),"",InfoPro!E17) -> 0 | D24: =IF(ISBLANK(InfoPro!F17),"",InfoPro!F17) -> Solar FV | E24: =IF(ISBLANK(InfoPro!I17),"",YEAR(InfoPro!I17)-$G$3) -> 0 | F24: =IF(B24="","",VLOOKUP(D24,Tablas!$B$2:$E$13,2,FALSE)) -> 0.26 | G24: =IF(B24="","",VLOOKUP(D24,Tablas!$B$2:$G$13,6,FALSE)) -> 0 | H24: 0 | I24: 0 | J24: 0 | K24: 0 | L24: 0 | M24: 0 | N24: 0 | O24: 0 | P24: 0 | Q24: 0 | R24: 0 | S24: 0 | T24: 0 | U24: 0 | V24: 0 | W24: 0 | X24: 0 | Y24: 0 | Z24: 0
A25: =IF(ISBLANK(InfoPro!A18),"",InfoPro!A18) -> SC_1590_A1 | B25: =IF(ISBLANK(InfoPro!B18),"",InfoPro!B18) -> PCH Ventana de 7MW (entrega 6,7 MW) | C25: =IF(ISBLANK(InfoPro!E18),"",InfoPro!E18) -> 6.7 | D25: =IF(ISBLANK(InfoPro!F18),"",InfoPro!F18) -> PCH | E25: =IF(ISBLANK(InfoPro!I18),"",YEAR(InfoPro!I18)-$G$3) -> 1 | F25: =IF(B25="","",VLOOKUP(D25,Tablas!$B$2:$E$13,2,FALSE)) -> 0.54 | G25: =IF(B25="","",VLOOKUP(D25,Tablas!$B$2:$G$13,6,FALSE)) -> 0 | H25: 31693.68 | I25: 4034.066671 | J25: 331746.0553 | K25: 296731.7131 | L25: 265412.9813 | M25: 237399.8044 | N25: 212343.2955 | O25: 189931.3913 | P25: 169884.9654 | Q25: 151954.3519 | R25: 135916.236 | S25: 121570.873 | T25: 108739.6002 | U25: 97262.61199 | V25: 86996.96958 | W25: 77814.82073 | X25: 69601.80745 | Y25: 1.039196143e+10 | Z25: 1551039.02
A26: =IF(ISBLANK(InfoPro!A19),"",InfoPro!A19) -> SC_2156_A1 | B26: =IF(ISBLANK(InfoPro!B19),"",InfoPro!B19) -> CENTRAL DE GENERACIÓN BIOMASA BOGOTÁ III | C26: =IF(ISBLANK(InfoPro!E19),"",InfoPro!E19) -> 9.88 | D26: =IF(ISBLANK(InfoPro!F19),"",InfoPro!F19) -> Biomasa y Residuos | E26: =IF(ISBLANK(InfoPro!I19),"",YEAR(InfoPro!I19)-$G$3) -> 1 | F26: =IF(B26="","",VLOOKUP(D26,Tablas!$B$2:$E$13,2,FALSE)) -> 0.7 | G26: =IF(B26="","",VLOOKUP(D26,Tablas!$B$2:$G$13,6,FALSE)) -> 0.37 | H26: 60584.16 | I26: -14704.80556 | J26: -1209266.389 | K26: -1081633.622 | L26: -967471.9339 | M26: -865359.5115 | N26: -774024.6078 | O26: -692329.7029 | P26: -619257.3371 | Q26: -553897.4393 | R26: -495435.9922 | S26: -443144.8946 | T26: -396372.8932 | U26: -354537.4716 | V26: -317117.5953 | W26: -283647.223 | X26: -253709.5018 | Y26: -3.788032889e+10 | Z26: -3834041.386
A27: =IF(ISBLANK(InfoPro!A20),"",InfoPro!A20) -> SC_2156_A2 | B27: =IF(ISBLANK(InfoPro!B20),"",InfoPro!B20) -> CENTRAL DE GENERACIÓN BIOMASA BOGOTÁ III | C27: =IF(ISBLANK(InfoPro!E20),"",InfoPro!E20) -> 9.88 | D27: =IF(ISBLANK(InfoPro!F20),"",InfoPro!F20) -> Biomasa y Residuos | E27: =IF(ISBLANK(InfoPro!I20),"",YEAR(InfoPro!I20)-$G$3) -> 1 | F27: =IF(B27="","",VLOOKUP(D27,Tablas!$B$2:$E$13,2,FALSE)) -> 0.7 | G27: =IF(B27="","",VLOOKUP(D27,Tablas!$B$2:$G$13,6,FALSE)) -> 0.37 | H27: 60584.16 | I27: -14704.80556 | J27: -1209266.389 | K27: -1081633.622 | L27: -967471.9339 | M27: -865359.5115 | N27: -774024.6078 | O27: -692329.7029 | P27: -619257.3371 | Q27: -553897.4393 | R27: -495435.9922 | S27: -443144.8946 | T27: -396372.8932 | U27: -354537.4716 | V27: -317117.5953 | W27: -283647.223 | X27: -253709.5018 | Y27: -3.788032889e+10 | Z27: -3834041.386
A28: =IF(ISBLANK(InfoPro!A21),"",InfoPro!A21) -> SC_936_A1 | B28: =IF(ISBLANK(InfoPro!B21),"",InfoPro!B21) -> Parque Fotovoltaico La Vaca 80 MW | C28: =IF(ISBLANK(InfoPro!E21),"",InfoPro!E21) -> 80 | D28: =IF(ISBLANK(InfoPro!F21),"",InfoPro!F21) -> Solar FV | E28: =IF(ISBLANK(InfoPro!I21),"",YEAR(InfoPro!I21)-$G$3) -> 3 | F28: =IF(B28="","",VLOOKUP(D28,Tablas!$B$2:$E$13,2,FALSE)) -> 0.26 | G28: =IF(B28="","",VLOOKUP(D28,Tablas!$B$2:$G$13,6,FALSE)) -> 0 | H28: 182208 | I28: 23191.98086 | J28: 1525867.886 | K28: 1364819.218 | L28: 1220768.531 | M28: 1091921.763 | N28: 976674.207 | O28: 873590.525 | P28: 781386.8739 | Q28: 698914.914 | R28: 625147.5081 | S28: 559165.9285 | T28: 500148.4155 | U28: 447359.9423 | V28: 400143.0611 | W28: 357909.7147 | X28: 320133.913 | Y28: 4.779788628e+10 | Z28: 597473.5785
A29: =IF(ISBLANK(InfoPro!A22),"",InfoPro!A22) -> SC_936_A2 | B29: =IF(ISBLANK(InfoPro!B22),"",InfoPro!B22) -> Parque Fotovoltaico La Vaca 80 MW | C29: =IF(ISBLANK(InfoPro!E22),"",InfoPro!E22) -> 80 | D29: =IF(ISBLANK(InfoPro!F22),"",InfoPro!F22) -> Solar FV | E29: =IF(ISBLANK(InfoPro!I22),"",YEAR(InfoPro!I22)-$G$3) -> 3 | F29: =IF(B29="","",VLOOKUP(D29,Tablas!$B$2:$E$13,2,FALSE)) -> 0.26 | G29: =IF(B29="","",VLOOKUP(D29,Tablas!$B$2:$G$13,6,FALSE)) -> 0 | H29: 182208 | I29: 23191.98086 | J29: =IF($I29="","",(1/(1+$C$4)^(J$7+$E29))*$I29*$C$5) -> 1525867.886 | K29: 1364819.218 | L29: 1220768.531 | M29: 1091921.763 | N29: 976674.207 | O29: 873590.525 | P29: 781386.8739 | Q29: 698914.914 | R29: 625147.5081 | S29: 559165.9285 | T29: 500148.4155 | U29: 447359.9423 | V29: 400143.0611 | W29: 357909.7147 | X29: 320133.913 | Y29: 4.779788628e+10 | Z29: 597473.5785
A30: =IF(ISBLANK(InfoPro!A23),"",InfoPro!A23) -> SC_1799_A1 | B30: =IF(ISBLANK(InfoPro!B23),"",InfoPro!B23) -> EXCEDENTES AUTOGENERACION VRO | C30: =IF(ISBLANK(InfoPro!E23),"",InfoPro!E23) -> 46.71 | D30: =IF(ISBLANK(InfoPro!F23),"",InfoPro!F23) -> Solar FV | E30: =IF(ISBLANK(InfoPro!I23),"",YEAR(InfoPro!I23)-$G$3) -> 5 | F30: =IF(B30="","",VLOOKUP(D30,Tablas!$B$2:$E$13,2,FALSE)) -> 0.26 | G30: =IF(B30="","",VLOOKUP(D30,Tablas!$B$2:$G$13,6,FALSE)) -> 0 | H30: 106386.696 | I30: 13541.21783 | J30: 712776.2263 | K30: 637545.8196 | L30: 570255.6526 | M30: 510067.6678 | N30: 456232.261 | O30: 408078.9454 | P30: 365008.0013 | Q30: 326483.0065 | R30: 292024.1561 | S30: 261202.2863 | T30: 233633.5298 | U30: 208974.5347 | V30: 186918.1885 | W30: 167189.7929 | X30: 149543.643 | Y30: 2.232775021e+10 | Z30: 478007.9256
A31: =IF(ISBLANK(InfoPro!A24),"",InfoPro!A24) -> SC_1757_A1 | B31: =IF(ISBLANK(InfoPro!B24),"",InfoPro!B24) -> PGF La Escuela | C31: =IF(ISBLANK(InfoPro!E24),"",InfoPro!E24) -> 40 | D31: =IF(ISBLANK(InfoPro!F24),"",InfoPro!F24) -> Solar FV | E31: =IF(ISBLANK(InfoPro!I24),"",YEAR(InfoPro!I24)-$G$3) -> 2 | F31: =IF(B31="","",VLOOKUP(D31,Tablas!$B$2:$E$13,2,FALSE)) -> 0.26 | G31: =IF(B31="","",VLOOKUP(D31,Tablas!$B$2:$G$13,6,FALSE)) -> 0 | H31: 91104 | I31: 11595.99043 | J31: 852960.1482 | K31: 762933.943 | L31: 682409.6091 | M31: 610384.2657 | N31: 545960.8817 | O31: 488337.1035 | P31: 436795.2625 | Q31: 390693.4369 | R31: 349457.457 | S31: 312573.754 | T31: 279582.9643 | U31: 250074.2077 | V31: 223679.9711 | W31: 200071.5305 | X31: 178954.8574 | Y31: 2.671901843e+10 | Z31: 667975.4607
A32: =IF(ISBLANK(InfoPro!A25),"",InfoPro!A25) -> SC_1757_A3 | B32: =IF(ISBLANK(InfoPro!B25),"",InfoPro!B25) -> PGF La Escuela | C32: =IF(ISBLANK(InfoPro!E25),"",InfoPro!E25) -> 40 | D32: =IF(ISBLANK(InfoPro!F25),"",InfoPro!F25) -> Solar FV | E32: =IF(ISBLANK(InfoPro!I25),"",YEAR(InfoPro!I25)-$G$3) -> 2 | F32: =IF(B32="","",VLOOKUP(D32,Tablas!$B$2:$E$13,2,FALSE)) -> 0.26 | G32: =IF(B32="","",VLOOKUP(D32,Tablas!$B$2:$G$13,6,FALSE)) -> 0 | H32: 91104 | I32: 11595.99043 | J32: 852960.1482 | K32: 762933.943 | L32: 682409.6091 | M32: 610384.2657 | N32: 545960.8817 | O32: 488337.1035 | P32: 436795.2625 | Q32: 390693.4369 | R32: 349457.457 | S32: 312573.754 | T32: 279582.9643 | U32: 250074.2077 | V32: 223679.9711 | W32: 200071.5305 | X32: 178954.8574 | Y32: 2.671901843e+10 | Z32: 667975.4607
A33: =IF(ISBLANK(InfoPro!A26),"",InfoPro!A26) -> SC_1870_A1 | B33: =IF(ISBLANK(InfoPro!B26),"",InfoPro!B26) -> Helios Puerto Lopez - 15MW | C33: =IF(ISBLANK(InfoPro!E26),"",InfoPro!E26) -> 15 | D33: =IF(ISBLANK(InfoPro!F26),"",InfoPro!F26) -> Solar FV | E33: =IF(ISBLANK(InfoPro!I26),"",YEAR(InfoPro!I26)-$G$3) -> 1 | F33: =IF(B33="","",VLOOKUP(D33,Tablas!$B$2:$E$13,2,FALSE)) -> 0.26 | G33: =IF(B33="","",VLOOKUP(D33,Tablas!$B$2:$G$13,6,FALSE)) -> 0 | H33: 34164 | I33: 4348.496412 | J33: 357603.5421 | K33: 319860.0556 | L33: 286100.2286 | M33: 255903.6034 | N33: 228894.0996 | O33: 204735.3306 | P33: 183126.4138 | Q33: 163798.2234 | R33: 146510.0389 | S33: 131046.5464 | T33: 117215.1578 | U33: 104843.6116 | V33: 93777.8279 | W33: 83879.98918 | X33: 75026.82395 | Y33: 1.120194848e+10 | Z33: 746796.5651
A34: =IF(ISBLANK(InfoPro!A27),"",InfoPro!A27) -> SC_1870_A2 | B34: =IF(ISBLANK(InfoPro!B27),"",InfoPro!B27) -> Helios Puerto Lopez - 15MW | C34: =IF(ISBLANK(InfoPro!E27),"",InfoPro!E27) -> 15 | D34: =IF(ISBLANK(InfoPro!F27),"",InfoPro!F27) -> Solar FV | E34: =IF(ISBLANK(InfoPro!I27),"",YEAR(InfoPro!I27)-$G$3) -> 1 | F34: =IF(B34="","",VLOOKUP(D34,Tablas!$B$2:$E$13,2,FALSE)) -> 0.26 | G34: =IF(B34="","",VLOOKUP(D34,Tablas!$B$2:$G$13,6,FALSE)) -> 0 | H34: 34164 | I34: 4348.496412 | J34: 357603.5421 | K34: 319860.0556 | L34: 286100.2286 | M34: 255903.6034 | N34: 228894.0996 | O34: 204735.3306 | P34: 183126.4138 | Q34: 163798.2234 | R34: 146510.0389 | S34: 131046.5464 | T34: 117215.1578 | U34: 104843.6116 | V34: 93777.8279 | W34: 83879.98918 | X34: 75026.82395 | Y34: 1.120194848e+10 | Z34: 746796.5651
A35: =IF(ISBLANK(InfoPro!A28),"",InfoPro!A28) -> SC_1892_A1 | B35: =IF(ISBLANK(InfoPro!B28),"",InfoPro!B28) -> PARQUE SOLAR MESITAS | C35: =IF(ISBLANK(InfoPro!E28),"",InfoPro!E28) -> 9.9 | D35: =IF(ISBLANK(InfoPro!F28),"",InfoPro!F28) -> Solar FV | E35: =IF(ISBLANK(InfoPro!I28),"",YEAR(InfoPro!I28)-$G$3) -> 1 | F35: =IF(B35="","",VLOOKUP(D35,Tablas!$B$2:$E$13,2,FALSE)) -> 0.26 | G35: =IF(B35="","",VLOOKUP(D35,Tablas!$B$2:$G$13,6,FALSE)) -> 0 | H35: 22548.24 | I35: 2870.007632 | J35: 236018.3378 | K35: 211107.6367 | L35: 188826.1509 | M35: 168896.3782 | N35: 151070.1058 | O35: 135125.3182 | P35: 120863.4331 | Q35: 108106.8275 | R35: 96696.62564 | S35: 86490.72061 | T35: 77362.00413 | U35: 69196.78365 | V35: 61893.36642 | W35: 55360.79286 | X35: 49517.70381 | Y35: 7393285994 | Z35: 746796.5651
A36: =IF(ISBLANK(InfoPro!A29),"",InfoPro!A29) -> SC_1892_A2 | B36: =IF(ISBLANK(InfoPro!B29),"",InfoPro!B29) -> PARQUE SOLAR MESITAS | C36: =IF(ISBLANK(InfoPro!E29),"",InfoPro!E29) -> 9.9 | D36: =IF(ISBLANK(InfoPro!F29),"",InfoPro!F29) -> Solar FV | E36: =IF(ISBLANK(InfoPro!I29),"",YEAR(InfoPro!I29)-$G$3) -> 1 | F36: =IF(B36="","",VLOOKUP(D36,Tablas!$B$2:$E$13,2,FALSE)) -> 0.26 | G36: =IF(B36="","",VLOOKUP(D36,Tablas!$B$2:$G$13,6,FALSE)) -> 0 | H36: 22548.24 | I36: 2870.007632 | J36: 236018.3378 | K36: 211107.6367 | L36: 188826.1509 | M36: 168896.3782 | N36: 151070.1058 | O36: 135125.3182 | P36: 120863.4331 | Q36: 108106.8275 | R36: 96696.62564 | S36: 86490.72061 | T36: 77362.00413 | U36: 69196.78365 | V36: 61893.36642 | W36: 55360.79286 | X36: 49517.70381 | Y36: 7393285994 | Z36: 746796.5651
A37: =IF(ISBLANK(InfoPro!A30),"",InfoPro!A30) -> SC_1930_A2 | B37: =IF(ISBLANK(InfoPro!B30),"",InfoPro!B30) -> PV José Maria Cordova 9.9 MW | C37: =IF(ISBLANK(InfoPro!E30),"",InfoPro!E30) -> 9.9 | D37: =IF(ISBLANK(InfoPro!F30),"",InfoPro!F30) -> Solar FV | E37: =IF(ISBLANK(InfoPro!I30),"",YEAR(InfoPro!I30)-$G$3) -> 2 | F37: =IF(B37="","",VLOOKUP(D37,Tablas!$B$2:$E$13,2,FALSE)) -> 0.26 | G37: =IF(B37="","",VLOOKUP(D37,Tablas!$B$2:$G$13,6,FALSE)) -> 0 | H37: 22548.24 | I37: 2870.007632 | J37: 211107.6367 | K37: 188826.1509 | L37: 168896.3782 | M37: 151070.1058 | N37: 135125.3182 | O37: 120863.4331 | P37: 108106.8275 | Q37: 96696.62564 | R37: 86490.72061 | S37: 77362.00413 | T37: 69196.78365 | U37: 61893.36642 | V37: 55360.79286 | W37: 49517.70381 | X37: 44291.3272 | Y37: 6612957061 | Z37: 667975.4607
A38: =IF(ISBLANK(InfoPro!A31),"",InfoPro!A31) -> SC_2060_A1 | B38: =IF(ISBLANK(InfoPro!B31),"",InfoPro!B31) -> EL DANUBIO - 50 MW | C38: =IF(ISBLANK(InfoPro!E31),"",InfoPro!E31) -> 50 | D38: =IF(ISBLANK(InfoPro!F31),"",InfoPro!F31) -> Solar FV | E38: =IF(ISBLANK(InfoPro!I31),"",YEAR(InfoPro!I31)-$G$3) -> 3 | F38: =IF(B38="","",VLOOKUP(D38,Tablas!$B$2:$E$13,2,FALSE)) -> 0.26 | G38: =IF(B38="","",VLOOKUP(D38,Tablas!$B$2:$G$13,6,FALSE)) -> 0 | H38: 113880 | I38: 14494.98804 | J38: 953667.4287 | K38: 853012.0114 | L38: 762980.3322 | M38: 682451.1021 | N38: 610421.3794 | O38: 545994.0781 | P38: 488366.7962 | Q38: 436821.8213 | R38: 390717.1926 | S38: 349478.7053 | T38: 312592.7597 | U38: 279599.9639 | V38: 250089.4132 | W38: 223693.5717 | X38: 200083.6956 | Y38: 2.987367892e+10 | Z38: 597473.5785
A39: =IF(ISBLANK(InfoPro!A32),"",InfoPro!A32) -> SC_2060_A2 | B39: =IF(ISBLANK(InfoPro!B32),"",InfoPro!B32) -> EL DANUBIO - 50 MW | C39: =IF(ISBLANK(InfoPro!E32),"",InfoPro!E32) -> 50 | D39: =IF(ISBLANK(InfoPro!F32),"",InfoPro!F32) -> Solar FV | E39: =IF(ISBLANK(InfoPro!I32),"",YEAR(InfoPro!I32)-$G$3) -> 3 | F39: =IF(B39="","",VLOOKUP(D39,Tablas!$B$2:$E$13,2,FALSE)) -> 0.26 | G39: =IF(B39="","",VLOOKUP(D39,Tablas!$B$2:$G$13,6,FALSE)) -> 0 | H39: 113880 | I39: 14494.98804 | J39: 953667.4287 | K39: 853012.0114 | L39: 762980.3322 | M39: 682451.1021 | N39: 610421.3794 | O39: 545994.0781 | P39: 488366.7962 | Q39: 436821.8213 | R39: 390717.1926 | S39: 349478.7053 | T39: 312592.7597 | U39: 279599.9639 | V39: 250089.4132 | W39: 223693.5717 | X39: 200083.6956 | Y39: 2.987367892e+10 | Z39: 597473.5785
A40: =IF(ISBLANK(InfoPro!A33),"",InfoPro!A33) -> SC_1836_A1 | B40: =IF(ISBLANK(InfoPro!B33),"",InfoPro!B33) -> PARQUE SOLAR LA MERCED 9.9 MW | C40: =IF(ISBLANK(InfoPro!E33),"",InfoPro!E33) -> 9.9 | D40: =IF(ISBLANK(InfoPro!F33),"",InfoPro!F33) -> Solar FV | E40: =IF(ISBLANK(InfoPro!I33),"",YEAR(InfoPro!I33)-$G$3) -> 1 | F40: =IF(B40="","",VLOOKUP(D40,Tablas!$B$2:$E$13,2,FALSE)) -> 0.26 | G40: =IF(B40="","",VLOOKUP(D40,Tablas!$B$2:$G$13,6,FALSE)) -> 0 | H40: 22548.24 | I40: 2870.007632 | J40: 236018.3378 | K40: 211107.6367 | L40: 188826.1509 | M40: 168896.3782 | N40: 151070.1058 | O40: 135125.3182 | P40: 120863.4331 | Q40: 108106.8275 | R40: 96696.62564 | S40: 86490.72061 | T40: 77362.00413 | U40: 69196.78365 | V40: 61893.36642 | W40: 55360.79286 | X40: 49517.70381 | Y40: 7393285994 | Z40: 746796.5651
A41: =IF(ISBLANK(InfoPro!#REF!),"",InfoPro!#REF!) ->  | B41: =IF(ISBLANK(InfoPro!#REF!),"",InfoPro!#REF!) ->  | C41: =IF(ISBLANK(InfoPro!#REF!),"",InfoPro!#REF!) ->  | D41: =IF(ISBLANK(InfoPro!#REF!),"",InfoPro!#REF!) ->  | E41: =IF(ISBLANK(InfoPro!#REF!),"",YEAR(InfoPro!#REF!)-$G$3) ->  | F41: =IF(B41="","",VLOOKUP(D41,Tablas!$B$2:$E$13,2,FALSE)) ->  | G41: =IF(B41="","",VLOOKUP(D41,Tablas!$B$2:$G$13,6,FALSE)) -> 
A42: =IF(ISBLANK(InfoPro!A34),"",InfoPro!A34) -> SC_2071_A1 | B42: =IF(ISBLANK(InfoPro!B34),"",InfoPro!B34) -> Morichal - 9.9 MW | C42: =IF(ISBLANK(InfoPro!E34),"",InfoPro!E34) -> 9.9 | D42: =IF(ISBLANK(InfoPro!F34),"",InfoPro!F34) -> Solar FV | E42: =IF(ISBLANK(InfoPro!I34),"",YEAR(InfoPro!I34)-$G$3) -> 2 | F42: =IF(B42="","",VLOOKUP(D42,Tablas!$B$2:$E$13,2,FALSE)) -> 0.26 | G42: =IF(B42="","",VLOOKUP(D42,Tablas!$B$2:$G$13,6,FALSE)) -> 0 | H42: 22548.24 | I42: 2870.007632 | J42: 211107.6367 | K42: 188826.1509 | L42: 168896.3782 | M42: 151070.1058 | N42: 135125.3182 | O42: 120863.4331 | P42: 108106.8275 | Q42: 96696.62564 | R42: 86490.72061 | S42: 77362.00413 | T42: 69196.78365 | U42: 61893.36642 | V42: 55360.79286 | W42: 49517.70381 | X42: 44291.3272 | Y42: 6612957061 | Z42: 667975.4607
A43: =IF(ISBLANK(InfoPro!A35),"",InfoPro!A35) -> SC_2281_A1 | B43: =IF(ISBLANK(InfoPro!B35),"",InfoPro!B35) -> PARQUE EÓLICO SAUCES de 288 MW | C43: =IF(ISBLANK(InfoPro!E35),"",InfoPro!E35) -> 288 | D43: =IF(ISBLANK(InfoPro!F35),"",InfoPro!F35) -> Eólico Onshore | E43: =IF(ISBLANK(InfoPro!I35),"",YEAR(InfoPro!I35)-$G$3) -> 2 | F43: =IF(B43="","",VLOOKUP(D43,Tablas!$B$2:$E$13,2,FALSE)) -> 0.57 | G43: =IF(B43="","",VLOOKUP(D43,Tablas!$B$2:$G$13,6,FALSE)) -> 0 | H43: 1438041.6 | I43: 183038.249 | J43: 13463647.88 | K43: 12042618.85 | L43: 10771573.21 | M43: 9634680.871 | N43: 8617782.533 | O43: 7708213.357 | P43: 6894645.22 | Q43: 6166945.635 | R43: 5516051.552 | S43: 4933856.487 | T43: 4413109.559 | U43: 3947325.187 | V43: 3530702.314 | W43: 3158052.159 | X43: 2824733.595 | Y43: 4.217494294e+11 | Z43: 1464407.741
A44: =IF(ISBLANK(InfoPro!A36),"",InfoPro!A36) -> SC_2281_A2 | B44: =IF(ISBLANK(InfoPro!B36),"",InfoPro!B36) -> PARQUE EÓLICO SAUCES de 288 MW | C44: =IF(ISBLANK(InfoPro!E36),"",InfoPro!E36) -> 288 | D44: =IF(ISBLANK(InfoPro!F36),"",InfoPro!F36) -> Eólico Onshore | E44: =IF(ISBLANK(InfoPro!I36),"",YEAR(InfoPro!I36)-$G$3) -> 2 | F44: =IF(B44="","",VLOOKUP(D44,Tablas!$B$2:$E$13,2,FALSE)) -> 0.57 | G44: =IF(B44="","",VLOOKUP(D44,Tablas!$B$2:$G$13,6,FALSE)) -> 0 | H44: 1438041.6 | I44: 183038.249 | J44: 13463647.88 | K44: 12042618.85 | L44: 10771573.21 | M44: 9634680.871 | N44: 8617782.533 | O44: 7708213.357 | P44: 6894645.22 | Q44: 6166945.635 | R44: 5516051.552 | S44: 4933856.487 | T44: 4413109.559 | U44: 3947325.187 | V44: 3530702.314 | W44: 3158052.159 | X44: 2824733.595 | Y44: 4.217494294e+11 | Z44: 1464407.741
A45: =IF(ISBLANK(InfoPro!A37),"",InfoPro!A37) -> SC_2116_A1 | B45: =IF(ISBLANK(InfoPro!B37),"",InfoPro!B37) -> Parque Eólico Los Cerezos 60 MW | C45: =IF(ISBLANK(InfoPro!E37),"",InfoPro!E37) -> 60 | D45: =IF(ISBLANK(InfoPro!F37),"",InfoPro!F37) -> Eólico Onshore | E45: =IF(ISBLANK(InfoPro!I37),"",YEAR(InfoPro!I37)-$G$3) -> 4 | F45: =IF(B45="","",VLOOKUP(D45,Tablas!$B$2:$E$13,2,FALSE)) -> 0.57 | G45: =IF(B45="","",VLOOKUP(D45,Tablas!$B$2:$G$13,6,FALSE)) -> 0 | H45: 299592 | I45: 38132.96854 | J45: 2244077.753 | K45: 2007225.182 | L45: 1795371.361 | M45: 1605877.783 | N45: 1436384.421 | O45: 1284780.341 | P45: 1149177.407 | Q45: 1027886.768 | R45: 919397.8248 | S45: 822359.4139 | T45: 735562.982 | U45: 657927.5331 | V45: 588486.1656 | W45: 526374.0301 | X45: 470817.5582 | Y45: 7.029584555e+10 | Z45: 1171597.426
A46: =IF(ISBLANK(InfoPro!A38),"",InfoPro!A38) -> SC_2116_A2 | B46: =IF(ISBLANK(InfoPro!B38),"",InfoPro!B38) -> Parque Eólico Los Cerezos 60 MW | C46: =IF(ISBLANK(InfoPro!E38),"",InfoPro!E38) -> 60 | D46: =IF(ISBLANK(InfoPro!F38),"",InfoPro!F38) -> Eólico Onshore | E46: =IF(ISBLANK(InfoPro!I38),"",YEAR(InfoPro!I38)-$G$3) -> 4 | F46: =IF(B46="","",VLOOKUP(D46,Tablas!$B$2:$E$13,2,FALSE)) -> 0.57 | G46: =IF(B46="","",VLOOKUP(D46,Tablas!$B$2:$G$13,6,FALSE)) -> 0 | H46: 299592 | I46: 38132.96854 | J46: =IF($I46="","",(1/(1+$C$4)^(J$7+$E46))*$I46*$C$5) -> 2244077.753 | K46: 2007225.182 | L46: 1795371.361 | M46: 1605877.783 | N46: 1436384.421 | O46: 1284780.341 | P46: 1149177.407 | Q46: 1027886.768 | R46: 919397.8248 | S46: 822359.4139 | T46: 735562.982 | U46: 657927.5331 | V46: 588486.1656 | W46: 526374.0301 | X46: 470817.5582 | Y46: 7.029584555e+10 | Z46: 1171597.426
A47: =IF(ISBLANK(InfoPro!A39),"",InfoPro!A39) -> SC_2078_A1 | B47: =IF(ISBLANK(InfoPro!B39),"",InfoPro!B39) -> PARQUE SOLAR SANTA HELENA 19.9 | C47: =IF(ISBLANK(InfoPro!E39),"",InfoPro!E39) -> 19.9 | D47: =IF(ISBLANK(InfoPro!F39),"",InfoPro!F39) -> Solar FV | E47: =IF(ISBLANK(InfoPro!I39),"",YEAR(InfoPro!I39)-$G$3) -> 1 | F47: =IF(B47="","",VLOOKUP(D47,Tablas!$B$2:$E$13,2,FALSE)) -> 0.26 | G47: =IF(B47="","",VLOOKUP(D47,Tablas!$B$2:$G$13,6,FALSE)) -> 0 | H47: 45324.24 | I47: 5769.00524 | J47: 474420.6992 | K47: 424347.6737 | L47: 379559.6366 | M47: 339498.7805 | N47: 303666.1722 | O47: 271615.5386 | P47: 242947.709 | Q47: 217305.6431 | R47: 194369.9849 | S47: 173855.0849 | T47: 155505.4426 | U47: 139092.5247 | V47: 124411.9184 | W47: 111280.7856 | X47: 99535.58645 | Y47: 1.486125165e+10 | Z47: 746796.5651
A48: =IF(ISBLANK(InfoPro!A40),"",InfoPro!A40) -> SC_1899_A1 | B48: =IF(ISBLANK(InfoPro!B40),"",InfoPro!B40) -> Sikaramá 9.9 MW | C48: =IF(ISBLANK(InfoPro!E40),"",InfoPro!E40) -> 9.9 | D48: =IF(ISBLANK(InfoPro!F40),"",InfoPro!F40) -> Solar FV | E48: =IF(ISBLANK(InfoPro!I40),"",YEAR(InfoPro!I40)-$G$3) -> 3 | F48: =IF(B48="","",VLOOKUP(D48,Tablas!$B$2:$E$13,2,FALSE)) -> 0.26 | G48: =IF(B48="","",VLOOKUP(D48,Tablas!$B$2:$G$13,6,FALSE)) -> 0 | H48: 22548.24 | I48: 2870.007632 | J48: 188826.1509 | K48: 168896.3782 | L48: 151070.1058 | M48: 135125.3182 | N48: 120863.4331 | O48: 108106.8275 | P48: 96696.62564 | Q48: 86490.72061 | R48: 77362.00413 | S48: 69196.78365 | T48: 61893.36642 | U48: 55360.79286 | V48: 49517.70381 | W48: 44291.3272 | X48: 39616.57174 | Y48: 5914988427 | Z48: 597473.5785
A49: =IF(ISBLANK(InfoPro!A41),"",InfoPro!A41) -> SC_1899_A2 | B49: =IF(ISBLANK(InfoPro!B41),"",InfoPro!B41) -> Sikaramá 9.9 MW | C49: =IF(ISBLANK(InfoPro!E41),"",InfoPro!E41) -> 9.9 | D49: =IF(ISBLANK(InfoPro!F41),"",InfoPro!F41) -> Solar FV | E49: =IF(ISBLANK(InfoPro!I41),"",YEAR(InfoPro!I41)-$G$3) -> 3 | F49: =IF(B49="","",VLOOKUP(D49,Tablas!$B$2:$E$13,2,FALSE)) -> 0.26 | G49: =IF(B49="","",VLOOKUP(D49,Tablas!$B$2:$G$13,6,FALSE)) -> 0 | H49: 22548.24 | I49: 2870.007632 | J49: 188826.1509 | K49: 168896.3782 | L49: 151070.1058 | M49: 135125.3182 | N49: 120863.4331 | O49: 108106.8275 | P49: 96696.62564 | Q49: 86490.72061 | R49: 77362.00413 | S49: 69196.78365 | T49: 61893.36642 | U49: 55360.79286 | V49: 49517.70381 | W49: 44291.3272 | X49: 39616.57174 | Y49: 5914988427 | Z49: 597473.5785
A50: =IF(ISBLANK(InfoPro!A42),"",InfoPro!A42) -> SC_2144_A1 | B50: =IF(ISBLANK(InfoPro!B42),"",InfoPro!B42) -> PGFV Andes I | C50: =IF(ISBLANK(InfoPro!E42),"",InfoPro!E42) -> 19.9 | D50: =IF(ISBLANK(InfoPro!F42),"",InfoPro!F42) -> Solar FV | E50: =IF(ISBLANK(InfoPro!I42),"",YEAR(InfoPro!I42)-$G$3) -> 1 | F50: =IF(B50="","",VLOOKUP(D50,Tablas!$B$2:$E$13,2,FALSE)) -> 0.26 | G50: =IF(B50="","",VLOOKUP(D50,Tablas!$B$2:$G$13,6,FALSE)) -> 0 | H50: 45324.24 | I50: 5769.00524 | J50: 474420.6992 | K50: 424347.6737 | L50: 379559.6366 | M50: 339498.7805 | N50: 303666.1722 | O50: 271615.5386 | P50: 242947.709 | Q50: 217305.6431 | R50: 194369.9849 | S50: 173855.0849 | T50: 155505.4426 | U50: 139092.5247 | V50: 124411.9184 | W50: 111280.7856 | X50: 99535.58645 | Y50: 1.486125165e+10 | Z50: 746796.5651
A51: =IF(ISBLANK(InfoPro!A43),"",InfoPro!A43) -> SC_2144_A2 | B51: =IF(ISBLANK(InfoPro!B43),"",InfoPro!B43) -> PGFV Andes I | C51: =IF(ISBLANK(InfoPro!E43),"",InfoPro!E43) -> 19.9 | D51: =IF(ISBLANK(InfoPro!F43),"",InfoPro!F43) -> Solar FV | E51: =IF(ISBLANK(InfoPro!I43),"",YEAR(InfoPro!I43)-$G$3) -> 1 | F51: =IF(B51="","",VLOOKUP(D51,Tablas!$B$2:$E$13,2,FALSE)) -> 0.26 | G51: =IF(B51="","",VLOOKUP(D51,Tablas!$B$2:$G$13,6,FALSE)) -> 0 | H51: 45324.24 | I51: 5769.00524 | J51: 474420.6992 | K51: 424347.6737 | L51: 379559.6366 | M51: 339498.7805 | N51: 303666.1722 | O51: 271615.5386 | P51: 242947.709 | Q51: 217305.6431 | R51: 194369.9849 | S51: 173855.0849 | T51: 155505.4426 | U51: 139092.5247 | V51: 124411.9184 | W51: 111280.7856 | X51: 99535.58645 | Y51: 1.486125165e+10 | Z51: 746796.5651
A52: =IF(ISBLANK(InfoPro!A44),"",InfoPro!A44) -> SC_2176_A1 | B52: =IF(ISBLANK(InfoPro!B44),"",InfoPro!B44) -> PGFV Andes II | C52: =IF(ISBLANK(InfoPro!E44),"",InfoPro!E44) -> 19.9 | D52: =IF(ISBLANK(InfoPro!F44),"",InfoPro!F44) -> Solar FV | E52: =IF(ISBLANK(InfoPro!I44),"",YEAR(InfoPro!I44)-$G$3) -> 1 | F52: =IF(B52="","",VLOOKUP(D52,Tablas!$B$2:$E$13,2,FALSE)) -> 0.26 | G52: =IF(B52="","",VLOOKUP(D52,Tablas!$B$2:$G$13,6,FALSE)) -> 0 | H52: 45324.24 | I52: 5769.00524 | J52: 474420.6992 | K52: 424347.6737 | L52: 379559.6366 | M52: 339498.7805 | N52: 303666.1722 | O52: 271615.5386 | P52: 242947.709 | Q52: 217305.6431 | R52: 194369.9849 | S52: 173855.0849 | T52: 155505.4426 | U52: 139092.5247 | V52: 124411.9184 | W52: 111280.7856 | X52: 99535.58645 | Y52: 1.486125165e+10 | Z52: 746796.5651
A53: =IF(ISBLANK(InfoPro!A45),"",InfoPro!A45) -> SC_2176_A2 | B53: =IF(ISBLANK(InfoPro!B45),"",InfoPro!B45) -> PGFV Andes II | C53: =IF(ISBLANK(InfoPro!E45),"",InfoPro!E45) -> 19.9 | D53: =IF(ISBLANK(InfoPro!F45),"",InfoPro!F45) -> Solar FV | E53: =IF(ISBLANK(InfoPro!I45),"",YEAR(InfoPro!I45)-$G$3) -> 1 | F53: =IF(B53="","",VLOOKUP(D53,Tablas!$B$2:$E$13,2,FALSE)) -> 0.26 | G53: =IF(B53="","",VLOOKUP(D53,Tablas!$B$2:$G$13,6,FALSE)) -> 0 | H53: 45324.24 | I53: 5769.00524 | J53: 474420.6992 | K53: 424347.6737 | L53: 379559.6366 | M53: 339498.7805 | N53: 303666.1722 | O53: 271615.5386 | P53: 242947.709 | Q53: 217305.6431 | R53: 194369.9849 | S53: 173855.0849 | T53: 155505.4426 | U53: 139092.5247 | V53: 124411.9184 | W53: 111280.7856 | X53: 99535.58645 | Y53: 1.486125165e+10 | Z53: 746796.5651
A54: =IF(ISBLANK(InfoPro!A46),"",InfoPro!A46) -> SC_1886_A1 | B54: =IF(ISBLANK(InfoPro!B46),"",InfoPro!B46) -> Rúkura 60 MW | C54: =IF(ISBLANK(InfoPro!E46),"",InfoPro!E46) -> 60 | D54: =IF(ISBLANK(InfoPro!F46),"",InfoPro!F46) -> Solar FV | E54: =IF(ISBLANK(InfoPro!I46),"",YEAR(InfoPro!I46)-$G$3) -> 5 | F54: =IF(B54="","",VLOOKUP(D54,Tablas!$B$2:$E$13,2,FALSE)) -> 0.26 | G54: =IF(B54="","",VLOOKUP(D54,Tablas!$B$2:$G$13,6,FALSE)) -> 0 | H54: 136656 | I54: 17393.98565 | J54: 915576.3986 | K54: 818941.3225 | L54: 732505.6552 | M54: 655192.8938 | N54: 586040.1554 | O54: 524186.1855 | P54: 468860.6311 | Q54: 419374.4464 | R54: 375111.3116 | S54: 335519.9567 | T54: 300107.2958 | U54: 268432.2861 | V54: 240100.4348 | W54: 214758.8862 | X54: 192092.027 | Y54: 2.868047554e+10 | Z54: 478007.9256
A55: =IF(ISBLANK(InfoPro!A47),"",InfoPro!A47) -> SC_1886_A2 | B55: =IF(ISBLANK(InfoPro!B47),"",InfoPro!B47) -> Rúkura 60 MW | C55: =IF(ISBLANK(InfoPro!E47),"",InfoPro!E47) -> 60 | D55: =IF(ISBLANK(InfoPro!F47),"",InfoPro!F47) -> Solar FV | E55: =IF(ISBLANK(InfoPro!I47),"",YEAR(InfoPro!I47)-$G$3) -> 5 | F55: =IF(B55="","",VLOOKUP(D55,Tablas!$B$2:$E$13,2,FALSE)) -> 0.26 | G55: =IF(B55="","",VLOOKUP(D55,Tablas!$B$2:$G$13,6,FALSE)) -> 0 | H55: 136656 | I55: 17393.98565 | J55: 915576.3986 | K55: 818941.3225 | L55: 732505.6552 | M55: 655192.8938 | N55: 586040.1554 | O55: 524186.1855 | P55: 468860.6311 | Q55: 419374.4464 | R55: 375111.3116 | S55: 335519.9567 | T55: 300107.2958 | U55: 268432.2861 | V55: 240100.4348 | W55: 214758.8862 | X55: 192092.027 | Y55: 2.868047554e+10 | Z55: 478007.9256
A56: =IF(ISBLANK(InfoPro!A48),"",InfoPro!A48) -> SC_2002_A1 | B56: =IF(ISBLANK(InfoPro!B48),"",InfoPro!B48) -> Bosques Solares de los Llanos 8 | C56: =IF(ISBLANK(InfoPro!E48),"",InfoPro!E48) -> 170 | D56: =IF(ISBLANK(InfoPro!F48),"",InfoPro!F48) -> Solar FV | E56: =IF(ISBLANK(InfoPro!I48),"",YEAR(InfoPro!I48)-$G$3) -> 3 | F56: =IF(B56="","",VLOOKUP(D56,Tablas!$B$2:$E$13,2,FALSE)) -> 0.26 | G56: =IF(B56="","",VLOOKUP(D56,Tablas!$B$2:$G$13,6,FALSE)) -> 0 | H56: 387192 | I56: 49282.95934 | J56: 3242469.258 | K56: 2900240.839 | L56: 2594133.129 | M56: 2320333.747 | N56: 2075432.69 | O56: 1856379.866 | P56: 1660447.107 | Q56: 1485194.192 | R56: 1328438.455 | S56: 1188227.598 | T56: 1062815.383 | U56: 950639.8774 | V56: 850304.0048 | W56: 760558.1438 | X56: 680284.5652 | Y56: 1.015705083e+11 | Z56: 597473.5785
A57: =IF(ISBLANK(InfoPro!A49),"",InfoPro!A49) -> SC_2002_A2 | B57: =IF(ISBLANK(InfoPro!B49),"",InfoPro!B49) -> Bosques Solares de los Llanos 8 | C57: =IF(ISBLANK(InfoPro!E49),"",InfoPro!E49) -> 170 | D57: =IF(ISBLANK(InfoPro!F49),"",InfoPro!F49) -> Solar FV | E57: =IF(ISBLANK(InfoPro!I49),"",YEAR(InfoPro!I49)-$G$3) -> 3 | F57: =IF(B57="","",VLOOKUP(D57,Tablas!$B$2:$E$13,2,FALSE)) -> 0.26 | G57: =IF(B57="","",VLOOKUP(D57,Tablas!$B$2:$G$13,6,FALSE)) -> 0 | H57: 387192 | I57: 49282.95934 | J57: 3242469.258 | K57: 2900240.839 | L57: 2594133.129 | M57: 2320333.747 | N57: 2075432.69 | O57: 1856379.866 | P57: 1660447.107 | Q57: 1485194.192 | R57: 1328438.455 | S57: 1188227.598 | T57: 1062815.383 | U57: 950639.8774 | V57: 850304.0048 | W57: 760558.1438 | X57: 680284.5652 | Y57: 1.015705083e+11 | Z57: 597473.5785
A58: =IF(ISBLANK(InfoPro!A50),"",InfoPro!A50) -> SC_1881_A1 | B58: =IF(ISBLANK(InfoPro!B50),"",InfoPro!B50) -> PARQUE FOTOVOLTAICO SIMIJACA | C58: =IF(ISBLANK(InfoPro!E50),"",InfoPro!E50) -> 60 | D58: =IF(ISBLANK(InfoPro!F50),"",InfoPro!F50) -> Solar FV | E58: =IF(ISBLANK(InfoPro!I50),"",YEAR(InfoPro!I50)-$G$3) -> 3 | F58: =IF(B58="","",VLOOKUP(D58,Tablas!$B$2:$E$13,2,FALSE)) -> 0.26 | G58: =IF(B58="","",VLOOKUP(D58,Tablas!$B$2:$G$13,6,FALSE)) -> 0 | H58: 136656 | I58: 17393.98565 | J58: 1144400.914 | K58: 1023614.414 | L58: 915576.3986 | M58: 818941.3225 | N58: 732505.6552 | O58: 655192.8938 | P58: 586040.1554 | Q58: 524186.1855 | R58: 468860.6311 | S58: 419374.4464 | T58: 375111.3116 | U58: 335519.9567 | V58: 300107.2958 | W58: 268432.2861 | X58: 240100.4348 | Y58: 3.584841471e+10 | Z58: 597473.5785
A59: =IF(ISBLANK(InfoPro!A51),"",InfoPro!A51) -> SC_1881_A2 | B59: =IF(ISBLANK(InfoPro!B51),"",InfoPro!B51) -> PARQUE FOTOVOLTAICO SIMIJACA | C59: =IF(ISBLANK(InfoPro!E51),"",InfoPro!E51) -> 60 | D59: =IF(ISBLANK(InfoPro!F51),"",InfoPro!F51) -> Solar FV | E59: =IF(ISBLANK(InfoPro!I51),"",YEAR(InfoPro!I51)-$G$3) -> 3 | F59: =IF(B59="","",VLOOKUP(D59,Tablas!$B$2:$E$13,2,FALSE)) -> 0.26 | G59: =IF(B59="","",VLOOKUP(D59,Tablas!$B$2:$G$13,6,FALSE)) -> 0 | H59: 136656 | I59: 17393.98565 | J59: 1144400.914 | K59: 1023614.414 | L59: 915576.3986 | M59: 818941.3225 | N59: 732505.6552 | O59: 655192.8938 | P59: 586040.1554 | Q59: 524186.1855 | R59: 468860.6311 | S59: 419374.4464 | T59: 375111.3116 | U59: 335519.9567 | V59: 300107.2958 | W59: 268432.2861 | X59: 240100.4348 | Y59: 3.584841471e+10 | Z59: 597473.5785
A60: =IF(ISBLANK(InfoPro!A52),"",InfoPro!A52) -> SC_2326_A1 | B60: =IF(ISBLANK(InfoPro!B52),"",InfoPro!B52) -> ARQUE EÓLICO ORQUIDEAS de 288 MW | C60: =IF(ISBLANK(InfoPro!E52),"",InfoPro!E52) -> 288 | D60: =IF(ISBLANK(InfoPro!F52),"",InfoPro!F52) -> Eólico Onshore | E60: =IF(ISBLANK(InfoPro!I52),"",YEAR(InfoPro!I52)-$G$3) -> 2 | F60: =IF(B60="","",VLOOKUP(D60,Tablas!$B$2:$E$13,2,FALSE)) -> 0.57 | G60: =IF(B60="","",VLOOKUP(D60,Tablas!$B$2:$G$13,6,FALSE)) -> 0 | H60: 1438041.6 | I60: 183038.249 | J60: 13463647.88 | K60: 12042618.85 | L60: 10771573.21 | M60: 9634680.871 | N60: 8617782.533 | O60: 7708213.357 | P60: 6894645.22 | Q60: 6166945.635 | R60: 5516051.552 | S60: 4933856.487 | T60: 4413109.559 | U60: 3947325.187 | V60: 3530702.314 | W60: 3158052.159 | X60: 2824733.595 | Y60: 4.217494294e+11 | Z60: 1464407.741
A61: =IF(ISBLANK(InfoPro!A53),"",InfoPro!A53) -> SC_2326_A2 | B61: =IF(ISBLANK(InfoPro!B53),"",InfoPro!B53) -> ARQUE EÓLICO ORQUIDEAS de 288 MW | C61: =IF(ISBLANK(InfoPro!E53),"",InfoPro!E53) -> 288 | D61: =IF(ISBLANK(InfoPro!F53),"",InfoPro!F53) -> Eólico Onshore | E61: =IF(ISBLANK(InfoPro!I53),"",YEAR(InfoPro!I53)-$G$3) -> 2 | F61: =IF(B61="","",VLOOKUP(D61,Tablas!$B$2:$E$13,2,FALSE)) -> 0.57 | G61: =IF(B61="","",VLOOKUP(D61,Tablas!$B$2:$G$13,6,FALSE)) -> 0 | H61: 1438041.6 | I61: 183038.249 | J61: 13463647.88 | K61: 12042618.85 | L61: 10771573.21 | M61: 9634680.871 | N61: 8617782.533 | O61: 7708213.357 | P61: 6894645.22 | Q61: 6166945.635 | R61: 5516051.552 | S61: 4933856.487 | T61: 4413109.559 | U61: 3947325.187 | V61: 3530702.314 | W61: 3158052.159 | X61: 2824733.595 | Y61: 4.217494294e+11 | Z61: 1464407.741
A62: =IF(ISBLANK(InfoPro!A54),"",InfoPro!A54) -> SC_2075_A1 | B62: =IF(ISBLANK(InfoPro!B54),"",InfoPro!B54) -> Ubaté Solar | C62: =IF(ISBLANK(InfoPro!E54),"",InfoPro!E54) -> 19.9 | D62: =IF(ISBLANK(InfoPro!F54),"",InfoPro!F54) -> Solar FV | E62: =IF(ISBLANK(InfoPro!I54),"",YEAR(InfoPro!I54)-$G$3) -> 0 | F62: =IF(B62="","",VLOOKUP(D62,Tablas!$B$2:$E$13,2,FALSE)) -> 0.26 | G62: =IF(B62="","",VLOOKUP(D62,Tablas!$B$2:$G$13,6,FALSE)) -> 0 | H62: 45324.24 | I62: 5769.00524 | J62: 530402.3418 | K62: 474420.6992 | L62: 424347.6737 | M62: 379559.6366 | N62: 339498.7805 | O62: 303666.1722 | P62: 271615.5386 | Q62: 242947.709 | R62: 217305.6431 | S62: 194369.9849 | T62: 173855.0849 | U62: 155505.4426 | V62: 139092.5247 | W62: 124411.9184 | X62: 111280.7856 | Y62: 1.661487934e+10 | Z62: 834918.5598
A63: =IF(ISBLANK(InfoPro!A55),"",InfoPro!A55) -> SC_2075_A2 | B63: =IF(ISBLANK(InfoPro!B55),"",InfoPro!B55) -> Ubaté Solar | C63: =IF(ISBLANK(InfoPro!E55),"",InfoPro!E55) -> 19.9 | D63: =IF(ISBLANK(InfoPro!F55),"",InfoPro!F55) -> Solar FV | E63: =IF(ISBLANK(InfoPro!I55),"",YEAR(InfoPro!I55)-$G$3) -> 0 | F63: =IF(B63="","",VLOOKUP(D63,Tablas!$B$2:$E$13,2,FALSE)) -> 0.26 | G63: =IF(B63="","",VLOOKUP(D63,Tablas!$B$2:$G$13,6,FALSE)) -> 0 | H63: 45324.24 | I63: 5769.00524 | J63: =IF($I63="","",(1/(1+$C$4)^(J$7+$E63))*$I63*$C$5) -> 530402.3418 | K63: 474420.6992 | L63: 424347.6737 | M63: 379559.6366 | N63: 339498.7805 | O63: 303666.1722 | P63: 271615.5386 | Q63: 242947.709 | R63: 217305.6431 | S63: 194369.9849 | T63: 173855.0849 | U63: 155505.4426 | V63: 139092.5247 | W63: 124411.9184 | X63: 111280.7856 | Y63: 1.661487934e+10 | Z63: 834918.5598
A64: =IF(ISBLANK(InfoPro!A56),"",InfoPro!A56) -> SC_2217_A1 | B64: =IF(ISBLANK(InfoPro!B56),"",InfoPro!B56) -> CENTRAL DE GENERACIÓN BIOMASA BOGOTÁ II 9,88 MW | C64: =IF(ISBLANK(InfoPro!E56),"",InfoPro!E56) -> 9.88 | D64: =IF(ISBLANK(InfoPro!F56),"",InfoPro!F56) -> Biomasa y Residuos | E64: =IF(ISBLANK(InfoPro!I56),"",YEAR(InfoPro!I56)-$G$3) -> 0 | F64: =IF(B64="","",VLOOKUP(D64,Tablas!$B$2:$E$13,2,FALSE)) -> 0.7 | G64: =IF(B64="","",VLOOKUP(D64,Tablas!$B$2:$G$13,6,FALSE)) -> 0.37 | H64: 60584.16 | I64: -14704.80556 | J64: -1351959.823 | K64: -1209266.389 | L64: -1081633.622 | M64: -967471.9339 | N64: -865359.5115 | O64: -774024.6078 | P64: -692329.7029 | Q64: -619257.3371 | R64: -553897.4393 | S64: -495435.9922 | T64: -443144.8946 | U64: -396372.8932 | V64: -354537.4716 | W64: -317117.5953 | X64: -283647.223 | Y64: -4.23502077e+10 | Z64: -4286458.269
A65: =IF(ISBLANK(InfoPro!A57),"",InfoPro!A57) -> SC_2217_A2 | B65: =IF(ISBLANK(InfoPro!B57),"",InfoPro!B57) -> CENTRAL DE GENERACIÓN BIOMASA BOGOTÁ II 9,88 MW | C65: =IF(ISBLANK(InfoPro!E57),"",InfoPro!E57) -> 9.88 | D65: =IF(ISBLANK(InfoPro!F57),"",InfoPro!F57) -> Biomasa y Residuos | E65: =IF(ISBLANK(InfoPro!I57),"",YEAR(InfoPro!I57)-$G$3) -> 0 | F65: =IF(B65="","",VLOOKUP(D65,Tablas!$B$2:$E$13,2,FALSE)) -> 0.7 | G65: =IF(B65="","",VLOOKUP(D65,Tablas!$B$2:$G$13,6,FALSE)) -> 0.37 | H65: 60584.16 | I65: -14704.80556 | J65: -1351959.823 | K65: -1209266.389 | L65: -1081633.622 | M65: -967471.9339 | N65: -865359.5115 | O65: -774024.6078 | P65: -692329.7029 | Q65: -619257.3371 | R65: -553897.4393 | S65: -495435.9922 | T65: -443144.8946 | U65: -396372.8932 | V65: -354537.4716 | W65: -317117.5953 | X65: -283647.223 | Y65: -4.23502077e+10 | Z65: -4286458.269

Sheet EC-RP
B2: Precio promedio de bolsa | C2: 192057 | D2: COP/MWh
B3: Tasa de descuento | C3: 0.118 | F3: Año de Referencia | H3: 2023
F4: Mínimo | H4: =MIN(Z8:Z268) -> 
J6: 0 | K6: 1 | L6: 2 | M6: 3 | N6: 4 | O6: 5 | P6: 6 | Q6: 7 | R6: 8 | S6: 9 | T6: 10 | U6: 11 | V6: 12 | W6: 13 | X6: 14
A7: Codigo | B7: Nombre | C7: capacidad | D7: Tecnologia | E7: Año de entrada | F7: FP | G7: Precio de oferta | H7: Desviacion | I7: Produccion media/a MWh/a | J7: Flujo Descontado 0 | K7: Flujo Descontado 1 | L7: Flujo Descontado 2 | M7: Flujo Descontado 3 | N7: Flujo Descontado 4 | O7: Flujo Descontado 5 | P7: Flujo Descontado 6 | Q7: Flujo Descontado 7 | R7: Flujo Descontado 8 | S7: Flujo Descontado 9 | T7: Flujo Descontado 10 | U7: Flujo Descontado 11 | V7: Flujo Descontado 12 | W7: Flujo Descontado 13 | X7: Flujo Descontado 14 | Y7: VPN | Z7: Beneficio/kW
A8: =IF(ISBLANK(InfoPro!A2),"",InfoPro!A2) -> SC_481_A1 | B8: =IF(ISBLANK(InfoPro!B2),"",InfoPro!B2) -> DIAMANTE | C8: =IF(ISBLANK(InfoPro!E2),"",InfoPro!E2) -> 70 | D8: =IF(ISBLANK(InfoPro!F2),"",InfoPro!F2) -> Solar FV | E8: =IF(ISBLANK(InfoPro!I2),"",YEAR(InfoPro!I2)-$H$3) -> 2 | F8: =IF(B8="","",VLOOKUP(D8,Tablas!$B$2:$E$13,2,FALSE)) -> 0.26 | G8: =IF(B8="","",VLOOKUP(D8,Tablas!$B$2:$H$13,7,FALSE)) -> 83577.2 | H8: =IF(B8="","",($C$2-(G8))/$C$2) -> 0.564831274 | I8: =IF(C8="","",+C8*F8*24*365) -> 159432 | J8: =IF($I8="","",(1/(1+$C$3)^(J$6+$E8))*$I8*$C$2*$H8) -> 1.383696247e+10 | K8: =IF($I8="","",(1/(1+$C$3)^(K$6+$E8))*$I8*$C$2*$H8) -> 1.237653172e+10 | L8: 1.107024304e+10 | M8: 9901827409 | N8: 8856732924 | O8: 7921943582 | P8: 7085817157 | Q8: 6337940212 | R8: 5668998401 | S8: 5070660466 | T8: 4535474478 | U8: 4056775025 | V8: 3628600201 | W8: 3245617353 | X8: =IF($I8="","",(1/(1+$C$3)^(X$6+$E8))*$I8*$C$2*$H8) -> 2903056667 | Y8: =IF(X8="","",SUM(J8:X8)) -> 1.064971811e+11 | Z8: =IF(C8=0,0,IF(Y8="","",Y8/(C8*1000))) -> 1521388.302
A9: =IF(ISBLANK(InfoPro!A3),"",InfoPro!A3) -> SC_2288_A1 | B9: =IF(ISBLANK(InfoPro!B3),"",InfoPro!B3) -> PARQUE SOLAR FOTOVOLTAICO ESTEROS SOL DE 199MW | C9: =IF(ISBLANK(InfoPro!E3),"",InfoPro!E3) -> 199 | D9: =IF(ISBLANK(InfoPro!F3),"",InfoPro!F3) -> Solar FV | E9: =IF(ISBLANK(InfoPro!I3),"",YEAR(InfoPro!I3)-$H$3) -> 2 | F9: =IF(B9="","",VLOOKUP(D9,Tablas!$B$2:$E$13,2,FALSE)) -> 0.26 | G9: =IF(B9="","",VLOOKUP(D9,Tablas!$B$2:$H$13,7,FALSE)) -> 83577.2 | H9: =IF(B9="","",($C$2-(G9))/$C$2) -> 0.564831274 | I9: =IF(C9="","",+C9*F9*24*365) -> 453242.4 | J9: 3.933650758e+10 | K9: 3.518471161e+10 | L9: 3.147111951e+10 | M9: 2.814948078e+10 | N9: 2.517842646e+10 | O9: 2.25209539e+10 | P9: 2.014396592e+10 | Q9: 1.80178586e+10 | R9: 1.61161526e+10 | S9: 1.441516332e+10 | T9: 1.289370601e+10 | U9: 1.153283186e+10 | V9: 1.0315592e+10 | W9: 9226826476 | X9: 8252975381 | Y9: =IF(X9="","",SUM(J9:X9)) -> 3.02756272e+11 | Z9: =IF(C9=0,0,IF(Y9="","",Y9/(C9*1000))) -> 1521388.302
A10: =IF(ISBLANK(InfoPro!A4),"",InfoPro!A4) -> SC_2288_A2 | B10: =IF(ISBLANK(InfoPro!B4),"",InfoPro!B4) -> PARQUE SOLAR FOTOVOLTAICO ESTEROS SOL DE 199MW | C10: =IF(ISBLANK(InfoPro!E4),"",InfoPro!E4) -> 199 | D10: =IF(ISBLANK(InfoPro!F4),"",InfoPro!F4) -> Solar FV | E10: =IF(ISBLANK(InfoPro!I4),"",YEAR(InfoPro!I4)-$H$3) -> 2 | F10: =IF(B10="","",VLOOKUP(D10,Tablas!$B$2:$E$13,2,FALSE)) -> 0.26 | G10: =IF(B10="","",VLOOKUP(D10,Tablas!$B$2:$H$13,7,FALSE)) -> 83577.2 | H10: 0.564831274 | I10: 453242.4 | J10: 3.933650758e+10 | K10: 3.518471161e+10 | L10: 3.147111951e+10 | M10: 2.814948078e+10 | N10: 2.517842646e+10 | O10: 2.25209539e+10 | P10: 2.014396592e+10 | Q10: 1.80178586e+10 | R10: 1.61161526e+10 | S10: 1.441516332e+10 | T10: 1.289370601e+10 | U10: 1.153283186e+10 | V10: 1.0315592e+10 | W10: 9226826476 | X10: 8252975381 | Y10: 3.02756272e+11 | Z10: =IF(C10=0,0,IF(Y10="","",Y10/(C10*1000))) -> 1521388.302
A11: =IF(ISBLANK(InfoPro!A5),"",InfoPro!A5) -> SC_924_A1 | B11: =IF(ISBLANK(InfoPro!B5),"",InfoPro!B5) -> PARQUE FOTOVOLTAICO LA SABANA | C11: =IF(ISBLANK(InfoPro!E5),"",InfoPro!E5) -> 100 | D11: =IF(ISBLANK(InfoPro!F5),"",InfoPro!F5) -> Solar FV | E11: =IF(ISBLANK(InfoPro!I5),"",YEAR(InfoPro!I5)-$H$3) -> 3 | F11: =IF(B11="","",VLOOKUP(D11,Tablas!$B$2:$E$13,2,FALSE)) -> 0.26 | G11: =IF(B11="","",VLOOKUP(D11,Tablas!$B$2:$H$13,7,FALSE)) -> 83577.2 | H11: 0.564831274 | I11: 227760 | J11: 1.76807596e+10 | K11: 1.581463292e+10 | L11: 1.414546773e+10 | M11: 1.265247561e+10 | N11: 1.131706226e+10 | O11: 1.012259594e+10 | P11: 9054200303 | Q11: 8098569144 | R11: 7243800666 | S11: 6479249254 | T11: 5795392892 | U11: 5183714573 | V11: 4636596219 | W11: 4147223809 | X11: 3709502513 | Y11: 1.360812434e+11 | Z11: 1360812.434
A12: =IF(ISBLANK(InfoPro!A6),"",InfoPro!A6) -> SC_924_A2 | B12: =IF(ISBLANK(InfoPro!B6),"",InfoPro!B6) -> PARQUE FOTOVOLTAICO LA SABANA | C12: =IF(ISBLANK(InfoPro!E6),"",InfoPro!E6) -> 100 | D12: =IF(ISBLANK(InfoPro!F6),"",InfoPro!F6) -> Solar FV | E12: =IF(ISBLANK(InfoPro!I6),"",YEAR(InfoPro!I6)-$H$3) -> 3 | F12: =IF(B12="","",VLOOKUP(D12,Tablas!$B$2:$E$13,2,FALSE)) -> 0.26 | G12: =IF(B12="","",VLOOKUP(D12,Tablas!$B$2:$H$13,7,FALSE)) -> 83577.2 | H12: 0.564831274 | I12: 227760 | J12: 1.76807596e+10 | K12: 1.581463292e+10 | L12: 1.414546773e+10 | M12: 1.265247561e+10 | N12: 1.131706226e+10 | O12: 1.012259594e+10 | P12: 9054200303 | Q12: 8098569144 | R12: 7243800666 | S12: 6479249254 | T12: 5795392892 | U12: 5183714573 | V12: 4636596219 | W12: 4147223809 | X12: 3709502513 | Y12: 1.360812434e+11 | Z12: 1360812.434
A13: =IF(ISBLANK(InfoPro!A7),"",InfoPro!A7) -> SC_756_A1 | B13: =IF(ISBLANK(InfoPro!B7),"",InfoPro!B7) -> PARQUE FOTOVOLTAICO BALSILLAS | C13: =IF(ISBLANK(InfoPro!E7),"",InfoPro!E7) -> 100 | D13: =IF(ISBLANK(InfoPro!F7),"",InfoPro!F7) -> Solar FV | E13: =IF(ISBLANK(InfoPro!I7),"",YEAR(InfoPro!I7)-$H$3) -> 2 | F13: =IF(B13="","",VLOOKUP(D13,Tablas!$B$2:$E$13,2,FALSE)) -> 0.26 | G13: =IF(B13="","",VLOOKUP(D13,Tablas!$B$2:$H$13,7,FALSE)) -> 83577.2 | H13: 0.564831274 | I13: 227760 | J13: 1.976708924e+10 | K13: 1.76807596e+10 | L13: 1.581463292e+10 | M13: 1.414546773e+10 | N13: 1.265247561e+10 | O13: 1.131706226e+10 | P13: 1.012259594e+10 | Q13: 9054200303 | R13: 8098569144 | S13: 7243800666 | T13: 6479249254 | U13: 5795392892 | V13: 5183714573 | W13: 4636596219 | X13: 4147223809 | Y13: 1.521388302e+11 | Z13: 1521388.302
A14: =IF(ISBLANK(InfoPro!A8),"",InfoPro!A8) -> SC_756_A2 | B14: =IF(ISBLANK(InfoPro!B8),"",InfoPro!B8) -> PARQUE FOTOVOLTAICO BALSILLAS | C14: =IF(ISBLANK(InfoPro!E8),"",InfoPro!E8) -> 100 | D14: =IF(ISBLANK(InfoPro!F8),"",InfoPro!F8) -> Solar FV | E14: =IF(ISBLANK(InfoPro!I8),"",YEAR(InfoPro!I8)-$H$3) -> 2 | F14: =IF(B14="","",VLOOKUP(D14,Tablas!$B$2:$E$13,2,FALSE)) -> 0.26 | G14: =IF(B14="","",VLOOKUP(D14,Tablas!$B$2:$H$13,7,FALSE)) -> 83577.2 | H14: 0.564831274 | I14: 227760 | J14: 1.976708924e+10 | K14: 1.76807596e+10 | L14: 1.581463292e+10 | M14: 1.414546773e+10 | N14: 1.265247561e+10 | O14: 1.131706226e+10 | P14: 1.012259594e+10 | Q14: 9054200303 | R14: 8098569144 | S14: 7243800666 | T14: 6479249254 | U14: 5795392892 | V14: 5183714573 | W14: 4636596219 | X14: 4147223809 | Y14: 1.521388302e+11 | Z14: 1521388.302
A15: =IF(ISBLANK(InfoPro!A9),"",InfoPro!A9) -> SC_1207_A1 | B15: =IF(ISBLANK(InfoPro!B9),"",InfoPro!B9) -> Guacaná | C15: =IF(ISBLANK(InfoPro!E9),"",InfoPro!E9) -> 19.9 | D15: =IF(ISBLANK(InfoPro!F9),"",InfoPro!F9) -> Solar FV | E15: =IF(ISBLANK(InfoPro!I9),"",YEAR(InfoPro!I9)-$H$3) -> 2 | F15: =IF(B15="","",VLOOKUP(D15,Tablas!$B$2:$E$13,2,FALSE)) -> 0.26 | G15: =IF(B15="","",VLOOKUP(D15,Tablas!$B$2:$H$13,7,FALSE)) -> 83577.2 | H15: 0.564831274 | I15: 45324.24 | J15: 3933650758 | K15: 3518471161 | L15: 3147111951 | M15: 2814948078 | N15: 2517842646 | O15: 2252095390 | P15: 2014396592 | Q15: 1801785860 | R15: 1611615260 | S15: 1441516332 | T15: 1289370601 | U15: 1153283186 | V15: 1031559200 | W15: 922682647.6 | X15: 825297538.1 | Y15: 3.02756272e+10 | Z15: 1521388.302
A16: =IF(ISBLANK(InfoPro!A10),"",InfoPro!A10) -> SC_709_A1 | B16: =IF(ISBLANK(InfoPro!B10),"",InfoPro!B10) -> PARQUE FOTOVOLTAICO SUÉ 2 | C16: =IF(ISBLANK(InfoPro!E10),"",InfoPro!E10) -> 9.9 | D16: =IF(ISBLANK(InfoPro!F10),"",InfoPro!F10) -> Solar FV | E16: =IF(ISBLANK(InfoPro!I10),"",YEAR(InfoPro!I10)-$H$3) -> 3 | F16: =IF(B16="","",VLOOKUP(D16,Tablas!$B$2:$E$13,2,FALSE)) -> 0.26 | G16: =IF(B16="","",VLOOKUP(D16,Tablas!$B$2:$H$13,7,FALSE)) -> 83577.2 | H16: 0.564831274 | I16: 22548.24 | J16: 1750395201 | K16: 1565648659 | L16: 1400401305 | M16: 1252595085 | N16: 1120389164 | O16: 1002136998 | P16: 896365830 | Q16: 801758345.3 | R16: 717136265.9 | S16: 641445676.1 | T16: 573743896.3 | U16: 513187742.7 | V16: 459023025.7 | W16: 410575157.1 | X16: 367240748.8 | Y16: 1.34720431e+10 | Z16: 1360812.434
A17: =IF(ISBLANK(InfoPro!A11),"",InfoPro!A11) -> SC_1299_A1 | B17: =IF(ISBLANK(InfoPro!B11),"",InfoPro!B11) -> Parque Eólico Sisga | C17: =IF(ISBLANK(InfoPro!E11),"",InfoPro!E11) -> 20 | D17: =IF(ISBLANK(InfoPro!F11),"",InfoPro!F11) -> Eólico Onshore | E17: =IF(ISBLANK(InfoPro!I11),"",YEAR(InfoPro!I11)-$H$3) -> 4 | F17: =IF(B17="","",VLOOKUP(D17,Tablas!$B$2:$E$13,2,FALSE)) -> 0.57 | G17: =IF(B17="","",VLOOKUP(D17,Tablas!$B$2:$H$13,7,FALSE)) -> 83577.2 | H17: 0.564831274 | I17: 99864 | J17: 6934108280 | K17: 6202243542 | L17: 5547623920 | M17: 4962096529 | N17: 4438368989 | O17: 3969918594 | P17: 3550911086 | Q17: 3176127984 | R17: 2840901596 | S17: 2541056884 | T17: 2272859467 | U17: 2032969111 | V17: 1818398132 | W17: 1626474179 | X17: 1454806958 | Y17: 5.336886525e+10 | Z17: 2668443.262
A18: =IF(ISBLANK(InfoPro!A12),"",InfoPro!A12) -> SC_1299_A2 | B18: =IF(ISBLANK(InfoPro!B12),"",InfoPro!B12) -> Parque Eólico Sisga | C18: =IF(ISBLANK(InfoPro!E12),"",InfoPro!E12) -> 20 | D18: =IF(ISBLANK(InfoPro!F12),"",InfoPro!F12) -> Eólico Onshore | E18: =IF(ISBLANK(InfoPro!I12),"",YEAR(InfoPro!I12)-$H$3) -> 4 | F18: =IF(B18="","",VLOOKUP(D18,Tablas!$B$2:$E$13,2,FALSE)) -> 0.57 | G18: =IF(B18="","",VLOOKUP(D18,Tablas!$B$2:$H$13,7,FALSE)) -> 83577.2 | H18: 0.564831274 | I18: 99864 | J18: =IF($I18="","",(1/(1+$C$3)^(J$6+$E18))*$I18*$C$2*$H18) -> 6934108280 | K18: 6202243542 | L18: 5547623920 | M18: 4962096529 | N18: 4438368989 | O18: 3969918594 | P18: 3550911086 | Q18: 3176127984 | R18: 2840901596 | S18: 2541056884 | T18: 2272859467 | U18: 2032969111 | V18: 1818398132 | W18: 1626474179 | X18: 1454806958 | Y18: 5.336886525e+10 | Z18: 2668443.262
A19: =IF(ISBLANK(InfoPro!A13),"",InfoPro!A13) -> SC_416_A1 | B19: =IF(ISBLANK(InfoPro!B13),"",InfoPro!B13) -> Solar Jagüey | C19: =IF(ISBLANK(InfoPro!E13),"",InfoPro!E13) -> 112 | D19: =IF(ISBLANK(InfoPro!F13),"",InfoPro!F13) -> Solar FV | E19: =IF(ISBLANK(InfoPro!I13),"",YEAR(InfoPro!I13)-$H$3) -> 3 | F19: =IF(B19="","",VLOOKUP(D19,Tablas!$B$2:$E$13,2,FALSE)) -> 0.26 | G19: =IF(B19="","",VLOOKUP(D19,Tablas!$B$2:$H$13,7,FALSE)) -> 83577.2 | H19: 0.564831274 | I19: 255091.2 | J19: 1.980245076e+10 | K19: 1.771238887e+10 | L19: 1.584292386e+10 | M19: 1.417077268e+10 | N19: 1.267510973e+10 | O19: 1.133730745e+10 | P19: 1.014070434e+10 | Q19: 9070397441 | R19: 8113056745 | S19: 7256759164 | T19: 6490840039 | U19: 5805760321 | V19: 5192987765 | W19: 4644890667 | X19: 4154642814 | Y19: 1.524109926e+11 | Z19: 1360812.434
A20: =IF(ISBLANK(InfoPro!A14),"",InfoPro!A14) -> SC_416_A2 | B20: =IF(ISBLANK(InfoPro!B14),"",InfoPro!B14) -> Solar Jagüey | C20: =IF(ISBLANK(InfoPro!E14),"",InfoPro!E14) -> 112 | D20: =IF(ISBLANK(InfoPro!F14),"",InfoPro!F14) -> Solar FV | E20: =IF(ISBLANK(InfoPro!I14),"",YEAR(InfoPro!I14)-$H$3) -> 3 | F20: =IF(B20="","",VLOOKUP(D20,Tablas!$B$2:$E$13,2,FALSE)) -> 0.26 | G20: =IF(B20="","",VLOOKUP(D20,Tablas!$B$2:$H$13,7,FALSE)) -> 83577.2 | H20: 0.564831274 | I20: 255091.2 | J20: 1.980245076e+10 | K20: 1.771238887e+10 | L20: 1.584292386e+10 | M20: 1.417077268e+10 | N20: 1.267510973e+10 | O20: 1.133730745e+10 | P20: 1.014070434e+10 | Q20: 9070397441 | R20: 8113056745 | S20: 7256759164 | T20: 6490840039 | U20: 5805760321 | V20: 5192987765 | W20: 4644890667 | X20: 4154642814 | Y20: 1.524109926e+11 | Z20: 1360812.434
A21: =IF(ISBLANK(InfoPro!A15),"",InfoPro!A15) -> SC_1023_A1 | B21: =IF(ISBLANK(InfoPro!B15),"",InfoPro!B15) -> PARQUE SOLAR LOS HELECHOS | C21: =IF(ISBLANK(InfoPro!E15),"",InfoPro!E15) -> 9.9 | D21: =IF(ISBLANK(InfoPro!F15),"",InfoPro!F15) -> Solar FV | E21: =IF(ISBLANK(InfoPro!I15),"",YEAR(InfoPro!I15)-$H$3) -> 1 | F21: =IF(B21="","",VLOOKUP(D21,Tablas!$B$2:$E$13,2,FALSE)) -> 0.26 | G21: =IF(B21="","",VLOOKUP(D21,Tablas!$B$2:$H$13,7,FALSE)) -> 83577.2 | H21: =IF(B21="","",($C$2-(G21))/$C$2) -> 0.564831274 | I21: =IF(C21="","",+C21*F21*24*365) -> 22548.24 | J21: 2187860971 | K21: 1956941835 | L21: 1750395201 | M21: 1565648659 | N21: 1400401305 | O21: 1252595085 | P21: 1120389164 | Q21: 1002136998 | R21: 896365830 | S21: 801758345.3 | T21: 717136265.9 | U21: 641445676.1 | V21: 573743896.3 | W21: 513187742.7 | X21: 459023025.7 | Y21: =IF(X21="","",SUM(J21:X21)) -> 1.683903e+10 | Z21: =IF(C21=0,0,IF(Y21="","",Y21/(C21*1000))) -> 1700912.121
A22: =IF(ISBLANK(InfoPro!A16),"",InfoPro!A16) -> SC_1023_A2 | B22: =IF(ISBLANK(InfoPro!B16),"",InfoPro!B16) -> PARQUE SOLAR LOS HELECHOS | C22: =IF(ISBLANK(InfoPro!E16),"",InfoPro!E16) -> 9.9 | D22: =IF(ISBLANK(InfoPro!F16),"",InfoPro!F16) -> Solar FV | E22: =IF(ISBLANK(InfoPro!I16),"",YEAR(InfoPro!I16)-$H$3) -> 1 | F22: =IF(B22="","",VLOOKUP(D22,Tablas!$B$2:$E$13,2,FALSE)) -> 0.26 | G22: =IF(B22="","",VLOOKUP(D22,Tablas!$B$2:$H$13,7,FALSE)) -> 83577.2 | H22: 0.564831274 | I22: 22548.24 | J22: 2187860971 | K22: 1956941835 | L22: 1750395201 | M22: 1565648659 | N22: 1400401305 | O22: 1252595085 | P22: 1120389164 | Q22: 1002136998 | R22: 896365830 | S22: 801758345.3 | T22: 717136265.9 | U22: 641445676.1 | V22: 573743896.3 | W22: 513187742.7 | X22: 459023025.7 | Y22: 1.683903e+10 | Z22: 1700912.121
A23: =IF(ISBLANK(InfoPro!A17),"",InfoPro!A17) -> SC_1449_A1 | B23: =IF(ISBLANK(InfoPro!B17),"",InfoPro!B17) -> Autogeneración Geopark | C23: =IF(ISBLANK(InfoPro!E17),"",InfoPro!E17) -> 0 | D23: =IF(ISBLANK(InfoPro!F17),"",InfoPro!F17) -> Solar FV | E23: =IF(ISBLANK(InfoPro!I17),"",YEAR(InfoPro!I17)-$H$3) -> 0 | F23: =IF(B23="","",VLOOKUP(D23,Tablas!$B$2:$E$13,2,FALSE)) -> 0.26 | G23: =IF(B23="","",VLOOKUP(D23,Tablas!$B$2:$H$13,7,FALSE)) -> 83577.2 | H23: 0.564831274 | I23: 0 | J23: 0 | K23: 0 | L23: 0 | M23: 0 | N23: 0 | O23: 0 | P23: 0 | Q23: 0 | R23: 0 | S23: 0 | T23: 0 | U23: 0 | V23: 0 | W23: 0 | X23: 0 | Y23: 0 | Z23: 0
A24: =IF(ISBLANK(InfoPro!A18),"",InfoPro!A18) -> SC_1590_A1 | B24: =IF(ISBLANK(InfoPro!B18),"",InfoPro!B18) -> PCH Ventana de 7MW (entrega 6,7 MW) | C24: =IF(ISBLANK(InfoPro!E18),"",InfoPro!E18) -> 6.7 | D24: =IF(ISBLANK(InfoPro!F18),"",InfoPro!F18) -> PCH | E24: =IF(ISBLANK(InfoPro!I18),"",YEAR(InfoPro!I18)-$H$3) -> 1 | F24: =IF(B24="","",VLOOKUP(D24,Tablas!$B$2:$E$13,2,FALSE)) -> 0.54 | G24: =IF(B24="","",VLOOKUP(D24,Tablas!$B$2:$H$13,7,FALSE)) -> 158280.5 | H24: 0.1758670603 | I24: 31693.68 | J24: 957514832.3 | K24: 856453338.4 | L24: 766058442.2 | M24: 685204331.1 | N24: 612884017.1 | O24: 548196795.3 | P24: 490337026.2 | Q24: 438584102.1 | R24: 392293472.4 | S24: 350888615.7 | T24: 313853860.2 | U24: 280727960.8 | V24: 251098355 | W24: 224596024.1 | X24: 200890898.1 | Y24: 7369582071 | Z24: 1099937.623
A25: =IF(ISBLANK(InfoPro!A19),"",InfoPro!A19) -> SC_2156_A1 | B25: =IF(ISBLANK(InfoPro!B19),"",InfoPro!B19) -> CENTRAL DE GENERACIÓN BIOMASA BOGOTÁ III | C25: =IF(ISBLANK(InfoPro!E19),"",InfoPro!E19) -> 9.88 | D25: =IF(ISBLANK(InfoPro!F19),"",InfoPro!F19) -> Biomasa y Residuos | E25: =IF(ISBLANK(InfoPro!I19),"",YEAR(InfoPro!I19)-$H$3) -> 1 | F25: =IF(B25="","",VLOOKUP(D25,Tablas!$B$2:$E$13,2,FALSE)) -> 0.7 | G25: =IF(B25="","",VLOOKUP(D25,Tablas!$B$2:$H$13,7,FALSE)) -> 83577.2 | H25: 0.564831274 | I25: 60584.16 | J25: 5878495134 | K25: 5258045737 | L25: 4703082055 | M25: 4206692357 | N25: 3762694416 | O25: 3365558511 | P25: 3010338561 | Q25: 2692610520 | R25: 2408417281 | S25: 2154219392 | T25: 1926850977 | U25: 1723480301 | V25: 1541574509 | W25: 1378868076 | X25: 1233334594 | Y25: 4.524426242e+10 | Z25: 4579378.788
A26: =IF(ISBLANK(InfoPro!A20),"",InfoPro!A20) -> SC_2156_A2 | B26: =IF(ISBLANK(InfoPro!B20),"",InfoPro!B20) -> CENTRAL DE GENERACIÓN BIOMASA BOGOTÁ III | C26: =IF(ISBLANK(InfoPro!E20),"",InfoPro!E20) -> 9.88 | D26: =IF(ISBLANK(InfoPro!F20),"",InfoPro!F20) -> Biomasa y Residuos | E26: =IF(ISBLANK(InfoPro!I20),"",YEAR(InfoPro!I20)-$H$3) -> 1 | F26: =IF(B26="","",VLOOKUP(D26,Tablas!$B$2:$E$13,2,FALSE)) -> 0.7 | G26: =IF(B26="","",VLOOKUP(D26,Tablas!$B$2:$H$13,7,FALSE)) -> 83577.2 | H26: 0.564831274 | I26: 60584.16 | J26: 5878495134 | K26: 5258045737 | L26: 4703082055 | M26: 4206692357 | N26: 3762694416 | O26: 3365558511 | P26: 3010338561 | Q26: 2692610520 | R26: 2408417281 | S26: 2154219392 | T26: 1926850977 | U26: 1723480301 | V26: 1541574509 | W26: 1378868076 | X26: 1233334594 | Y26: 4.524426242e+10 | Z26: 4579378.788
A27: =IF(ISBLANK(InfoPro!A21),"",InfoPro!A21) -> SC_936_A1 | B27: =IF(ISBLANK(InfoPro!B21),"",InfoPro!B21) -> Parque Fotovoltaico La Vaca 80 MW | C27: =IF(ISBLANK(InfoPro!E21),"",InfoPro!E21) -> 80 | D27: =IF(ISBLANK(InfoPro!F21),"",InfoPro!F21) -> Solar FV | E27: =IF(ISBLANK(InfoPro!I21),"",YEAR(InfoPro!I21)-$H$3) -> 3 | F27: =IF(B27="","",VLOOKUP(D27,Tablas!$B$2:$E$13,2,FALSE)) -> 0.26 | G27: =IF(B27="","",VLOOKUP(D27,Tablas!$B$2:$H$13,7,FALSE)) -> 83577.2 | H27: 0.564831274 | I27: 182208 | J27: 1.414460768e+10 | K27: 1.265170634e+10 | L27: 1.131637418e+10 | M27: 1.012198048e+10 | N27: 9053649808 | O27: 8098076751 | P27: 7243360242 | Q27: 6478855315 | R27: 5795040532 | S27: 5183399403 | T27: 4636314314 | U27: 4146971658 | V27: 3709276975 | W27: 3317779048 | X27: 2967602010 | Y27: 1.088649947e+11 | Z27: 1360812.434
A28: =IF(ISBLANK(InfoPro!A22),"",InfoPro!A22) -> SC_936_A2 | B28: =IF(ISBLANK(InfoPro!B22),"",InfoPro!B22) -> Parque Fotovoltaico La Vaca 80 MW | C28: =IF(ISBLANK(InfoPro!E22),"",InfoPro!E22) -> 80 | D28: =IF(ISBLANK(InfoPro!F22),"",InfoPro!F22) -> Solar FV | E28: =IF(ISBLANK(InfoPro!I22),"",YEAR(InfoPro!I22)-$H$3) -> 3 | F28: =IF(B28="","",VLOOKUP(D28,Tablas!$B$2:$E$13,2,FALSE)) -> 0.26 | G28: =IF(B28="","",VLOOKUP(D28,Tablas!$B$2:$H$13,7,FALSE)) -> 83577.2 | H28: 0.564831274 | I28: 182208 | J28: =IF($I28="","",(1/(1+$C$3)^(J$6+$E28))*$I28*$C$2*$H28) -> 1.414460768e+10 | K28: 1.265170634e+10 | L28: 1.131637418e+10 | M28: 1.012198048e+10 | N28: 9053649808 | O28: 8098076751 | P28: 7243360242 | Q28: 6478855315 | R28: 5795040532 | S28: 5183399403 | T28: 4636314314 | U28: 4146971658 | V28: 3709276975 | W28: 3317779048 | X28: 2967602010 | Y28: 1.088649947e+11 | Z28: 1360812.434
A29: =IF(ISBLANK(InfoPro!A23),"",InfoPro!A23) -> SC_1799_A1 | B29: =IF(ISBLANK(InfoPro!B23),"",InfoPro!B23) -> EXCEDENTES AUTOGENERACION VRO | C29: =IF(ISBLANK(InfoPro!E23),"",InfoPro!E23) -> 46.71 | D29: =IF(ISBLANK(InfoPro!F23),"",InfoPro!F23) -> Solar FV | E29: =IF(ISBLANK(InfoPro!I23),"",YEAR(InfoPro!I23)-$H$3) -> 5 | F29: =IF(B29="","",VLOOKUP(D29,Tablas!$B$2:$E$13,2,FALSE)) -> 0.26 | G29: =IF(B29="","",VLOOKUP(D29,Tablas!$B$2:$H$13,7,FALSE)) -> 83577.2 | H29: 0.564831274 | I29: 106386.696 | J29: 6607347976 | K29: 5909971356 | L29: 5286199781 | M29: 4728264563 | N29: 4229216962 | O29: 3782841647 | P29: 3383579291 | Q29: 3026457326 | R29: 2707028020 | S29: 2421313077 | T29: 2165754094 | U29: 1937168241 | V29: 1732708624 | W29: 1549828823 | X29: 1386251183 | Y29: 5.085393096e+10 | Z29: 1088716.141
A30: =IF(ISBLANK(InfoPro!A24),"",InfoPro!A24) -> SC_1757_A1 | B30: =IF(ISBLANK(InfoPro!B24),"",InfoPro!B24) -> PGF La Escuela | C30: =IF(ISBLANK(InfoPro!E24),"",InfoPro!E24) -> 40 | D30: =IF(ISBLANK(InfoPro!F24),"",InfoPro!F24) -> Solar FV | E30: =IF(ISBLANK(InfoPro!I24),"",YEAR(InfoPro!I24)-$H$3) -> 2 | F30: =IF(B30="","",VLOOKUP(D30,Tablas!$B$2:$E$13,2,FALSE)) -> 0.26 | G30: =IF(B30="","",VLOOKUP(D30,Tablas!$B$2:$H$13,7,FALSE)) -> 83577.2 | H30: 0.564831274 | I30: 91104 | J30: 7906835695 | K30: 7072303842 | L30: 6325853168 | M30: 5658187091 | N30: 5060990242 | O30: 4526824904 | P30: 4049038376 | Q30: 3621680121 | R30: 3239427658 | S30: 2897520266 | T30: 2591699701 | U30: 2318157157 | V30: 2073485829 | W30: 1854638488 | X30: 1658889524 | Y30: 6.085553206e+10 | Z30: 1521388.302
A31: =IF(ISBLANK(InfoPro!A25),"",InfoPro!A25) -> SC_1757_A3 | B31: =IF(ISBLANK(InfoPro!B25),"",InfoPro!B25) -> PGF La Escuela | C31: =IF(ISBLANK(InfoPro!E25),"",InfoPro!E25) -> 40 | D31: =IF(ISBLANK(InfoPro!F25),"",InfoPro!F25) -> Solar FV | E31: =IF(ISBLANK(InfoPro!I25),"",YEAR(InfoPro!I25)-$H$3) -> 2 | F31: =IF(B31="","",VLOOKUP(D31,Tablas!$B$2:$E$13,2,FALSE)) -> 0.26 | G31: =IF(B31="","",VLOOKUP(D31,Tablas!$B$2:$H$13,7,FALSE)) -> 83577.2 | H31: 0.564831274 | I31: 91104 | J31: 7906835695 | K31: 7072303842 | L31: 6325853168 | M31: 5658187091 | N31: 5060990242 | O31: 4526824904 | P31: 4049038376 | Q31: 3621680121 | R31: 3239427658 | S31: 2897520266 | T31: 2591699701 | U31: 2318157157 | V31: 2073485829 | W31: 1854638488 | X31: 1658889524 | Y31: 6.085553206e+10 | Z31: 1521388.302
A32: =IF(ISBLANK(InfoPro!A26),"",InfoPro!A26) -> SC_1870_A1 | B32: =IF(ISBLANK(InfoPro!B26),"",InfoPro!B26) -> Helios Puerto Lopez - 15MW | C32: =IF(ISBLANK(InfoPro!E26),"",InfoPro!E26) -> 15 | D32: =IF(ISBLANK(InfoPro!F26),"",InfoPro!F26) -> Solar FV | E32: =IF(ISBLANK(InfoPro!I26),"",YEAR(InfoPro!I26)-$H$3) -> 1 | F32: =IF(B32="","",VLOOKUP(D32,Tablas!$B$2:$E$13,2,FALSE)) -> 0.26 | G32: =IF(B32="","",VLOOKUP(D32,Tablas!$B$2:$H$13,7,FALSE)) -> 83577.2 | H32: 0.564831274 | I32: 34164 | J32: 3314940865 | K32: 2965063386 | L32: 2652113941 | M32: 2372194938 | N32: 2121820159 | O32: 1897871341 | P32: 1697559339 | Q32: 1518389391 | R32: 1358130045 | S32: 1214785372 | T32: 1086570100 | U32: 971887388 | V32: 869308933.8 | W32: 777557185.9 | X32: 695489432.8 | Y32: 2.551368182e+10 | Z32: 1700912.121
A33: =IF(ISBLANK(InfoPro!A27),"",InfoPro!A27) -> SC_1870_A2 | B33: =IF(ISBLANK(InfoPro!B27),"",InfoPro!B27) -> Helios Puerto Lopez - 15MW | C33: =IF(ISBLANK(InfoPro!E27),"",InfoPro!E27) -> 15 | D33: =IF(ISBLANK(InfoPro!F27),"",InfoPro!F27) -> Solar FV | E33: =IF(ISBLANK(InfoPro!I27),"",YEAR(InfoPro!I27)-$H$3) -> 1 | F33: =IF(B33="","",VLOOKUP(D33,Tablas!$B$2:$E$13,2,FALSE)) -> 0.26 | G33: =IF(B33="","",VLOOKUP(D33,Tablas!$B$2:$H$13,7,FALSE)) -> 83577.2 | H33: 0.564831274 | I33: 34164 | J33: 3314940865 | K33: 2965063386 | L33: 2652113941 | M33: 2372194938 | N33: 2121820159 | O33: 1897871341 | P33: 1697559339 | Q33: 1518389391 | R33: 1358130045 | S33: 1214785372 | T33: 1086570100 | U33: 971887388 | V33: 869308933.8 | W33: 777557185.9 | X33: 695489432.8 | Y33: 2.551368182e+10 | Z33: 1700912.121
A34: =IF(ISBLANK(InfoPro!A28),"",InfoPro!A28) -> SC_1892_A1 | B34: =IF(ISBLANK(InfoPro!B28),"",InfoPro!B28) -> PARQUE SOLAR MESITAS | C34: =IF(ISBLANK(InfoPro!E28),"",InfoPro!E28) -> 9.9 | D34: =IF(ISBLANK(InfoPro!F28),"",InfoPro!F28) -> Solar FV | E34: =IF(ISBLANK(InfoPro!I28),"",YEAR(InfoPro!I28)-$H$3) -> 1 | F34: =IF(B34="","",VLOOKUP(D34,Tablas!$B$2:$E$13,2,FALSE)) -> 0.26 | G34: =IF(B34="","",VLOOKUP(D34,Tablas!$B$2:$H$13,7,FALSE)) -> 83577.2 | H34: 0.564831274 | I34: 22548.24 | J34: 2187860971 | K34: 1956941835 | L34: 1750395201 | M34: 1565648659 | N34: 1400401305 | O34: 1252595085 | P34: 1120389164 | Q34: 1002136998 | R34: 896365830 | S34: 801758345.3 | T34: 717136265.9 | U34: 641445676.1 | V34: 573743896.3 | W34: 513187742.7 | X34: 459023025.7 | Y34: 1.683903e+10 | Z34: 1700912.121
A35: =IF(ISBLANK(InfoPro!A29),"",InfoPro!A29) -> SC_1892_A2 | B35: =IF(ISBLANK(InfoPro!B29),"",InfoPro!B29) -> PARQUE SOLAR MESITAS | C35: =IF(ISBLANK(InfoPro!E29),"",InfoPro!E29) -> 9.9 | D35: =IF(ISBLANK(InfoPro!F29),"",InfoPro!F29) -> Solar FV | E35: =IF(ISBLANK(InfoPro!I29),"",YEAR(InfoPro!I29)-$H$3) -> 1 | F35: =IF(B35="","",VLOOKUP(D35,Tablas!$B$2:$E$13,2,FALSE)) -> 0.26 | G35: =IF(B35="","",VLOOKUP(D35,Tablas!$B$2:$H$13,7,FALSE)) -> 83577.2 | H35: 0.564831274 | I35: 22548.24 | J35: 2187860971 | K35: 1956941835 | L35: 1750395201 | M35: 1565648659 | N35: 1400401305 | O35: 1252595085 | P35: 1120389164 | Q35: 1002136998 | R35: 896365830 | S35: 801758345.3 | T35: 717136265.9 | U35: 641445676.1 | V35: 573743896.3 | W35: 513187742.7 | X35: 459023025.7 | Y35: 1.683903e+10 | Z35: 1700912.121
A36: =IF(ISBLANK(InfoPro!A30),"",InfoPro!A30) -> SC_1930_A2 | B36: =IF(ISBLANK(InfoPro!B30),"",InfoPro!B30) -> PV José Maria Cordova 9.9 MW | C36: =IF(ISBLANK(InfoPro!E30),"",InfoPro!E30) -> 9.9 | D36: =IF(ISBLANK(InfoPro!F30),"",InfoPro!F30) -> Solar FV | E36: =IF(ISBLANK(InfoPro!I30),"",YEAR(InfoPro!I30)-$H$3) -> 2 | F36: =IF(B36="","",VLOOKUP(D36,Tablas!$B$2:$E$13,2,FALSE)) -> 0.26 | G36: =IF(B36="","",VLOOKUP(D36,Tablas!$B$2:$H$13,7,FALSE)) -> 83577.2 | H36: 0.564831274 | I36: 22548.24 | J36: 1956941835 | K36: 1750395201 | L36: 1565648659 | M36: 1400401305 | N36: 1252595085 | O36: 1120389164 | P36: 1002136998 | Q36: 896365830 | R36: 801758345.3 | S36: 717136265.9 | T36: 641445676.1 | U36: 573743896.3 | V36: 513187742.7 | W36: 459023025.7 | X36: 410575157.1 | Y36: 1.506174419e+10 | Z36: 1521388.302
A37: =IF(ISBLANK(InfoPro!A31),"",InfoPro!A31) -> SC_2060_A1 | B37: =IF(ISBLANK(InfoPro!B31),"",InfoPro!B31) -> EL DANUBIO - 50 MW | C37: =IF(ISBLANK(InfoPro!E31),"",InfoPro!E31) -> 50 | D37: =IF(ISBLANK(InfoPro!F31),"",InfoPro!F31) -> Solar FV | E37: =IF(ISBLANK(InfoPro!I31),"",YEAR(InfoPro!I31)-$H$3) -> 3 | F37: =IF(B37="","",VLOOKUP(D37,Tablas!$B$2:$E$13,2,FALSE)) -> 0.26 | G37: =IF(B37="","",VLOOKUP(D37,Tablas!$B$2:$H$13,7,FALSE)) -> 83577.2 | H37: 0.564831274 | I37: 113880 | J37: 8840379802 | K37: 7907316460 | L37: 7072733864 | M37: 6326237803 | N37: 5658531130 | O37: 5061297969 | P37: 4527100152 | Q37: 4049284572 | R37: 3621900333 | S37: 3239624627 | T37: 2897696446 | U37: 2591857286 | V37: 2318298109 | W37: 2073611905 | X37: 1854751256 | Y37: 6.804062171e+10 | Z37: 1360812.434
A38: =IF(ISBLANK(InfoPro!A32),"",InfoPro!A32) -> SC_2060_A2 | B38: =IF(ISBLANK(InfoPro!B32),"",InfoPro!B32) -> EL DANUBIO - 50 MW | C38: =IF(ISBLANK(InfoPro!E32),"",InfoPro!E32) -> 50 | D38: =IF(ISBLANK(InfoPro!F32),"",InfoPro!F32) -> Solar FV | E38: =IF(ISBLANK(InfoPro!I32),"",YEAR(InfoPro!I32)-$H$3) -> 3 | F38: =IF(B38="","",VLOOKUP(D38,Tablas!$B$2:$E$13,2,FALSE)) -> 0.26 | G38: =IF(B38="","",VLOOKUP(D38,Tablas!$B$2:$H$13,7,FALSE)) -> 83577.2 | H38: 0.564831274 | I38: 113880 | J38: 8840379802 | K38: 7907316460 | L38: 7072733864 | M38: 6326237803 | N38: 5658531130 | O38: 5061297969 | P38: 4527100152 | Q38: 4049284572 | R38: 3621900333 | S38: 3239624627 | T38: 2897696446 | U38: 2591857286 | V38: 2318298109 | W38: 2073611905 | X38: 1854751256 | Y38: 6.804062171e+10 | Z38: 1360812.434
A39: =IF(ISBLANK(InfoPro!A33),"",InfoPro!A33) -> SC_1836_A1 | B39: =IF(ISBLANK(InfoPro!B33),"",InfoPro!B33) -> PARQUE SOLAR LA MERCED 9.9 MW | C39: =IF(ISBLANK(InfoPro!E33),"",InfoPro!E33) -> 9.9 | D39: =IF(ISBLANK(InfoPro!F33),"",InfoPro!F33) -> Solar FV | E39: =IF(ISBLANK(InfoPro!I33),"",YEAR(InfoPro!I33)-$H$3) -> 1 | F39: =IF(B39="","",VLOOKUP(D39,Tablas!$B$2:$E$13,2,FALSE)) -> 0.26 | G39: =IF(B39="","",VLOOKUP(D39,Tablas!$B$2:$H$13,7,FALSE)) -> 83577.2 | H39: 0.564831274 | I39: 22548.24 | J39: 2187860971 | K39: 1956941835 | L39: 1750395201 | M39: 1565648659 | N39: 1400401305 | O39: 1252595085 | P39: 1120389164 | Q39: 1002136998 | R39: 896365830 | S39: 801758345.3 | T39: 717136265.9 | U39: 641445676.1 | V39: 573743896.3 | W39: 513187742.7 | X39: 459023025.7 | Y39: 1.683903e+10 | Z39: 1700912.121
A40: =IF(ISBLANK(InfoPro!#REF!),"",InfoPro!#REF!) ->  | B40: =IF(ISBLANK(InfoPro!#REF!),"",InfoPro!#REF!) ->  | C40: =IF(ISBLANK(InfoPro!#REF!),"",InfoPro!#REF!) ->  | D40: =IF(ISBLANK(InfoPro!#REF!),"",InfoPro!#REF!) ->  | E40: =IF(ISBLANK(InfoPro!#REF!),"",YEAR(InfoPro!#REF!)-$H$3) ->  | F40: =IF(B40="","",VLOOKUP(D40,Tablas!$B$2:$E$13,2,FALSE)) ->  | G40: =IF(B40="","",VLOOKUP(D40,Tablas!$B$2:$H$13,7,FALSE)) -> 
A41: =IF(ISBLANK(InfoPro!A34),"",InfoPro!A34) -> SC_2071_A1 | B41: =IF(ISBLANK(InfoPro!B34),"",InfoPro!B34) -> Morichal - 9.9 MW | C41: =IF(ISBLANK(InfoPro!E34),"",InfoPro!E34) -> 9.9 | D41: =IF(ISBLANK(InfoPro!F34),"",InfoPro!F34) -> Solar FV | E41: =IF(ISBLANK(InfoPro!I34),"",YEAR(InfoPro!I34)-$H$3) -> 2 | F41: =IF(B41="","",VLOOKUP(D41,Tablas!$B$2:$E$13,2,FALSE)) -> 0.26 | G41: =IF(B41="","",VLOOKUP(D41,Tablas!$B$2:$H$13,7,FALSE)) -> 83577.2 | H41: 0.564831274 | I41: 22548.24 | J41: 1956941835 | K41: 1750395201 | L41: 1565648659 | M41: 1400401305 | N41: 1252595085 | O41: 1120389164 | P41: 1002136998 | Q41: 896365830 | R41: 801758345.3 | S41: 717136265.9 | T41: 641445676.1 | U41: 573743896.3 | V41: 513187742.7 | W41: 459023025.7 | X41: 410575157.1 | Y41: 1.506174419e+10 | Z41: 1521388.302
A42: =IF(ISBLANK(InfoPro!A35),"",InfoPro!A35) -> SC_2281_A1 | B42: =IF(ISBLANK(InfoPro!B35),"",InfoPro!B35) -> PARQUE EÓLICO SAUCES de 288 MW | C42: =IF(ISBLANK(InfoPro!E35),"",InfoPro!E35) -> 288 | D42: =IF(ISBLANK(InfoPro!F35),"",InfoPro!F35) -> Eólico Onshore | E42: =IF(ISBLANK(InfoPro!I35),"",YEAR(InfoPro!I35)-$H$3) -> 2 | F42: =IF(B42="","",VLOOKUP(D42,Tablas!$B$2:$E$13,2,FALSE)) -> 0.57 | G42: =IF(B42="","",VLOOKUP(D42,Tablas!$B$2:$H$13,7,FALSE)) -> 83577.2 | H42: 0.564831274 | I42: 1438041.6 | J42: 1.248063604e+11 | K42: 1.11633596e+11 | L42: 9.985115923e+10 | M42: 8.931230701e+10 | N42: 7.988578444e+10 | O42: 7.145419002e+10 | P42: 6.391251344e+10 | Q42: 5.716682776e+10 | R42: 5.113311964e+10 | S42: 4.573624297e+10 | T42: 4.090898298e+10 | U42: 3.659121912e+10 | V42: 3.272917632e+10 | W42: 2.92747552e+10 | X42: 2.61849331e+10 | Y42: 9.605811676e+11 | Z42: 3335351.276
A43: =IF(ISBLANK(InfoPro!A36),"",InfoPro!A36) -> SC_2281_A2 | B43: =IF(ISBLANK(InfoPro!B36),"",InfoPro!B36) -> PARQUE EÓLICO SAUCES de 288 MW | C43: =IF(ISBLANK(InfoPro!E36),"",InfoPro!E36) -> 288 | D43: =IF(ISBLANK(InfoPro!F36),"",InfoPro!F36) -> Eólico Onshore | E43: =IF(ISBLANK(InfoPro!I36),"",YEAR(InfoPro!I36)-$H$3) -> 2 | F43: =IF(B43="","",VLOOKUP(D43,Tablas!$B$2:$E$13,2,FALSE)) -> 0.57 | G43: =IF(B43="","",VLOOKUP(D43,Tablas!$B$2:$H$13,7,FALSE)) -> 83577.2 | H43: 0.564831274 | I43: 1438041.6 | J43: 1.248063604e+11 | K43: 1.11633596e+11 | L43: 9.985115923e+10 | M43: 8.931230701e+10 | N43: 7.988578444e+10 | O43: 7.145419002e+10 | P43: 6.391251344e+10 | Q43: 5.716682776e+10 | R43: 5.113311964e+10 | S43: 4.573624297e+10 | T43: 4.090898298e+10 | U43: 3.659121912e+10 | V43: 3.272917632e+10 | W43: 2.92747552e+10 | X43: 2.61849331e+10 | Y43: 9.605811676e+11 | Z43: 3335351.276
A44: =IF(ISBLANK(InfoPro!A37),"",InfoPro!A37) -> SC_2116_A1 | B44: =IF(ISBLANK(InfoPro!B37),"",InfoPro!B37) -> Parque Eólico Los Cerezos 60 MW | C44: =IF(ISBLANK(InfoPro!E37),"",InfoPro!E37) -> 60 | D44: =IF(ISBLANK(InfoPro!F37),"",InfoPro!F37) -> Eólico Onshore | E44: =IF(ISBLANK(InfoPro!I37),"",YEAR(InfoPro!I37)-$H$3) -> 4 | F44: =IF(B44="","",VLOOKUP(D44,Tablas!$B$2:$E$13,2,FALSE)) -> 0.57 | G44: =IF(B44="","",VLOOKUP(D44,Tablas!$B$2:$H$13,7,FALSE)) -> 83577.2 | H44: 0.564831274 | I44: 299592 | J44: 2.080232484e+10 | K44: 1.860673063e+10 | L44: 1.664287176e+10 | M44: 1.488628959e+10 | N44: 1.331510697e+10 | O44: 1.190975578e+10 | P44: 1.065273326e+10 | Q44: 9528383952 | R44: 8522704787 | S44: 7623170651 | T44: 6818578400 | U44: 6098907334 | V44: 5455194395 | W44: 4879422536 | X44: 4364420873 | Y44: 1.601065957e+11 | Z44: 2668443.262
A45: =IF(ISBLANK(InfoPro!A38),"",InfoPro!A38) -> SC_2116_A2 | B45: =IF(ISBLANK(InfoPro!B38),"",InfoPro!B38) -> Parque Eólico Los Cerezos 60 MW | C45: =IF(ISBLANK(InfoPro!E38),"",InfoPro!E38) -> 60 | D45: =IF(ISBLANK(InfoPro!F38),"",InfoPro!F38) -> Eólico Onshore | E45: =IF(ISBLANK(InfoPro!I38),"",YEAR(InfoPro!I38)-$H$3) -> 4 | F45: =IF(B45="","",VLOOKUP(D45,Tablas!$B$2:$E$13,2,FALSE)) -> 0.57 | G45: =IF(B45="","",VLOOKUP(D45,Tablas!$B$2:$H$13,7,FALSE)) -> 83577.2 | H45: 0.564831274 | I45: 299592 | J45: =IF($I45="","",(1/(1+$C$3)^(J$6+$E45))*$I45*$C$2*$H45) -> 2.080232484e+10 | K45: 1.860673063e+10 | L45: 1.664287176e+10 | M45: 1.488628959e+10 | N45: 1.331510697e+10 | O45: 1.190975578e+10 | P45: 1.065273326e+10 | Q45: 9528383952 | R45: 8522704787 | S45: 7623170651 | T45: 6818578400 | U45: 6098907334 | V45: 5455194395 | W45: 4879422536 | X45: 4364420873 | Y45: 1.601065957e+11 | Z45: 2668443.262
A46: =IF(ISBLANK(InfoPro!A39),"",InfoPro!A39) -> SC_2078_A1 | B46: =IF(ISBLANK(InfoPro!B39),"",InfoPro!B39) -> PARQUE SOLAR SANTA HELENA 19.9 | C46: =IF(ISBLANK(InfoPro!E39),"",InfoPro!E39) -> 19.9 | D46: =IF(ISBLANK(InfoPro!F39),"",InfoPro!F39) -> Solar FV | E46: =IF(ISBLANK(InfoPro!I39),"",YEAR(InfoPro!I39)-$H$3) -> 1 | F46: =IF(B46="","",VLOOKUP(D46,Tablas!$B$2:$E$13,2,FALSE)) -> 0.26 | G46: =IF(B46="","",VLOOKUP(D46,Tablas!$B$2:$H$13,7,FALSE)) -> 83577.2 | H46: 0.564831274 | I46: 45324.24 | J46: 4397821548 | K46: 3933650758 | L46: 3518471161 | M46: 3147111951 | N46: 2814948078 | O46: 2517842646 | P46: 2252095390 | Q46: 2014396592 | R46: 1801785860 | S46: 1611615260 | T46: 1441516332 | U46: 1289370601 | V46: 1153283186 | W46: 1031559200 | X46: 922682647.6 | Y46: 3.384815121e+10 | Z46: 1700912.121
A47: =IF(ISBLANK(InfoPro!A40),"",InfoPro!A40) -> SC_1899_A1 | B47: =IF(ISBLANK(InfoPro!B40),"",InfoPro!B40) -> Sikaramá 9.9 MW | C47: =IF(ISBLANK(InfoPro!E40),"",InfoPro!E40) -> 9.9 | D47: =IF(ISBLANK(InfoPro!F40),"",InfoPro!F40) -> Solar FV | E47: =IF(ISBLANK(InfoPro!I40),"",YEAR(InfoPro!I40)-$H$3) -> 3 | F47: =IF(B47="","",VLOOKUP(D47,Tablas!$B$2:$E$13,2,FALSE)) -> 0.26 | G47: =IF(B47="","",VLOOKUP(D47,Tablas!$B$2:$H$13,7,FALSE)) -> 83577.2 | H47: 0.564831274 | I47: 22548.24 | J47: 1750395201 | K47: 1565648659 | L47: 1400401305 | M47: 1252595085 | N47: 1120389164 | O47: 1002136998 | P47: 896365830 | Q47: 801758345.3 | R47: 717136265.9 | S47: 641445676.1 | T47: 573743896.3 | U47: 513187742.7 | V47: 459023025.7 | W47: 410575157.1 | X47: 367240748.8 | Y47: 1.34720431e+10 | Z47: 1360812.434
A48: =IF(ISBLANK(InfoPro!A41),"",InfoPro!A41) -> SC_1899_A2 | B48: =IF(ISBLANK(InfoPro!B41),"",InfoPro!B41) -> Sikaramá 9.9 MW | C48: =IF(ISBLANK(InfoPro!E41),"",InfoPro!E41) -> 9.9 | D48: =IF(ISBLANK(InfoPro!F41),"",InfoPro!F41) -> Solar FV | E48: =IF(ISBLANK(InfoPro!I41),"",YEAR(InfoPro!I41)-$H$3) -> 3 | F48: =IF(B48="","",VLOOKUP(D48,Tablas!$B$2:$E$13,2,FALSE)) -> 0.26 | G48: =IF(B48="","",VLOOKUP(D48,Tablas!$B$2:$H$13,7,FALSE)) -> 83577.2 | H48: 0.564831274 | I48: 22548.24 | J48: 1750395201 | K48: 1565648659 | L48: 1400401305 | M48: 1252595085 | N48: 1120389164 | O48: 1002136998 | P48: 896365830 | Q48: 801758345.3 | R48: 717136265.9 | S48: 641445676.1 | T48: 573743896.3 | U48: 513187742.7 | V48: 459023025.7 | W48: 410575157.1 | X48: 367240748.8 | Y48: 1.34720431e+10 | Z48: 1360812.434
A49: =IF(ISBLANK(InfoPro!A42),"",InfoPro!A42) -> SC_2144_A1 | B49: =IF(ISBLANK(InfoPro!B42),"",InfoPro!B42) -> PGFV Andes I | C49: =IF(ISBLANK(InfoPro!E42),"",InfoPro!E42) -> 19.9 | D49: =IF(ISBLANK(InfoPro!F42),"",InfoPro!F42) -> Solar FV | E49: =IF(ISBLANK(InfoPro!I42),"",YEAR(InfoPro!I42)-$H$3) -> 1 | F49: =IF(B49="","",VLOOKUP(D49,Tablas!$B$2:$E$13,2,FALSE)) -> 0.26 | G49: =IF(B49="","",VLOOKUP(D49,Tablas!$B$2:$H$13,7,FALSE)) -> 83577.2 | H49: 0.564831274 | I49: 45324.24 | J49: 4397821548 | K49: 3933650758 | L49: 3518471161 | M49: 3147111951 | N49: 2814948078 | O49: 2517842646 | P49: 2252095390 | Q49: 2014396592 | R49: 1801785860 | S49: 1611615260 | T49: 1441516332 | U49: 1289370601 | V49: 1153283186 | W49: 1031559200 | X49: 922682647.6 | Y49: 3.384815121e+10 | Z49: 1700912.121
A50: =IF(ISBLANK(InfoPro!A43),"",InfoPro!A43) -> SC_2144_A2 | B50: =IF(ISBLANK(InfoPro!B43),"",InfoPro!B43) -> PGFV Andes I | C50: =IF(ISBLANK(InfoPro!E43),"",InfoPro!E43) -> 19.9 | D50: =IF(ISBLANK(InfoPro!F43),"",InfoPro!F43) -> Solar FV | E50: =IF(ISBLANK(InfoPro!I43),"",YEAR(InfoPro!I43)-$H$3) -> 1 | F50: =IF(B50="","",VLOOKUP(D50,Tablas!$B$2:$E$13,2,FALSE)) -> 0.26 | G50: =IF(B50="","",VLOOKUP(D50,Tablas!$B$2:$H$13,7,FALSE)) -> 83577.2 | H50: 0.564831274 | I50: 45324.24 | J50: 4397821548 | K50: 3933650758 | L50: 3518471161 | M50: 3147111951 | N50: 2814948078 | O50: 2517842646 | P50: 2252095390 | Q50: 2014396592 | R50: 1801785860 | S50: 1611615260 | T50: 1441516332 | U50: 1289370601 | V50: 1153283186 | W50: 1031559200 | X50: 922682647.6 | Y50: 3.384815121e+10 | Z50: 1700912.121
A51: =IF(ISBLANK(InfoPro!A44),"",InfoPro!A44) -> SC_2176_A1 | B51: =IF(ISBLANK(InfoPro!B44),"",InfoPro!B44) -> PGFV Andes II | C51: =IF(ISBLANK(InfoPro!E44),"",InfoPro!E44) -> 19.9 | D51: =IF(ISBLANK(InfoPro!F44),"",InfoPro!F44) -> Solar FV | E51: =IF(ISBLANK(InfoPro!I44),"",YEAR(InfoPro!I44)-$H$3) -> 1 | F51: =IF(B51="","",VLOOKUP(D51,Tablas!$B$2:$E$13,2,FALSE)) -> 0.26 | G51: =IF(B51="","",VLOOKUP(D51,Tablas!$B$2:$H$13,7,FALSE)) -> 83577.2 | H51: 0.564831274 | I51: 45324.24 | J51: 4397821548 | K51: 3933650758 | L51: 3518471161 | M51: 3147111951 | N51: 2814948078 | O51: 2517842646 | P51: 2252095390 | Q51: 2014396592 | R51: 1801785860 | S51: 1611615260 | T51: 1441516332 | U51: 1289370601 | V51: 1153283186 | W51: 1031559200 | X51: 922682647.6 | Y51: 3.384815121e+10 | Z51: 1700912.121
A52: =IF(ISBLANK(InfoPro!A45),"",InfoPro!A45) -> SC_2176_A2 | B52: =IF(ISBLANK(InfoPro!B45),"",InfoPro!B45) -> PGFV Andes II | C52: =IF(ISBLANK(InfoPro!E45),"",InfoPro!E45) -> 19.9 | D52: =IF(ISBLANK(InfoPro!F45),"",InfoPro!F45) -> Solar FV | E52: =IF(ISBLANK(InfoPro!I45),"",YEAR(InfoPro!I45)-$H$3) -> 1 | F52: =IF(B52="","",VLOOKUP(D52,Tablas!$B$2:$E$13,2,FALSE)) -> 0.26 | G52: =IF(B52="","",VLOOKUP(D52,Tablas!$B$2:$H$13,7,FALSE)) -> 83577.2 | H52: 0.564831274 | I52: 45324.24 | J52: 4397821548 | K52: 3933650758 | L52: 3518471161 | M52: 3147111951 | N52: 2814948078 | O52: 2517842646 | P52: 2252095390 | Q52: 2014396592 | R52: 1801785860 | S52: 1611615260 | T52: 1441516332 | U52: 1289370601 | V52: 1153283186 | W52: 1031559200 | X52: 922682647.6 | Y52: 3.384815121e+10 | Z52: 1700912.121
A53: =IF(ISBLANK(InfoPro!A46),"",InfoPro!A46) -> SC_1886_A1 | B53: =IF(ISBLANK(InfoPro!B46),"",InfoPro!B46) -> Rúkura 60 MW | C53: =IF(ISBLANK(InfoPro!E46),"",InfoPro!E46) -> 60 | D53: =IF(ISBLANK(InfoPro!F46),"",InfoPro!F46) -> Solar FV | E53: =IF(ISBLANK(InfoPro!I46),"",YEAR(InfoPro!I46)-$H$3) -> 5 | F53: =IF(B53="","",VLOOKUP(D53,Tablas!$B$2:$E$13,2,FALSE)) -> 0.26 | G53: =IF(B53="","",VLOOKUP(D53,Tablas!$B$2:$H$13,7,FALSE)) -> 83577.2 | H53: 0.564831274 | I53: 136656 | J53: 8487280637 | K53: 7591485364 | L53: 6790237356 | M53: 6073557563 | N53: 5432520182 | O53: 4859141486 | P53: 4346280399 | Q53: 3887549552 | R53: 3477235735 | S53: 3110228744 | T53: 2781957731 | U53: 2488334286 | V53: 2225701508 | W53: 1990788468 | X53: 1780669471 | Y53: 6.532296848e+10 | Z53: 1088716.141
A54: =IF(ISBLANK(InfoPro!A47),"",InfoPro!A47) -> SC_1886_A2 | B54: =IF(ISBLANK(InfoPro!B47),"",InfoPro!B47) -> Rúkura 60 MW | C54: =IF(ISBLANK(InfoPro!E47),"",InfoPro!E47) -> 60 | D54: =IF(ISBLANK(InfoPro!F47),"",InfoPro!F47) -> Solar FV | E54: =IF(ISBLANK(InfoPro!I47),"",YEAR(InfoPro!I47)-$H$3) -> 5 | F54: =IF(B54="","",VLOOKUP(D54,Tablas!$B$2:$E$13,2,FALSE)) -> 0.26 | G54: =IF(B54="","",VLOOKUP(D54,Tablas!$B$2:$H$13,7,FALSE)) -> 83577.2 | H54: 0.564831274 | I54: 136656 | J54: 8487280637 | K54: 7591485364 | L54: 6790237356 | M54: 6073557563 | N54: 5432520182 | O54: 4859141486 | P54: 4346280399 | Q54: 3887549552 | R54: 3477235735 | S54: 3110228744 | T54: 2781957731 | U54: 2488334286 | V54: 2225701508 | W54: 1990788468 | X54: 1780669471 | Y54: 6.532296848e+10 | Z54: 1088716.141
A55: =IF(ISBLANK(InfoPro!A48),"",InfoPro!A48) -> SC_2002_A1 | B55: =IF(ISBLANK(InfoPro!B48),"",InfoPro!B48) -> Bosques Solares de los Llanos 8 | C55: =IF(ISBLANK(InfoPro!E48),"",InfoPro!E48) -> 170 | D55: =IF(ISBLANK(InfoPro!F48),"",InfoPro!F48) -> Solar FV | E55: =IF(ISBLANK(InfoPro!I48),"",YEAR(InfoPro!I48)-$H$3) -> 3 | F55: =IF(B55="","",VLOOKUP(D55,Tablas!$B$2:$E$13,2,FALSE)) -> 0.26 | G55: =IF(B55="","",VLOOKUP(D55,Tablas!$B$2:$H$13,7,FALSE)) -> 83577.2 | H55: 0.564831274 | I55: 387192 | J55: 3.005729133e+10 | K55: 2.688487596e+10 | L55: 2.404729514e+10 | M55: 2.150920853e+10 | N55: 1.923900584e+10 | O55: 1.72084131e+10 | P55: 1.539214052e+10 | Q55: 1.376756754e+10 | R55: 1.231446113e+10 | S55: 1.101472373e+10 | T55: 9852167917 | U55: 8812314774 | V55: 7882213572 | W55: 7050280476 | X55: 6306154272 | Y55: 2.313381138e+11 | Z55: 1360812.434
A56: =IF(ISBLANK(InfoPro!A49),"",InfoPro!A49) -> SC_2002_A2 | B56: =IF(ISBLANK(InfoPro!B49),"",InfoPro!B49) -> Bosques Solares de los Llanos 8 | C56: =IF(ISBLANK(InfoPro!E49),"",InfoPro!E49) -> 170 | D56: =IF(ISBLANK(InfoPro!F49),"",InfoPro!F49) -> Solar FV | E56: =IF(ISBLANK(InfoPro!I49),"",YEAR(InfoPro!I49)-$H$3) -> 3 | F56: =IF(B56="","",VLOOKUP(D56,Tablas!$B$2:$E$13,2,FALSE)) -> 0.26 | G56: =IF(B56="","",VLOOKUP(D56,Tablas!$B$2:$H$13,7,FALSE)) -> 83577.2 | H56: 0.564831274 | I56: 387192 | J56: 3.005729133e+10 | K56: 2.688487596e+10 | L56: 2.404729514e+10 | M56: 2.150920853e+10 | N56: 1.923900584e+10 | O56: 1.72084131e+10 | P56: 1.539214052e+10 | Q56: 1.376756754e+10 | R56: 1.231446113e+10 | S56: 1.101472373e+10 | T56: 9852167917 | U56: 8812314774 | V56: 7882213572 | W56: 7050280476 | X56: 6306154272 | Y56: 2.313381138e+11 | Z56: 1360812.434
A57: =IF(ISBLANK(InfoPro!A50),"",InfoPro!A50) -> SC_1881_A1 | B57: =IF(ISBLANK(InfoPro!B50),"",InfoPro!B50) -> PARQUE FOTOVOLTAICO SIMIJACA | C57: =IF(ISBLANK(InfoPro!E50),"",InfoPro!E50) -> 60 | D57: =IF(ISBLANK(InfoPro!F50),"",InfoPro!F50) -> Solar FV | E57: =IF(ISBLANK(InfoPro!I50),"",YEAR(InfoPro!I50)-$H$3) -> 3 | F57: =IF(B57="","",VLOOKUP(D57,Tablas!$B$2:$E$13,2,FALSE)) -> 0.26 | G57: =IF(B57="","",VLOOKUP(D57,Tablas!$B$2:$H$13,7,FALSE)) -> 83577.2 | H57: 0.564831274 | I57: 136656 | J57: 1.060845576e+10 | K57: 9488779752 | L57: 8487280637 | M57: 7591485364 | N57: 6790237356 | O57: 6073557563 | P57: 5432520182 | Q57: 4859141486 | R57: 4346280399 | S57: 3887549552 | T57: 3477235735 | U57: 3110228744 | V57: 2781957731 | W57: 2488334286 | X57: 2225701508 | Y57: 8.164874606e+10 | Z57: 1360812.434
A58: =IF(ISBLANK(InfoPro!A51),"",InfoPro!A51) -> SC_1881_A2 | B58: =IF(ISBLANK(InfoPro!B51),"",InfoPro!B51) -> PARQUE FOTOVOLTAICO SIMIJACA | C58: =IF(ISBLANK(InfoPro!E51),"",InfoPro!E51) -> 60 | D58: =IF(ISBLANK(InfoPro!F51),"",InfoPro!F51) -> Solar FV | E58: =IF(ISBLANK(InfoPro!I51),"",YEAR(InfoPro!I51)-$H$3) -> 3 | F58: =IF(B58="","",VLOOKUP(D58,Tablas!$B$2:$E$13,2,FALSE)) -> 0.26 | G58: =IF(B58="","",VLOOKUP(D58,Tablas!$B$2:$H$13,7,FALSE)) -> 83577.2 | H58: 0.564831274 | I58: 136656 | J58: 1.060845576e+10 | K58: 9488779752 | L58: 8487280637 | M58: 7591485364 | N58: 6790237356 | O58: 6073557563 | P58: 5432520182 | Q58: 4859141486 | R58: 4346280399 | S58: 3887549552 | T58: 3477235735 | U58: 3110228744 | V58: 2781957731 | W58: 2488334286 | X58: 2225701508 | Y58: 8.164874606e+10 | Z58: 1360812.434
A59: =IF(ISBLANK(InfoPro!A52),"",InfoPro!A52) -> SC_2326_A1 | B59: =IF(ISBLANK(InfoPro!B52),"",InfoPro!B52) -> ARQUE EÓLICO ORQUIDEAS de 288 MW | C59: =IF(ISBLANK(InfoPro!E52),"",InfoPro!E52) -> 288 | D59: =IF(ISBLANK(InfoPro!F52),"",InfoPro!F52) -> Eólico Onshore | E59: =IF(ISBLANK(InfoPro!I52),"",YEAR(InfoPro!I52)-$H$3) -> 2 | F59: =IF(B59="","",VLOOKUP(D59,Tablas!$B$2:$E$13,2,FALSE)) -> 0.57 | G59: =IF(B59="","",VLOOKUP(D59,Tablas!$B$2:$H$13,7,FALSE)) -> 83577.2 | H59: 0.564831274 | I59: 1438041.6 | J59: 1.248063604e+11 | K59: 1.11633596e+11 | L59: 9.985115923e+10 | M59: 8.931230701e+10 | N59: 7.988578444e+10 | O59: 7.145419002e+10 | P59: 6.391251344e+10 | Q59: 5.716682776e+10 | R59: 5.113311964e+10 | S59: 4.573624297e+10 | T59: 4.090898298e+10 | U59: 3.659121912e+10 | V59: 3.272917632e+10 | W59: 2.92747552e+10 | X59: 2.61849331e+10 | Y59: 9.605811676e+11 | Z59: 3335351.276
A60: =IF(ISBLANK(InfoPro!A53),"",InfoPro!A53) -> SC_2326_A2 | B60: =IF(ISBLANK(InfoPro!B53),"",InfoPro!B53) -> ARQUE EÓLICO ORQUIDEAS de 288 MW | C60: =IF(ISBLANK(InfoPro!E53),"",InfoPro!E53) -> 288 | D60: =IF(ISBLANK(InfoPro!F53),"",InfoPro!F53) -> Eólico Onshore | E60: =IF(ISBLANK(InfoPro!I53),"",YEAR(InfoPro!I53)-$H$3) -> 2 | F60: =IF(B60="","",VLOOKUP(D60,Tablas!$B$2:$E$13,2,FALSE)) -> 0.57 | G60: =IF(B60="","",VLOOKUP(D60,Tablas!$B$2:$H$13,7,FALSE)) -> 83577.2 | H60: 0.564831274 | I60: 1438041.6 | J60: 1.248063604e+11 | K60: 1.11633596e+11 | L60: 9.985115923e+10 | M60: 8.931230701e+10 | N60: 7.988578444e+10 | O60: 7.145419002e+10 | P60: 6.391251344e+10 | Q60: 5.716682776e+10 | R60: 5.113311964e+10 | S60: 4.573624297e+10 | T60: 4.090898298e+10 | U60: 3.659121912e+10 | V60: 3.272917632e+10 | W60: 2.92747552e+10 | X60: 2.61849331e+10 | Y60: 9.605811676e+11 | Z60: 3335351.276
A61: =IF(ISBLANK(InfoPro!A54),"",InfoPro!A54) -> SC_2075_A1 | B61: =IF(ISBLANK(InfoPro!B54),"",InfoPro!B54) -> Ubaté Solar | C61: =IF(ISBLANK(InfoPro!E54),"",InfoPro!E54) -> 19.9 | D61: =IF(ISBLANK(InfoPro!F54),"",InfoPro!F54) -> Solar FV | E61: =IF(ISBLANK(InfoPro!I54),"",YEAR(InfoPro!I54)-$H$3) -> 0 | F61: =IF(B61="","",VLOOKUP(D61,Tablas!$B$2:$E$13,2,FALSE)) -> 0.26 | G61: =IF(B61="","",VLOOKUP(D61,Tablas!$B$2:$H$13,7,FALSE)) -> 83577.2 | H61: 0.564831274 | I61: 45324.24 | J61: 4916764490 | K61: 4397821548 | L61: 3933650758 | M61: 3518471161 | N61: 3147111951 | O61: 2814948078 | P61: 2517842646 | Q61: 2252095390 | R61: 2014396592 | S61: 1801785860 | T61: 1611615260 | U61: 1441516332 | V61: 1289370601 | W61: 1153283186 | X61: 1031559200 | Y61: 3.784223305e+10 | Z61: 1901619.751
A62: =IF(ISBLANK(InfoPro!A55),"",InfoPro!A55) -> SC_2075_A2 | B62: =IF(ISBLANK(InfoPro!B55),"",InfoPro!B55) -> Ubaté Solar | C62: =IF(ISBLANK(InfoPro!E55),"",InfoPro!E55) -> 19.9 | D62: =IF(ISBLANK(InfoPro!F55),"",InfoPro!F55) -> Solar FV | E62: =IF(ISBLANK(InfoPro!I55),"",YEAR(InfoPro!I55)-$H$3) -> 0 | F62: =IF(B62="","",VLOOKUP(D62,Tablas!$B$2:$E$13,2,FALSE)) -> 0.26 | G62: =IF(B62="","",VLOOKUP(D62,Tablas!$B$2:$H$13,7,FALSE)) -> 83577.2 | H62: 0.564831274 | I62: 45324.24 | J62: =IF($I62="","",(1/(1+$C$3)^(J$6+$E62))*$I62*$C$2*$H62) -> 4916764490 | K62: 4397821548 | L62: 3933650758 | M62: 3518471161 | N62: 3147111951 | O62: 2814948078 | P62: 2517842646 | Q62: 2252095390 | R62: 2014396592 | S62: 1801785860 | T62: 1611615260 | U62: 1441516332 | V62: 1289370601 | W62: 1153283186 | X62: 1031559200 | Y62: 3.784223305e+10 | Z62: 1901619.751
A63: =IF(ISBLANK(InfoPro!A56),"",InfoPro!A56) -> SC_2217_A1 | B63: =IF(ISBLANK(InfoPro!B56),"",InfoPro!B56) -> CENTRAL DE GENERACIÓN BIOMASA BOGOTÁ II 9,88 MW | C63: =IF(ISBLANK(InfoPro!E56),"",InfoPro!E56) -> 9.88 | D63: =IF(ISBLANK(InfoPro!F56),"",InfoPro!F56) -> Biomasa y Residuos | E63: =IF(ISBLANK(InfoPro!I56),"",YEAR(InfoPro!I56)-$H$3) -> 0 | F63: =IF(B63="","",VLOOKUP(D63,Tablas!$B$2:$E$13,2,FALSE)) -> 0.7 | G63: =IF(B63="","",VLOOKUP(D63,Tablas!$B$2:$H$13,7,FALSE)) -> 83577.2 | H63: 0.564831274 | I63: 60584.16 | J63: 6572157560 | K63: 5878495134 | L63: 5258045737 | M63: 4703082055 | N63: 4206692357 | O63: 3762694416 | P63: 3365558511 | Q63: 3010338561 | R63: 2692610520 | S63: 2408417281 | T63: 2154219392 | U63: 1926850977 | V63: 1723480301 | W63: 1541574509 | X63: 1378868076 | Y63: 5.058308539e+10 | Z63: 5119745.485
A64: =IF(ISBLANK(InfoPro!A57),"",InfoPro!A57) -> SC_2217_A2 | B64: =IF(ISBLANK(InfoPro!B57),"",InfoPro!B57) -> CENTRAL DE GENERACIÓN BIOMASA BOGOTÁ II 9,88 MW | C64: =IF(ISBLANK(InfoPro!E57),"",InfoPro!E57) -> 9.88 | D64: =IF(ISBLANK(InfoPro!F57),"",InfoPro!F57) -> Biomasa y Residuos | E64: =IF(ISBLANK(InfoPro!I57),"",YEAR(InfoPro!I57)-$H$3) -> 0 | F64: =IF(B64="","",VLOOKUP(D64,Tablas!$B$2:$E$13,2,FALSE)) -> 0.7 | G64: =IF(B64="","",VLOOKUP(D64,Tablas!$B$2:$H$13,7,FALSE)) -> 83577.2 | H64: 0.564831274 | I64: 60584.16 | J64: 6572157560 | K64: 5878495134 | L64: 5258045737 | M64: 4703082055 | N64: 4206692357 | O64: 3762694416 | P64: 3365558511 | Q64: 3010338561 | R64: 2692610520 | S64: 2408417281 | T64: 2154219392 | U64: 1926850977 | V64: 1723480301 | W64: 1541574509 | X64: 1378868076 | Y64: 5.058308539e+10 | Z64: 5119745.485

Sheet EC-Per
B2: Precio promedio de bolsa | C2: ='EC-RP'!C2*1000 -> 192057000 | D2: COP/GWh
B3: Tasa de descuento | C3: 0.118 | E3: Año de Referencia | F3: 2023
E4: Mínimo | F4: =MIN(W8:W198) -> 
G6: 0 | H6: 1 | I6: 2 | J6: 3 | K6: 4 | L6: 5 | M6: 6 | N6: 7 | O6: 8 | P6: 9 | Q6: 10 | R6: 11 | S6: 12 | T6: 13 | U6: 14
A7: Codigo | B7: Nombre | C7: capacidad | D7: Tipo | E7: Año de entrada | F7: Pérdidas STN | G7: Flujo Descontado 0 | H7: Flujo Descontado 1 | I7: Flujo Descontado 2 | J7: Flujo Descontado 3 | K7: Flujo Descontado 4 | L7: Flujo Descontado 5 | M7: Flujo Descontado 6 | N7: Flujo Descontado 7 | O7: Flujo Descontado 8 | P7: Flujo Descontado 9 | Q7: Flujo Descontado 10 | R7: Flujo Descontado 11 | S7: Flujo Descontado 12 | T7: Flujo Descontado 13 | U7: Flujo Descontado 14 | V7: VPN | W7: Beneficio/kW
A8: =IF(ISBLANK(InfoPro!A2),"",InfoPro!A2) -> SC_481_A1 | B8: =IF(ISBLANK(InfoPro!B2),"",InfoPro!B2) -> DIAMANTE | C8: =IF(ISBLANK(InfoPro!E2),"",InfoPro!E2) -> 70 | D8: =IF(ISBLANK(InfoPro!F2),"",InfoPro!F2) -> Solar FV | E8: =IF(ISBLANK(InfoPro!I2),"",YEAR(InfoPro!I2)-$F$3) -> 2 | F8: =IF(ISBLANK(InfoPro!P2),"",InfoPro!P2) -> -0.02842 | G8: =IF($F8="","",(1/(1+$C$3)^(G$6+$E8))*$F8*$C$2) -> -4366873.458 | H8: =IF($F8="","",(1/(1+$C$3)^(H$6+$E8))*$F8*$C$2) -> -3905969.104 | I8: =IF($F8="","",(1/(1+$C$3)^(I$6+$E8))*$F8*$C$2) -> -3493711.184 | J8: -3124965.281 | K8: -2795138.892 | L8: -2500124.232 | M8: -2236247.077 | N8: -2000220.999 | O8: -1789106.439 | P8: -1600274.096 | Q8: -1431372.179 | R8: -1280297.119 | S8: -1145167.369 | T8: -1024299.973 | U8: -916189.5998 | V8: =IF(U8="","",SUM(G8:U8)) -> -33609957 | W8: =IF(C8=0,0,IF(V8="","",V8/(C8*1000))) -> -480.1422429
A9: =IF(ISBLANK(InfoPro!A3),"",InfoPro!A3) -> SC_2288_A1 | B9: =IF(ISBLANK(InfoPro!B3),"",InfoPro!B3) -> PARQUE SOLAR FOTOVOLTAICO ESTEROS SOL DE 199MW | C9: =IF(ISBLANK(InfoPro!E3),"",InfoPro!E3) -> 199 | D9: =IF(ISBLANK(InfoPro!F3),"",InfoPro!F3) -> Solar FV | E9: =IF(ISBLANK(InfoPro!I3),"",YEAR(InfoPro!I3)-$F$3) -> 2 | F9: =IF(ISBLANK(InfoPro!P3),"",InfoPro!P3) -> -90.1 | G9: -1.384431029e+10 | H9: -1.238310402e+10 | I9: -1.107612166e+10 | J9: -9907085567 | K9: -8861436106 | L9: -7926150363 | M9: -7089579931 | N9: -6341305842 | O9: -5672008803 | P9: -5073353133 | Q9: -4537882946 | R9: -4058929290 | S9: -3630527093 | T9: -3247340870 | U9: -2904598274 | V9: =IF(U9="","",SUM(G9:U9)) -> -1.065537342e+11 | W9: =IF(C9=0,0,IF(V9="","",V9/(C9*1000))) -> -535445.9005
A10: =IF(ISBLANK(InfoPro!A4),"",InfoPro!A4) -> SC_2288_A2 | B10: =IF(ISBLANK(InfoPro!B4),"",InfoPro!B4) -> PARQUE SOLAR FOTOVOLTAICO ESTEROS SOL DE 199MW | C10: =IF(ISBLANK(InfoPro!E4),"",InfoPro!E4) -> 199 | D10: =IF(ISBLANK(InfoPro!F4),"",InfoPro!F4) -> Solar FV | E10: =IF(ISBLANK(InfoPro!I4),"",YEAR(InfoPro!I4)-$F$3) -> 2 | F10: =IF(ISBLANK(InfoPro!P4),"",InfoPro!P4) -> -127.8 | G10: -1.963710162e+10 | H10: -1.756449161e+10 | I10: -1.57106365e+10 | J10: -1.405244767e+10 | K10: -1.256927341e+10 | L10: -1.124264169e+10 | M10: -1.005603014e+10 | N10: -8994660229 | O10: -8045313264 | P10: -7196165710 | Q10: -6436641959 | R10: -5757282611 | S10: -5149626664 | T10: -4606106140 | U10: -4119951824 | V10: -1.51138371e+11 | W10: -759489.3017
A11: =IF(ISBLANK(InfoPro!A5),"",InfoPro!A5) -> SC_924_A1 | B11: =IF(ISBLANK(InfoPro!B5),"",InfoPro!B5) -> PARQUE FOTOVOLTAICO LA SABANA | C11: =IF(ISBLANK(InfoPro!E5),"",InfoPro!E5) -> 100 | D11: =IF(ISBLANK(InfoPro!F5),"",InfoPro!F5) -> Solar FV | E11: =IF(ISBLANK(InfoPro!I5),"",YEAR(InfoPro!I5)-$F$3) -> 3 | F11: =IF(ISBLANK(InfoPro!P5),"",InfoPro!P5) -> -0.96 | G11: -131939843.1 | H11: -118014170.9 | I11: -105558292.4 | J11: -94417077.27 | K11: -84451768.58 | L11: -75538254.54 | M11: -67565522.84 | N11: -60434278.04 | O11: -54055704.86 | P11: -48350362.13 | Q11: -43247193.32 | R11: -38682641.61 | S11: -34599858.33 | T11: -30947994.93 | U11: -27681569.7 | V11: -1015484532 | W11: -10154.84532
A12: =IF(ISBLANK(InfoPro!A6),"",InfoPro!A6) -> SC_924_A2 | B12: =IF(ISBLANK(InfoPro!B6),"",InfoPro!B6) -> PARQUE FOTOVOLTAICO LA SABANA | C12: =IF(ISBLANK(InfoPro!E6),"",InfoPro!E6) -> 100 | D12: =IF(ISBLANK(InfoPro!F6),"",InfoPro!F6) -> Solar FV | E12: =IF(ISBLANK(InfoPro!I6),"",YEAR(InfoPro!I6)-$F$3) -> 3 | F12: =IF(ISBLANK(InfoPro!P6),"",InfoPro!P6) -> -0.48 | G12: -65969921.53 | H12: -59007085.44 | I12: -52779146.19 | J12: -47208538.63 | K12: -42225884.29 | L12: -37769127.27 | M12: -33782761.42 | N12: -30217139.02 | O12: -27027852.43 | P12: -24175181.07 | Q12: -21623596.66 | R12: -19341320.8 | S12: -17299929.16 | T12: -15473997.46 | U12: -13840784.85 | V12: -507742266.2 | W12: -5077.422662
A13: =IF(ISBLANK(InfoPro!A7),"",InfoPro!A7) -> SC_756_A1 | B13: =IF(ISBLANK(InfoPro!B7),"",InfoPro!B7) -> PARQUE FOTOVOLTAICO BALSILLAS | C13: =IF(ISBLANK(InfoPro!E7),"",InfoPro!E7) -> 100 | D13: =IF(ISBLANK(InfoPro!F7),"",InfoPro!F7) -> Solar FV | E13: =IF(ISBLANK(InfoPro!I7),"",YEAR(InfoPro!I7)-$F$3) -> 2 | F13: =IF(ISBLANK(InfoPro!P7),"",InfoPro!P7) -> -3.77 | G13: -579279132.2 | H13: -518138758.7 | I13: -463451483.6 | J13: -414536210.7 | K13: -370783730.5 | L13: -331649132.8 | M13: -296645020.4 | N13: -265335438.7 | O13: -237330446 | P13: -212281257.6 | Q13: -189875901.3 | R13: -169835332.1 | S13: -151909957.2 | T13: -135876527 | U13: -121535355.1 | V13: -4458463684 | W13: -44584.63684
A14: =IF(ISBLANK(InfoPro!A8),"",InfoPro!A8) -> SC_756_A2 | B14: =IF(ISBLANK(InfoPro!B8),"",InfoPro!B8) -> PARQUE FOTOVOLTAICO BALSILLAS | C14: =IF(ISBLANK(InfoPro!E8),"",InfoPro!E8) -> 100 | D14: =IF(ISBLANK(InfoPro!F8),"",InfoPro!F8) -> Solar FV | E14: =IF(ISBLANK(InfoPro!I8),"",YEAR(InfoPro!I8)-$F$3) -> 2 | F14: =IF(ISBLANK(InfoPro!P8),"",InfoPro!P8) -> -3.46 | G14: -531646100.1 | H14: -475533184.3 | I14: -425342740.9 | J14: -380449678.8 | K14: -340294882.7 | L14: -304378249.2 | M14: -272252459.1 | N14: -243517405.3 | O14: -217815210.4 | P14: -194825769.6 | Q14: -174262763.5 | R14: -155870092.6 | S14: -139418687.5 | T14: -124703656.1 | U14: -111541731.7 | V14: -4091852612 | W14: -40918.52612
A15: =IF(ISBLANK(InfoPro!A9),"",InfoPro!A9) -> SC_1207_A1 | B15: =IF(ISBLANK(InfoPro!B9),"",InfoPro!B9) -> Guacaná | C15: =IF(ISBLANK(InfoPro!E9),"",InfoPro!E9) -> 19.9 | D15: =IF(ISBLANK(InfoPro!F9),"",InfoPro!F9) -> Solar FV | E15: =IF(ISBLANK(InfoPro!I9),"",YEAR(InfoPro!I9)-$F$3) -> 2 | F15: =IF(ISBLANK(InfoPro!P9),"",InfoPro!P9) -> -3.9326 | G15: -604263425.8 | H15: -540486069.6 | I15: -483440133.8 | J15: -432415146.5 | K15: -386775623 | L15: -345953151.1 | M15: -309439312.3 | N15: -276779349.1 | O15: -247566501.9 | P15: -221436942.6 | Q15: -198065243.9 | R15: -177160325.5 | S15: -158461829.6 | T15: -141736878 | U15: -126777171.7 | V15: -4650757104 | W15: -233706.3871
A16: =IF(ISBLANK(InfoPro!A10),"",InfoPro!A10) -> SC_709_A1 | B16: =IF(ISBLANK(InfoPro!B10),"",InfoPro!B10) -> PARQUE FOTOVOLTAICO SUÉ 2 | C16: =IF(ISBLANK(InfoPro!E10),"",InfoPro!E10) -> 9.9 | D16: =IF(ISBLANK(InfoPro!F10),"",InfoPro!F10) -> Solar FV | E16: =IF(ISBLANK(InfoPro!I10),"",YEAR(InfoPro!I10)-$F$3) -> 3 | F16: =IF(ISBLANK(InfoPro!P10),"",InfoPro!P10) -> -0.000628372 | G16: -86361.77402 | H16: -77246.66728 | I16: -69093.62011 | J16: -61801.09133 | K16: -55278.257 | L16: -49443.87925 | M16: -44225.2945 | N16: -39557.5085 | O16: -35382.38685 | P16: -31647.93099 | Q16: -28307.63058 | R16: -25319.88424 | S16: -22647.48143 | T16: -20257.13903 | U16: -18119.08679 | V16: -664689.6319 | W16: -67.14036686
A17: =IF(ISBLANK(InfoPro!A11),"",InfoPro!A11) -> SC_1299_A1 | B17: =IF(ISBLANK(InfoPro!B11),"",InfoPro!B11) -> Parque Eólico Sisga | C17: =IF(ISBLANK(InfoPro!E11),"",InfoPro!E11) -> 20 | D17: =IF(ISBLANK(InfoPro!F11),"",InfoPro!F11) -> Eólico Onshore | E17: =IF(ISBLANK(InfoPro!I11),"",YEAR(InfoPro!I11)-$F$3) -> 4 | F17: =IF(ISBLANK(InfoPro!P11),"",InfoPro!P11) -> 4.77 | G17: 586382911.6 | H17: 524492765.3 | I17: 469134852.7 | J17: 419619725.1 | K17: 375330702.2 | L17: 335716191.6 | M17: 300282819 | N17: 268589283.5 | O17: 240240861.8 | P17: 214884491.8 | Q17: 192204375.5 | R17: 171918046.1 | S17: 153772849.8 | T17: 137542799.5 | U17: 123025759.8 | V17: 4513138435 | W17: 225656.9218
A18: =IF(ISBLANK(InfoPro!A12),"",InfoPro!A12) -> SC_1299_A2 | B18: =IF(ISBLANK(InfoPro!B12),"",InfoPro!B12) -> Parque Eólico Sisga | C18: =IF(ISBLANK(InfoPro!E12),"",InfoPro!E12) -> 20 | D18: =IF(ISBLANK(InfoPro!F12),"",InfoPro!F12) -> Eólico Onshore | E18: =IF(ISBLANK(InfoPro!I12),"",YEAR(InfoPro!I12)-$F$3) -> 4 | F18: =IF(ISBLANK(InfoPro!P12),"",InfoPro!P12) -> 0.07 | G18: =IF($F18="","",(1/(1+$C$3)^(G$6+$E18))*$F18*$C$2) -> 8605199.961 | H18: 7696958.82 | I18: 6884578.551 | J18: 6157941.459 | K18: 5507997.727 | L18: 4926652.707 | M18: 4406666.107 | N18: 3941561.813 | O18: 3525547.239 | P18: 3153441.18 | Q18: 2820609.284 | R18: 2522906.336 | S18: 2256624.63 | T18: 2018447.791 | U18: 1805409.473 | V18: 66230543.08 | W18: 3311.527154
A19: =IF(ISBLANK(InfoPro!A13),"",InfoPro!A13) -> SC_416_A1 | B19: =IF(ISBLANK(InfoPro!B13),"",InfoPro!B13) -> Solar Jagüey | C19: =IF(ISBLANK(InfoPro!E13),"",InfoPro!E13) -> 112 | D19: =IF(ISBLANK(InfoPro!F13),"",InfoPro!F13) -> Solar FV | E19: =IF(ISBLANK(InfoPro!I13),"",YEAR(InfoPro!I13)-$F$3) -> 3 | F19: =IF(ISBLANK(InfoPro!P13),"",InfoPro!P13) -> -12.115085 | G19: -1665065014 | H19: -1489324699 | I19: -1332133005 | J19: -1191532205 | K19: -1065771203 | L19: -953283723.4 | M19: -852668804.5 | N19: -762673349.3 | O19: -682176519.9 | P19: -610175778.1 | Q19: -545774399 | R19: -488170303.3 | S19: -436646067.3 | T19: -390559988.6 | U19: -349338093.6 | V19: -1.281529315e+10 | W19: -114422.2603
A20: =IF(ISBLANK(InfoPro!A14),"",InfoPro!A14) -> SC_416_A2 | B20: =IF(ISBLANK(InfoPro!B14),"",InfoPro!B14) -> Solar Jagüey | C20: =IF(ISBLANK(InfoPro!E14),"",InfoPro!E14) -> 112 | D20: =IF(ISBLANK(InfoPro!F14),"",InfoPro!F14) -> Solar FV | E20: =IF(ISBLANK(InfoPro!I14),"",YEAR(InfoPro!I14)-$F$3) -> 3 | F20: =IF(ISBLANK(InfoPro!P14),"",InfoPro!P14) -> -11.90540108 | G20: -1636246615 | H20: -1463547956 | I20: -1309076884 | J20: -1170909556 | K20: -1047325184 | L20: -936784601.2 | M20: -837911092.3 | N20: -749473249 | O20: -670369632.3 | P20: -599615055.8 | Q20: -536328314.6 | R20: -479721211.7 | S20: -429088740.3 | T20: -383800304.4 | U20: -343291864.4 | V20: -1.259349026e+10 | W20: -112441.8773
A21: =IF(ISBLANK(InfoPro!A15),"",InfoPro!A15) -> SC_1023_A1 | B21: =IF(ISBLANK(InfoPro!B15),"",InfoPro!B15) -> PARQUE SOLAR LOS HELECHOS | C21: =IF(ISBLANK(InfoPro!E15),"",InfoPro!E15) -> 9.9 | D21: =IF(ISBLANK(InfoPro!F15),"",InfoPro!F15) -> Solar FV | E21: =IF(ISBLANK(InfoPro!I15),"",YEAR(InfoPro!I15)-$F$3) -> 1 | F21: =IF(ISBLANK(InfoPro!P15),"",InfoPro!P15) -> -0.21 | G21: -36075107.33 | H21: -32267537.87 | I21: -28861840.67 | J21: -25815599.88 | K21: -23090876.46 | L21: -20653735.65 | M21: -18473824.38 | N21: -16523993.18 | O21: -14779958.12 | P21: -13219998.32 | Q21: -11824685.44 | R21: -10576641.72 | S21: -9460323.539 | T21: -8461827.852 | U21: -7568719.009 | V21: =IF(U21="","",SUM(G21:U21)) -> -277654669.4 | W21: =IF(C21=0,0,IF(V21="","",V21/(C21*1000))) -> -28045.9262
A22: =IF(ISBLANK(InfoPro!A16),"",InfoPro!A16) -> SC_1023_A2 | B22: =IF(ISBLANK(InfoPro!B16),"",InfoPro!B16) -> PARQUE SOLAR LOS HELECHOS | C22: =IF(ISBLANK(InfoPro!E16),"",InfoPro!E16) -> 9.9 | D22: =IF(ISBLANK(InfoPro!F16),"",InfoPro!F16) -> Solar FV | E22: =IF(ISBLANK(InfoPro!I16),"",YEAR(InfoPro!I16)-$F$3) -> 1 | F22: =IF(ISBLANK(InfoPro!P16),"",InfoPro!P16) -> -0.24 | G22: -41228694.1 | H22: -36877186.13 | I22: -32984960.76 | J22: -29503542.72 | K22: -26389573.1 | L22: -23604269.32 | M22: -21112942.14 | N22: -18884563.64 | O22: -16891380.71 | P22: -15108569.51 | Q22: -13513926.22 | R22: -12087590.53 | S22: -10811798.33 | T22: -9670660.402 | U22: -8649964.582 | V22: -317319622.2 | W22: -32052.48709
A23: =IF(ISBLANK(InfoPro!A17),"",InfoPro!A17) -> SC_1449_A1 | B23: =IF(ISBLANK(InfoPro!B17),"",InfoPro!B17) -> Autogeneración Geopark | C23: =IF(ISBLANK(InfoPro!E17),"",InfoPro!E17) -> 0 | D23: =IF(ISBLANK(InfoPro!F17),"",InfoPro!F17) -> Solar FV | E23: =IF(ISBLANK(InfoPro!I17),"",YEAR(InfoPro!I17)-$F$3) -> 0 | F23: =IF(ISBLANK(InfoPro!P17),"",InfoPro!P17) -> -4.241 | G23: -814513737 | H23: -728545381.9 | I23: -651650610 | J23: -582871744.1 | K23: -521352186.2 | L23: -466325747.9 | M23: -417107109.1 | N23: -373083281.8 | O23: -333705976.6 | P23: -298484773.3 | Q23: -266981013.7 | R23: -238802337.8 | S23: -213597797.7 | T23: -191053486.3 | U23: -170888628.2 | V23: -6268963812 | W23: 0
A24: =IF(ISBLANK(InfoPro!A18),"",InfoPro!A18) -> SC_1590_A1 | B24: =IF(ISBLANK(InfoPro!B18),"",InfoPro!B18) -> PCH Ventana de 7MW (entrega 6,7 MW) | C24: =IF(ISBLANK(InfoPro!E18),"",InfoPro!E18) -> 6.7 | D24: =IF(ISBLANK(InfoPro!F18),"",InfoPro!F18) -> PCH | E24: =IF(ISBLANK(InfoPro!I18),"",YEAR(InfoPro!I18)-$F$3) -> 1 | F24: =IF(ISBLANK(InfoPro!P18),"",InfoPro!P18) -> -2.058 | G24: -353536051.9 | H24: -316221871.1 | I24: -282846038.5 | J24: -252992878.8 | K24: -226290589.3 | L24: -202406609.4 | M24: -181043478.9 | N24: -161935133.2 | O24: -144843589.6 | P24: -129555983.5 | Q24: -115881917.3 | R24: -103651088.8 | S24: -92711170.68 | T24: -82925912.95 | U24: -74173446.29 | V24: -2721015760 | W24: -406121.7553
A25: =IF(ISBLANK(InfoPro!A19),"",InfoPro!A19) -> SC_2156_A1 | B25: =IF(ISBLANK(InfoPro!B19),"",InfoPro!B19) -> CENTRAL DE GENERACIÓN BIOMASA BOGOTÁ III | C25: =IF(ISBLANK(InfoPro!E19),"",InfoPro!E19) -> 9.88 | D25: =IF(ISBLANK(InfoPro!F19),"",InfoPro!F19) -> Biomasa y Residuos | E25: =IF(ISBLANK(InfoPro!I19),"",YEAR(InfoPro!I19)-$F$3) -> 1 | F25: =IF(ISBLANK(InfoPro!P19),"",InfoPro!P19) -> -2.267 | G25: -389439373 | H25: -348335754 | I25: -311570441.9 | J25: -278685547.3 | K25: -249271509.2 | L25: -222961993.9 | M25: -199429332.7 | N25: -178380440.7 | O25: -159553167 | P25: -142713029.5 | Q25: -127650294.7 | R25: -114177365.6 | S25: -102126445.1 | T25: -91347446.38 | U25: -81706123.78 | V25: -2997348265 | W25: -303375.3304
A26: =IF(ISBLANK(InfoPro!A20),"",InfoPro!A20) -> SC_2156_A2 | B26: =IF(ISBLANK(InfoPro!B20),"",InfoPro!B20) -> CENTRAL DE GENERACIÓN BIOMASA BOGOTÁ III | C26: =IF(ISBLANK(InfoPro!E20),"",InfoPro!E20) -> 9.88 | D26: =IF(ISBLANK(InfoPro!F20),"",InfoPro!F20) -> Biomasa y Residuos | E26: =IF(ISBLANK(InfoPro!I20),"",YEAR(InfoPro!I20)-$F$3) -> 1 | F26: =IF(ISBLANK(InfoPro!P20),"",InfoPro!P20) -> -2.267 | G26: -389439373 | H26: -348335754 | I26: -311570441.9 | J26: -278685547.3 | K26: -249271509.2 | L26: -222961993.9 | M26: -199429332.7 | N26: -178380440.7 | O26: -159553167 | P26: -142713029.5 | Q26: -127650294.7 | R26: -114177365.6 | S26: -102126445.1 | T26: -91347446.38 | U26: -81706123.78 | V26: -2997348265 | W26: -303375.3304
A27: =IF(ISBLANK(InfoPro!A21),"",InfoPro!A21) -> SC_936_A1 | B27: =IF(ISBLANK(InfoPro!B21),"",InfoPro!B21) -> Parque Fotovoltaico La Vaca 80 MW | C27: =IF(ISBLANK(InfoPro!E21),"",InfoPro!E21) -> 80 | D27: =IF(ISBLANK(InfoPro!F21),"",InfoPro!F21) -> Solar FV | E27: =IF(ISBLANK(InfoPro!I21),"",YEAR(InfoPro!I21)-$F$3) -> 3 | F27: =IF(ISBLANK(InfoPro!P21),"",InfoPro!P21) -> -15.85821 | G27: -2179510144 | H27: -1949472401 | I27: -1743714133 | J27: -1559672749 | K27: -1395056126 | L27: -1247814066 | M27: -1116112760 | N27: -998311950.3 | O27: -892944499.4 | P27: -798698121.1 | Q27: -714399035 | R27: -638997347.9 | S27: -571553978.5 | T27: -511228961.1 | U27: -457270984.8 | V27: -1.677475726e+10 | W27: -209684.4657
A28: =IF(ISBLANK(InfoPro!A22),"",InfoPro!A22) -> SC_936_A2 | B28: =IF(ISBLANK(InfoPro!B22),"",InfoPro!B22) -> Parque Fotovoltaico La Vaca 80 MW | C28: =IF(ISBLANK(InfoPro!E22),"",InfoPro!E22) -> 80 | D28: =IF(ISBLANK(InfoPro!F22),"",InfoPro!F22) -> Solar FV | E28: =IF(ISBLANK(InfoPro!I22),"",YEAR(InfoPro!I22)-$F$3) -> 3 | F28: =IF(ISBLANK(InfoPro!P22),"",InfoPro!P22) -> -15.40156 | G28: =IF($F28="","",(1/(1+$C$3)^(G$6+$E28))*$F28*$C$2) -> -2116749385 | H28: -1893335764 | I28: -1693502473 | J28: -1514760709 | K28: -1354884355 | L28: -1211882250 | M28: -1083973390 | N28: -969564749.2 | O28: -867231439.4 | P28: -775698961.9 | Q28: -693827336.2 | R28: -620596901.8 | S28: -555095618.8 | T28: -496507709.1 | U28: -444103496.5 | V28: -1.629171454e+10 | W28: -203646.4317
A29: =IF(ISBLANK(InfoPro!A23),"",InfoPro!A23) -> SC_1799_A1 | B29: =IF(ISBLANK(InfoPro!B23),"",InfoPro!B23) -> EXCEDENTES AUTOGENERACION VRO | C29: =IF(ISBLANK(InfoPro!E23),"",InfoPro!E23) -> 46.71 | D29: =IF(ISBLANK(InfoPro!F23),"",InfoPro!F23) -> Solar FV | E29: =IF(ISBLANK(InfoPro!I23),"",YEAR(InfoPro!I23)-$F$3) -> 5 | F29: =IF(ISBLANK(InfoPro!P23),"",InfoPro!P23) -> -0.562 | G29: -61795583.67 | H29: -55273330.65 | I29: -49439472.85 | J29: -44221353.18 | K29: -39553983.17 | L29: -35379233.6 | M29: -31645110.55 | N29: -28305107.83 | O29: -25317627.76 | P29: -22645463.11 | Q29: -20255333.73 | R29: -18117472.03 | S29: -16205252.26 | T29: -14494858.91 | U29: -12964990.08 | V29: -475614173.4 | W29: -10182.27731
A30: =IF(ISBLANK(InfoPro!A24),"",InfoPro!A24) -> SC_1757_A1 | B30: =IF(ISBLANK(InfoPro!B24),"",InfoPro!B24) -> PGF La Escuela | C30: =IF(ISBLANK(InfoPro!E24),"",InfoPro!E24) -> 40 | D30: =IF(ISBLANK(InfoPro!F24),"",InfoPro!F24) -> Solar FV | E30: =IF(ISBLANK(InfoPro!I24),"",YEAR(InfoPro!I24)-$F$3) -> 2 | F30: =IF(ISBLANK(InfoPro!P24),"",InfoPro!P24) -> 0.73 | G30: 112168107.8 | H30: 100329255.7 | I30: 89739942.45 | J30: 80268284.83 | K30: 71796319.17 | L30: 64218532.35 | M30: 57440547.72 | N30: 51377949.66 | O30: 45955232.26 | P30: 41104858.91 | Q30: 36766421.2 | R30: 32885886.59 | S30: 29414925.39 | T30: 26310308.94 | U30: 23533371.14 | V30: 863309944.1 | W30: 21582.7486
A31: =IF(ISBLANK(InfoPro!A25),"",InfoPro!A25) -> SC_1757_A3 | B31: =IF(ISBLANK(InfoPro!B25),"",InfoPro!B25) -> PGF La Escuela | C31: =IF(ISBLANK(InfoPro!E25),"",InfoPro!E25) -> 40 | D31: =IF(ISBLANK(InfoPro!F25),"",InfoPro!F25) -> Solar FV | E31: =IF(ISBLANK(InfoPro!I25),"",YEAR(InfoPro!I25)-$F$3) -> 2 | F31: =IF(ISBLANK(InfoPro!P25),"",InfoPro!P25) -> 0.962 | G31: 147816054.4 | H31: 132214717.7 | I31: 118260033.7 | J31: 105778205.5 | K31: 94613779.51 | L31: 84627709.76 | M31: 75695625.9 | N31: 67706284.35 | O31: 60560182.78 | P31: 54168320.91 | Q31: 48451092.05 | R31: 43337291.64 | S31: 38763230.45 | T31: 34671941.37 | U31: 31012469.92 | V31: 1137676940 | W31: 28441.9235
A32: =IF(ISBLANK(InfoPro!A26),"",InfoPro!A26) -> SC_1870_A1 | B32: =IF(ISBLANK(InfoPro!B26),"",InfoPro!B26) -> Helios Puerto Lopez - 15MW | C32: =IF(ISBLANK(InfoPro!E26),"",InfoPro!E26) -> 15 | D32: =IF(ISBLANK(InfoPro!F26),"",InfoPro!F26) -> Solar FV | E32: =IF(ISBLANK(InfoPro!I26),"",YEAR(InfoPro!I26)-$F$3) -> 1 | F32: =IF(ISBLANK(InfoPro!P26),"",InfoPro!P26) -> 2.672618 | G32: 459118958.2 | H32: 410660964.4 | I32: 367317499.4 | J32: 328548747.3 | K32: 293871867 | L32: 262854979.4 | M32: 235111788.4 | N32: 210296769.6 | O32: 188100867.2 | P32: 168247645.1 | Q32: 150489843.6 | R32: 134606300.1 | S32: 120399195.1 | T32: 107691587.8 | U32: 96325212.67 | V32: 3533642225 | W32: 235576.1483
A33: =IF(ISBLANK(InfoPro!A27),"",InfoPro!A27) -> SC_1870_A2 | B33: =IF(ISBLANK(InfoPro!B27),"",InfoPro!B27) -> Helios Puerto Lopez - 15MW | C33: =IF(ISBLANK(InfoPro!E27),"",InfoPro!E27) -> 15 | D33: =IF(ISBLANK(InfoPro!F27),"",InfoPro!F27) -> Solar FV | E33: =IF(ISBLANK(InfoPro!I27),"",YEAR(InfoPro!I27)-$F$3) -> 1 | F33: =IF(ISBLANK(InfoPro!P27),"",InfoPro!P27) -> -10.62554 | G33: -1825321409 | H33: -1632666735 | I33: -1460345917 | J33: -1306212806 | K33: -1168347769 | L33: -1045033782 | M33: -934735047 | N33: -836077859.5 | O33: -747833505.8 | P33: -668902956.9 | Q33: -598303181.5 | R33: -535154903 | S33: -478671648.4 | T33: -428149953.9 | U33: -382960602.8 | V33: -1.404871808e+10 | W33: -936581.2051
A34: =IF(ISBLANK(InfoPro!A28),"",InfoPro!A28) -> SC_1892_A1 | B34: =IF(ISBLANK(InfoPro!B28),"",InfoPro!B28) -> PARQUE SOLAR MESITAS | C34: =IF(ISBLANK(InfoPro!E28),"",InfoPro!E28) -> 9.9 | D34: =IF(ISBLANK(InfoPro!F28),"",InfoPro!F28) -> Solar FV | E34: =IF(ISBLANK(InfoPro!I28),"",YEAR(InfoPro!I28)-$F$3) -> 1 | F34: =IF(ISBLANK(InfoPro!P28),"",InfoPro!P28) -> -0.21 | G34: -36075107.33 | H34: -32267537.87 | I34: -28861840.67 | J34: -25815599.88 | K34: -23090876.46 | L34: -20653735.65 | M34: -18473824.38 | N34: -16523993.18 | O34: -14779958.12 | P34: -13219998.32 | Q34: -11824685.44 | R34: -10576641.72 | S34: -9460323.539 | T34: -8461827.852 | U34: -7568719.009 | V34: -277654669.4 | W34: -28045.9262
A35: =IF(ISBLANK(InfoPro!A29),"",InfoPro!A29) -> SC_1892_A2 | B35: =IF(ISBLANK(InfoPro!B29),"",InfoPro!B29) -> PARQUE SOLAR MESITAS | C35: =IF(ISBLANK(InfoPro!E29),"",InfoPro!E29) -> 9.9 | D35: =IF(ISBLANK(InfoPro!F29),"",InfoPro!F29) -> Solar FV | E35: =IF(ISBLANK(InfoPro!I29),"",YEAR(InfoPro!I29)-$F$3) -> 1 | F35: =IF(ISBLANK(InfoPro!P29),"",InfoPro!P29) -> -0.24 | G35: -41228694.1 | H35: -36877186.13 | I35: -32984960.76 | J35: -29503542.72 | K35: -26389573.1 | L35: -23604269.32 | M35: -21112942.14 | N35: -18884563.64 | O35: -16891380.71 | P35: -15108569.51 | Q35: -13513926.22 | R35: -12087590.53 | S35: -10811798.33 | T35: -9670660.402 | U35: -8649964.582 | V35: -317319622.2 | W35: -32052.48709
A36: =IF(ISBLANK(InfoPro!A30),"",InfoPro!A30) -> SC_1930_A2 | B36: =IF(ISBLANK(InfoPro!B30),"",InfoPro!B30) -> PV José Maria Cordova 9.9 MW | C36: =IF(ISBLANK(InfoPro!E30),"",InfoPro!E30) -> 9.9 | D36: =IF(ISBLANK(InfoPro!F30),"",InfoPro!F30) -> Solar FV | E36: =IF(ISBLANK(InfoPro!I30),"",YEAR(InfoPro!I30)-$F$3) -> 2 | F36: =IF(ISBLANK(InfoPro!P30),"",InfoPro!P30) -> 0.015 | G36: 2304824.133 | H36: 2061560.048 | I36: 1843971.42 | J36: 1649348.319 | K36: 1475266.832 | L36: 1319558.884 | M36: 1180285.227 | N36: 1055711.294 | O36: 944285.5943 | P36: 844620.3885 | Q36: 755474.4083 | R36: 675737.3956 | S36: 604416.2751 | T36: 540622.7864 | U36: 483562.4207 | V36: 17739245.43 | W36: 1791.842972
A37: =IF(ISBLANK(InfoPro!A31),"",InfoPro!A31) -> SC_2060_A1 | B37: =IF(ISBLANK(InfoPro!B31),"",InfoPro!B31) -> EL DANUBIO - 50 MW | C37: =IF(ISBLANK(InfoPro!E31),"",InfoPro!E31) -> 50 | D37: =IF(ISBLANK(InfoPro!F31),"",InfoPro!F31) -> Solar FV | E37: =IF(ISBLANK(InfoPro!I31),"",YEAR(InfoPro!I31)-$F$3) -> 3 | F37: =IF(ISBLANK(InfoPro!P31),"",InfoPro!P31) -> -0.62 | G37: -85211148.64 | H37: -76217485.36 | I37: -68173063.83 | J37: -60977695.74 | K37: -54541767.21 | L37: -48785122.72 | M37: -43636066.84 | N37: -39030471.23 | O37: -34910976.06 | P37: -31226275.54 | Q37: -27930479.02 | R37: -24982539.37 | S37: -22345741.84 | T37: -19987246.72 | U37: -17877680.43 | V37: -655833760.5 | W37: -13116.67521
A38: =IF(ISBLANK(InfoPro!A32),"",InfoPro!A32) -> SC_2060_A2 | B38: =IF(ISBLANK(InfoPro!B32),"",InfoPro!B32) -> EL DANUBIO - 50 MW | C38: =IF(ISBLANK(InfoPro!E32),"",InfoPro!E32) -> 50 | D38: =IF(ISBLANK(InfoPro!F32),"",InfoPro!F32) -> Solar FV | E38: =IF(ISBLANK(InfoPro!I32),"",YEAR(InfoPro!I32)-$F$3) -> 3 | F38: =IF(ISBLANK(InfoPro!P32),"",InfoPro!P32) -> 0.94 | G38: 129191096.3 | H38: 115555542.3 | I38: 103359161.3 | J38: 92450054.82 | K38: 82692356.73 | L38: 73964540.9 | M38: 66157907.79 | N38: 59175230.58 | O38: 52929544.34 | P38: 47343062.92 | Q38: 42346210.13 | R38: 37876753.24 | S38: 33879027.95 | T38: 30303245.03 | U38: 27104870.33 | V38: 994328604.7 | W38: 19886.57209
A39: =IF(ISBLANK(InfoPro!A33),"",InfoPro!A33) -> SC_1836_A1 | B39: =IF(ISBLANK(InfoPro!B33),"",InfoPro!B33) -> PARQUE SOLAR LA MERCED 9.9 MW | C39: =IF(ISBLANK(InfoPro!E33),"",InfoPro!E33) -> 9.9 | D39: =IF(ISBLANK(InfoPro!F33),"",InfoPro!F33) -> Solar FV | E39: =IF(ISBLANK(InfoPro!I33),"",YEAR(InfoPro!I33)-$F$3) -> 1 | F39: =IF(ISBLANK(InfoPro!P33),"",InfoPro!P33) -> -0.053 | G39: -9104669.946 | H39: -8143711.938 | I39: -7284178.835 | J39: -6515365.684 | K39: -5827697.392 | L39: -5212609.474 | M39: -4662441.39 | N39: -4170341.136 | O39: -3730179.907 | P39: -3336475.767 | Q39: -2984325.373 | R39: -2669342.909 | S39: -2387605.465 | T39: -2135604.172 | U39: -1910200.512 | V39: -70074749.9 | W39: -7078.257566
A40: =IF(ISBLANK(InfoPro!#REF!),"",InfoPro!#REF!) ->  | B40: =IF(ISBLANK(InfoPro!#REF!),"",InfoPro!#REF!) ->  | C40: =IF(ISBLANK(InfoPro!#REF!),"",InfoPro!#REF!) ->  | D40: =IF(ISBLANK(InfoPro!#REF!),"",InfoPro!#REF!) ->  | E40: =IF(ISBLANK(InfoPro!#REF!),"",YEAR(InfoPro!#REF!)-$F$3) ->  | F40: =IF(ISBLANK(InfoPro!#REF!),"",InfoPro!#REF!) -> 
A41: =IF(ISBLANK(InfoPro!A34),"",InfoPro!A34) -> SC_2071_A1 | B41: =IF(ISBLANK(InfoPro!B34),"",InfoPro!B34) -> Morichal - 9.9 MW | C41: =IF(ISBLANK(InfoPro!E34),"",InfoPro!E34) -> 9.9 | D41: =IF(ISBLANK(InfoPro!F34),"",InfoPro!F34) -> Solar FV | E41: =IF(ISBLANK(InfoPro!I34),"",YEAR(InfoPro!I34)-$F$3) -> 2 | F41: =IF(ISBLANK(InfoPro!P34),"",InfoPro!P34) -> -0.02 | G41: -3073098.844 | H41: -2748746.73 | I41: -2458628.56 | J41: -2199131.091 | K41: -1967022.443 | L41: -1759411.845 | M41: -1573713.636 | N41: -1407615.059 | O41: -1259047.459 | P41: -1126160.518 | Q41: -1007299.211 | R41: -900983.1942 | S41: -805888.3669 | T41: -720830.3818 | U41: -644749.8943 | V41: -23652327.24 | W41: -2389.123963
A42: =IF(ISBLANK(InfoPro!A35),"",InfoPro!A35) -> SC_2281_A1 | B42: =IF(ISBLANK(InfoPro!B35),"",InfoPro!B35) -> PARQUE EÓLICO SAUCES de 288 MW | C42: =IF(ISBLANK(InfoPro!E35),"",InfoPro!E35) -> 288 | D42: =IF(ISBLANK(InfoPro!F35),"",InfoPro!F35) -> Eólico Onshore | E42: =IF(ISBLANK(InfoPro!I35),"",YEAR(InfoPro!I35)-$F$3) -> 2 | F42: =IF(ISBLANK(InfoPro!P35),"",InfoPro!P35) -> -11.47 | G42: -1762422187 | H42: -1576406250 | I42: -1410023479 | J42: -1261201681 | K42: -1128087371 | L42: -1009022693 | M42: -902524770.4 | N42: -807267236.5 | O42: -722063717.8 | P42: -645853057.1 | Q42: -577686097.5 | R42: -516713861.8 | S42: -462176978.4 | T42: -413396224 | U42: -369764064.4 | V42: -1.356460967e+10 | W42: -47099.33913
A43: =IF(ISBLANK(InfoPro!A36),"",InfoPro!A36) -> SC_2281_A2 | B43: =IF(ISBLANK(InfoPro!B36),"",InfoPro!B36) -> PARQUE EÓLICO SAUCES de 288 MW | C43: =IF(ISBLANK(InfoPro!E36),"",InfoPro!E36) -> 288 | D43: =IF(ISBLANK(InfoPro!F36),"",InfoPro!F36) -> Eólico Onshore | E43: =IF(ISBLANK(InfoPro!I36),"",YEAR(InfoPro!I36)-$F$3) -> 2 | F43: =IF(ISBLANK(InfoPro!P36),"",InfoPro!P36) -> -9.4 | G43: -1444356457 | H43: -1291910963 | I43: -1155555423 | J43: -1033591613 | K43: -924500548.2 | L43: -826923567.3 | M43: -739645409 | N43: -661579077.9 | O43: -591752305.8 | P43: -529295443.4 | Q43: -473430629.2 | R43: -423462101.3 | S43: -378767532.4 | T43: -338790279.5 | U43: -303032450.3 | V43: -1.11165938e+10 | W43: -38599.28403
A44: =IF(ISBLANK(InfoPro!A37),"",InfoPro!A37) -> SC_2116_A1 | B44: =IF(ISBLANK(InfoPro!B37),"",InfoPro!B37) -> Parque Eólico Los Cerezos 60 MW | C44: =IF(ISBLANK(InfoPro!E37),"",InfoPro!E37) -> 60 | D44: =IF(ISBLANK(InfoPro!F37),"",InfoPro!F37) -> Eólico Onshore | E44: =IF(ISBLANK(InfoPro!I37),"",YEAR(InfoPro!I37)-$F$3) -> 4 | F44: =IF(ISBLANK(InfoPro!P37),"",InfoPro!P37) -> -14.11 | G44: -1734562449 | H44: -1551486985 | I44: -1387734334 | J44: -1241265057 | K44: -1110254970 | L44: -993072424.3 | M44: -888257982.4 | N44: -794506245.4 | O44: -710649593.4 | P44: -635643643.5 | Q44: -568554242.8 | R44: -508545834.4 | S44: -454871050.4 | T44: -406861404.7 | U44: -363918966.6 | V44: -1.335018518e+10 | W44: -222503.0864
A45: =IF(ISBLANK(InfoPro!A38),"",InfoPro!A38) -> SC_2116_A2 | B45: =IF(ISBLANK(InfoPro!B38),"",InfoPro!B38) -> Parque Eólico Los Cerezos 60 MW | C45: =IF(ISBLANK(InfoPro!E38),"",InfoPro!E38) -> 60 | D45: =IF(ISBLANK(InfoPro!F38),"",InfoPro!F38) -> Eólico Onshore | E45: =IF(ISBLANK(InfoPro!I38),"",YEAR(InfoPro!I38)-$F$3) -> 4 | F45: =IF(ISBLANK(InfoPro!P38),"",InfoPro!P38) -> -14.23 | G45: =IF($F45="","",(1/(1+$C$3)^(G$6+$E45))*$F45*$C$2) -> -1749314221 | H45: -1564681772 | I45: -1399536468 | J45: -1251821528 | K45: -1119697252 | L45: -1001518115 | M45: -895812267.1 | N45: -801263208.5 | O45: -716693388.7 | P45: -641049542.6 | Q45: -573389573 | R45: -512870816.7 | S45: -458739549.8 | T45: -410321600.9 | U45: -367013954.3 | V45: -1.346372326e+10 | W45: -224395.3876
A46: =IF(ISBLANK(InfoPro!A39),"",InfoPro!A39) -> SC_2078_A1 | B46: =IF(ISBLANK(InfoPro!B39),"",InfoPro!B39) -> PARQUE SOLAR SANTA HELENA 19.9 | C46: =IF(ISBLANK(InfoPro!E39),"",InfoPro!E39) -> 19.9 | D46: =IF(ISBLANK(InfoPro!F39),"",InfoPro!F39) -> Solar FV | E46: =IF(ISBLANK(InfoPro!I39),"",YEAR(InfoPro!I39)-$F$3) -> 1 | F46: =IF(ISBLANK(InfoPro!P39),"",InfoPro!P39) -> -0.1808 | G46: -31058949.55 | H46: -27780813.55 | I46: -24848670.44 | J46: -22226002.18 | K46: -19880145.07 | L46: -17781882.89 | M46: -15905083.08 | N46: -14226371.27 | O46: -12724840.14 | P46: -11381789.03 | Q46: -10180491.08 | R46: -9105984.868 | S46: -8144888.075 | T46: -7285230.836 | U46: -6516306.652 | V46: -239047448.7 | W46: -12012.43461
A47: =IF(ISBLANK(InfoPro!A40),"",InfoPro!A40) -> SC_1899_A1 | B47: =IF(ISBLANK(InfoPro!B40),"",InfoPro!B40) -> Sikaramá 9.9 MW | C47: =IF(ISBLANK(InfoPro!E40),"",InfoPro!E40) -> 9.9 | D47: =IF(ISBLANK(InfoPro!F40),"",InfoPro!F40) -> Solar FV | E47: =IF(ISBLANK(InfoPro!I40),"",YEAR(InfoPro!I40)-$F$3) -> 3 | F47: =IF(ISBLANK(InfoPro!P40),"",InfoPro!P40) -> -0.46 | G47: -63221174.8 | H47: -56548456.88 | I47: -50580015.1 | J47: -45241516.19 | K47: -40466472.44 | L47: -36195413.63 | M47: -32375146.36 | N47: -28958091.56 | O47: -25901691.91 | P47: -23167881.85 | Q47: -20722613.47 | R47: -18535432.44 | S47: -16579098.78 | T47: -14829247.57 | U47: -13264085.48 | V47: -486586338.5 | W47: -49150.1352
A48: =IF(ISBLANK(InfoPro!A41),"",InfoPro!A41) -> SC_1899_A2 | B48: =IF(ISBLANK(InfoPro!B41),"",InfoPro!B41) -> Sikaramá 9.9 MW | C48: =IF(ISBLANK(InfoPro!E41),"",InfoPro!E41) -> 9.9 | D48: =IF(ISBLANK(InfoPro!F41),"",InfoPro!F41) -> Solar FV | E48: =IF(ISBLANK(InfoPro!I41),"",YEAR(InfoPro!I41)-$F$3) -> 3 | F48: =IF(ISBLANK(InfoPro!P41),"",InfoPro!P41) -> -0.03 | G48: -4123120.095 | H48: -3687942.84 | I48: -3298696.637 | J48: -2950533.665 | K48: -2639117.768 | L48: -2360570.454 | M48: -2111422.589 | N48: -1888571.189 | O48: -1689240.777 | P48: -1510948.817 | Q48: -1351474.791 | R48: -1208832.55 | S48: -1081245.573 | T48: -967124.8414 | U48: -865049.0532 | V48: -31733891.64 | W48: -3205.4436
A49: =IF(ISBLANK(InfoPro!A42),"",InfoPro!A42) -> SC_2144_A1 | B49: =IF(ISBLANK(InfoPro!B42),"",InfoPro!B42) -> PGFV Andes I | C49: =IF(ISBLANK(InfoPro!E42),"",InfoPro!E42) -> 19.9 | D49: =IF(ISBLANK(InfoPro!F42),"",InfoPro!F42) -> Solar FV | E49: =IF(ISBLANK(InfoPro!I42),"",YEAR(InfoPro!I42)-$F$3) -> 1 | F49: =IF(ISBLANK(InfoPro!P42),"",InfoPro!P42) -> 561 | G49: 9.637207245e+10 | H49: 8.620042259e+10 | I49: 7.710234578e+10 | J49: 6.896453111e+10 | K49: 6.168562711e+10 | L49: 5.517497953e+10 | M49: 4.935150226e+10 | N49: 4.41426675e+10 | O49: 3.948360241e+10 | P49: 3.531628123e+10 | Q49: 3.158880253e+10 | R49: 2.825474287e+10 | S49: 2.52725786e+10 | T49: 2.260516869e+10 | U49: 2.021929221e+10 | V49: 7.417346169e+11 | W49: 37273096.32
A50: =IF(ISBLANK(InfoPro!A43),"",InfoPro!A43) -> SC_2144_A2 | B50: =IF(ISBLANK(InfoPro!B43),"",InfoPro!B43) -> PGFV Andes I | C50: =IF(ISBLANK(InfoPro!E43),"",InfoPro!E43) -> 19.9 | D50: =IF(ISBLANK(InfoPro!F43),"",InfoPro!F43) -> Solar FV | E50: =IF(ISBLANK(InfoPro!I43),"",YEAR(InfoPro!I43)-$F$3) -> 1 | F50: =IF(ISBLANK(InfoPro!P43),"",InfoPro!P43) -> 929 | G50: 1.595894034e+11 | H50: 1.427454413e+11 | I50: 1.276792856e+11 | J50: 1.142032966e+11 | K50: 1.021496392e+11 | L50: 9.136819248e+10 | M50: 8.172468022e+10 | N50: 7.30989984e+10 | O50: 6.53837195e+10 | P50: 5.848275447e+10 | Q50: 5.231015606e+10 | R50: 4.678904835e+10 | S50: 4.185066937e+10 | T50: 3.743351464e+10 | U50: 3.348257124e+10 | V50: 1.228291371e+12 | W50: 61723184.47
A51: =IF(ISBLANK(InfoPro!A44),"",InfoPro!A44) -> SC_2176_A1 | B51: =IF(ISBLANK(InfoPro!B44),"",InfoPro!B44) -> PGFV Andes II | C51: =IF(ISBLANK(InfoPro!E44),"",InfoPro!E44) -> 19.9 | D51: =IF(ISBLANK(InfoPro!F44),"",InfoPro!F44) -> Solar FV | E51: =IF(ISBLANK(InfoPro!I44),"",YEAR(InfoPro!I44)-$F$3) -> 1 | F51: =IF(ISBLANK(InfoPro!P44),"",InfoPro!P44) -> 1419 | G51: 2.437646538e+11 | H51: 2.18036363e+11 | I51: 1.950235805e+11 | J51: 1.744396963e+11 | K51: 1.560283509e+11 | L51: 1.395602423e+11 | M51: 1.248302704e+11 | N51: 1.116549825e+11 | O51: 9.987028845e+10 | P51: 8.932941722e+10 | Q51: 7.990108875e+10 | R51: 7.146787902e+10 | S51: 6.392475763e+10 | T51: 5.717777963e+10 | U51: 5.114291559e+10 | V51: 1.876152266e+12 | W51: 94279008.35
A52: =IF(ISBLANK(InfoPro!A45),"",InfoPro!A45) -> SC_2176_A2 | B52: =IF(ISBLANK(InfoPro!B45),"",InfoPro!B45) -> PGFV Andes II | C52: =IF(ISBLANK(InfoPro!E45),"",InfoPro!E45) -> 19.9 | D52: =IF(ISBLANK(InfoPro!F45),"",InfoPro!F45) -> Solar FV | E52: =IF(ISBLANK(InfoPro!I45),"",YEAR(InfoPro!I45)-$F$3) -> 1 | F52: =IF(ISBLANK(InfoPro!P45),"",InfoPro!P45) -> 1051 | G52: 1.805473229e+11 | H52: 1.614913443e+11 | I52: 1.444466407e+11 | J52: 1.292009308e+11 | K52: 1.155643389e+11 | L52: 1.033670294e+11 | M52: 9.245709247e+10 | N52: 8.269865159e+10 | O52: 7.397017136e+10 | P52: 6.616294398e+10 | Q52: 5.917973522e+10 | R52: 5.293357354e+10 | S52: 4.734666685e+10 | T52: 4.234943368e+10 | U52: 3.787963656e+10 | V52: 1.389595512e+12 | W52: 69828920.21
A53: =IF(ISBLANK(InfoPro!A46),"",InfoPro!A46) -> SC_1886_A1 | B53: =IF(ISBLANK(InfoPro!B46),"",InfoPro!B46) -> Rúkura 60 MW | C53: =IF(ISBLANK(InfoPro!E46),"",InfoPro!E46) -> 60 | D53: =IF(ISBLANK(InfoPro!F46),"",InfoPro!F46) -> Solar FV | E53: =IF(ISBLANK(InfoPro!I46),"",YEAR(InfoPro!I46)-$F$3) -> 5 | F53: =IF(ISBLANK(InfoPro!P46),"",InfoPro!P46) -> -4.91 | G53: -539886682.9 | H53: -482904009.8 | I53: -431935608 | J53: -386346697.7 | K53: -345569497 | L53: -309096151.2 | M53: -276472407.2 | N53: -247291956.3 | O53: -221191374.2 | P53: -197845594.1 | Q53: -176963858.7 | R53: -158286099 | S53: -141579695 | T53: -126636578.7 | U53: -113270642.9 | V53: -4155276853 | W53: -69254.61421
A54: =IF(ISBLANK(InfoPro!A47),"",InfoPro!A47) -> SC_1886_A2 | B54: =IF(ISBLANK(InfoPro!B47),"",InfoPro!B47) -> Rúkura 60 MW | C54: =IF(ISBLANK(InfoPro!E47),"",InfoPro!E47) -> 60 | D54: =IF(ISBLANK(InfoPro!F47),"",InfoPro!F47) -> Solar FV | E54: =IF(ISBLANK(InfoPro!I47),"",YEAR(InfoPro!I47)-$F$3) -> 5 | F54: =IF(ISBLANK(InfoPro!P47),"",InfoPro!P47) -> -4.36 | G54: -479410577.9 | H54: -428810892.6 | I54: -383551782.3 | J54: -343069572.7 | K54: -306860082.9 | L54: -274472346.1 | M54: -245502992.9 | N54: -219591228 | O54: -196414336.3 | P54: -175683664 | Q54: -157141023.2 | R54: -140555477 | S54: -125720462.4 | T54: -112451218.6 | U54: -100582485.3 | V54: -3689818142 | W54: -61496.96904
A55: =IF(ISBLANK(InfoPro!A48),"",InfoPro!A48) -> SC_2002_A1 | B55: =IF(ISBLANK(InfoPro!B48),"",InfoPro!B48) -> Bosques Solares de los Llanos 8 | C55: =IF(ISBLANK(InfoPro!E48),"",InfoPro!E48) -> 170 | D55: =IF(ISBLANK(InfoPro!F48),"",InfoPro!F48) -> Solar FV | E55: =IF(ISBLANK(InfoPro!I48),"",YEAR(InfoPro!I48)-$F$3) -> 3 | F55: =IF(ISBLANK(InfoPro!P48),"",InfoPro!P48) -> -9.97995 | G55: -1371617747 | H55: -1226849505 | I55: -1097360917 | J55: -981539281.5 | K55: -877942112.3 | L55: -785279170.2 | M55: -702396395.5 | N55: -628261534.5 | O55: -561951283.1 | P55: -502639788.1 | Q55: -449588361.4 | R55: -402136280.3 | S55: -359692558.4 | T55: -321728585.4 | U55: -287771543.3 | V55: -1.055675506e+10 | W55: -62098.55919
A56: =IF(ISBLANK(InfoPro!A49),"",InfoPro!A49) -> SC_2002_A2 | B56: =IF(ISBLANK(InfoPro!B49),"",InfoPro!B49) -> Bosques Solares de los Llanos 8 | C56: =IF(ISBLANK(InfoPro!E49),"",InfoPro!E49) -> 170 | D56: =IF(ISBLANK(InfoPro!F49),"",InfoPro!F49) -> Solar FV | E56: =IF(ISBLANK(InfoPro!I49),"",YEAR(InfoPro!I49)-$F$3) -> 3 | F56: =IF(ISBLANK(InfoPro!P49),"",InfoPro!P49) -> -13.54917 | G56: -1862161837 | H56: -1665618816 | I56: -1489820050 | J56: -1332576074 | K56: -1191928510 | L56: -1066125679 | M56: -953600786.6 | N56: -852952403.1 | O56: -762927015.3 | P56: -682403412.6 | Q56: -610378723.2 | R56: -545955924.2 | S56: -488332669.2 | T56: -436791296.3 | U56: -390689889.3 | V56: -1.433226309e+10 | W56: -84307.42992
A57: =IF(ISBLANK(InfoPro!A50),"",InfoPro!A50) -> SC_1881_A1 | B57: =IF(ISBLANK(InfoPro!B50),"",InfoPro!B50) -> PARQUE FOTOVOLTAICO SIMIJACA | C57: =IF(ISBLANK(InfoPro!E50),"",InfoPro!E50) -> 60 | D57: =IF(ISBLANK(InfoPro!F50),"",InfoPro!F50) -> Solar FV | E57: =IF(ISBLANK(InfoPro!I50),"",YEAR(InfoPro!I50)-$F$3) -> 3 | F57: =IF(ISBLANK(InfoPro!P50),"",InfoPro!P50) -> -6.16 | G57: -846613992.9 | H57: -757257596.5 | I57: -677332376.1 | J57: -605842912.5 | K57: -541898848.4 | L57: -484703800 | M57: -433545438.3 | N57: -387786617.4 | O57: -346857439.5 | P57: -310248157 | Q57: -277502823.8 | R57: -248213617 | S57: -222015757.6 | T57: -198582967.4 | U57: -177623405.6 | V57: -6516025750 | W57: -108600.4292
A58: =IF(ISBLANK(InfoPro!A51),"",InfoPro!A51) -> SC_1881_A2 | B58: =IF(ISBLANK(InfoPro!B51),"",InfoPro!B51) -> PARQUE FOTOVOLTAICO SIMIJACA | C58: =IF(ISBLANK(InfoPro!E51),"",InfoPro!E51) -> 60 | D58: =IF(ISBLANK(InfoPro!F51),"",InfoPro!F51) -> Solar FV | E58: =IF(ISBLANK(InfoPro!I51),"",YEAR(InfoPro!I51)-$F$3) -> 3 | F58: =IF(ISBLANK(InfoPro!P51),"",InfoPro!P51) -> -3.49 | G58: -479656304.4 | H58: -429030683.7 | I58: -383748375.4 | J58: -343245416.3 | K58: -307017367 | L58: -274613029.5 | M58: -245628827.8 | N58: -219703781.6 | O58: -196515010.4 | P58: -175773712.3 | Q58: -157221567.4 | R58: -140627520 | S58: -125784901.6 | T58: -112508856.6 | U58: -100634039.9 | V58: -3691709394 | W58: -61528.4899
A59: =IF(ISBLANK(InfoPro!A52),"",InfoPro!A52) -> SC_2326_A1 | B59: =IF(ISBLANK(InfoPro!B52),"",InfoPro!B52) -> ARQUE EÓLICO ORQUIDEAS de 288 MW | C59: =IF(ISBLANK(InfoPro!E52),"",InfoPro!E52) -> 288 | D59: =IF(ISBLANK(InfoPro!F52),"",InfoPro!F52) -> Eólico Onshore | E59: =IF(ISBLANK(InfoPro!I52),"",YEAR(InfoPro!I52)-$F$3) -> 2 | F59: =IF(ISBLANK(InfoPro!P52),"",InfoPro!P52) -> -1.79 | G59: -275042346.6 | H59: -246012832.4 | I59: -220047256.1 | J59: -196822232.7 | K59: -176048508.7 | L59: -157467360.2 | M59: -140847370.4 | N59: -125981547.8 | O59: -112684747.6 | P59: -100791366.4 | Q59: -90153279.39 | R59: -80637995.88 | S59: -72127008.83 | T59: -64514319.17 | U59: -57705115.54 | V59: -2116883288 | W59: -7350.289193
A60: =IF(ISBLANK(InfoPro!A53),"",InfoPro!A53) -> SC_2326_A2 | B60: =IF(ISBLANK(InfoPro!B53),"",InfoPro!B53) -> ARQUE EÓLICO ORQUIDEAS de 288 MW | C60: =IF(ISBLANK(InfoPro!E53),"",InfoPro!E53) -> 288 | D60: =IF(ISBLANK(InfoPro!F53),"",InfoPro!F53) -> Eólico Onshore | E60: =IF(ISBLANK(InfoPro!I53),"",YEAR(InfoPro!I53)-$F$3) -> 2 | F60: =IF(ISBLANK(InfoPro!P53),"",InfoPro!P53) -> -5.92 | G60: -909637257.9 | H60: -813629032.2 | I60: -727754053.8 | J60: -650942803 | K60: -582238643.2 | L60: -520785906.2 | M60: -465819236.3 | N60: -416654057.5 | O60: -372678047.9 | P60: -333343513.3 | Q60: -298160566.5 | R60: -266691025.5 | S60: -238542956.6 | T60: -213365793 | U60: -190845968.7 | V60: -7001088862 | W60: -24309.33633
A61: =IF(ISBLANK(InfoPro!A54),"",InfoPro!A54) -> SC_2075_A1 | B61: =IF(ISBLANK(InfoPro!B54),"",InfoPro!B54) -> Ubaté Solar | C61: =IF(ISBLANK(InfoPro!E54),"",InfoPro!E54) -> 19.9 | D61: =IF(ISBLANK(InfoPro!F54),"",InfoPro!F54) -> Solar FV | E61: =IF(ISBLANK(InfoPro!I54),"",YEAR(InfoPro!I54)-$F$3) -> 0 | F61: =IF(ISBLANK(InfoPro!P54),"",InfoPro!P54) -> -2.0978 | G61: -402897174.6 | H61: -360373143.6 | I61: -322337337.8 | J61: -288316044.5 | K61: -257885549.7 | L61: -230666860.2 | M61: -206320984.1 | N61: -184544708.5 | O61: -165066823.3 | P61: -147644743.6 | Q61: -132061488 | R61: -118122976.7 | S61: -105655614.2 | T61: -94504127.23 | U61: -84529630.8 | V61: -3100927207 | W61: -155825.4878
A62: =IF(ISBLANK(InfoPro!A55),"",InfoPro!A55) -> SC_2075_A2 | B62: =IF(ISBLANK(InfoPro!B55),"",InfoPro!B55) -> Ubaté Solar | C62: =IF(ISBLANK(InfoPro!E55),"",InfoPro!E55) -> 19.9 | D62: =IF(ISBLANK(InfoPro!F55),"",InfoPro!F55) -> Solar FV | E62: =IF(ISBLANK(InfoPro!I55),"",YEAR(InfoPro!I55)-$F$3) -> 0 | F62: =IF(ISBLANK(InfoPro!P55),"",InfoPro!P55) -> -1.9678 | G62: =IF($F62="","",(1/(1+$C$3)^(G$6+$E62))*$F62*$C$2) -> -377929764.6 | H62: -338040934.3 | I62: -302362195.3 | J62: -270449190.8 | K62: -241904464 | L62: -216372508.1 | M62: -193535338.2 | N62: -173108531.5 | O62: -154837684.7 | P62: -138495245.7 | Q62: -123877679.5 | R62: -110802933.4 | S62: -99108169.38 | T62: -88647736.47 | U62: -79291356.42 | V62: -2908763732 | W62: -146169.0318
A63: =IF(ISBLANK(InfoPro!A56),"",InfoPro!A56) -> SC_2217_A1 | B63: =IF(ISBLANK(InfoPro!B56),"",InfoPro!B56) -> CENTRAL DE GENERACIÓN BIOMASA BOGOTÁ II 9,88 MW | C63: =IF(ISBLANK(InfoPro!E56),"",InfoPro!E56) -> 9.88 | D63: =IF(ISBLANK(InfoPro!F56),"",InfoPro!F56) -> Biomasa y Residuos | E63: =IF(ISBLANK(InfoPro!I56),"",YEAR(InfoPro!I56)-$F$3) -> 0 | F63: =IF(ISBLANK(InfoPro!P56),"",InfoPro!P56) -> -0.463 | G63: -88922391 | H63: -79537022.36 | I63: -71142238.25 | J63: -63633486.81 | K63: -56917251.17 | L63: -50909884.77 | M63: -45536569.56 | N63: -40730384.22 | O63: -36431470.68 | P63: -32586288.62 | Q63: -29146948.68 | R63: -26070615.99 | S63: -23318976.74 | T63: -20857760.94 | U63: -18656315.69 | V63: -684397605.5 | W63: -69271.0127
A64: =IF(ISBLANK(InfoPro!A57),"",InfoPro!A57) -> SC_2217_A2 | B64: =IF(ISBLANK(InfoPro!B57),"",InfoPro!B57) -> CENTRAL DE GENERACIÓN BIOMASA BOGOTÁ II 9,88 MW | C64: =IF(ISBLANK(InfoPro!E57),"",InfoPro!E57) -> 9.88 | D64: =IF(ISBLANK(InfoPro!F57),"",InfoPro!F57) -> Biomasa y Residuos | E64: =IF(ISBLANK(InfoPro!I57),"",YEAR(InfoPro!I57)-$F$3) -> 0 | F64: =IF(ISBLANK(InfoPro!P57),"",InfoPro!P57) -> -0.233 | G64: -44749281 | H64: -40026190.52 | I64: -35801601.54 | J64: -32022899.41 | K64: -28643022.73 | L64: -25619877.21 | M64: -22915811.46 | N64: -20497148 | O64: -18333763.86 | P64: -16398715.44 | Q64: -14667902.9 | R64: -13119770.03 | S64: -11735035.81 | T64: -10496454.21 | U64: -9388599.474 | V64: -344416073.6 | W64: -34859.92648

Sheet EC-Mar
B2: Precio promedio de bolsa | C2: ='EC-RP'!C2 -> 192057 | D2: COP/MWh
B3: Tasa de descuento | C3: 0.118 | F3: Año de Referencia | G3: 2023
F4: Mínimo | G4: =MIN(Y8:Y117) -> 
I6: 0 | J6: 1 | K6: 2 | L6: 3 | M6: 4 | N6: 5 | O6: 6 | P6: 7 | Q6: 8 | R6: 9 | S6: 10 | T6: 11 | U6: 12 | V6: 13 | W6: 14
A7: Codigo | B7: Nombre | C7: capacidad | D7: Tecnologia | E7: Año de entrada | F7: FP | G7: Precio de oferta promedio | H7: Produccion media/a MWh/a | I7: Flujo Descontado 0 | J7: Flujo Descontado 1 | K7: Flujo Descontado 2 | L7: Flujo Descontado 3 | M7: Flujo Descontado 4 | N7: Flujo Descontado 5 | O7: Flujo Descontado 6 | P7: Flujo Descontado 7 | Q7: Flujo Descontado 8 | R7: Flujo Descontado 9 | S7: Flujo Descontado 10 | T7: Flujo Descontado 11 | U7: Flujo Descontado 12 | V7: Flujo Descontado 13 | W7: Flujo Descontado 14 | X7: VPN | Y7: Beneficio/kW
A8: =IF(ISBLANK(InfoPro!A2),"",InfoPro!A2) -> SC_481_A1 | B8: =IF(ISBLANK(InfoPro!B2),"",InfoPro!B2) -> DIAMANTE | C8: =IF(ISBLANK(InfoPro!E2),"",InfoPro!E2) -> 70 | D8: =IF(ISBLANK(InfoPro!F2),"",InfoPro!F2) -> Solar FV | E8: =IF(ISBLANK(InfoPro!I2),"",YEAR(InfoPro!I2)-$G$3) -> 2 | F8: =IF(B8="","",VLOOKUP(D8,Tablas!$B$2:$E$13,2,FALSE)) -> 0.26 | G8: =IF(B8="","",VLOOKUP(D8,Tablas!$B$2:$H$13,7,FALSE)) -> 83577.2 | H8: =IF(C8="","",+C8*F8*24*365) -> 159432 | I8: =IF($H8="","",(1/(1+$C$3)^(I$6+$E8))*$H8*($C$2 - $G8)) -> 1.383696247e+10 | J8: =IF($H8="","",(1/(1+$C$3)^(J$6+$E8))*$H8*($C$2 - $G8)) -> 1.237653172e+10 | K8: 1.107024304e+10 | L8: 9901827409 | M8: 8856732924 | N8: 7921943582 | O8: 7085817157 | P8: 6337940212 | Q8: 5668998401 | R8: 5070660466 | S8: 4535474478 | T8: 4056775025 | U8: 3628600201 | V8: 3245617353 | W8: 2903056667 | X8: =IF(W8="","",SUM(I8:W8)) -> 1.064971811e+11 | Y8: =IF(C8=0,0,IF(X8="","",X8/(C8*1000))) -> 1521388.302
A9: =IF(ISBLANK(InfoPro!A3),"",InfoPro!A3) -> SC_2288_A1 | B9: =IF(ISBLANK(InfoPro!B3),"",InfoPro!B3) -> PARQUE SOLAR FOTOVOLTAICO ESTEROS SOL DE 199MW | C9: =IF(ISBLANK(InfoPro!E3),"",InfoPro!E3) -> 199 | D9: =IF(ISBLANK(InfoPro!F3),"",InfoPro!F3) -> Solar FV | E9: =IF(ISBLANK(InfoPro!I3),"",YEAR(InfoPro!I3)-$G$3) -> 2 | F9: =IF(B9="","",VLOOKUP(D9,Tablas!$B$2:$E$13,2,FALSE)) -> 0.26 | G9: =IF(B9="","",VLOOKUP(D9,Tablas!$B$2:$H$13,7,FALSE)) -> 83577.2 | H9: =IF(C9="","",+C9*F9*24*365) -> 453242.4 | I9: 3.933650758e+10 | J9: 3.518471161e+10 | K9: 3.147111951e+10 | L9: 2.814948078e+10 | M9: 2.517842646e+10 | N9: 2.25209539e+10 | O9: 2.014396592e+10 | P9: 1.80178586e+10 | Q9: 1.61161526e+10 | R9: 1.441516332e+10 | S9: 1.289370601e+10 | T9: 1.153283186e+10 | U9: 1.0315592e+10 | V9: 9226826476 | W9: 8252975381 | X9: =IF(W9="","",SUM(I9:W9)) -> 3.02756272e+11 | Y9: =IF(C9=0,0,IF(X9="","",X9/(C9*1000))) -> 1521388.302
A10: =IF(ISBLANK(InfoPro!A4),"",InfoPro!A4) -> SC_2288_A2 | B10: =IF(ISBLANK(InfoPro!B4),"",InfoPro!B4) -> PARQUE SOLAR FOTOVOLTAICO ESTEROS SOL DE 199MW | C10: =IF(ISBLANK(InfoPro!E4),"",InfoPro!E4) -> 199 | D10: =IF(ISBLANK(InfoPro!F4),"",InfoPro!F4) -> Solar FV | E10: =IF(ISBLANK(InfoPro!I4),"",YEAR(InfoPro!I4)-$G$3) -> 2 | F10: =IF(B10="","",VLOOKUP(D10,Tablas!$B$2:$E$13,2,FALSE)) -> 0.26 | G10: =IF(B10="","",VLOOKUP(D10,Tablas!$B$2:$H$13,7,FALSE)) -> 83577.2 | H10: 453242.4 | I10: 3.933650758e+10 | J10: 3.518471161e+10 | K10: 3.147111951e+10 | L10: 2.814948078e+10 | M10: 2.517842646e+10 | N10: 2.25209539e+10 | O10: 2.014396592e+10 | P10: 1.80178586e+10 | Q10: 1.61161526e+10 | R10: 1.441516332e+10 | S10: 1.289370601e+10 | T10: 1.153283186e+10 | U10: 1.0315592e+10 | V10: 9226826476 | W10: 8252975381 | X10: 3.02756272e+11 | Y10: 1521388.302
A11: =IF(ISBLANK(InfoPro!A5),"",InfoPro!A5) -> SC_924_A1 | B11: =IF(ISBLANK(InfoPro!B5),"",InfoPro!B5) -> PARQUE FOTOVOLTAICO LA SABANA | C11: =IF(ISBLANK(InfoPro!E5),"",InfoPro!E5) -> 100 | D11: =IF(ISBLANK(InfoPro!F5),"",InfoPro!F5) -> Solar FV | E11: =IF(ISBLANK(InfoPro!I5),"",YEAR(InfoPro!I5)-$G$3) -> 3 | F11: =IF(B11="","",VLOOKUP(D11,Tablas!$B$2:$E$13,2,FALSE)) -> 0.26 | G11: =IF(B11="","",VLOOKUP(D11,Tablas!$B$2:$H$13,7,FALSE)) -> 83577.2 | H11: 227760 | I11: 1.76807596e+10 | J11: 1.581463292e+10 | K11: 1.414546773e+10 | L11: 1.265247561e+10 | M11: 1.131706226e+10 | N11: 1.012259594e+10 | O11: 9054200303 | P11: 8098569144 | Q11: 7243800666 | R11: 6479249254 | S11: 5795392892 | T11: 5183714573 | U11: 4636596219 | V11: 4147223809 | W11: 3709502513 | X11: 1.360812434e+11 | Y11: 1360812.434
A12: =IF(ISBLANK(InfoPro!A6),"",InfoPro!A6) -> SC_924_A2 | B12: =IF(ISBLANK(InfoPro!B6),"",InfoPro!B6) -> PARQUE FOTOVOLTAICO LA SABANA | C12: =IF(ISBLANK(InfoPro!E6),"",InfoPro!E6) -> 100 | D12: =IF(ISBLANK(InfoPro!F6),"",InfoPro!F6) -> Solar FV | E12: =IF(ISBLANK(InfoPro!I6),"",YEAR(InfoPro!I6)-$G$3) -> 3 | F12: =IF(B12="","",VLOOKUP(D12,Tablas!$B$2:$E$13,2,FALSE)) -> 0.26 | G12: =IF(B12="","",VLOOKUP(D12,Tablas!$B$2:$H$13,7,FALSE)) -> 83577.2 | H12: 227760 | I12: 1.76807596e+10 | J12: 1.581463292e+10 | K12: 1.414546773e+10 | L12: 1.265247561e+10 | M12: 1.131706226e+10 | N12: 1.012259594e+10 | O12: 9054200303 | P12: 8098569144 | Q12: 7243800666 | R12: 6479249254 | S12: 5795392892 | T12: 5183714573 | U12: 4636596219 | V12: 4147223809 | W12: 3709502513 | X12: 1.360812434e+11 | Y12: 1360812.434
A13: =IF(ISBLANK(InfoPro!A7),"",InfoPro!A7) -> SC_756_A1 | B13: =IF(ISBLANK(InfoPro!B7),"",InfoPro!B7) -> PARQUE FOTOVOLTAICO BALSILLAS | C13: =IF(ISBLANK(InfoPro!E7),"",InfoPro!E7) -> 100 | D13: =IF(ISBLANK(InfoPro!F7),"",InfoPro!F7) -> Solar FV | E13: =IF(ISBLANK(InfoPro!I7),"",YEAR(InfoPro!I7)-$G$3) -> 2 | F13: =IF(B13="","",VLOOKUP(D13,Tablas!$B$2:$E$13,2,FALSE)) -> 0.26 | G13: =IF(B13="","",VLOOKUP(D13,Tablas!$B$2:$H$13,7,FALSE)) -> 83577.2 | H13: 227760 | I13: 1.976708924e+10 | J13: 1.76807596e+10 | K13: 1.581463292e+10 | L13: 1.414546773e+10 | M13: 1.265247561e+10 | N13: 1.131706226e+10 | O13: 1.012259594e+10 | P13: 9054200303 | Q13: 8098569144 | R13: 7243800666 | S13: 6479249254 | T13: 5795392892 | U13: 5183714573 | V13: 4636596219 | W13: 4147223809 | X13: 1.521388302e+11 | Y13: 1521388.302
A14: =IF(ISBLANK(InfoPro!A8),"",InfoPro!A8) -> SC_756_A2 | B14: =IF(ISBLANK(InfoPro!B8),"",InfoPro!B8) -> PARQUE FOTOVOLTAICO BALSILLAS | C14: =IF(ISBLANK(InfoPro!E8),"",InfoPro!E8) -> 100 | D14: =IF(ISBLANK(InfoPro!F8),"",InfoPro!F8) -> Solar FV | E14: =IF(ISBLANK(InfoPro!I8),"",YEAR(InfoPro!I8)-$G$3) -> 2 | F14: =IF(B14="","",VLOOKUP(D14,Tablas!$B$2:$E$13,2,FALSE)) -> 0.26 | G14: =IF(B14="","",VLOOKUP(D14,Tablas!$B$2:$H$13,7,FALSE)) -> 83577.2 | H14: 227760 | I14: 1.976708924e+10 | J14: 1.76807596e+10 | K14: 1.581463292e+10 | L14: 1.414546773e+10 | M14: 1.265247561e+10 | N14: 1.131706226e+10 | O14: 1.012259594e+10 | P14: 9054200303 | Q14: 8098569144 | R14: 7243800666 | S14: 6479249254 | T14: 5795392892 | U14: 5183714573 | V14: 4636596219 | W14: 4147223809 | X14: 1.521388302e+11 | Y14: 1521388.302
A15: =IF(ISBLANK(InfoPro!A9),"",InfoPro!A9) -> SC_1207_A1 | B15: =IF(ISBLANK(InfoPro!B9),"",InfoPro!B9) -> Guacaná | C15: =IF(ISBLANK(InfoPro!E9),"",InfoPro!E9) -> 19.9 | D15: =IF(ISBLANK(InfoPro!F9),"",InfoPro!F9) -> Solar FV | E15: =IF(ISBLANK(InfoPro!I9),"",YEAR(InfoPro!I9)-$G$3) -> 2 | F15: =IF(B15="","",VLOOKUP(D15,Tablas!$B$2:$E$13,2,FALSE)) -> 0.26 | G15: =IF(B15="","",VLOOKUP(D15,Tablas!$B$2:$H$13,7,FALSE)) -> 83577.2 | H15: 45324.24 | I15: 3933650758 | J15: 3518471161 | K15: 3147111951 | L15: 2814948078 | M15: 2517842646 | N15: 2252095390 | O15: 2014396592 | P15: 1801785860 | Q15: 1611615260 | R15: 1441516332 | S15: 1289370601 | T15: 1153283186 | U15: 1031559200 | V15: 922682647.6 | W15: 825297538.1 | X15: 3.02756272e+10 | Y15: 1521388.302
A16: =IF(ISBLANK(InfoPro!A10),"",InfoPro!A10) -> SC_709_A1 | B16: =IF(ISBLANK(InfoPro!B10),"",InfoPro!B10) -> PARQUE FOTOVOLTAICO SUÉ 2 | C16: =IF(ISBLANK(InfoPro!E10),"",InfoPro!E10) -> 9.9 | D16: =IF(ISBLANK(InfoPro!F10),"",InfoPro!F10) -> Solar FV | E16: =IF(ISBLANK(InfoPro!I10),"",YEAR(InfoPro!I10)-$G$3) -> 3 | F16: =IF(B16="","",VLOOKUP(D16,Tablas!$B$2:$E$13,2,FALSE)) -> 0.26 | G16: =IF(B16="","",VLOOKUP(D16,Tablas!$B$2:$H$13,7,FALSE)) -> 83577.2 | H16: 22548.24 | I16: 1750395201 | J16: 1565648659 | K16: 1400401305 | L16: 1252595085 | M16: 1120389164 | N16: 1002136998 | O16: 896365830 | P16: 801758345.3 | Q16: 717136265.9 | R16: 641445676.1 | S16: 573743896.3 | T16: 513187742.7 | U16: 459023025.7 | V16: 410575157.1 | W16: 367240748.8 | X16: 1.34720431e+10 | Y16: 1360812.434
A17: =IF(ISBLANK(InfoPro!A11),"",InfoPro!A11) -> SC_1299_A1 | B17: =IF(ISBLANK(InfoPro!B11),"",InfoPro!B11) -> Parque Eólico Sisga | C17: =IF(ISBLANK(InfoPro!E11),"",InfoPro!E11) -> 20 | D17: =IF(ISBLANK(InfoPro!F11),"",InfoPro!F11) -> Eólico Onshore | E17: =IF(ISBLANK(InfoPro!I11),"",YEAR(InfoPro!I11)-$G$3) -> 4 | F17: =IF(B17="","",VLOOKUP(D17,Tablas!$B$2:$E$13,2,FALSE)) -> 0.57 | G17: =IF(B17="","",VLOOKUP(D17,Tablas!$B$2:$H$13,7,FALSE)) -> 83577.2 | H17: 99864 | I17: 6934108280 | J17: 6202243542 | K17: 5547623920 | L17: 4962096529 | M17: 4438368989 | N17: 3969918594 | O17: 3550911086 | P17: 3176127984 | Q17: 2840901596 | R17: 2541056884 | S17: 2272859467 | T17: 2032969111 | U17: 1818398132 | V17: 1626474179 | W17: 1454806958 | X17: 5.336886525e+10 | Y17: 2668443.262
A18: =IF(ISBLANK(InfoPro!A12),"",InfoPro!A12) -> SC_1299_A2 | B18: =IF(ISBLANK(InfoPro!B12),"",InfoPro!B12) -> Parque Eólico Sisga | C18: =IF(ISBLANK(InfoPro!E12),"",InfoPro!E12) -> 20 | D18: =IF(ISBLANK(InfoPro!F12),"",InfoPro!F12) -> Eólico Onshore | E18: =IF(ISBLANK(InfoPro!I12),"",YEAR(InfoPro!I12)-$G$3) -> 4 | F18: =IF(B18="","",VLOOKUP(D18,Tablas!$B$2:$E$13,2,FALSE)) -> 0.57 | G18: =IF(B18="","",VLOOKUP(D18,Tablas!$B$2:$H$13,7,FALSE)) -> 83577.2 | H18: 99864 | I18: =IF($H18="","",(1/(1+$C$3)^(I$6+$E18))*$H18*($C$2 - $G18)) -> 6934108280 | J18: 6202243542 | K18: 5547623920 | L18: 4962096529 | M18: 4438368989 | N18: 3969918594 | O18: 3550911086 | P18: 3176127984 | Q18: 2840901596 | R18: 2541056884 | S18: 2272859467 | T18: 2032969111 | U18: 1818398132 | V18: 1626474179 | W18: 1454806958 | X18: 5.336886525e+10 | Y18: 2668443.262
A19: =IF(ISBLANK(InfoPro!A13),"",InfoPro!A13) -> SC_416_A1 | B19: =IF(ISBLANK(InfoPro!B13),"",InfoPro!B13) -> Solar Jagüey | C19: =IF(ISBLANK(InfoPro!E13),"",InfoPro!E13) -> 112 | D19: =IF(ISBLANK(InfoPro!F13),"",InfoPro!F13) -> Solar FV | E19: =IF(ISBLANK(InfoPro!I13),"",YEAR(InfoPro!I13)-$G$3) -> 3 | F19: =IF(B19="","",VLOOKUP(D19,Tablas!$B$2:$E$13,2,FALSE)) -> 0.26 | G19: =IF(B19="","",VLOOKUP(D19,Tablas!$B$2:$H$13,7,FALSE)) -> 83577.2 | H19: 255091.2 | I19: 1.980245076e+10 | J19: 1.771238887e+10 | K19: 1.584292386e+10 | L19: 1.417077268e+10 | M19: 1.267510973e+10 | N19: 1.133730745e+10 | O19: 1.014070434e+10 | P19: 9070397441 | Q19: 8113056745 | R19: 7256759164 | S19: 6490840039 | T19: 5805760321 | U19: 5192987765 | V19: 4644890667 | W19: 4154642814 | X19: 1.524109926e+11 | Y19: 1360812.434
A20: =IF(ISBLANK(InfoPro!A14),"",InfoPro!A14) -> SC_416_A2 | B20: =IF(ISBLANK(InfoPro!B14),"",InfoPro!B14) -> Solar Jagüey | C20: =IF(ISBLANK(InfoPro!E14),"",InfoPro!E14) -> 112 | D20: =IF(ISBLANK(InfoPro!F14),"",InfoPro!F14) -> Solar FV | E20: =IF(ISBLANK(InfoPro!I14),"",YEAR(InfoPro!I14)-$G$3) -> 3 | F20: =IF(B20="","",VLOOKUP(D20,Tablas!$B$2:$E$13,2,FALSE)) -> 0.26 | G20: =IF(B20="","",VLOOKUP(D20,Tablas!$B$2:$H$13,7,FALSE)) -> 83577.2 | H20: 255091.2 | I20: 1.980245076e+10 | J20: 1.771238887e+10 | K20: 1.584292386e+10 | L20: 1.417077268e+10 | M20: 1.267510973e+10 | N20: 1.133730745e+10 | O20: 1.014070434e+10 | P20: 9070397441 | Q20: 8113056745 | R20: 7256759164 | S20: 6490840039 | T20: 5805760321 | U20: 5192987765 | V20: 4644890667 | W20: 4154642814 | X20: 1.524109926e+11 | Y20: 1360812.434
A21: =IF(ISBLANK(InfoPro!A15),"",InfoPro!A15) -> SC_1023_A1 | B21: =IF(ISBLANK(InfoPro!B15),"",InfoPro!B15) -> PARQUE SOLAR LOS HELECHOS | C21: =IF(ISBLANK(InfoPro!E15),"",InfoPro!E15) -> 9.9 | D21: =IF(ISBLANK(InfoPro!F15),"",InfoPro!F15) -> Solar FV | E21: =IF(ISBLANK(InfoPro!I15),"",YEAR(InfoPro!I15)-$G$3) -> 1 | F21: =IF(B21="","",VLOOKUP(D21,Tablas!$B$2:$E$13,2,FALSE)) -> 0.26 | G21: =IF(B21="","",VLOOKUP(D21,Tablas!$B$2:$H$13,7,FALSE)) -> 83577.2 | H21: =IF(C21="","",+C21*F21*24*365) -> 22548.24 | I21: 2187860971 | J21: 1956941835 | K21: 1750395201 | L21: 1565648659 | M21: 1400401305 | N21: 1252595085 | O21: 1120389164 | P21: 1002136998 | Q21: 896365830 | R21: 801758345.3 | S21: 717136265.9 | T21: 641445676.1 | U21: 573743896.3 | V21: 513187742.7 | W21: 459023025.7 | X21: =IF(W21="","",SUM(I21:W21)) -> 1.683903e+10 | Y21: =IF(C21=0,0,IF(X21="","",X21/(C21*1000))) -> 1700912.121
A22: =IF(ISBLANK(InfoPro!A16),"",InfoPro!A16) -> SC_1023_A2 | B22: =IF(ISBLANK(InfoPro!B16),"",InfoPro!B16) -> PARQUE SOLAR LOS HELECHOS | C22: =IF(ISBLANK(InfoPro!E16),"",InfoPro!E16) -> 9.9 | D22: =IF(ISBLANK(InfoPro!F16),"",InfoPro!F16) -> Solar FV | E22: =IF(ISBLANK(InfoPro!I16),"",YEAR(InfoPro!I16)-$G$3) -> 1 | F22: =IF(B22="","",VLOOKUP(D22,Tablas!$B$2:$E$13,2,FALSE)) -> 0.26 | G22: =IF(B22="","",VLOOKUP(D22,Tablas!$B$2:$H$13,7,FALSE)) -> 83577.2 | H22: 22548.24 | I22: 2187860971 | J22: 1956941835 | K22: 1750395201 | L22: 1565648659 | M22: 1400401305 | N22: 1252595085 | O22: 1120389164 | P22: 1002136998 | Q22: 896365830 | R22: 801758345.3 | S22: 717136265.9 | T22: 641445676.1 | U22: 573743896.3 | V22: 513187742.7 | W22: 459023025.7 | X22: 1.683903e+10 | Y22: 1700912.121
A23: =IF(ISBLANK(InfoPro!A17),"",InfoPro!A17) -> SC_1449_A1 | B23: =IF(ISBLANK(InfoPro!B17),"",InfoPro!B17) -> Autogeneración Geopark | C23: =IF(ISBLANK(InfoPro!E17),"",InfoPro!E17) -> 0 | D23: =IF(ISBLANK(InfoPro!F17),"",InfoPro!F17) -> Solar FV | E23: =IF(ISBLANK(InfoPro!I17),"",YEAR(InfoPro!I17)-$G$3) -> 0 | F23: =IF(B23="","",VLOOKUP(D23,Tablas!$B$2:$E$13,2,FALSE)) -> 0.26 | G23: =IF(B23="","",VLOOKUP(D23,Tablas!$B$2:$H$13,7,FALSE)) -> 83577.2 | H23: 0 | I23: 0 | J23: 0 | K23: 0 | L23: 0 | M23: 0 | N23: 0 | O23: 0 | P23: 0 | Q23: 0 | R23: 0 | S23: 0 | T23: 0 | U23: 0 | V23: 0 | W23: 0 | X23: 0 | Y23: 0
A24: =IF(ISBLANK(InfoPro!A18),"",InfoPro!A18) -> SC_1590_A1 | B24: =IF(ISBLANK(InfoPro!B18),"",InfoPro!B18) -> PCH Ventana de 7MW (entrega 6,7 MW) | C24: =IF(ISBLANK(InfoPro!E18),"",InfoPro!E18) -> 6.7 | D24: =IF(ISBLANK(InfoPro!F18),"",InfoPro!F18) -> PCH | E24: =IF(ISBLANK(InfoPro!I18),"",YEAR(InfoPro!I18)-$G$3) -> 1 | F24: =IF(B24="","",VLOOKUP(D24,Tablas!$B$2:$E$13,2,FALSE)) -> 0.54 | G24: =IF(B24="","",VLOOKUP(D24,Tablas!$B$2:$H$13,7,FALSE)) -> 158280.5 | H24: 31693.68 | I24: 957514832.3 | J24: 856453338.4 | K24: 766058442.2 | L24: 685204331.1 | M24: 612884017.1 | N24: 548196795.3 | O24: 490337026.2 | P24: 438584102.1 | Q24: 392293472.4 | R24: 350888615.7 | S24: 313853860.2 | T24: 280727960.8 | U24: 251098355 | V24: 224596024.1 | W24: 200890898.1 | X24: 7369582071 | Y24: 1099937.623
A25: =IF(ISBLANK(InfoPro!A19),"",InfoPro!A19) -> SC_2156_A1 | B25: =IF(ISBLANK(InfoPro!B19),"",InfoPro!B19) -> CENTRAL DE GENERACIÓN BIOMASA BOGOTÁ III | C25: =IF(ISBLANK(InfoPro!E19),"",InfoPro!E19) -> 9.88 | D25: =IF(ISBLANK(InfoPro!F19),"",InfoPro!F19) -> Biomasa y Residuos | E25: =IF(ISBLANK(InfoPro!I19),"",YEAR(InfoPro!I19)-$G$3) -> 1 | F25: =IF(B25="","",VLOOKUP(D25,Tablas!$B$2:$E$13,2,FALSE)) -> 0.7 | G25: =IF(B25="","",VLOOKUP(D25,Tablas!$B$2:$H$13,7,FALSE)) -> 83577.2 | H25: 60584.16 | I25: 5878495134 | J25: 5258045737 | K25: 4703082055 | L25: 4206692357 | M25: 3762694416 | N25: 3365558511 | O25: 3010338561 | P25: 2692610520 | Q25: 2408417281 | R25: 2154219392 | S25: 1926850977 | T25: 1723480301 | U25: 1541574509 | V25: 1378868076 | W25: 1233334594 | X25: 4.524426242e+10 | Y25: 4579378.788
A26: =IF(ISBLANK(InfoPro!A20),"",InfoPro!A20) -> SC_2156_A2 | B26: =IF(ISBLANK(InfoPro!B20),"",InfoPro!B20) -> CENTRAL DE GENERACIÓN BIOMASA BOGOTÁ III | C26: =IF(ISBLANK(InfoPro!E20),"",InfoPro!E20) -> 9.88 | D26: =IF(ISBLANK(InfoPro!F20),"",InfoPro!F20) -> Biomasa y Residuos | E26: =IF(ISBLANK(InfoPro!I20),"",YEAR(InfoPro!I20)-$G$3) -> 1 | F26: =IF(B26="","",VLOOKUP(D26,Tablas!$B$2:$E$13,2,FALSE)) -> 0.7 | G26: =IF(B26="","",VLOOKUP(D26,Tablas!$B$2:$H$13,7,FALSE)) -> 83577.2 | H26: 60584.16 | I26: 5878495134 | J26: 5258045737 | K26: 4703082055 | L26: 4206692357 | M26: 3762694416 | N26: 3365558511 | O26: 3010338561 | P26: 2692610520 | Q26: 2408417281 | R26: 2154219392 | S26: 1926850977 | T26: 1723480301 | U26: 1541574509 | V26: 1378868076 | W26: 1233334594 | X26: 4.524426242e+10 | Y26: 4579378.788
A27: =IF(ISBLANK(InfoPro!A21),"",InfoPro!A21) -> SC_936_A1 | B27: =IF(ISBLANK(InfoPro!B21),"",InfoPro!B21) -> Parque Fotovoltaico La Vaca 80 MW | C27: =IF(ISBLANK(InfoPro!E21),"",InfoPro!E21) -> 80 | D27: =IF(ISBLANK(InfoPro!F21),"",InfoPro!F21) -> Solar FV | E27: =IF(ISBLANK(InfoPro!I21),"",YEAR(InfoPro!I21)-$G$3) -> 3 | F27: =IF(B27="","",VLOOKUP(D27,Tablas!$B$2:$E$13,2,FALSE)) -> 0.26 | G27: =IF(B27="","",VLOOKUP(D27,Tablas!$B$2:$H$13,7,FALSE)) -> 83577.2 | H27: 182208 | I27: 1.414460768e+10 | J27: 1.265170634e+10 | K27: 1.131637418e+10 | L27: 1.012198048e+10 | M27: 9053649808 | N27: 8098076751 | O27: 7243360242 | P27: 6478855315 | Q27: 5795040532 | R27: 5183399403 | S27: 4636314314 | T27: 4146971658 | U27: 3709276975 | V27: 3317779048 | W27: 2967602010 | X27: 1.088649947e+11 | Y27: 1360812.434
A28: =IF(ISBLANK(InfoPro!A22),"",InfoPro!A22) -> SC_936_A2 | B28: =IF(ISBLANK(InfoPro!B22),"",InfoPro!B22) -> Parque Fotovoltaico La Vaca 80 MW | C28: =IF(ISBLANK(InfoPro!E22),"",InfoPro!E22) -> 80 | D28: =IF(ISBLANK(InfoPro!F22),"",InfoPro!F22) -> Solar FV | E28: =IF(ISBLANK(InfoPro!I22),"",YEAR(InfoPro!I22)-$G$3) -> 3 | F28: =IF(B28="","",VLOOKUP(D28,Tablas!$B$2:$E$13,2,FALSE)) -> 0.26 | G28: =IF(B28="","",VLOOKUP(D28,Tablas!$B$2:$H$13,7,FALSE)) -> 83577.2 | H28: 182208 | I28: =IF($H28="","",(1/(1+$C$3)^(I$6+$E28))*$H28*($C$2 - $G28)) -> 1.414460768e+10 | J28: 1.265170634e+10 | K28: 1.131637418e+10 | L28: 1.012198048e+10 | M28: 9053649808 | N28: 8098076751 | O28: 7243360242 | P28: 6478855315 | Q28: 5795040532 | R28: 5183399403 | S28: 4636314314 | T28: 4146971658 | U28: 3709276975 | V28: 3317779048 | W28: 2967602010 | X28: 1.088649947e+11 | Y28: 1360812.434
A29: =IF(ISBLANK(InfoPro!A23),"",InfoPro!A23) -> SC_1799_A1 | B29: =IF(ISBLANK(InfoPro!B23),"",InfoPro!B23) -> EXCEDENTES AUTOGENERACION VRO | C29: =IF(ISBLANK(InfoPro!E23),"",InfoPro!E23) -> 46.71 | D29: =IF(ISBLANK(InfoPro!F23),"",InfoPro!F23) -> Solar FV | E29: =IF(ISBLANK(InfoPro!I23),"",YEAR(InfoPro!I23)-$G$3) -> 5 | F29: =IF(B29="","",VLOOKUP(D29,Tablas!$B$2:$E$13,2,FALSE)) -> 0.26 | G29: =IF(B29="","",VLOOKUP(D29,Tablas!$B$2:$H$13,7,FALSE)) -> 83577.2 | H29: 106386.696 | I29: 6607347976 | J29: 5909971356 | K29: 5286199781 | L29: 4728264563 | M29: 4229216962 | N29: 3782841647 | O29: 3383579291 | P29: 3026457326 | Q29: 2707028020 | R29: 2421313077 | S29: 2165754094 | T29: 1937168241 | U29: 1732708624 | V29: 1549828823 | W29: 1386251183 | X29: 5.085393096e+10 | Y29: 1088716.141
A30: =IF(ISBLANK(InfoPro!A24),"",InfoPro!A24) -> SC_1757_A1 | B30: =IF(ISBLANK(InfoPro!B24),"",InfoPro!B24) -> PGF La Escuela | C30: =IF(ISBLANK(InfoPro!E24),"",InfoPro!E24) -> 40 | D30: =IF(ISBLANK(InfoPro!F24),"",InfoPro!F24) -> Solar FV | E30: =IF(ISBLANK(InfoPro!I24),"",YEAR(InfoPro!I24)-$G$3) -> 2 | F30: =IF(B30="","",VLOOKUP(D30,Tablas!$B$2:$E$13,2,FALSE)) -> 0.26 | G30: =IF(B30="","",VLOOKUP(D30,Tablas!$B$2:$H$13,7,FALSE)) -> 83577.2 | H30: 91104 | I30: 7906835695 | J30: 7072303842 | K30: 6325853168 | L30: 5658187091 | M30: 5060990242 | N30: 4526824904 | O30: 4049038376 | P30: 3621680121 | Q30: 3239427658 | R30: 2897520266 | S30: 2591699701 | T30: 2318157157 | U30: 2073485829 | V30: 1854638488 | W30: 1658889524 | X30: 6.085553206e+10 | Y30: 1521388.302
A31: =IF(ISBLANK(InfoPro!A25),"",InfoPro!A25) -> SC_1757_A3 | B31: =IF(ISBLANK(InfoPro!B25),"",InfoPro!B25) -> PGF La Escuela | C31: =IF(ISBLANK(InfoPro!E25),"",InfoPro!E25) -> 40 | D31: =IF(ISBLANK(InfoPro!F25),"",InfoPro!F25) -> Solar FV | E31: =IF(ISBLANK(InfoPro!I25),"",YEAR(InfoPro!I25)-$G$3) -> 2 | F31: =IF(B31="","",VLOOKUP(D31,Tablas!$B$2:$E$13,2,FALSE)) -> 0.26 | G31: =IF(B31="","",VLOOKUP(D31,Tablas!$B$2:$H$13,7,FALSE)) -> 83577.2 | H31: 91104 | I31: 7906835695 | J31: 7072303842 | K31: 6325853168 | L31: 5658187091 | M31: 5060990242 | N31: 4526824904 | O31: 4049038376 | P31: 3621680121 | Q31: 3239427658 | R31: 2897520266 | S31: 2591699701 | T31: 2318157157 | U31: 2073485829 | V31: 1854638488 | W31: 1658889524 | X31: 6.085553206e+10 | Y31: 1521388.302
A32: =IF(ISBLANK(InfoPro!A26),"",InfoPro!A26) -> SC_1870_A1 | B32: =IF(ISBLANK(InfoPro!B26),"",InfoPro!B26) -> Helios Puerto Lopez - 15MW | C32: =IF(ISBLANK(InfoPro!E26),"",InfoPro!E26) -> 15 | D32: =IF(ISBLANK(InfoPro!F26),"",InfoPro!F26) -> Solar FV | E32: =IF(ISBLANK(InfoPro!I26),"",YEAR(InfoPro!I26)-$G$3) -> 1 | F32: =IF(B32="","",VLOOKUP(D32,Tablas!$B$2:$E$13,2,FALSE)) -> 0.26 | G32: =IF(B32="","",VLOOKUP(D32,Tablas!$B$2:$H$13,7,FALSE)) -> 83577.2 | H32: 34164 | I32: 3314940865 | J32: 2965063386 | K32: 2652113941 | L32: 2372194938 | M32: 2121820159 | N32: 1897871341 | O32: 1697559339 | P32: 1518389391 | Q32: 1358130045 | R32: 1214785372 | S32: 1086570100 | T32: 971887388 | U32: 869308933.8 | V32: 777557185.9 | W32: 695489432.8 | X32: 2.551368182e+10 | Y32: 1700912.121
A33: =IF(ISBLANK(InfoPro!A27),"",InfoPro!A27) -> SC_1870_A2 | B33: =IF(ISBLANK(InfoPro!B27),"",InfoPro!B27) -> Helios Puerto Lopez - 15MW | C33: =IF(ISBLANK(InfoPro!E27),"",InfoPro!E27) -> 15 | D33: =IF(ISBLANK(InfoPro!F27),"",InfoPro!F27) -> Solar FV | E33: =IF(ISBLANK(InfoPro!I27),"",YEAR(InfoPro!I27)-$G$3) -> 1 | F33: =IF(B33="","",VLOOKUP(D33,Tablas!$B$2:$E$13,2,FALSE)) -> 0.26 | G33: =IF(B33="","",VLOOKUP(D33,Tablas!$B$2:$H$13,7,FALSE)) -> 83577.2 | H33: 34164 | I33: 3314940865 | J33: 2965063386 | K33: 2652113941 | L33: 2372194938 | M33: 2121820159 | N33: 1897871341 | O33: 1697559339 | P33: 1518389391 | Q33: 1358130045 | R33: 1214785372 | S33: 1086570100 | T33: 971887388 | U33: 869308933.8 | V33: 777557185.9 | W33: 695489432.8 | X33: 2.551368182e+10 | Y33: 1700912.121
A34: =IF(ISBLANK(InfoPro!A28),"",InfoPro!A28) -> SC_1892_A1 | B34: =IF(ISBLANK(InfoPro!B28),"",InfoPro!B28) -> PARQUE SOLAR MESITAS | C34: =IF(ISBLANK(InfoPro!E28),"",InfoPro!E28) -> 9.9 | D34: =IF(ISBLANK(InfoPro!F28),"",InfoPro!F28) -> Solar FV | E34: =IF(ISBLANK(InfoPro!I28),"",YEAR(InfoPro!I28)-$G$3) -> 1 | F34: =IF(B34="","",VLOOKUP(D34,Tablas!$B$2:$E$13,2,FALSE)) -> 0.26 | G34: =IF(B34="","",VLOOKUP(D34,Tablas!$B$2:$H$13,7,FALSE)) -> 83577.2 | H34: 22548.24 | I34: 2187860971 | J34: 1956941835 | K34: 1750395201 | L34: 1565648659 | M34: 1400401305 | N34: 1252595085 | O34: 1120389164 | P34: 1002136998 | Q34: 896365830 | R34: 801758345.3 | S34: 717136265.9 | T34: 641445676.1 | U34: 573743896.3 | V34: 513187742.7 | W34: 459023025.7 | X34: 1.683903e+10 | Y34: 1700912.121
A35: =IF(ISBLANK(InfoPro!A29),"",InfoPro!A29) -> SC_1892_A2 | B35: =IF(ISBLANK(InfoPro!B29),"",InfoPro!B29) -> PARQUE SOLAR MESITAS | C35: =IF(ISBLANK(InfoPro!E29),"",InfoPro!E29) -> 9.9 | D35: =IF(ISBLANK(InfoPro!F29),"",InfoPro!F29) -> Solar FV | E35: =IF(ISBLANK(InfoPro!I29),"",YEAR(InfoPro!I29)-$G$3) -> 1 | F35: =IF(B35="","",VLOOKUP(D35,Tablas!$B$2:$E$13,2,FALSE)) -> 0.26 | G35: =IF(B35="","",VLOOKUP(D35,Tablas!$B$2:$H$13,7,FALSE)) -> 83577.2 | H35: 22548.24 | I35: 2187860971 | J35: 1956941835 | K35: 1750395201 | L35: 1565648659 | M35: 1400401305 | N35: 1252595085 | O35: 1120389164 | P35: 1002136998 | Q35: 896365830 | R35: 801758345.3 | S35: 717136265.9 | T35: 641445676.1 | U35: 573743896.3 | V35: 513187742.7 | W35: 459023025.7 | X35: 1.683903e+10 | Y35: 1700912.121
A36: =IF(ISBLANK(InfoPro!A30),"",InfoPro!A30) -> SC_1930_A2 | B36: =IF(ISBLANK(InfoPro!B30),"",InfoPro!B30) -> PV José Maria Cordova 9.9 MW | C36: =IF(ISBLANK(InfoPro!E30),"",InfoPro!E30) -> 9.9 | D36: =IF(ISBLANK(InfoPro!F30),"",InfoPro!F30) -> Solar FV | E36: =IF(ISBLANK(InfoPro!I30),"",YEAR(InfoPro!I30)-$G$3) -> 2 | F36: =IF(B36="","",VLOOKUP(D36,Tablas!$B$2:$E$13,2,FALSE)) -> 0.26 | G36: =IF(B36="","",VLOOKUP(D36,Tablas!$B$2:$H$13,7,FALSE)) -> 83577.2 | H36: 22548.24 | I36: 1956941835 | J36: 1750395201 | K36: 1565648659 | L36: 1400401305 | M36: 1252595085 | N36: 1120389164 | O36: 1002136998 | P36: 896365830 | Q36: 801758345.3 | R36: 717136265.9 | S36: 641445676.1 | T36: 573743896.3 | U36: 513187742.7 | V36: 459023025.7 | W36: 410575157.1 | X36: 1.506174419e+10 | Y36: 1521388.302
A37: =IF(ISBLANK(InfoPro!A31),"",InfoPro!A31) -> SC_2060_A1 | B37: =IF(ISBLANK(InfoPro!B31),"",InfoPro!B31) -> EL DANUBIO - 50 MW | C37: =IF(ISBLANK(InfoPro!E31),"",InfoPro!E31) -> 50 | D37: =IF(ISBLANK(InfoPro!F31),"",InfoPro!F31) -> Solar FV | E37: =IF(ISBLANK(InfoPro!I31),"",YEAR(InfoPro!I31)-$G$3) -> 3 | F37: =IF(B37="","",VLOOKUP(D37,Tablas!$B$2:$E$13,2,FALSE)) -> 0.26 | G37: =IF(B37="","",VLOOKUP(D37,Tablas!$B$2:$H$13,7,FALSE)) -> 83577.2 | H37: 113880 | I37: 8840379802 | J37: 7907316460 | K37: 7072733864 | L37: 6326237803 | M37: 5658531130 | N37: 5061297969 | O37: 4527100152 | P37: 4049284572 | Q37: 3621900333 | R37: 3239624627 | S37: 2897696446 | T37: 2591857286 | U37: 2318298109 | V37: 2073611905 | W37: 1854751256 | X37: 6.804062171e+10 | Y37: 1360812.434
A38: =IF(ISBLANK(InfoPro!A32),"",InfoPro!A32) -> SC_2060_A2 | B38: =IF(ISBLANK(InfoPro!B32),"",InfoPro!B32) -> EL DANUBIO - 50 MW | C38: =IF(ISBLANK(InfoPro!E32),"",InfoPro!E32) -> 50 | D38: =IF(ISBLANK(InfoPro!F32),"",InfoPro!F32) -> Solar FV | E38: =IF(ISBLANK(InfoPro!I32),"",YEAR(InfoPro!I32)-$G$3) -> 3 | F38: =IF(B38="","",VLOOKUP(D38,Tablas!$B$2:$E$13,2,FALSE)) -> 0.26 | G38: =IF(B38="","",VLOOKUP(D38,Tablas!$B$2:$H$13,7,FALSE)) -> 83577.2 | H38: 113880 | I38: 8840379802 | J38: 7907316460 | K38: 7072733864 | L38: 6326237803 | M38: 5658531130 | N38: 5061297969 | O38: 4527100152 | P38: 4049284572 | Q38: 3621900333 | R38: 3239624627 | S38: 2897696446 | T38: 2591857286 | U38: 2318298109 | V38: 2073611905 | W38: 1854751256 | X38: 6.804062171e+10 | Y38: 1360812.434
A39: =IF(ISBLANK(InfoPro!A33),"",InfoPro!A33) -> SC_1836_A1 | B39: =IF(ISBLANK(InfoPro!B33),"",InfoPro!B33) -> PARQUE SOLAR LA MERCED 9.9 MW | C39: =IF(ISBLANK(InfoPro!E33),"",InfoPro!E33) -> 9.9 | D39: =IF(ISBLANK(InfoPro!F33),"",InfoPro!F33) -> Solar FV | E39: =IF(ISBLANK(InfoPro!I33),"",YEAR(InfoPro!I33)-$G$3) -> 1 | F39: =IF(B39="","",VLOOKUP(D39,Tablas!$B$2:$E$13,2,FALSE)) -> 0.26 | G39: =IF(B39="","",VLOOKUP(D39,Tablas!$B$2:$H$13,7,FALSE)) -> 83577.2 | H39: 22548.24 | I39: 2187860971 | J39: 1956941835 | K39: 1750395201 | L39: 1565648659 | M39: 1400401305 | N39: 1252595085 | O39: 1120389164 | P39: 1002136998 | Q39: 896365830 | R39: 801758345.3 | S39: 717136265.9 | T39: 641445676.1 | U39: 573743896.3 | V39: 513187742.7 | W39: 459023025.7 | X39: 1.683903e+10 | Y39: 1700912.121
A40: =IF(ISBLANK(InfoPro!#REF!),"",InfoPro!#REF!) ->  | B40: =IF(ISBLANK(InfoPro!#REF!),"",InfoPro!#REF!) ->  | C40: =IF(ISBLANK(InfoPro!#REF!),"",InfoPro!#REF!) ->  | D40: =IF(ISBLANK(InfoPro!#REF!),"",InfoPro!#REF!) ->  | E40: =IF(ISBLANK(InfoPro!#REF!),"",YEAR(InfoPro!#REF!)-$G$3) ->  | F40: =IF(B40="","",VLOOKUP(D40,Tablas!$B$2:$E$13,2,FALSE)) ->  | G40: =IF(B40="","",VLOOKUP(D40,Tablas!$B$2:$H$13,7,FALSE)) -> 
A41: =IF(ISBLANK(InfoPro!A34),"",InfoPro!A34) -> SC_2071_A1 | B41: =IF(ISBLANK(InfoPro!B34),"",InfoPro!B34) -> Morichal - 9.9 MW | C41: =IF(ISBLANK(InfoPro!E34),"",InfoPro!E34) -> 9.9 | D41: =IF(ISBLANK(InfoPro!F34),"",InfoPro!F34) -> Solar FV | E41: =IF(ISBLANK(InfoPro!I34),"",YEAR(InfoPro!I34)-$G$3) -> 2 | F41: =IF(B41="","",VLOOKUP(D41,Tablas!$B$2:$E$13,2,FALSE)) -> 0.26 | G41: =IF(B41="","",VLOOKUP(D41,Tablas!$B$2:$H$13,7,FALSE)) -> 83577.2 | H41: 22548.24 | I41: 1956941835 | J41: 1750395201 | K41: 1565648659 | L41: 1400401305 | M41: 1252595085 | N41: 1120389164 | O41: 1002136998 | P41: 896365830 | Q41: 801758345.3 | R41: 717136265.9 | S41: 641445676.1 | T41: 573743896.3 | U41: 513187742.7 | V41: 459023025.7 | W41: 410575157.1 | X41: 1.506174419e+10 | Y41: 1521388.302
A42: =IF(ISBLANK(InfoPro!A35),"",InfoPro!A35) -> SC_2281_A1 | B42: =IF(ISBLANK(InfoPro!B35),"",InfoPro!B35) -> PARQUE EÓLICO SAUCES de 288 MW | C42: =IF(ISBLANK(InfoPro!E35),"",InfoPro!E35) -> 288 | D42: =IF(ISBLANK(InfoPro!F35),"",InfoPro!F35) -> Eólico Onshore | E42: =IF(ISBLANK(InfoPro!I35),"",YEAR(InfoPro!I35)-$G$3) -> 2 | F42: =IF(B42="","",VLOOKUP(D42,Tablas!$B$2:$E$13,2,FALSE)) -> 0.57 | G42: =IF(B42="","",VLOOKUP(D42,Tablas!$B$2:$H$13,7,FALSE)) -> 83577.2 | H42: 1438041.6 | I42: 1.248063604e+11 | J42: 1.11633596e+11 | K42: 9.985115923e+10 | L42: 8.931230701e+10 | M42: 7.988578444e+10 | N42: 7.145419002e+10 | O42: 6.391251344e+10 | P42: 5.716682776e+10 | Q42: 5.113311964e+10 | R42: 4.573624297e+10 | S42: 4.090898298e+10 | T42: 3.659121912e+10 | U42: 3.272917632e+10 | V42: 2.92747552e+10 | W42: 2.61849331e+10 | X42: 9.605811676e+11 | Y42: 3335351.276
A43: =IF(ISBLANK(InfoPro!A36),"",InfoPro!A36) -> SC_2281_A2 | B43: =IF(ISBLANK(InfoPro!B36),"",InfoPro!B36) -> PARQUE EÓLICO SAUCES de 288 MW | C43: =IF(ISBLANK(InfoPro!E36),"",InfoPro!E36) -> 288 | D43: =IF(ISBLANK(InfoPro!F36),"",InfoPro!F36) -> Eólico Onshore | E43: =IF(ISBLANK(InfoPro!I36),"",YEAR(InfoPro!I36)-$G$3) -> 2 | F43: =IF(B43="","",VLOOKUP(D43,Tablas!$B$2:$E$13,2,FALSE)) -> 0.57 | G43: =IF(B43="","",VLOOKUP(D43,Tablas!$B$2:$H$13,7,FALSE)) -> 83577.2 | H43: 1438041.6 | I43: 1.248063604e+11 | J43: 1.11633596e+11 | K43: 9.985115923e+10 | L43: 8.931230701e+10 | M43: 7.988578444e+10 | N43: 7.145419002e+10 | O43: 6.391251344e+10 | P43: 5.716682776e+10 | Q43: 5.113311964e+10 | R43: 4.573624297e+10 | S43: 4.090898298e+10 | T43: 3.659121912e+10 | U43: 3.272917632e+10 | V43: 2.92747552e+10 | W43: 2.61849331e+10 | X43: 9.605811676e+11 | Y43: 3335351.276
A44: =IF(ISBLANK(InfoPro!A37),"",InfoPro!A37) -> SC_2116_A1 | B44: =IF(ISBLANK(InfoPro!B37),"",InfoPro!B37) -> Parque Eólico Los Cerezos 60 MW | C44: =IF(ISBLANK(InfoPro!E37),"",InfoPro!E37) -> 60 | D44: =IF(ISBLANK(InfoPro!F37),"",InfoPro!F37) -> Eólico Onshore | E44: =IF(ISBLANK(InfoPro!I37),"",YEAR(InfoPro!I37)-$G$3) -> 4 | F44: =IF(B44="","",VLOOKUP(D44,Tablas!$B$2:$E$13,2,FALSE)) -> 0.57 | G44: =IF(B44="","",VLOOKUP(D44,Tablas!$B$2:$H$13,7,FALSE)) -> 83577.2 | H44: 299592 | I44: 2.080232484e+10 | J44: 1.860673063e+10 | K44: 1.664287176e+10 | L44: 1.488628959e+10 | M44: 1.331510697e+10 | N44: 1.190975578e+10 | O44: 1.065273326e+10 | P44: 9528383952 | Q44: 8522704787 | R44: 7623170651 | S44: 6818578400 | T44: 6098907334 | U44: 5455194395 | V44: 4879422536 | W44: 4364420873 | X44: 1.601065957e+11 | Y44: 2668443.262
A45: =IF(ISBLANK(InfoPro!A38),"",InfoPro!A38) -> SC_2116_A2 | B45: =IF(ISBLANK(InfoPro!B38),"",InfoPro!B38) -> Parque Eólico Los Cerezos 60 MW | C45: =IF(ISBLANK(InfoPro!E38),"",InfoPro!E38) -> 60 | D45: =IF(ISBLANK(InfoPro!F38),"",InfoPro!F38) -> Eólico Onshore | E45: =IF(ISBLANK(InfoPro!I38),"",YEAR(InfoPro!I38)-$G$3) -> 4 | F45: =IF(B45="","",VLOOKUP(D45,Tablas!$B$2:$E$13,2,FALSE)) -> 0.57 | G45: =IF(B45="","",VLOOKUP(D45,Tablas!$B$2:$H$13,7,FALSE)) -> 83577.2 | H45: 299592 | I45: =IF($H45="","",(1/(1+$C$3)^(I$6+$E45))*$H45*($C$2 - $G45)) -> 2.080232484e+10 | J45: 1.860673063e+10 | K45: 1.664287176e+10 | L45: 1.488628959e+10 | M45: 1.331510697e+10 | N45: 1.190975578e+10 | O45: 1.065273326e+10 | P45: 9528383952 | Q45: 8522704787 | R45: 7623170651 | S45: 6818578400 | T45: 6098907334 | U45: 5455194395 | V45: 4879422536 | W45: 4364420873 | X45: 1.601065957e+11 | Y45: 2668443.262
A46: =IF(ISBLANK(InfoPro!A39),"",InfoPro!A39) -> SC_2078_A1 | B46: =IF(ISBLANK(InfoPro!B39),"",InfoPro!B39) -> PARQUE SOLAR SANTA HELENA 19.9 | C46: =IF(ISBLANK(InfoPro!E39),"",InfoPro!E39) -> 19.9 | D46: =IF(ISBLANK(InfoPro!F39),"",InfoPro!F39) -> Solar FV | E46: =IF(ISBLANK(InfoPro!I39),"",YEAR(InfoPro!I39)-$G$3) -> 1 | F46: =IF(B46="","",VLOOKUP(D46,Tablas!$B$2:$E$13,2,FALSE)) -> 0.26 | G46: =IF(B46="","",VLOOKUP(D46,Tablas!$B$2:$H$13,7,FALSE)) -> 83577.2 | H46: 45324.24 | I46: 4397821548 | J46: 3933650758 | K46: 3518471161 | L46: 3147111951 | M46: 2814948078 | N46: 2517842646 | O46: 2252095390 | P46: 2014396592 | Q46: 1801785860 | R46: 1611615260 | S46: 1441516332 | T46: 1289370601 | U46: 1153283186 | V46: 1031559200 | W46: 922682647.6 | X46: 3.384815121e+10 | Y46: 1700912.121
A47: =IF(ISBLANK(InfoPro!A40),"",InfoPro!A40) -> SC_1899_A1 | B47: =IF(ISBLANK(InfoPro!B40),"",InfoPro!B40) -> Sikaramá 9.9 MW | C47: =IF(ISBLANK(InfoPro!E40),"",InfoPro!E40) -> 9.9 | D47: =IF(ISBLANK(InfoPro!F40),"",InfoPro!F40) -> Solar FV | E47: =IF(ISBLANK(InfoPro!I40),"",YEAR(InfoPro!I40)-$G$3) -> 3 | F47: =IF(B47="","",VLOOKUP(D47,Tablas!$B$2:$E$13,2,FALSE)) -> 0.26 | G47: =IF(B47="","",VLOOKUP(D47,Tablas!$B$2:$H$13,7,FALSE)) -> 83577.2 | H47: 22548.24 | I47: 1750395201 | J47: 1565648659 | K47: 1400401305 | L47: 1252595085 | M47: 1120389164 | N47: 1002136998 | O47: 896365830 | P47: 801758345.3 | Q47: 717136265.9 | R47: 641445676.1 | S47: 573743896.3 | T47: 513187742.7 | U47: 459023025.7 | V47: 410575157.1 | W47: 367240748.8 | X47: 1.34720431e+10 | Y47: 1360812.434
A48: =IF(ISBLANK(InfoPro!A41),"",InfoPro!A41) -> SC_1899_A2 | B48: =IF(ISBLANK(InfoPro!B41),"",InfoPro!B41) -> Sikaramá 9.9 MW | C48: =IF(ISBLANK(InfoPro!E41),"",InfoPro!E41) -> 9.9 | D48: =IF(ISBLANK(InfoPro!F41),"",InfoPro!F41) -> Solar FV | E48: =IF(ISBLANK(InfoPro!I41),"",YEAR(InfoPro!I41)-$G$3) -> 3 | F48: =IF(B48="","",VLOOKUP(D48,Tablas!$B$2:$E$13,2,FALSE)) -> 0.26 | G48: =IF(B48="","",VLOOKUP(D48,Tablas!$B$2:$H$13,7,FALSE)) -> 83577.2 | H48: 22548.24 | I48: 1750395201 | J48: 1565648659 | K48: 1400401305 | L48: 1252595085 | M48: 1120389164 | N48: 1002136998 | O48: 896365830 | P48: 801758345.3 | Q48: 717136265.9 | R48: 641445676.1 | S48: 573743896.3 | T48: 513187742.7 | U48: 459023025.7 | V48: 410575157.1 | W48: 367240748.8 | X48: 1.34720431e+10 | Y48: 1360812.434
A49: =IF(ISBLANK(InfoPro!A42),"",InfoPro!A42) -> SC_2144_A1 | B49: =IF(ISBLANK(InfoPro!B42),"",InfoPro!B42) -> PGFV Andes I | C49: =IF(ISBLANK(InfoPro!E42),"",InfoPro!E42) -> 19.9 | D49: =IF(ISBLANK(InfoPro!F42),"",InfoPro!F42) -> Solar FV | E49: =IF(ISBLANK(InfoPro!I42),"",YEAR(InfoPro!I42)-$G$3) -> 1 | F49: =IF(B49="","",VLOOKUP(D49,Tablas!$B$2:$E$13,2,FALSE)) -> 0.26 | G49: =IF(B49="","",VLOOKUP(D49,Tablas!$B$2:$H$13,7,FALSE)) -> 83577.2 | H49: 45324.24 | I49: 4397821548 | J49: 3933650758 | K49: 3518471161 | L49: 3147111951 | M49: 2814948078 | N49: 2517842646 | O49: 2252095390 | P49: 2014396592 | Q49: 1801785860 | R49: 1611615260 | S49: 1441516332 | T49: 1289370601 | U49: 1153283186 | V49: 1031559200 | W49: 922682647.6 | X49: 3.384815121e+10 | Y49: 1700912.121
A50: =IF(ISBLANK(InfoPro!A43),"",InfoPro!A43) -> SC_2144_A2 | B50: =IF(ISBLANK(InfoPro!B43),"",InfoPro!B43) -> PGFV Andes I | C50: =IF(ISBLANK(InfoPro!E43),"",InfoPro!E43) -> 19.9 | D50: =IF(ISBLANK(InfoPro!F43),"",InfoPro!F43) -> Solar FV | E50: =IF(ISBLANK(InfoPro!I43),"",YEAR(InfoPro!I43)-$G$3) -> 1 | F50: =IF(B50="","",VLOOKUP(D50,Tablas!$B$2:$E$13,2,FALSE)) -> 0.26 | G50: =IF(B50="","",VLOOKUP(D50,Tablas!$B$2:$H$13,7,FALSE)) -> 83577.2 | H50: 45324.24 | I50: 4397821548 | J50: 3933650758 | K50: 3518471161 | L50: 3147111951 | M50: 2814948078 | N50: 2517842646 | O50: 2252095390 | P50: 2014396592 | Q50: 1801785860 | R50: 1611615260 | S50: 1441516332 | T50: 1289370601 | U50: 1153283186 | V50: 1031559200 | W50: 922682647.6 | X50: 3.384815121e+10 | Y50: 1700912.121
A51: =IF(ISBLANK(InfoPro!A44),"",InfoPro!A44) -> SC_2176_A1 | B51: =IF(ISBLANK(InfoPro!B44),"",InfoPro!B44) -> PGFV Andes II | C51: =IF(ISBLANK(InfoPro!E44),"",InfoPro!E44) -> 19.9 | D51: =IF(ISBLANK(InfoPro!F44),"",InfoPro!F44) -> Solar FV | E51: =IF(ISBLANK(InfoPro!I44),"",YEAR(InfoPro!I44)-$G$3) -> 1 | F51: =IF(B51="","",VLOOKUP(D51,Tablas!$B$2:$E$13,2,FALSE)) -> 0.26 | G51: =IF(B51="","",VLOOKUP(D51,Tablas!$B$2:$H$13,7,FALSE)) -> 83577.2 | H51: 45324.24 | I51: 4397821548 | J51: 3933650758 | K51: 3518471161 | L51: 3147111951 | M51: 2814948078 | N51: 2517842646 | O51: 2252095390 | P51: 2014396592 | Q51: 1801785860 | R51: 1611615260 | S51: 1441516332 | T51: 1289370601 | U51: 1153283186 | V51: 1031559200 | W51: 922682647.6 | X51: 3.384815121e+10 | Y51: 1700912.121
A52: =IF(ISBLANK(InfoPro!A45),"",InfoPro!A45) -> SC_2176_A2 | B52: =IF(ISBLANK(InfoPro!B45),"",InfoPro!B45) -> PGFV Andes II | C52: =IF(ISBLANK(InfoPro!E45),"",InfoPro!E45) -> 19.9 | D52: =IF(ISBLANK(InfoPro!F45),"",InfoPro!F45) -> Solar FV | E52: =IF(ISBLANK(InfoPro!I45),"",YEAR(InfoPro!I45)-$G$3) -> 1 | F52: =IF(B52="","",VLOOKUP(D52,Tablas!$B$2:$E$13,2,FALSE)) -> 0.26 | G52: =IF(B52="","",VLOOKUP(D52,Tablas!$B$2:$H$13,7,FALSE)) -> 83577.2 | H52: 45324.24 | I52: 4397821548 | J52: 3933650758 | K52: 3518471161 | L52: 3147111951 | M52: 2814948078 | N52: 2517842646 | O52: 2252095390 | P52: 2014396592 | Q52: 1801785860 | R52: 1611615260 | S52: 1441516332 | T52: 1289370601 | U52: 1153283186 | V52: 1031559200 | W52: 922682647.6 | X52: 3.384815121e+10 | Y52: 1700912.121
A53: =IF(ISBLANK(InfoPro!A46),"",InfoPro!A46) -> SC_1886_A1 | B53: =IF(ISBLANK(InfoPro!B46),"",InfoPro!B46) -> Rúkura 60 MW | C53: =IF(ISBLANK(InfoPro!E46),"",InfoPro!E46) -> 60 | D53: =IF(ISBLANK(InfoPro!F46),"",InfoPro!F46) -> Solar FV | E53: =IF(ISBLANK(InfoPro!I46),"",YEAR(InfoPro!I46)-$G$3) -> 5 | F53: =IF(B53="","",VLOOKUP(D53,Tablas!$B$2:$E$13,2,FALSE)) -> 0.26 | G53: =IF(B53="","",VLOOKUP(D53,Tablas!$B$2:$H$13,7,FALSE)) -> 83577.2 | H53: 136656 | I53: 8487280637 | J53: 7591485364 | K53: 6790237356 | L53: 6073557563 | M53: 5432520182 | N53: 4859141486 | O53: 4346280399 | P53: 3887549552 | Q53: 3477235735 | R53: 3110228744 | S53: 2781957731 | T53: 2488334286 | U53: 2225701508 | V53: 1990788468 | W53: 1780669471 | X53: 6.532296848e+10 | Y53: 1088716.141
A54: =IF(ISBLANK(InfoPro!A47),"",InfoPro!A47) -> SC_1886_A2 | B54: =IF(ISBLANK(InfoPro!B47),"",InfoPro!B47) -> Rúkura 60 MW | C54: =IF(ISBLANK(InfoPro!E47),"",InfoPro!E47) -> 60 | D54: =IF(ISBLANK(InfoPro!F47),"",InfoPro!F47) -> Solar FV | E54: =IF(ISBLANK(InfoPro!I47),"",YEAR(InfoPro!I47)-$G$3) -> 5 | F54: =IF(B54="","",VLOOKUP(D54,Tablas!$B$2:$E$13,2,FALSE)) -> 0.26 | G54: =IF(B54="","",VLOOKUP(D54,Tablas!$B$2:$H$13,7,FALSE)) -> 83577.2 | H54: 136656 | I54: 8487280637 | J54: 7591485364 | K54: 6790237356 | L54: 6073557563 | M54: 5432520182 | N54: 4859141486 | O54: 4346280399 | P54: 3887549552 | Q54: 3477235735 | R54: 3110228744 | S54: 2781957731 | T54: 2488334286 | U54: 2225701508 | V54: 1990788468 | W54: 1780669471 | X54: 6.532296848e+10 | Y54: 1088716.141
A55: =IF(ISBLANK(InfoPro!A48),"",InfoPro!A48) -> SC_2002_A1 | B55: =IF(ISBLANK(InfoPro!B48),"",InfoPro!B48) -> Bosques Solares de los Llanos 8 | C55: =IF(ISBLANK(InfoPro!E48),"",InfoPro!E48) -> 170 | D55: =IF(ISBLANK(InfoPro!F48),"",InfoPro!F48) -> Solar FV | E55: =IF(ISBLANK(InfoPro!I48),"",YEAR(InfoPro!I48)-$G$3) -> 3 | F55: =IF(B55="","",VLOOKUP(D55,Tablas!$B$2:$E$13,2,FALSE)) -> 0.26 | G55: =IF(B55="","",VLOOKUP(D55,Tablas!$B$2:$H$13,7,FALSE)) -> 83577.2 | H55: 387192 | I55: 3.005729133e+10 | J55: 2.688487596e+10 | K55: 2.404729514e+10 | L55: 2.150920853e+10 | M55: 1.923900584e+10 | N55: 1.72084131e+10 | O55: 1.539214052e+10 | P55: 1.376756754e+10 | Q55: 1.231446113e+10 | R55: 1.101472373e+10 | S55: 9852167917 | T55: 8812314774 | U55: 7882213572 | V55: 7050280476 | W55: 6306154272 | X55: 2.313381138e+11 | Y55: 1360812.434
A56: =IF(ISBLANK(InfoPro!A49),"",InfoPro!A49) -> SC_2002_A2 | B56: =IF(ISBLANK(InfoPro!B49),"",InfoPro!B49) -> Bosques Solares de los Llanos 8 | C56: =IF(ISBLANK(InfoPro!E49),"",InfoPro!E49) -> 170 | D56: =IF(ISBLANK(InfoPro!F49),"",InfoPro!F49) -> Solar FV | E56: =IF(ISBLANK(InfoPro!I49),"",YEAR(InfoPro!I49)-$G$3) -> 3 | F56: =IF(B56="","",VLOOKUP(D56,Tablas!$B$2:$E$13,2,FALSE)) -> 0.26 | G56: =IF(B56="","",VLOOKUP(D56,Tablas!$B$2:$H$13,7,FALSE)) -> 83577.2 | H56: 387192 | I56: 3.005729133e+10 | J56: 2.688487596e+10 | K56: 2.404729514e+10 | L56: 2.150920853e+10 | M56: 1.923900584e+10 | N56: 1.72084131e+10 | O56: 1.539214052e+10 | P56: 1.376756754e+10 | Q56: 1.231446113e+10 | R56: 1.101472373e+10 | S56: 9852167917 | T56: 8812314774 | U56: 7882213572 | V56: 7050280476 | W56: 6306154272 | X56: 2.313381138e+11 | Y56: 1360812.434
A57: =IF(ISBLANK(InfoPro!A50),"",InfoPro!A50) -> SC_1881_A1 | B57: =IF(ISBLANK(InfoPro!B50),"",InfoPro!B50) -> PARQUE FOTOVOLTAICO SIMIJACA | C57: =IF(ISBLANK(InfoPro!E50),"",InfoPro!E50) -> 60 | D57: =IF(ISBLANK(InfoPro!F50),"",InfoPro!F50) -> Solar FV | E57: =IF(ISBLANK(InfoPro!I50),"",YEAR(InfoPro!I50)-$G$3) -> 3 | F57: =IF(B57="","",VLOOKUP(D57,Tablas!$B$2:$E$13,2,FALSE)) -> 0.26 | G57: =IF(B57="","",VLOOKUP(D57,Tablas!$B$2:$H$13,7,FALSE)) -> 83577.2 | H57: 136656 | I57: 1.060845576e+10 | J57: 9488779752 | K57: 8487280637 | L57: 7591485364 | M57: 6790237356 | N57: 6073557563 | O57: 5432520182 | P57: 4859141486 | Q57: 4346280399 | R57: 3887549552 | S57: 3477235735 | T57: 3110228744 | U57: 2781957731 | V57: 2488334286 | W57: 2225701508 | X57: 8.164874606e+10 | Y57: 1360812.434
A58: =IF(ISBLANK(InfoPro!A51),"",InfoPro!A51) -> SC_1881_A2 | B58: =IF(ISBLANK(InfoPro!B51),"",InfoPro!B51) -> PARQUE FOTOVOLTAICO SIMIJACA | C58: =IF(ISBLANK(InfoPro!E51),"",InfoPro!E51) -> 60 | D58: =IF(ISBLANK(InfoPro!F51),"",InfoPro!F51) -> Solar FV | E58: =IF(ISBLANK(InfoPro!I51),"",YEAR(InfoPro!I51)-$G$3) -> 3 | F58: =IF(B58="","",VLOOKUP(D58,Tablas!$B$2:$E$13,2,FALSE)) -> 0.26 | G58: =IF(B58="","",VLOOKUP(D58,Tablas!$B$2:$H$13,7,FALSE)) -> 83577.2 | H58: 136656 | I58: 1.060845576e+10 | J58: 9488779752 | K58: 8487280637 | L58: 7591485364 | M58: 6790237356 | N58: 6073557563 | O58: 5432520182 | P58: 4859141486 | Q58: 4346280399 | R58: 3887549552 | S58: 3477235735 | T58: 3110228744 | U58: 2781957731 | V58: 2488334286 | W58: 2225701508 | X58: 8.164874606e+10 | Y58: 1360812.434
A59: =IF(ISBLANK(InfoPro!A52),"",InfoPro!A52) -> SC_2326_A1 | B59: =IF(ISBLANK(InfoPro!B52),"",InfoPro!B52) -> ARQUE EÓLICO ORQUIDEAS de 288 MW | C59: =IF(ISBLANK(InfoPro!E52),"",InfoPro!E52) -> 288 | D59: =IF(ISBLANK(InfoPro!F52),"",InfoPro!F52) -> Eólico Onshore | E59: =IF(ISBLANK(InfoPro!I52),"",YEAR(InfoPro!I52)-$G$3) -> 2 | F59: =IF(B59="","",VLOOKUP(D59,Tablas!$B$2:$E$13,2,FALSE)) -> 0.57 | G59: =IF(B59="","",VLOOKUP(D59,Tablas!$B$2:$H$13,7,FALSE)) -> 83577.2 | H59: 1438041.6 | I59: 1.248063604e+11 | J59: 1.11633596e+11 | K59: 9.985115923e+10 | L59: 8.931230701e+10 | M59: 7.988578444e+10 | N59: 7.145419002e+10 | O59: 6.391251344e+10 | P59: 5.716682776e+10 | Q59: 5.113311964e+10 | R59: 4.573624297e+10 | S59: 4.090898298e+10 | T59: 3.659121912e+10 | U59: 3.272917632e+10 | V59: 2.92747552e+10 | W59: 2.61849331e+10 | X59: 9.605811676e+11 | Y59: 3335351.276
A60: =IF(ISBLANK(InfoPro!A53),"",InfoPro!A53) -> SC_2326_A2 | B60: =IF(ISBLANK(InfoPro!B53),"",InfoPro!B53) -> ARQUE EÓLICO ORQUIDEAS de 288 MW | C60: =IF(ISBLANK(InfoPro!E53),"",InfoPro!E53) -> 288 | D60: =IF(ISBLANK(InfoPro!F53),"",InfoPro!F53) -> Eólico Onshore | E60: =IF(ISBLANK(InfoPro!I53),"",YEAR(InfoPro!I53)-$G$3) -> 2 | F60: =IF(B60="","",VLOOKUP(D60,Tablas!$B$2:$E$13,2,FALSE)) -> 0.57 | G60: =IF(B60="","",VLOOKUP(D60,Tablas!$B$2:$H$13,7,FALSE)) -> 83577.2 | H60: 1438041.6 | I60: 1.248063604e+11 | J60: 1.11633596e+11 | K60: 9.985115923e+10 | L60: 8.931230701e+10 | M60: 7.988578444e+10 | N60: 7.145419002e+10 | O60: 6.391251344e+10 | P60: 5.716682776e+10 | Q60: 5.113311964e+10 | R60: 4.573624297e+10 | S60: 4.090898298e+10 | T60: 3.659121912e+10 | U60: 3.272917632e+10 | V60: 2.92747552e+10 | W60: 2.61849331e+10 | X60: 9.605811676e+11 | Y60: 3335351.276
A61: =IF(ISBLANK(InfoPro!A54),"",InfoPro!A54) -> SC_2075_A1 | B61: =IF(ISBLANK(InfoPro!B54),"",InfoPro!B54) -> Ubaté Solar | C61: =IF(ISBLANK(InfoPro!E54),"",InfoPro!E54) -> 19.9 | D61: =IF(ISBLANK(InfoPro!F54),"",InfoPro!F54) -> Solar FV | E61: =IF(ISBLANK(InfoPro!I54),"",YEAR(InfoPro!I54)-$G$3) -> 0 | F61: =IF(B61="","",VLOOKUP(D61,Tablas!$B$2:$E$13,2,FALSE)) -> 0.26 | G61: =IF(B61="","",VLOOKUP(D61,Tablas!$B$2:$H$13,7,FALSE)) -> 83577.2 | H61: 45324.24 | I61: 4916764490 | J61: 4397821548 | K61: 3933650758 | L61: 3518471161 | M61: 3147111951 | N61: 2814948078 | O61: 2517842646 | P61: 2252095390 | Q61: 2014396592 | R61: 1801785860 | S61: 1611615260 | T61: 1441516332 | U61: 1289370601 | V61: 1153283186 | W61: 1031559200 | X61: 3.784223305e+10 | Y61: 1901619.751
A62: =IF(ISBLANK(InfoPro!A55),"",InfoPro!A55) -> SC_2075_A2 | B62: =IF(ISBLANK(InfoPro!B55),"",InfoPro!B55) -> Ubaté Solar | C62: =IF(ISBLANK(InfoPro!E55),"",InfoPro!E55) -> 19.9 | D62: =IF(ISBLANK(InfoPro!F55),"",InfoPro!F55) -> Solar FV | E62: =IF(ISBLANK(InfoPro!I55),"",YEAR(InfoPro!I55)-$G$3) -> 0 | F62: =IF(B62="","",VLOOKUP(D62,Tablas!$B$2:$E$13,2,FALSE)) -> 0.26 | G62: =IF(B62="","",VLOOKUP(D62,Tablas!$B$2:$H$13,7,FALSE)) -> 83577.2 | H62: 45324.24 | I62: =IF($H62="","",(1/(1+$C$3)^(I$6+$E62))*$H62*($C$2 - $G62)) -> 4916764490 | J62: 4397821548 | K62: 3933650758 | L62: 3518471161 | M62: 3147111951 | N62: 2814948078 | O62: 2517842646 | P62: 2252095390 | Q62: 2014396592 | R62: 1801785860 | S62: 1611615260 | T62: 1441516332 | U62: 1289370601 | V62: 1153283186 | W62: 1031559200 | X62: 3.784223305e+10 | Y62: 1901619.751
A63: =IF(ISBLANK(InfoPro!A56),"",InfoPro!A56) -> SC_2217_A1 | B63: =IF(ISBLANK(InfoPro!B56),"",InfoPro!B56) -> CENTRAL DE GENERACIÓN BIOMASA BOGOTÁ II 9,88 MW | C63: =IF(ISBLANK(InfoPro!E56),"",InfoPro!E56) -> 9.88 | D63: =IF(ISBLANK(InfoPro!F56),"",InfoPro!F56) -> Biomasa y Residuos | E63: =IF(ISBLANK(InfoPro!I56),"",YEAR(InfoPro!I56)-$G$3) -> 0 | F63: =IF(B63="","",VLOOKUP(D63,Tablas!$B$2:$E$13,2,FALSE)) -> 0.7 | G63: =IF(B63="","",VLOOKUP(D63,Tablas!$B$2:$H$13,7,FALSE)) -> 83577.2 | H63: 60584.16 | I63: 6572157560 | J63: 5878495134 | K63: 5258045737 | L63: 4703082055 | M63: 4206692357 | N63: 3762694416 | O63: 3365558511 | P63: 3010338561 | Q63: 2692610520 | R63: 2408417281 | S63: 2154219392 | T63: 1926850977 | U63: 1723480301 | V63: 1541574509 | W63: 1378868076 | X63: 5.058308539e+10 | Y63: 5119745.485
A64: =IF(ISBLANK(InfoPro!A57),"",InfoPro!A57) -> SC_2217_A2 | B64: =IF(ISBLANK(InfoPro!B57),"",InfoPro!B57) -> CENTRAL DE GENERACIÓN BIOMASA BOGOTÁ II 9,88 MW | C64: =IF(ISBLANK(InfoPro!E57),"",InfoPro!E57) -> 9.88 | D64: =IF(ISBLANK(InfoPro!F57),"",InfoPro!F57) -> Biomasa y Residuos | E64: =IF(ISBLANK(InfoPro!I57),"",YEAR(InfoPro!I57)-$G$3) -> 0 | F64: =IF(B64="","",VLOOKUP(D64,Tablas!$B$2:$E$13,2,FALSE)) -> 0.7 | G64: =IF(B64="","",VLOOKUP(D64,Tablas!$B$2:$H$13,7,FALSE)) -> 83577.2 | H64: 60584.16 | I64: 6572157560 | J64: 5878495134 | K64: 5258045737 | L64: 4703082055 | M64: 4206692357 | N64: 3762694416 | O64: 3365558511 | P64: 3010338561 | Q64: 2692610520 | R64: 2408417281 | S64: 2154219392 | T64: 1926850977 | U64: 1723480301 | V64: 1541574509 | W64: 1378868076 | X64: 5.058308539e+10 | Y64: 5119745.485

Sheet EC-Mar2 (hidden)
B2: Precio promedio de bolsa | C2: 162532 | D2: $/MWh
B3: Tasa de descuento | C3: 0.118
B4: Costo emisiones Ton | C4: 80.2 | D4: USD/Ton
B5: TRM | C5: 3600
A7: Codigo | B7: Nombre | C7: capacidad | D7: Tipo | E7: Costos de conexión/activos de uso - SIN | F7: VPN | G7: Beneficio - Costo | H7: (Beneficio - Costo)/kW
A8: =IF(ISBLANK(InfoPro!A2),"",InfoPro!A2) -> SC_481_A1 | B8: =IF(ISBLANK(InfoPro!B2),"",InfoPro!B2) -> DIAMANTE | C8: =IF(ISBLANK(InfoPro!E2),"",InfoPro!E2) -> 70 | D8: =IF(ISBLANK(InfoPro!F2),"",InfoPro!F2) -> Solar FV | E8: =IF(ISBLANK(InfoPro!#REF!),"",InfoPro!#REF!) ->  | F8: =IF(ISBLANK(InfoPro!O2),"",InfoPro!O2) -> NA | G8: =IF(F8="","",F8-E8) ->  | H8: =IF(G8="","",G8/(C8*1000)) -> 
A9: =IF(ISBLANK(InfoPro!#REF!),"",InfoPro!#REF!) ->  | B9: =IF(ISBLANK(InfoPro!#REF!),"",InfoPro!#REF!) ->  | C9: =IF(ISBLANK(InfoPro!#REF!),"",InfoPro!#REF!) ->  | D9: =IF(ISBLANK(InfoPro!#REF!),"",InfoPro!#REF!) ->  | E9: =IF(ISBLANK(InfoPro!#REF!),"",InfoPro!#REF!) ->  | F9: =IF(ISBLANK(InfoPro!#REF!),"",InfoPro!#REF!) ->  | G9: =IF(F9="","",F9-E9) ->  | H9: =IF(G9="","",G9/(C9*1000)) -> 
A10: =IF(ISBLANK(InfoPro!#REF!),"",InfoPro!#REF!) ->  | B10: =IF(ISBLANK(InfoPro!#REF!),"",InfoPro!#REF!) ->  | C10: =IF(ISBLANK(InfoPro!#REF!),"",InfoPro!#REF!) ->  | D10: =IF(ISBLANK(InfoPro!#REF!),"",InfoPro!#REF!) ->  | E10: =IF(ISBLANK(InfoPro!#REF!),"",InfoPro!#REF!) ->  | F10: =IF(ISBLANK(InfoPro!#REF!),"",InfoPro!#REF!) -> 
A11: =IF(ISBLANK(InfoPro!A3),"",InfoPro!A3) -> SC_2288_A1 | B11: =IF(ISBLANK(InfoPro!B3),"",InfoPro!B3) -> PARQUE SOLAR FOTOVOLTAICO ESTEROS SOL DE 199MW | C11: =IF(ISBLANK(InfoPro!E3),"",InfoPro!E3) -> 199 | D11: =IF(ISBLANK(InfoPro!F3),"",InfoPro!F3) -> Solar FV | E11: =IF(ISBLANK(InfoPro!#REF!),"",InfoPro!#REF!) ->  | F11: =IF(ISBLANK(InfoPro!O3),"",InfoPro!O3) -> NA
A12: =IF(ISBLANK(InfoPro!A4),"",InfoPro!A4) -> SC_2288_A2 | B12: =IF(ISBLANK(InfoPro!B4),"",InfoPro!B4) -> PARQUE SOLAR FOTOVOLTAICO ESTEROS SOL DE 199MW | C12: =IF(ISBLANK(InfoPro!E4),"",InfoPro!E4) -> 199 | D12: =IF(ISBLANK(InfoPro!F4),"",InfoPro!F4) -> Solar FV | E12: =IF(ISBLANK(InfoPro!#REF!),"",InfoPro!#REF!) ->  | F12: =IF(ISBLANK(InfoPro!O4),"",InfoPro!O4) -> NA
A13: =IF(ISBLANK(InfoPro!A5),"",InfoPro!A5) -> SC_924_A1 | B13: =IF(ISBLANK(InfoPro!B5),"",InfoPro!B5) -> PARQUE FOTOVOLTAICO LA SABANA | C13: =IF(ISBLANK(InfoPro!E5),"",InfoPro!E5) -> 100 | D13: =IF(ISBLANK(InfoPro!F5),"",InfoPro!F5) -> Solar FV | E13: =IF(ISBLANK(InfoPro!#REF!),"",InfoPro!#REF!) ->  | F13: =IF(ISBLANK(InfoPro!O5),"",InfoPro!O5) -> NA
A14: =IF(ISBLANK(InfoPro!A6),"",InfoPro!A6) -> SC_924_A2 | B14: =IF(ISBLANK(InfoPro!B6),"",InfoPro!B6) -> PARQUE FOTOVOLTAICO LA SABANA | C14: =IF(ISBLANK(InfoPro!E6),"",InfoPro!E6) -> 100 | D14: =IF(ISBLANK(InfoPro!F6),"",InfoPro!F6) -> Solar FV | E14: =IF(ISBLANK(InfoPro!#REF!),"",InfoPro!#REF!) ->  | F14: =IF(ISBLANK(InfoPro!O6),"",InfoPro!O6) -> NA
A15: =IF(ISBLANK(InfoPro!A7),"",InfoPro!A7) -> SC_756_A1 | B15: =IF(ISBLANK(InfoPro!B7),"",InfoPro!B7) -> PARQUE FOTOVOLTAICO BALSILLAS | C15: =IF(ISBLANK(InfoPro!E7),"",InfoPro!E7) -> 100 | D15: =IF(ISBLANK(InfoPro!F7),"",InfoPro!F7) -> Solar FV | E15: =IF(ISBLANK(InfoPro!#REF!),"",InfoPro!#REF!) ->  | F15: =IF(ISBLANK(InfoPro!O7),"",InfoPro!O7) -> NA
A16: =IF(ISBLANK(InfoPro!A8),"",InfoPro!A8) -> SC_756_A2 | B16: =IF(ISBLANK(InfoPro!B8),"",InfoPro!B8) -> PARQUE FOTOVOLTAICO BALSILLAS | C16: =IF(ISBLANK(InfoPro!E8),"",InfoPro!E8) -> 100 | D16: =IF(ISBLANK(InfoPro!F8),"",InfoPro!F8) -> Solar FV | E16: =IF(ISBLANK(InfoPro!#REF!),"",InfoPro!#REF!) ->  | F16: =IF(ISBLANK(InfoPro!O8),"",InfoPro!O8) -> NA
A17: =IF(ISBLANK(InfoPro!A9),"",InfoPro!A9) -> SC_1207_A1 | B17: =IF(ISBLANK(InfoPro!B9),"",InfoPro!B9) -> Guacaná | C17: =IF(ISBLANK(InfoPro!E9),"",InfoPro!E9) -> 19.9 | D17: =IF(ISBLANK(InfoPro!F9),"",InfoPro!F9) -> Solar FV | E17: =IF(ISBLANK(InfoPro!#REF!),"",InfoPro!#REF!) ->  | F17: =IF(ISBLANK(InfoPro!O9),"",InfoPro!O9) -> NA
A18: =IF(ISBLANK(InfoPro!A10),"",InfoPro!A10) -> SC_709_A1 | B18: =IF(ISBLANK(InfoPro!B10),"",InfoPro!B10) -> PARQUE FOTOVOLTAICO SUÉ 2 | C18: =IF(ISBLANK(InfoPro!E10),"",InfoPro!E10) -> 9.9 | D18: =IF(ISBLANK(InfoPro!F10),"",InfoPro!F10) -> Solar FV | E18: =IF(ISBLANK(InfoPro!#REF!),"",InfoPro!#REF!) ->  | F18: =IF(ISBLANK(InfoPro!O10),"",InfoPro!O10) -> NA
A19: =IF(ISBLANK(InfoPro!A11),"",InfoPro!A11) -> SC_1299_A1 | B19: =IF(ISBLANK(InfoPro!B11),"",InfoPro!B11) -> Parque Eólico Sisga | C19: =IF(ISBLANK(InfoPro!E11),"",InfoPro!E11) -> 20 | D19: =IF(ISBLANK(InfoPro!F11),"",InfoPro!F11) -> Eólico Onshore | E19: =IF(ISBLANK(InfoPro!#REF!),"",InfoPro!#REF!) ->  | F19: =IF(ISBLANK(InfoPro!O11),"",InfoPro!O11) -> NA
A20: =IF(ISBLANK(InfoPro!A12),"",InfoPro!A12) -> SC_1299_A2 | B20: =IF(ISBLANK(InfoPro!B12),"",InfoPro!B12) -> Parque Eólico Sisga | C20: =IF(ISBLANK(InfoPro!E12),"",InfoPro!E12) -> 20 | D20: =IF(ISBLANK(InfoPro!F12),"",InfoPro!F12) -> Eólico Onshore | E20: =IF(ISBLANK(InfoPro!#REF!),"",InfoPro!#REF!) ->  | F20: =IF(ISBLANK(InfoPro!O12),"",InfoPro!O12) -> NA
A21: =IF(ISBLANK(InfoPro!A13),"",InfoPro!A13) -> SC_416_A1 | B21: =IF(ISBLANK(InfoPro!B13),"",InfoPro!B13) -> Solar Jagüey | C21: =IF(ISBLANK(InfoPro!E13),"",InfoPro!E13) -> 112 | D21: =IF(ISBLANK(InfoPro!F13),"",InfoPro!F13) -> Solar FV | E21: =IF(ISBLANK(InfoPro!#REF!),"",InfoPro!#REF!) ->  | F21: =IF(ISBLANK(InfoPro!O13),"",InfoPro!O13) -> NA
A22: =IF(ISBLANK(InfoPro!A14),"",InfoPro!A14) -> SC_416_A2 | B22: =IF(ISBLANK(InfoPro!B14),"",InfoPro!B14) -> Solar Jagüey | C22: =IF(ISBLANK(InfoPro!E14),"",InfoPro!E14) -> 112 | D22: =IF(ISBLANK(InfoPro!F14),"",InfoPro!F14) -> Solar FV | E22: =IF(ISBLANK(InfoPro!O14),"",InfoPro!O14) -> NA | F22: =IF(ISBLANK(InfoPro!#REF!),"",InfoPro!#REF!) -> 
A23: =IF(ISBLANK(InfoPro!#REF!),"",InfoPro!#REF!) ->  | B23: =IF(ISBLANK(InfoPro!#REF!),"",InfoPro!#REF!) ->  | C23: =IF(ISBLANK(InfoPro!#REF!),"",InfoPro!#REF!) ->  | D23: =IF(ISBLANK(InfoPro!#REF!),"",InfoPro!#REF!) ->  | E23: =IF(ISBLANK(InfoPro!#REF!),"",InfoPro!#REF!) ->  | F23: =IF(ISBLANK(InfoPro!#REF!),"",InfoPro!#REF!) -> 
A24: =IF(ISBLANK(InfoPro!#REF!),"",InfoPro!#REF!) ->  | B24: =IF(ISBLANK(InfoPro!#REF!),"",InfoPro!#REF!) ->  | C24: =IF(ISBLANK(InfoPro!#REF!),"",InfoPro!#REF!) ->  | D24: =IF(ISBLANK(InfoPro!#REF!),"",InfoPro!#REF!) ->  | E24: =IF(ISBLANK(InfoPro!#REF!),"",InfoPro!#REF!) ->  | F24: =IF(ISBLANK(InfoPro!#REF!),"",InfoPro!#REF!) -> 
A25: =IF(ISBLANK(InfoPro!#REF!),"",InfoPro!#REF!) ->  | B25: =IF(ISBLANK(InfoPro!#REF!),"",InfoPro!#REF!) ->  | C25: =IF(ISBLANK(InfoPro!#REF!),"",InfoPro!#REF!) ->  | D25: =IF(ISBLANK(InfoPro!#REF!),"",InfoPro!#REF!) ->  | E25: =IF(ISBLANK(InfoPro!#REF!),"",InfoPro!#REF!) ->  | F25: =IF(ISBLANK(InfoPro!#REF!),"",InfoPro!#REF!) -> 
A26: =IF(ISBLANK(InfoPro!#REF!),"",InfoPro!#REF!) ->  | B26: =IF(ISBLANK(InfoPro!#REF!),"",InfoPro!#REF!) ->  | C26: =IF(ISBLANK(InfoPro!#REF!),"",InfoPro!#REF!) ->  | D26: =IF(ISBLANK(InfoPro!#REF!),"",InfoPro!#REF!) ->  | E26: =IF(ISBLANK(InfoPro!#REF!),"",InfoPro!#REF!) ->  | F26: =IF(ISBLANK(InfoPro!#REF!),"",InfoPro!#REF!) -> 
A27: =IF(ISBLANK(InfoPro!#REF!),"",InfoPro!#REF!) ->  | B27: =IF(ISBLANK(InfoPro!#REF!),"",InfoPro!#REF!) ->  | C27: =IF(ISBLANK(InfoPro!#REF!),"",InfoPro!#REF!) ->  | D27: =IF(ISBLANK(InfoPro!#REF!),"",InfoPro!#REF!) ->  | E27: =IF(ISBLANK(InfoPro!#REF!),"",InfoPro!#REF!) ->  | F27: =IF(ISBLANK(InfoPro!#REF!),"",InfoPro!#REF!) -> 
A28: =IF(ISBLANK(InfoPro!#REF!),"",InfoPro!#REF!) ->  | B28: =IF(ISBLANK(InfoPro!#REF!),"",InfoPro!#REF!) ->  | C28: =IF(ISBLANK(InfoPro!#REF!),"",InfoPro!#REF!) ->  | D28: =IF(ISBLANK(InfoPro!#REF!),"",InfoPro!#REF!) ->  | E28: =IF(ISBLANK(InfoPro!#REF!),"",InfoPro!#REF!) ->  | F28: =IF(ISBLANK(InfoPro!#REF!),"",InfoPro!#REF!) -> 
A29: =IF(ISBLANK(InfoPro!#REF!),"",InfoPro!#REF!) ->  | B29: =IF(ISBLANK(InfoPro!#REF!),"",InfoPro!#REF!) ->  | C29: =IF(ISBLANK(InfoPro!#REF!),"",InfoPro!#REF!) ->  | D29: =IF(ISBLANK(InfoPro!#REF!),"",InfoPro!#REF!) ->  | E29: =IF(ISBLANK(InfoPro!#REF!),"",InfoPro!#REF!) ->  | F29: =IF(ISBLANK(InfoPro!#REF!),"",InfoPro!#REF!) -> 
A30: =IF(ISBLANK(InfoPro!#REF!),"",InfoPro!#REF!) ->  | B30: =IF(ISBLANK(InfoPro!#REF!),"",InfoPro!#REF!) ->  | C30: =IF(ISBLANK(InfoPro!#REF!),"",InfoPro!#REF!) ->  | D30: =IF(ISBLANK(InfoPro!#REF!),"",InfoPro!#REF!) ->  | E30: =IF(ISBLANK(InfoPro!#REF!),"",InfoPro!#REF!) ->  | F30: =IF(ISBLANK(InfoPro!#REF!),"",InfoPro!#REF!) -> 
A31: =IF(ISBLANK(InfoPro!#REF!),"",InfoPro!#REF!) ->  | B31: =IF(ISBLANK(InfoPro!#REF!),"",InfoPro!#REF!) ->  | C31: =IF(ISBLANK(InfoPro!#REF!),"",InfoPro!#REF!) ->  | D31: =IF(ISBLANK(InfoPro!#REF!),"",InfoPro!#REF!) ->  | E31: =IF(ISBLANK(InfoPro!#REF!),"",InfoPro!#REF!) ->  | F31: =IF(ISBLANK(InfoPro!#REF!),"",InfoPro!#REF!) -> 
A32: =IF(ISBLANK(InfoPro!#REF!),"",InfoPro!#REF!) ->  | B32: =IF(ISBLANK(InfoPro!#REF!),"",InfoPro!#REF!) ->  | C32: =IF(ISBLANK(InfoPro!#REF!),"",InfoPro!#REF!) ->  | D32: =IF(ISBLANK(InfoPro!#REF!),"",InfoPro!#REF!) ->  | E32: =IF(ISBLANK(InfoPro!#REF!),"",InfoPro!#REF!) ->  | F32: =IF(ISBLANK(InfoPro!#REF!),"",InfoPro!#REF!) -> 
A33: =IF(ISBLANK(InfoPro!#REF!),"",InfoPro!#REF!) ->  | B33: =IF(ISBLANK(InfoPro!#REF!),"",InfoPro!#REF!) ->  | C33: =IF(ISBLANK(InfoPro!#REF!),"",InfoPro!#REF!) ->  | D33: =IF(ISBLANK(InfoPro!#REF!),"",InfoPro!#REF!) ->  | E33: =IF(ISBLANK(InfoPro!#REF!),"",InfoPro!#REF!) ->  | F33: =IF(ISBLANK(InfoPro!#REF!),"",InfoPro!#REF!) -> 
A34: =IF(ISBLANK(InfoPro!#REF!),"",InfoPro!#REF!) ->  | B34: =IF(ISBLANK(InfoPro!#REF!),"",InfoPro!#REF!) ->  | C34: =IF(ISBLANK(InfoPro!#REF!),"",InfoPro!#REF!) ->  | D34: =IF(ISBLANK(InfoPro!#REF!),"",InfoPro!#REF!) ->  | E34: =IF(ISBLANK(InfoPro!#REF!),"",InfoPro!#REF!) ->  | F34: =IF(ISBLANK(InfoPro!#REF!),"",InfoPro!#REF!) -> 
A35: =IF(ISBLANK(InfoPro!#REF!),"",InfoPro!#REF!) ->  | B35: =IF(ISBLANK(InfoPro!#REF!),"",InfoPro!#REF!) ->  | C35: =IF(ISBLANK(InfoPro!#REF!),"",InfoPro!#REF!) ->  | D35: =IF(ISBLANK(InfoPro!#REF!),"",InfoPro!#REF!) ->  | E35: =IF(ISBLANK(InfoPro!#REF!),"",InfoPro!#REF!) ->  | F35: =IF(ISBLANK(InfoPro!#REF!),"",InfoPro!#REF!) -> 
A36: =IF(ISBLANK(InfoPro!#REF!),"",InfoPro!#REF!) ->  | B36: =IF(ISBLANK(InfoPro!#REF!),"",InfoPro!#REF!) ->  | C36: =IF(ISBLANK(InfoPro!#REF!),"",InfoPro!#REF!) ->  | D36: =IF(ISBLANK(InfoPro!#REF!),"",InfoPro!#REF!) ->  | E36: =IF(ISBLANK(InfoPro!#REF!),"",InfoPro!#REF!) ->  | F36: =IF(ISBLANK(InfoPro!#REF!),"",InfoPro!#REF!) -> 
A37: =IF(ISBLANK(InfoPro!#REF!),"",InfoPro!#REF!) ->  | B37: =IF(ISBLANK(InfoPro!#REF!),"",InfoPro!#REF!) ->  | C37: =IF(ISBLANK(InfoPro!#REF!),"",InfoPro!#REF!) ->  | D37: =IF(ISBLANK(InfoPro!#REF!),"",InfoPro!#REF!) ->  | E37: =IF(ISBLANK(InfoPro!#REF!),"",InfoPro!#REF!) ->  | F37: =IF(ISBLANK(InfoPro!#REF!),"",InfoPro!#REF!) -> 
A38: =IF(ISBLANK(InfoPro!#REF!),"",InfoPro!#REF!) ->  | B38: =IF(ISBLANK(InfoPro!#REF!),"",InfoPro!#REF!) ->  | C38: =IF(ISBLANK(InfoPro!#REF!),"",InfoPro!#REF!) ->  | D38: =IF(ISBLANK(InfoPro!#REF!),"",InfoPro!#REF!) ->  | E38: =IF(ISBLANK(InfoPro!#REF!),"",InfoPro!#REF!) ->  | F38: =IF(ISBLANK(InfoPro!#REF!),"",InfoPro!#REF!) -> 
A39: =IF(ISBLANK(InfoPro!#REF!),"",InfoPro!#REF!) ->  | B39: =IF(ISBLANK(InfoPro!#REF!),"",InfoPro!#REF!) ->  | C39: =IF(ISBLANK(InfoPro!#REF!),"",InfoPro!#REF!) ->  | D39: =IF(ISBLANK(InfoPro!#REF!),"",InfoPro!#REF!) ->  | E39: =IF(ISBLANK(InfoPro!#REF!),"",InfoPro!#REF!) ->  | F39: =IF(ISBLANK(InfoPro!#REF!),"",InfoPro!#REF!) -> 
A40: =IF(ISBLANK(InfoPro!#REF!),"",InfoPro!#REF!) ->  | B40: =IF(ISBLANK(InfoPro!#REF!),"",InfoPro!#REF!) ->  | C40: =IF(ISBLANK(InfoPro!#REF!),"",InfoPro!#REF!) ->  | D40: =IF(ISBLANK(InfoPro!#REF!),"",InfoPro!#REF!) ->  | E40: =IF(ISBLANK(InfoPro!#REF!),"",InfoPro!#REF!) ->  | F40: =IF(ISBLANK(InfoPro!#REF!),"",InfoPro!#REF!) -> 
A41: =IF(ISBLANK(InfoPro!#REF!),"",InfoPro!#REF!) ->  | B41: =IF(ISBLANK(InfoPro!#REF!),"",InfoPro!#REF!) ->  | C41: =IF(ISBLANK(InfoPro!#REF!),"",InfoPro!#REF!) ->  | D41: =IF(ISBLANK(InfoPro!#REF!),"",InfoPro!#REF!) ->  | E41: =IF(ISBLANK(InfoPro!#REF!),"",InfoPro!#REF!) ->  | F41: =IF(ISBLANK(InfoPro!#REF!),"",InfoPro!#REF!) -> 
A42: =IF(ISBLANK(InfoPro!#REF!),"",InfoPro!#REF!) ->  | B42: =IF(ISBLANK(InfoPro!#REF!),"",InfoPro!#REF!) ->  | C42: =IF(ISBLANK(InfoPro!#REF!),"",InfoPro!#REF!) ->  | D42: =IF(ISBLANK(InfoPro!#REF!),"",InfoPro!#REF!) ->  | E42: =IF(ISBLANK(InfoPro!#REF!),"",InfoPro!#REF!) ->  | F42: =IF(ISBLANK(InfoPro!#REF!),"",InfoPro!#REF!) -> 
A43: =IF(ISBLANK(InfoPro!#REF!),"",InfoPro!#REF!) ->  | B43: =IF(ISBLANK(InfoPro!#REF!),"",InfoPro!#REF!) ->  | C43: =IF(ISBLANK(InfoPro!#REF!),"",InfoPro!#REF!) ->  | D43: =IF(ISBLANK(InfoPro!#REF!),"",InfoPro!#REF!) ->  | E43: =IF(ISBLANK(InfoPro!#REF!),"",InfoPro!#REF!) ->  | F43: =IF(ISBLANK(InfoPro!#REF!),"",InfoPro!#REF!) -> 
A44: =IF(ISBLANK(InfoPro!#REF!),"",InfoPro!#REF!) ->  | B44: =IF(ISBLANK(InfoPro!#REF!),"",InfoPro!#REF!) ->  | C44: =IF(ISBLANK(InfoPro!#REF!),"",InfoPro!#REF!) ->  | D44: =IF(ISBLANK(InfoPro!#REF!),"",InfoPro!#REF!) ->  | E44: =IF(ISBLANK(InfoPro!#REF!),"",InfoPro!#REF!) ->  | F44: =IF(ISBLANK(InfoPro!#REF!),"",InfoPro!#REF!) -> 
A45: =IF(ISBLANK(InfoPro!#REF!),"",InfoPro!#REF!) ->  | B45: =IF(ISBLANK(InfoPro!#REF!),"",InfoPro!#REF!) ->  | C45: =IF(ISBLANK(InfoPro!#REF!),"",InfoPro!#REF!) ->  | D45: =IF(ISBLANK(InfoPro!#REF!),"",InfoPro!#REF!) ->  | E45: =IF(ISBLANK(InfoPro!#REF!),"",InfoPro!#REF!) ->  | F45: =IF(ISBLANK(InfoPro!#REF!),"",InfoPro!#REF!) -> 
A46: =IF(ISBLANK(InfoPro!#REF!),"",InfoPro!#REF!) ->  | B46: =IF(ISBLANK(InfoPro!#REF!),"",InfoPro!#REF!) ->  | C46: =IF(ISBLANK(InfoPro!#REF!),"",InfoPro!#REF!) ->  | D46: =IF(ISBLANK(InfoPro!#REF!),"",InfoPro!#REF!) ->  | E46: =IF(ISBLANK(InfoPro!#REF!),"",InfoPro!#REF!) ->  | F46: =IF(ISBLANK(InfoPro!#REF!),"",InfoPro!#REF!) -> 
A47: =IF(ISBLANK(InfoPro!#REF!),"",InfoPro!#REF!) ->  | B47: =IF(ISBLANK(InfoPro!#REF!),"",InfoPro!#REF!) ->  | C47: =IF(ISBLANK(InfoPro!#REF!),"",InfoPro!#REF!) ->  | D47: =IF(ISBLANK(InfoPro!#REF!),"",InfoPro!#REF!) ->  | E47: =IF(ISBLANK(InfoPro!#REF!),"",InfoPro!#REF!) ->  | F47: =IF(ISBLANK(InfoPro!#REF!),"",InfoPro!#REF!) -> 
A48: =IF(ISBLANK(InfoPro!#REF!),"",InfoPro!#REF!) ->  | B48: =IF(ISBLANK(InfoPro!#REF!),"",InfoPro!#REF!) ->  | C48: =IF(ISBLANK(InfoPro!#REF!),"",InfoPro!#REF!) ->  | D48: =IF(ISBLANK(InfoPro!#REF!),"",InfoPro!#REF!) ->  | E48: =IF(ISBLANK(InfoPro!#REF!),"",InfoPro!#REF!) ->  | F48: =IF(ISBLANK(InfoPro!#REF!),"",InfoPro!#REF!) -> 
A49: =IF(ISBLANK(InfoPro!#REF!),"",InfoPro!#REF!) ->  | B49: =IF(ISBLANK(InfoPro!#REF!),"",InfoPro!#REF!) ->  | C49: =IF(ISBLANK(InfoPro!#REF!),"",InfoPro!#REF!) ->  | D49: =IF(ISBLANK(InfoPro!#REF!),"",InfoPro!#REF!) ->  | E49: =IF(ISBLANK(InfoPro!#REF!),"",InfoPro!#REF!) ->  | F49: =IF(ISBLANK(InfoPro!#REF!),"",InfoPro!#REF!) -> 
A50: =IF(ISBLANK(InfoPro!#REF!),"",InfoPro!#REF!) ->  | B50: =IF(ISBLANK(InfoPro!#REF!),"",InfoPro!#REF!) ->  | C50: =IF(ISBLANK(InfoPro!#REF!),"",InfoPro!#REF!) ->  | D50: =IF(ISBLANK(InfoPro!#REF!),"",InfoPro!#REF!) ->  | E50: =IF(ISBLANK(InfoPro!#REF!),"",InfoPro!#REF!) ->  | F50: =IF(ISBLANK(InfoPro!#REF!),"",InfoPro!#REF!) -> 
A51: =IF(ISBLANK(InfoPro!#REF!),"",InfoPro!#REF!) ->  | B51: =IF(ISBLANK(InfoPro!#REF!),"",InfoPro!#REF!) ->  | C51: =IF(ISBLANK(InfoPro!#REF!),"",InfoPro!#REF!) ->  | D51: =IF(ISBLANK(InfoPro!#REF!),"",InfoPro!#REF!) ->  | E51: =IF(ISBLANK(InfoPro!#REF!),"",InfoPro!#REF!) ->  | F51: =IF(ISBLANK(InfoPro!#REF!),"",InfoPro!#REF!) -> 
A52: =IF(ISBLANK(InfoPro!#REF!),"",InfoPro!#REF!) ->  | B52: =IF(ISBLANK(InfoPro!#REF!),"",InfoPro!#REF!) ->  | C52: =IF(ISBLANK(InfoPro!#REF!),"",InfoPro!#REF!) ->  | D52: =IF(ISBLANK(InfoPro!#REF!),"",InfoPro!#REF!) ->  | E52: =IF(ISBLANK(InfoPro!#REF!),"",InfoPro!#REF!) ->  | F52: =IF(ISBLANK(InfoPro!#REF!),"",InfoPro!#REF!) -> 
A53: =IF(ISBLANK(InfoPro!#REF!),"",InfoPro!#REF!) ->  | B53: =IF(ISBLANK(InfoPro!#REF!),"",InfoPro!#REF!) ->  | C53: =IF(ISBLANK(InfoPro!#REF!),"",InfoPro!#REF!) ->  | D53: =IF(ISBLANK(InfoPro!#REF!),"",InfoPro!#REF!) ->  | E53: =IF(ISBLANK(InfoPro!#REF!),"",InfoPro!#REF!) ->  | F53: =IF(ISBLANK(InfoPro!#REF!),"",InfoPro!#REF!) -> 
A54: =IF(ISBLANK(InfoPro!#REF!),"",InfoPro!#REF!) ->  | B54: =IF(ISBLANK(InfoPro!#REF!),"",InfoPro!#REF!) ->  | C54: =IF(ISBLANK(InfoPro!#REF!),"",InfoPro!#REF!) ->  | D54: =IF(ISBLANK(InfoPro!#REF!),"",InfoPro!#REF!) ->  | E54: =IF(ISBLANK(InfoPro!#REF!),"",InfoPro!#REF!) ->  | F54: =IF(ISBLANK(InfoPro!#REF!),"",InfoPro!#REF!) -> 
A55: =IF(ISBLANK(InfoPro!#REF!),"",InfoPro!#REF!) ->  | B55: =IF(ISBLANK(InfoPro!#REF!),"",InfoPro!#REF!) ->  | C55: =IF(ISBLANK(InfoPro!#REF!),"",InfoPro!#REF!) ->  | D55: =IF(ISBLANK(InfoPro!#REF!),"",InfoPro!#REF!) ->  | E55: =IF(ISBLANK(InfoPro!#REF!),"",InfoPro!#REF!) ->  | F55: =IF(ISBLANK(InfoPro!#REF!),"",InfoPro!#REF!) -> 
A56: =IF(ISBLANK(InfoPro!#REF!),"",InfoPro!#REF!) ->  | B56: =IF(ISBLANK(InfoPro!#REF!),"",InfoPro!#REF!) ->  | C56: =IF(ISBLANK(InfoPro!#REF!),"",InfoPro!#REF!) ->  | D56: =IF(ISBLANK(InfoPro!#REF!),"",InfoPro!#REF!) ->  | E56: =IF(ISBLANK(InfoPro!#REF!),"",InfoPro!#REF!) ->  | F56: =IF(ISBLANK(InfoPro!#REF!),"",InfoPro!#REF!) -> 
A57: =IF(ISBLANK(InfoPro!#REF!),"",InfoPro!#REF!) ->  | B57: =IF(ISBLANK(InfoPro!#REF!),"",InfoPro!#REF!) ->  | C57: =IF(ISBLANK(InfoPro!#REF!),"",InfoPro!#REF!) ->  | D57: =IF(ISBLANK(InfoPro!#REF!),"",InfoPro!#REF!) ->  | E57: =IF(ISBLANK(InfoPro!#REF!),"",InfoPro!#REF!) ->  | F57: =IF(ISBLANK(InfoPro!#REF!),"",InfoPro!#REF!) -> 
A58: =IF(ISBLANK(InfoPro!#REF!),"",InfoPro!#REF!) ->  | B58: =IF(ISBLANK(InfoPro!#REF!),"",InfoPro!#REF!) ->  | C58: =IF(ISBLANK(InfoPro!#REF!),"",InfoPro!#REF!) ->  | D58: =IF(ISBLANK(InfoPro!#REF!),"",InfoPro!#REF!) ->  | E58: =IF(ISBLANK(InfoPro!#REF!),"",InfoPro!#REF!) ->  | F58: =IF(ISBLANK(InfoPro!#REF!),"",InfoPro!#REF!) -> 
A59: =IF(ISBLANK(InfoPro!#REF!),"",InfoPro!#REF!) ->  | B59: =IF(ISBLANK(InfoPro!#REF!),"",InfoPro!#REF!) ->  | C59: =IF(ISBLANK(InfoPro!#REF!),"",InfoPro!#REF!) ->  | D59: =IF(ISBLANK(InfoPro!#REF!),"",InfoPro!#REF!) ->  | E59: =IF(ISBLANK(InfoPro!#REF!),"",InfoPro!#REF!) ->  | F59: =IF(ISBLANK(InfoPro!#REF!),"",InfoPro!#REF!) -> 
A60: =IF(ISBLANK(InfoPro!#REF!),"",InfoPro!#REF!) ->  | B60: =IF(ISBLANK(InfoPro!#REF!),"",InfoPro!#REF!) ->  | C60: =IF(ISBLANK(InfoPro!#REF!),"",InfoPro!#REF!) ->  | D60: =IF(ISBLANK(InfoPro!#REF!),"",InfoPro!#REF!) ->  | E60: =IF(ISBLANK(InfoPro!#REF!),"",InfoPro!#REF!) ->  | F60: =IF(ISBLANK(InfoPro!#REF!),"",InfoPro!#REF!) -> 
A61: =IF(ISBLANK(InfoPro!#REF!),"",InfoPro!#REF!) ->  | B61: =IF(ISBLANK(InfoPro!#REF!),"",InfoPro!#REF!) ->  | C61: =IF(ISBLANK(InfoPro!#REF!),"",InfoPro!#REF!) ->  | D61: =IF(ISBLANK(InfoPro!#REF!),"",InfoPro!#REF!) ->  | E61: =IF(ISBLANK(InfoPro!#REF!),"",InfoPro!#REF!) ->  | F61: =IF(ISBLANK(InfoPro!#REF!),"",InfoPro!#REF!) -> 
A62: =IF(ISBLANK(InfoPro!#REF!),"",InfoPro!#REF!) ->  | B62: =IF(ISBLANK(InfoPro!#REF!),"",InfoPro!#REF!) ->  | C62: =IF(ISBLANK(InfoPro!#REF!),"",InfoPro!#REF!) ->  | D62: =IF(ISBLANK(InfoPro!#REF!),"",InfoPro!#REF!) ->  | E62: =IF(ISBLANK(InfoPro!#REF!),"",InfoPro!#REF!) ->  | F62: =IF(ISBLANK(InfoPro!#REF!),"",InfoPro!#REF!) -> 
A63: =IF(ISBLANK(InfoPro!#REF!),"",InfoPro!#REF!) ->  | B63: =IF(ISBLANK(InfoPro!#REF!),"",InfoPro!#REF!) ->  | C63: =IF(ISBLANK(InfoPro!#REF!),"",InfoPro!#REF!) ->  | D63: =IF(ISBLANK(InfoPro!#REF!),"",InfoPro!#REF!) ->  | E63: =IF(ISBLANK(InfoPro!#REF!),"",InfoPro!#REF!) ->  | F63: =IF(ISBLANK(InfoPro!#REF!),"",InfoPro!#REF!) -> 
A64: =IF(ISBLANK(InfoPro!#REF!),"",InfoPro!#REF!) ->  | B64: =IF(ISBLANK(InfoPro!#REF!),"",InfoPro!#REF!) ->  | C64: =IF(ISBLANK(InfoPro!#REF!),"",InfoPro!#REF!) ->  | D64: =IF(ISBLANK(InfoPro!#REF!),"",InfoPro!#REF!) ->  | E64: =IF(ISBLANK(InfoPro!#REF!),"",InfoPro!#REF!) ->  | F64: =IF(ISBLANK(InfoPro!#REF!),"",InfoPro!#REF!) -> 
A65: =IF(ISBLANK(InfoPro!#REF!),"",InfoPro!#REF!) ->  | B65: =IF(ISBLANK(InfoPro!#REF!),"",InfoPro!#REF!) ->  | C65: =IF(ISBLANK(InfoPro!#REF!),"",InfoPro!#REF!) ->  | D65: =IF(ISBLANK(InfoPro!#REF!),"",InfoPro!#REF!) ->  | E65: =IF(ISBLANK(InfoPro!#REF!),"",InfoPro!#REF!) ->  | F65: =IF(ISBLANK(InfoPro!#REF!),"",InfoPro!#REF!) -> 
A66: =IF(ISBLANK(InfoPro!#REF!),"",InfoPro!#REF!) ->  | B66: =IF(ISBLANK(InfoPro!#REF!),"",InfoPro!#REF!) ->  | C66: =IF(ISBLANK(InfoPro!#REF!),"",InfoPro!#REF!) ->  | D66: =IF(ISBLANK(InfoPro!#REF!),"",InfoPro!#REF!) ->  | E66: =IF(ISBLANK(InfoPro!#REF!),"",InfoPro!#REF!) ->  | F66: =IF(ISBLANK(InfoPro!#REF!),"",InfoPro!#REF!) -> 
A67: =IF(ISBLANK(InfoPro!#REF!),"",InfoPro!#REF!) ->  | B67: =IF(ISBLANK(InfoPro!#REF!),"",InfoPro!#REF!) ->  | C67: =IF(ISBLANK(InfoPro!#REF!),"",InfoPro!#REF!) ->  | D67: =IF(ISBLANK(InfoPro!#REF!),"",InfoPro!#REF!) ->  | E67: =IF(ISBLANK(InfoPro!#REF!),"",InfoPro!#REF!) ->  | F67: =IF(ISBLANK(InfoPro!#REF!),"",InfoPro!#REF!) -> 
A68: =IF(ISBLANK(InfoPro!#REF!),"",InfoPro!#REF!) ->  | B68: =IF(ISBLANK(InfoPro!#REF!),"",InfoPro!#REF!) ->  | C68: =IF(ISBLANK(InfoPro!#REF!),"",InfoPro!#REF!) ->  | D68: =IF(ISBLANK(InfoPro!#REF!),"",InfoPro!#REF!) ->  | E68: =IF(ISBLANK(InfoPro!#REF!),"",InfoPro!#REF!) ->  | F68: =IF(ISBLANK(InfoPro!#REF!),"",InfoPro!#REF!) -> 
A69: =IF(ISBLANK(InfoPro!#REF!),"",InfoPro!#REF!) ->  | B69: =IF(ISBLANK(InfoPro!#REF!),"",InfoPro!#REF!) ->  | C69: =IF(ISBLANK(InfoPro!#REF!),"",InfoPro!#REF!) ->  | D69: =IF(ISBLANK(InfoPro!#REF!),"",InfoPro!#REF!) ->  | E69: =IF(ISBLANK(InfoPro!#REF!),"",InfoPro!#REF!) ->  | F69: =IF(ISBLANK(InfoPro!#REF!),"",InfoPro!#REF!) -> 
A70: =IF(ISBLANK(InfoPro!#REF!),"",InfoPro!#REF!) ->  | B70: =IF(ISBLANK(InfoPro!#REF!),"",InfoPro!#REF!) ->  | C70: =IF(ISBLANK(InfoPro!#REF!),"",InfoPro!#REF!) ->  | D70: =IF(ISBLANK(InfoPro!#REF!),"",InfoPro!#REF!) ->  | E70: =IF(ISBLANK(InfoPro!#REF!),"",InfoPro!#REF!) ->  | F70: =IF(ISBLANK(InfoPro!#REF!),"",InfoPro!#REF!) -> 
A71: =IF(ISBLANK(InfoPro!#REF!),"",InfoPro!#REF!) ->  | B71: =IF(ISBLANK(InfoPro!#REF!),"",InfoPro!#REF!) ->  | C71: =IF(ISBLANK(InfoPro!#REF!),"",InfoPro!#REF!) ->  | D71: =IF(ISBLANK(InfoPro!#REF!),"",InfoPro!#REF!) ->  | E71: =IF(ISBLANK(InfoPro!#REF!),"",InfoPro!#REF!) ->  | F71: =IF(ISBLANK(InfoPro!#REF!),"",InfoPro!#REF!) -> 
A72: =IF(ISBLANK(InfoPro!#REF!),"",InfoPro!#REF!) ->  | B72: =IF(ISBLANK(InfoPro!#REF!),"",InfoPro!#REF!) ->  | C72: =IF(ISBLANK(InfoPro!#REF!),"",InfoPro!#REF!) ->  | D72: =IF(ISBLANK(InfoPro!#REF!),"",InfoPro!#REF!) ->  | E72: =IF(ISBLANK(InfoPro!#REF!),"",InfoPro!#REF!) ->  | F72: =IF(ISBLANK(InfoPro!#REF!),"",InfoPro!#REF!) -> 
A73: =IF(ISBLANK(InfoPro!#REF!),"",InfoPro!#REF!) ->  | B73: =IF(ISBLANK(InfoPro!#REF!),"",InfoPro!#REF!) ->  | C73: =IF(ISBLANK(InfoPro!#REF!),"",InfoPro!#REF!) ->  | D73: =IF(ISBLANK(InfoPro!#REF!),"",InfoPro!#REF!) ->  | E73: =IF(ISBLANK(InfoPro!#REF!),"",InfoPro!#REF!) ->  | F73: =IF(ISBLANK(InfoPro!#REF!),"",InfoPro!#REF!) ->  | G73: =IF(F73="","",F73-E73) ->  | H73: =IF(G73="","",G73/(C73*1000)) -> 
A74: =IF(ISBLANK(InfoPro!#REF!),"",InfoPro!#REF!) ->  | B74: =IF(ISBLANK(InfoPro!#REF!),"",InfoPro!#REF!) ->  | C74: =IF(ISBLANK(InfoPro!#REF!),"",InfoPro!#REF!) ->  | D74: =IF(ISBLANK(InfoPro!#REF!),"",InfoPro!#REF!) ->  | E74: =IF(ISBLANK(InfoPro!#REF!),"",InfoPro!#REF!) ->  | F74: =IF(ISBLANK(InfoPro!#REF!),"",InfoPro!#REF!) -> 
A75: =IF(ISBLANK(InfoPro!#REF!),"",InfoPro!#REF!) ->  | B75: =IF(ISBLANK(InfoPro!#REF!),"",InfoPro!#REF!) ->  | C75: =IF(ISBLANK(InfoPro!#REF!),"",InfoPro!#REF!) ->  | D75: =IF(ISBLANK(InfoPro!#REF!),"",InfoPro!#REF!) ->  | E75: =IF(ISBLANK(InfoPro!#REF!),"",InfoPro!#REF!) ->  | F75: =IF(ISBLANK(InfoPro!#REF!),"",InfoPro!#REF!) -> 
A76: =IF(ISBLANK(InfoPro!#REF!),"",InfoPro!#REF!) ->  | B76: =IF(ISBLANK(InfoPro!#REF!),"",InfoPro!#REF!) ->  | C76: =IF(ISBLANK(InfoPro!#REF!),"",InfoPro!#REF!) ->  | D76: =IF(ISBLANK(InfoPro!#REF!),"",InfoPro!#REF!) ->  | E76: =IF(ISBLANK(InfoPro!#REF!),"",InfoPro!#REF!) ->  | F76: =IF(ISBLANK(InfoPro!#REF!),"",InfoPro!#REF!) -> 
A77: =IF(ISBLANK(InfoPro!#REF!),"",InfoPro!#REF!) ->  | B77: =IF(ISBLANK(InfoPro!#REF!),"",InfoPro!#REF!) ->  | C77: =IF(ISBLANK(InfoPro!#REF!),"",InfoPro!#REF!) ->  | D77: =IF(ISBLANK(InfoPro!#REF!),"",InfoPro!#REF!) ->  | E77: =IF(ISBLANK(InfoPro!#REF!),"",InfoPro!#REF!) ->  | F77: =IF(ISBLANK(InfoPro!#REF!),"",InfoPro!#REF!) -> 
A78: =IF(ISBLANK(InfoPro!#REF!),"",InfoPro!#REF!) ->  | B78: =IF(ISBLANK(InfoPro!#REF!),"",InfoPro!#REF!) ->  | C78: =IF(ISBLANK(InfoPro!#REF!),"",InfoPro!#REF!) ->  | D78: =IF(ISBLANK(InfoPro!#REF!),"",InfoPro!#REF!) ->  | E78: =IF(ISBLANK(InfoPro!#REF!),"",InfoPro!#REF!) ->  | F78: =IF(ISBLANK(InfoPro!#REF!),"",InfoPro!#REF!) -> 
A79: =IF(ISBLANK(InfoPro!#REF!),"",InfoPro!#REF!) ->  | B79: =IF(ISBLANK(InfoPro!#REF!),"",InfoPro!#REF!) ->  | C79: =IF(ISBLANK(InfoPro!#REF!),"",InfoPro!#REF!) ->  | D79: =IF(ISBLANK(InfoPro!#REF!),"",InfoPro!#REF!) ->  | E79: =IF(ISBLANK(InfoPro!#REF!),"",InfoPro!#REF!) ->  | F79: =IF(ISBLANK(InfoPro!#REF!),"",InfoPro!#REF!) -> 
A80: =IF(ISBLANK(InfoPro!#REF!),"",InfoPro!#REF!) ->  | B80: =IF(ISBLANK(InfoPro!#REF!),"",InfoPro!#REF!) ->  | C80: =IF(ISBLANK(InfoPro!#REF!),"",InfoPro!#REF!) ->  | D80: =IF(ISBLANK(InfoPro!#REF!),"",InfoPro!#REF!) ->  | E80: =IF(ISBLANK(InfoPro!#REF!),"",InfoPro!#REF!) ->  | F80: =IF(ISBLANK(InfoPro!#REF!),"",InfoPro!#REF!) -> 
A81: =IF(ISBLANK(InfoPro!#REF!),"",InfoPro!#REF!) ->  | B81: =IF(ISBLANK(InfoPro!#REF!),"",InfoPro!#REF!) ->  | C81: =IF(ISBLANK(InfoPro!#REF!),"",InfoPro!#REF!) ->  | D81: =IF(ISBLANK(InfoPro!#REF!),"",InfoPro!#REF!) ->  | E81: =IF(ISBLANK(InfoPro!#REF!),"",InfoPro!#REF!) ->  | F81: =IF(ISBLANK(InfoPro!#REF!),"",InfoPro!#REF!) -> 
A82: =IF(ISBLANK(InfoPro!#REF!),"",InfoPro!#REF!) ->  | B82: =IF(ISBLANK(InfoPro!#REF!),"",InfoPro!#REF!) ->  | C82: =IF(ISBLANK(InfoPro!#REF!),"",InfoPro!#REF!) ->  | D82: =IF(ISBLANK(InfoPro!#REF!),"",InfoPro!#REF!) ->  | E82: =IF(ISBLANK(InfoPro!#REF!),"",InfoPro!#REF!) ->  | F82: =IF(ISBLANK(InfoPro!#REF!),"",InfoPro!#REF!) -> 
A83: =IF(ISBLANK(InfoPro!#REF!),"",InfoPro!#REF!) ->  | B83: =IF(ISBLANK(InfoPro!#REF!),"",InfoPro!#REF!) ->  | C83: =IF(ISBLANK(InfoPro!#REF!),"",InfoPro!#REF!) ->  | D83: =IF(ISBLANK(InfoPro!#REF!),"",InfoPro!#REF!) ->  | E83: =IF(ISBLANK(InfoPro!#REF!),"",InfoPro!#REF!) ->  | F83: =IF(ISBLANK(InfoPro!#REF!),"",InfoPro!#REF!) -> 
A84: =IF(ISBLANK(InfoPro!#REF!),"",InfoPro!#REF!) ->  | B84: =IF(ISBLANK(InfoPro!#REF!),"",InfoPro!#REF!) ->  | C84: =IF(ISBLANK(InfoPro!#REF!),"",InfoPro!#REF!) ->  | D84: =IF(ISBLANK(InfoPro!#REF!),"",InfoPro!#REF!) ->  | E84: =IF(ISBLANK(InfoPro!#REF!),"",InfoPro!#REF!) ->  | F84: =IF(ISBLANK(InfoPro!#REF!),"",InfoPro!#REF!) -> 
A85: =IF(ISBLANK(InfoPro!#REF!),"",InfoPro!#REF!) ->  | B85: =IF(ISBLANK(InfoPro!#REF!),"",InfoPro!#REF!) ->  | C85: =IF(ISBLANK(InfoPro!#REF!),"",InfoPro!#REF!) ->  | D85: =IF(ISBLANK(InfoPro!#REF!),"",InfoPro!#REF!) ->  | E85: =IF(ISBLANK(InfoPro!#REF!),"",InfoPro!#REF!) ->  | F85: =IF(ISBLANK(InfoPro!#REF!),"",InfoPro!#REF!) -> 
A86: =IF(ISBLANK(InfoPro!#REF!),"",InfoPro!#REF!) ->  | B86: =IF(ISBLANK(InfoPro!#REF!),"",InfoPro!#REF!) ->  | C86: =IF(ISBLANK(InfoPro!#REF!),"",InfoPro!#REF!) ->  | D86: =IF(ISBLANK(InfoPro!#REF!),"",InfoPro!#REF!) ->  | E86: =IF(ISBLANK(InfoPro!#REF!),"",InfoPro!#REF!) ->  | F86: =IF(ISBLANK(InfoPro!#REF!),"",InfoPro!#REF!) -> 
A87: =IF(ISBLANK(InfoPro!#REF!),"",InfoPro!#REF!) ->  | B87: =IF(ISBLANK(InfoPro!#REF!),"",InfoPro!#REF!) ->  | C87: =IF(ISBLANK(InfoPro!#REF!),"",InfoPro!#REF!) ->  | D87: =IF(ISBLANK(InfoPro!#REF!),"",InfoPro!#REF!) ->  | E87: =IF(ISBLANK(InfoPro!#REF!),"",InfoPro!#REF!) ->  | F87: =IF(ISBLANK(InfoPro!#REF!),"",InfoPro!#REF!) -> 
A88: =IF(ISBLANK(InfoPro!#REF!),"",InfoPro!#REF!) ->  | B88: =IF(ISBLANK(InfoPro!#REF!),"",InfoPro!#REF!) ->  | C88: =IF(ISBLANK(InfoPro!#REF!),"",InfoPro!#REF!) ->  | D88: =IF(ISBLANK(InfoPro!#REF!),"",InfoPro!#REF!) ->  | E88: =IF(ISBLANK(InfoPro!#REF!),"",InfoPro!#REF!) ->  | F88: =IF(ISBLANK(InfoPro!#REF!),"",InfoPro!#REF!) -> 
A89: =IF(ISBLANK(InfoPro!#REF!),"",InfoPro!#REF!) ->  | B89: =IF(ISBLANK(InfoPro!#REF!),"",InfoPro!#REF!) ->  | C89: =IF(ISBLANK(InfoPro!#REF!),"",InfoPro!#REF!) ->  | D89: =IF(ISBLANK(InfoPro!#REF!),"",InfoPro!#REF!) ->  | E89: =IF(ISBLANK(InfoPro!#REF!),"",InfoPro!#REF!) ->  | F89: =IF(ISBLANK(InfoPro!#REF!),"",InfoPro!#REF!) -> 
A90: =IF(ISBLANK(InfoPro!#REF!),"",InfoPro!#REF!) ->  | B90: =IF(ISBLANK(InfoPro!#REF!),"",InfoPro!#REF!) ->  | C90: =IF(ISBLANK(InfoPro!#REF!),"",InfoPro!#REF!) ->  | D90: =IF(ISBLANK(InfoPro!#REF!),"",InfoPro!#REF!) ->  | E90: =IF(ISBLANK(InfoPro!#REF!),"",InfoPro!#REF!) ->  | F90: =IF(ISBLANK(InfoPro!#REF!),"",InfoPro!#REF!) -> 
A91: =IF(ISBLANK(InfoPro!#REF!),"",InfoPro!#REF!) ->  | B91: =IF(ISBLANK(InfoPro!#REF!),"",InfoPro!#REF!) ->  | C91: =IF(ISBLANK(InfoPro!#REF!),"",InfoPro!#REF!) ->  | D91: =IF(ISBLANK(InfoPro!#REF!),"",InfoPro!#REF!) ->  | E91: =IF(ISBLANK(InfoPro!#REF!),"",InfoPro!#REF!) ->  | F91: =IF(ISBLANK(InfoPro!#REF!),"",InfoPro!#REF!) -> 
A92: =IF(ISBLANK(InfoPro!#REF!),"",InfoPro!#REF!) ->  | B92: =IF(ISBLANK(InfoPro!#REF!),"",InfoPro!#REF!) ->  | C92: =IF(ISBLANK(InfoPro!#REF!),"",InfoPro!#REF!) ->  | D92: =IF(ISBLANK(InfoPro!#REF!),"",InfoPro!#REF!) ->  | E92: =IF(ISBLANK(InfoPro!#REF!),"",InfoPro!#REF!) ->  | F92: =IF(ISBLANK(InfoPro!#REF!),"",InfoPro!#REF!) -> 
A93: =IF(ISBLANK(InfoPro!#REF!),"",InfoPro!#REF!) ->  | B93: =IF(ISBLANK(InfoPro!#REF!),"",InfoPro!#REF!) ->  | C93: =IF(ISBLANK(InfoPro!#REF!),"",InfoPro!#REF!) ->  | D93: =IF(ISBLANK(InfoPro!#REF!),"",InfoPro!#REF!) ->  | E93: =IF(ISBLANK(InfoPro!#REF!),"",InfoPro!#REF!) ->  | F93: =IF(ISBLANK(InfoPro!#REF!),"",InfoPro!#REF!) -> 
F95: =AVERAGE(F8:F87) -> 
F96: =_xlfn.STDEV.S(F8:F87) -> 
F102: 3734000000
F103: 3734000000
F104: 5633917333
F105: 5633917333
F106: 1637200000
F107: 1637200000
F108: 58886066.67
F109: 58886066.67
F110: 48829000000
F111: 48829000000
F112: 43241330000
F113: 43241330000
E115: PROM | F115: =AVERAGE(F102:F113) -> 1.718905557e+10
E116: DESVI | F116: =_xlfn.STDEV.S(F102:F113) -> 2.144621071e+10
F118: =F116+F115 -> 3.863526627e+10

Sheet BT-Flex
B3: CEE | C3: 67453 | D3: COP/MWh
B4: Tasa de descuento | C4: 0.118 | F4: Año de Referencia | G4: 2023
F5: Mínimo | G5: =MIN(Y9:Y191) -> 
I7: 0 | J7: 1 | K7: 2 | L7: 3 | M7: 4 | N7: 5 | O7: 6 | P7: 7 | Q7: 8 | R7: 9 | S7: 10 | T7: 11 | U7: 12 | V7: 13 | W7: 14
A8: Codigo | B8: Nombre | C8: capacidad | D8: Tecnologia | E8: Año de entrada | F8: FP | G8: Factor de Flexibilidad | H8: Produccion media/a MWh/a | I8: Flujo Descontado 0 | J8: Flujo Descontado 1 | K8: Flujo Descontado 2 | L8: Flujo Descontado 3 | M8: Flujo Descontado 4 | N8: Flujo Descontado 5 | O8: Flujo Descontado 6 | P8: Flujo Descontado 7 | Q8: Flujo Descontado 8 | R8: Flujo Descontado 9 | S8: Flujo Descontado 10 | T8: Flujo Descontado 11 | U8: Flujo Descontado 12 | V8: Flujo Descontado 13 | W8: Flujo Descontado 14 | X8: VPN | Y8: Beneficio/kW
A9: =IF(ISBLANK(InfoPro!A2),"",InfoPro!A2) -> SC_481_A1 | B9: =IF(ISBLANK(InfoPro!B2),"",InfoPro!B2) -> DIAMANTE | C9: =IF(ISBLANK(InfoPro!E2),"",InfoPro!E2) -> 70 | D9: =IF(ISBLANK(InfoPro!F2),"",InfoPro!F2) -> Solar FV | E9: =IF(ISBLANK(InfoPro!I2),"",YEAR(InfoPro!I2)-$G$4) -> 2 | F9: =IF(B9="","",VLOOKUP(D9,Tablas!$B$2:$E$13,2,FALSE)) -> 0.26 | G9: =IF(B9="","",VLOOKUP(D9,Tablas!$B$2:$F$13,3,FALSE)) -> 0 | H9: =IF(C9="","",+C9*F9*24*365) -> 159432 | I9: =IF($H9="","",(1/(1+$C$4)^(I$7+$E9))*$H9*$G9*$C$3) -> 0 | J9: =IF($H9="","",(1/(1+$C$4)^(J$7+$E9))*$H9*$G9*$C$3) -> 0 | K9: 0 | L9: 0 | M9: 0 | N9: 0 | O9: 0 | P9: 0 | Q9: 0 | R9: 0 | S9: 0 | T9: 0 | U9: 0 | V9: 0 | W9: 0 | X9: =IF(W9="","",SUM(I9:W9)) -> 0 | Y9: =IF(C9=0,0,IF(X9="","",X9/(C9*1000))) -> 0
A10: =IF(ISBLANK(InfoPro!A3),"",InfoPro!A3) -> SC_2288_A1 | B10: =IF(ISBLANK(InfoPro!B3),"",InfoPro!B3) -> PARQUE SOLAR FOTOVOLTAICO ESTEROS SOL DE 199MW | C10: =IF(ISBLANK(InfoPro!E3),"",InfoPro!E3) -> 199 | D10: =IF(ISBLANK(InfoPro!F3),"",InfoPro!F3) -> Solar FV | E10: =IF(ISBLANK(InfoPro!I3),"",YEAR(InfoPro!I3)-$G$4) -> 2 | F10: =IF(B10="","",VLOOKUP(D10,Tablas!$B$2:$E$13,2,FALSE)) -> 0.26 | G10: =IF(B10="","",VLOOKUP(D10,Tablas!$B$2:$F$13,3,FALSE)) -> 0 | H10: =IF(C10="","",+C10*F10*24*365) -> 453242.4 | I10: 0 | J10: 0 | K10: 0 | L10: 0 | M10: 0 | N10: 0 | O10: 0 | P10: 0 | Q10: 0 | R10: 0 | S10: 0 | T10: 0 | U10: 0 | V10: 0 | W10: 0 | X10: =IF(W10="","",SUM(I10:W10)) -> 0 | Y10: =IF(C10=0,0,IF(X10="","",X10/(C10*1000))) -> 0
A11: =IF(ISBLANK(InfoPro!A4),"",InfoPro!A4) -> SC_2288_A2 | B11: =IF(ISBLANK(InfoPro!B4),"",InfoPro!B4) -> PARQUE SOLAR FOTOVOLTAICO ESTEROS SOL DE 199MW | C11: =IF(ISBLANK(InfoPro!E4),"",InfoPro!E4) -> 199 | D11: =IF(ISBLANK(InfoPro!F4),"",InfoPro!F4) -> Solar FV | E11: =IF(ISBLANK(InfoPro!I4),"",YEAR(InfoPro!I4)-$G$4) -> 2 | F11: =IF(B11="","",VLOOKUP(D11,Tablas!$B$2:$E$13,2,FALSE)) -> 0.26 | G11: =IF(B11="","",VLOOKUP(D11,Tablas!$B$2:$F$13,3,FALSE)) -> 0 | H11: 453242.4 | I11: 0 | J11: 0 | K11: 0 | L11: 0 | M11: 0 | N11: 0 | O11: 0 | P11: 0 | Q11: 0 | R11: 0 | S11: 0 | T11: 0 | U11: 0 | V11: 0 | W11: 0 | X11: 0 | Y11: 0
A12: =IF(ISBLANK(InfoPro!A5),"",InfoPro!A5) -> SC_924_A1 | B12: =IF(ISBLANK(InfoPro!B5),"",InfoPro!B5) -> PARQUE FOTOVOLTAICO LA SABANA | C12: =IF(ISBLANK(InfoPro!E5),"",InfoPro!E5) -> 100 | D12: =IF(ISBLANK(InfoPro!F5),"",InfoPro!F5) -> Solar FV | E12: =IF(ISBLANK(InfoPro!I5),"",YEAR(InfoPro!I5)-$G$4) -> 3 | F12: =IF(B12="","",VLOOKUP(D12,Tablas!$B$2:$E$13,2,FALSE)) -> 0.26 | G12: =IF(B12="","",VLOOKUP(D12,Tablas!$B$2:$F$13,3,FALSE)) -> 0 | H12: 227760 | I12: 0 | J12: 0 | K12: 0 | L12: 0 | M12: 0 | N12: 0 | O12: 0 | P12: 0 | Q12: 0 | R12: 0 | S12: 0 | T12: 0 | U12: 0 | V12: 0 | W12: 0 | X12: 0 | Y12: 0
A13: =IF(ISBLANK(InfoPro!A6),"",InfoPro!A6) -> SC_924_A2 | B13: =IF(ISBLANK(InfoPro!B6),"",InfoPro!B6) -> PARQUE FOTOVOLTAICO LA SABANA | C13: =IF(ISBLANK(InfoPro!E6),"",InfoPro!E6) -> 100 | D13: =IF(ISBLANK(InfoPro!F6),"",InfoPro!F6) -> Solar FV | E13: =IF(ISBLANK(InfoPro!I6),"",YEAR(InfoPro!I6)-$G$4) -> 3 | F13: =IF(B13="","",VLOOKUP(D13,Tablas!$B$2:$E$13,2,FALSE)) -> 0.26 | G13: =IF(B13="","",VLOOKUP(D13,Tablas!$B$2:$F$13,3,FALSE)) -> 0 | H13: 227760 | I13: 0 | J13: 0 | K13: 0 | L13: 0 | M13: 0 | N13: 0 | O13: 0 | P13: 0 | Q13: 0 | R13: 0 | S13: 0 | T13: 0 | U13: 0 | V13: 0 | W13: 0 | X13: 0 | Y13: 0
A14: =IF(ISBLANK(InfoPro!A7),"",InfoPro!A7) -> SC_756_A1 | B14: =IF(ISBLANK(InfoPro!B7),"",InfoPro!B7) -> PARQUE FOTOVOLTAICO BALSILLAS | C14: =IF(ISBLANK(InfoPro!E7),"",InfoPro!E7) -> 100 | D14: =IF(ISBLANK(InfoPro!F7),"",InfoPro!F7) -> Solar FV | E14: =IF(ISBLANK(InfoPro!I7),"",YEAR(InfoPro!I7)-$G$4) -> 2 | F14: =IF(B14="","",VLOOKUP(D14,Tablas!$B$2:$E$13,2,FALSE)) -> 0.26 | G14: =IF(B14="","",VLOOKUP(D14,Tablas!$B$2:$F$13,3,FALSE)) -> 0 | H14: 227760 | I14: 0 | J14: 0 | K14: 0 | L14: 0 | M14: 0 | N14: 0 | O14: 0 | P14: 0 | Q14: 0 | R14: 0 | S14: 0 | T14: 0 | U14: 0 | V14: 0 | W14: 0 | X14: 0 | Y14: 0
A15: =IF(ISBLANK(InfoPro!A8),"",InfoPro!A8) -> SC_756_A2 | B15: =IF(ISBLANK(InfoPro!B8),"",InfoPro!B8) -> PARQUE FOTOVOLTAICO BALSILLAS | C15: =IF(ISBLANK(InfoPro!E8),"",InfoPro!E8) -> 100 | D15: =IF(ISBLANK(InfoPro!F8),"",InfoPro!F8) -> Solar FV | E15: =IF(ISBLANK(InfoPro!I8),"",YEAR(InfoPro!I8)-$G$4) -> 2 | F15: =IF(B15="","",VLOOKUP(D15,Tablas!$B$2:$E$13,2,FALSE)) -> 0.26 | G15: =IF(B15="","",VLOOKUP(D15,Tablas!$B$2:$F$13,3,FALSE)) -> 0 | H15: 227760 | I15: 0 | J15: 0 | K15: 0 | L15: 0 | M15: 0 | N15: 0 | O15: 0 | P15: 0 | Q15: 0 | R15: 0 | S15: 0 | T15: 0 | U15: 0 | V15: 0 | W15: 0 | X15: 0 | Y15: 0
A16: =IF(ISBLANK(InfoPro!A9),"",InfoPro!A9) -> SC_1207_A1 | B16: =IF(ISBLANK(InfoPro!B9),"",InfoPro!B9) -> Guacaná | C16: =IF(ISBLANK(InfoPro!E9),"",InfoPro!E9) -> 19.9 | D16: =IF(ISBLANK(InfoPro!F9),"",InfoPro!F9) -> Solar FV | E16: =IF(ISBLANK(InfoPro!I9),"",YEAR(InfoPro!I9)-$G$4) -> 2 | F16: =IF(B16="","",VLOOKUP(D16,Tablas!$B$2:$E$13,2,FALSE)) -> 0.26 | G16: =IF(B16="","",VLOOKUP(D16,Tablas!$B$2:$F$13,3,FALSE)) -> 0 | H16: 45324.24 | I16: 0 | J16: 0 | K16: 0 | L16: 0 | M16: 0 | N16: 0 | O16: 0 | P16: 0 | Q16: 0 | R16: 0 | S16: 0 | T16: 0 | U16: 0 | V16: 0 | W16: 0 | X16: 0 | Y16: 0
A17: =IF(ISBLANK(InfoPro!A10),"",InfoPro!A10) -> SC_709_A1 | B17: =IF(ISBLANK(InfoPro!B10),"",InfoPro!B10) -> PARQUE FOTOVOLTAICO SUÉ 2 | C17: =IF(ISBLANK(InfoPro!E10),"",InfoPro!E10) -> 9.9 | D17: =IF(ISBLANK(InfoPro!F10),"",InfoPro!F10) -> Solar FV | E17: =IF(ISBLANK(InfoPro!I10),"",YEAR(InfoPro!I10)-$G$4) -> 3 | F17: =IF(B17="","",VLOOKUP(D17,Tablas!$B$2:$E$13,2,FALSE)) -> 0.26 | G17: =IF(B17="","",VLOOKUP(D17,Tablas!$B$2:$F$13,3,FALSE)) -> 0 | H17: 22548.24 | I17: 0 | J17: 0 | K17: 0 | L17: 0 | M17: 0 | N17: 0 | O17: 0 | P17: 0 | Q17: 0 | R17: 0 | S17: 0 | T17: 0 | U17: 0 | V17: 0 | W17: 0 | X17: 0 | Y17: 0
A18: =IF(ISBLANK(InfoPro!A11),"",InfoPro!A11) -> SC_1299_A1 | B18: =IF(ISBLANK(InfoPro!B11),"",InfoPro!B11) -> Parque Eólico Sisga | C18: =IF(ISBLANK(InfoPro!E11),"",InfoPro!E11) -> 20 | D18: =IF(ISBLANK(InfoPro!F11),"",InfoPro!F11) -> Eólico Onshore | E18: =IF(ISBLANK(InfoPro!I11),"",YEAR(InfoPro!I11)-$G$4) -> 4 | F18: =IF(B18="","",VLOOKUP(D18,Tablas!$B$2:$E$13,2,FALSE)) -> 0.57 | G18: =IF(B18="","",VLOOKUP(D18,Tablas!$B$2:$F$13,3,FALSE)) -> 0 | H18: 99864 | I18: 0 | J18: 0 | K18: 0 | L18: 0 | M18: 0 | N18: 0 | O18: 0 | P18: 0 | Q18: 0 | R18: 0 | S18: 0 | T18: 0 | U18: 0 | V18: 0 | W18: 0 | X18: 0 | Y18: 0
A19: =IF(ISBLANK(InfoPro!A12),"",InfoPro!A12) -> SC_1299_A2 | B19: =IF(ISBLANK(InfoPro!B12),"",InfoPro!B12) -> Parque Eólico Sisga | C19: =IF(ISBLANK(InfoPro!E12),"",InfoPro!E12) -> 20 | D19: =IF(ISBLANK(InfoPro!F12),"",InfoPro!F12) -> Eólico Onshore | E19: =IF(ISBLANK(InfoPro!I12),"",YEAR(InfoPro!I12)-$G$4) -> 4 | F19: =IF(B19="","",VLOOKUP(D19,Tablas!$B$2:$E$13,2,FALSE)) -> 0.57 | G19: =IF(B19="","",VLOOKUP(D19,Tablas!$B$2:$F$13,3,FALSE)) -> 0 | H19: 99864 | I19: =IF($H19="","",(1/(1+$C$4)^(I$7+$E19))*$H19*$G19*$C$3) -> 0 | J19: 0 | K19: 0 | L19: 0 | M19: 0 | N19: 0 | O19: 0 | P19: 0 | Q19: 0 | R19: 0 | S19: 0 | T19: 0 | U19: 0 | V19: 0 | W19: 0 | X19: 0 | Y19: 0
A20: =IF(ISBLANK(InfoPro!A13),"",InfoPro!A13) -> SC_416_A1 | B20: =IF(ISBLANK(InfoPro!B13),"",InfoPro!B13) -> Solar Jagüey | C20: =IF(ISBLANK(InfoPro!E13),"",InfoPro!E13) -> 112 | D20: =IF(ISBLANK(InfoPro!F13),"",InfoPro!F13) -> Solar FV | E20: =IF(ISBLANK(InfoPro!I13),"",YEAR(InfoPro!I13)-$G$4) -> 3 | F20: =IF(B20="","",VLOOKUP(D20,Tablas!$B$2:$E$13,2,FALSE)) -> 0.26 | G20: =IF(B20="","",VLOOKUP(D20,Tablas!$B$2:$F$13,3,FALSE)) -> 0 | H20: 255091.2 | I20: 0 | J20: 0 | K20: 0 | L20: 0 | M20: 0 | N20: 0 | O20: 0 | P20: 0 | Q20: 0 | R20: 0 | S20: 0 | T20: 0 | U20: 0 | V20: 0 | W20: 0 | X20: 0 | Y20: 0
A21: =IF(ISBLANK(InfoPro!A14),"",InfoPro!A14) -> SC_416_A2 | B21: =IF(ISBLANK(InfoPro!B14),"",InfoPro!B14) -> Solar Jagüey | C21: =IF(ISBLANK(InfoPro!E14),"",InfoPro!E14) -> 112 | D21: =IF(ISBLANK(InfoPro!F14),"",InfoPro!F14) -> Solar FV | E21: =IF(ISBLANK(InfoPro!I14),"",YEAR(InfoPro!I14)-$G$4) -> 3 | F21: =IF(B21="","",VLOOKUP(D21,Tablas!$B$2:$E$13,2,FALSE)) -> 0.26 | G21: =IF(B21="","",VLOOKUP(D21,Tablas!$B$2:$F$13,3,FALSE)) -> 0 | H21: 255091.2 | I21: 0 | J21: 0 | K21: 0 | L21: 0 | M21: 0 | N21: 0 | O21: 0 | P21: 0 | Q21: 0 | R21: 0 | S21: 0 | T21: 0 | U21: 0 | V21: 0 | W21: 0 | X21: 0 | Y21: 0
A22: =IF(ISBLANK(InfoPro!A15),"",InfoPro!A15) -> SC_1023_A1 | B22: =IF(ISBLANK(InfoPro!B15),"",InfoPro!B15) -> PARQUE SOLAR LOS HELECHOS | C22: =IF(ISBLANK(InfoPro!E15),"",InfoPro!E15) -> 9.9 | D22: =IF(ISBLANK(InfoPro!F15),"",InfoPro!F15) -> Solar FV | E22: =IF(ISBLANK(InfoPro!I15),"",YEAR(InfoPro!I15)-$G$4) -> 1 | F22: =IF(B22="","",VLOOKUP(D22,Tablas!$B$2:$E$13,2,FALSE)) -> 0.26 | G22: =IF(B22="","",VLOOKUP(D22,Tablas!$B$2:$F$13,3,FALSE)) -> 0 | H22: =IF(C22="","",+C22*F22*24*365) -> 22548.24 | I22: 0 | J22: 0 | K22: 0 | L22: 0 | M22: 0 | N22: 0 | O22: 0 | P22: 0 | Q22: 0 | R22: 0 | S22: 0 | T22: 0 | U22: 0 | V22: 0 | W22: 0 | X22: =IF(W22="","",SUM(I22:W22)) -> 0 | Y22: =IF(C22=0,0,IF(X22="","",X22/(C22*1000))) -> 0
A23: =IF(ISBLANK(InfoPro!A16),"",InfoPro!A16) -> SC_1023_A2 | B23: =IF(ISBLANK(InfoPro!B16),"",InfoPro!B16) -> PARQUE SOLAR LOS HELECHOS | C23: =IF(ISBLANK(InfoPro!E16),"",InfoPro!E16) -> 9.9 | D23: =IF(ISBLANK(InfoPro!F16),"",InfoPro!F16) -> Solar FV | E23: =IF(ISBLANK(InfoPro!I16),"",YEAR(InfoPro!I16)-$G$4) -> 1 | F23: =IF(B23="","",VLOOKUP(D23,Tablas!$B$2:$E$13,2,FALSE)) -> 0.26 | G23: =IF(B23="","",VLOOKUP(D23,Tablas!$B$2:$F$13,3,FALSE)) -> 0 | H23: 22548.24 | I23: 0 | J23: 0 | K23: 0 | L23: 0 | M23: 0 | N23: 0 | O23: 0 | P23: 0 | Q23: 0 | R23: 0 | S23: 0 | T23: 0 | U23: 0 | V23: 0 | W23: 0 | X23: 0 | Y23: 0
A24: =IF(ISBLANK(InfoPro!A17),"",InfoPro!A17) -> SC_1449_A1 | B24: =IF(ISBLANK(InfoPro!B17),"",InfoPro!B17) -> Autogeneración Geopark | C24: =IF(ISBLANK(InfoPro!E17),"",InfoPro!E17) -> 0 | D24: =IF(ISBLANK(InfoPro!F17),"",InfoPro!F17) -> Solar FV | E24: =IF(ISBLANK(InfoPro!I17),"",YEAR(InfoPro!I17)-$G$4) -> 0 | F24: =IF(B24="","",VLOOKUP(D24,Tablas!$B$2:$E$13,2,FALSE)) -> 0.26 | G24: =IF(B24="","",VLOOKUP(D24,Tablas!$B$2:$F$13,3,FALSE)) -> 0 | H24: 0 | I24: 0 | J24: 0 | K24: 0 | L24: 0 | M24: 0 | N24: 0 | O24: 0 | P24: 0 | Q24: 0 | R24: 0 | S24: 0 | T24: 0 | U24: 0 | V24: 0 | W24: 0 | X24: 0 | Y24: 0
A25: =IF(ISBLANK(InfoPro!A18),"",InfoPro!A18) -> SC_1590_A1 | B25: =IF(ISBLANK(InfoPro!B18),"",InfoPro!B18) -> PCH Ventana de 7MW (entrega 6,7 MW) | C25: =IF(ISBLANK(InfoPro!E18),"",InfoPro!E18) -> 6.7 | D25: =IF(ISBLANK(InfoPro!F18),"",InfoPro!F18) -> PCH | E25: =IF(ISBLANK(InfoPro!I18),"",YEAR(InfoPro!I18)-$G$4) -> 1 | F25: =IF(B25="","",VLOOKUP(D25,Tablas!$B$2:$E$13,2,FALSE)) -> 0.54 | G25: =IF(B25="","",VLOOKUP(D25,Tablas!$B$2:$F$13,3,FALSE)) -> 0.61 | H25: 31693.68 | I25: 1166438834 | J25: 1043326327 | K25: 933207806.1 | L25: 834711812.2 | M25: 746611638.9 | N25: 667810052.6 | O25: 597325628.5 | P25: 534280526.4 | Q25: 477889558.5 | R25: 427450410.1 | S25: 382334892.7 | T25: 341981120.5 | U25: 305886512.1 | V25: 273601531.4 | W25: 244724088.9 | X25: 8977580740 | Y25: 1339937.424
A26: =IF(ISBLANK(InfoPro!A19),"",InfoPro!A19) -> SC_2156_A1 | B26: =IF(ISBLANK(InfoPro!B19),"",InfoPro!B19) -> CENTRAL DE GENERACIÓN BIOMASA BOGOTÁ III | C26: =IF(ISBLANK(InfoPro!E19),"",InfoPro!E19) -> 9.88 | D26: =IF(ISBLANK(InfoPro!F19),"",InfoPro!F19) -> Biomasa y Residuos | E26: =IF(ISBLANK(InfoPro!I19),"",YEAR(InfoPro!I19)-$G$4) -> 1 | F26: =IF(B26="","",VLOOKUP(D26,Tablas!$B$2:$E$13,2,FALSE)) -> 0.7 | G26: =IF(B26="","",VLOOKUP(D26,Tablas!$B$2:$F$13,3,FALSE)) -> 0.25 | H26: 60584.16 | I26: 913815595.8 | J26: 817366364.8 | K26: 731096927.3 | L26: 653932850.9 | M26: 584913104.6 | N26: 523178090 | O26: 467958935.6 | P26: 418567920.9 | Q26: 374389911.4 | R26: 334874697.1 | S26: 299530140.5 | T26: 267916047 | U26: 239638682.5 | V26: 214345869.8 | W26: 191722602.7 | X26: 7033247741 | Y26: 711867.1803
A27: =IF(ISBLANK(InfoPro!A20),"",InfoPro!A20) -> SC_2156_A2 | B27: =IF(ISBLANK(InfoPro!B20),"",InfoPro!B20) -> CENTRAL DE GENERACIÓN BIOMASA BOGOTÁ III | C27: =IF(ISBLANK(InfoPro!E20),"",InfoPro!E20) -> 9.88 | D27: =IF(ISBLANK(InfoPro!F20),"",InfoPro!F20) -> Biomasa y Residuos | E27: =IF(ISBLANK(InfoPro!I20),"",YEAR(InfoPro!I20)-$G$4) -> 1 | F27: =IF(B27="","",VLOOKUP(D27,Tablas!$B$2:$E$13,2,FALSE)) -> 0.7 | G27: =IF(B27="","",VLOOKUP(D27,Tablas!$B$2:$F$13,3,FALSE)) -> 0.25 | H27: 60584.16 | I27: 913815595.8 | J27: 817366364.8 | K27: 731096927.3 | L27: 653932850.9 | M27: 584913104.6 | N27: 523178090 | O27: 467958935.6 | P27: 418567920.9 | Q27: 374389911.4 | R27: 334874697.1 | S27: 299530140.5 | T27: 267916047 | U27: 239638682.5 | V27: 214345869.8 | W27: 191722602.7 | X27: 7033247741 | Y27: 711867.1803
A28: =IF(ISBLANK(InfoPro!A21),"",InfoPro!A21) -> SC_936_A1 | B28: =IF(ISBLANK(InfoPro!B21),"",InfoPro!B21) -> Parque Fotovoltaico La Vaca 80 MW | C28: =IF(ISBLANK(InfoPro!E21),"",InfoPro!E21) -> 80 | D28: =IF(ISBLANK(InfoPro!F21),"",InfoPro!F21) -> Solar FV | E28: =IF(ISBLANK(InfoPro!I21),"",YEAR(InfoPro!I21)-$G$4) -> 3 | F28: =IF(B28="","",VLOOKUP(D28,Tablas!$B$2:$E$13,2,FALSE)) -> 0.26 | G28: =IF(B28="","",VLOOKUP(D28,Tablas!$B$2:$F$13,3,FALSE)) -> 0 | H28: 182208 | I28: 0 | J28: 0 | K28: 0 | L28: 0 | M28: 0 | N28: 0 | O28: 0 | P28: 0 | Q28: 0 | R28: 0 | S28: 0 | T28: 0 | U28: 0 | V28: 0 | W28: 0 | X28: 0 | Y28: 0
A29: =IF(ISBLANK(InfoPro!A22),"",InfoPro!A22) -> SC_936_A2 | B29: =IF(ISBLANK(InfoPro!B22),"",InfoPro!B22) -> Parque Fotovoltaico La Vaca 80 MW | C29: =IF(ISBLANK(InfoPro!E22),"",InfoPro!E22) -> 80 | D29: =IF(ISBLANK(InfoPro!F22),"",InfoPro!F22) -> Solar FV | E29: =IF(ISBLANK(InfoPro!I22),"",YEAR(InfoPro!I22)-$G$4) -> 3 | F29: =IF(B29="","",VLOOKUP(D29,Tablas!$B$2:$E$13,2,FALSE)) -> 0.26 | G29: =IF(B29="","",VLOOKUP(D29,Tablas!$B$2:$F$13,3,FALSE)) -> 0 | H29: 182208 | I29: =IF($H29="","",(1/(1+$C$4)^(I$7+$E29))*$H29*$G29*$C$3) -> 0 | J29: 0 | K29: 0 | L29: 0 | M29: 0 | N29: 0 | O29: 0 | P29: 0 | Q29: 0 | R29: 0 | S29: 0 | T29: 0 | U29: 0 | V29: 0 | W29: 0 | X29: 0 | Y29: 0
A30: =IF(ISBLANK(InfoPro!A23),"",InfoPro!A23) -> SC_1799_A1 | B30: =IF(ISBLANK(InfoPro!B23),"",InfoPro!B23) -> EXCEDENTES AUTOGENERACION VRO | C30: =IF(ISBLANK(InfoPro!E23),"",InfoPro!E23) -> 46.71 | D30: =IF(ISBLANK(InfoPro!F23),"",InfoPro!F23) -> Solar FV | E30: =IF(ISBLANK(InfoPro!I23),"",YEAR(InfoPro!I23)-$G$4) -> 5 | F30: =IF(B30="","",VLOOKUP(D30,Tablas!$B$2:$E$13,2,FALSE)) -> 0.26 | G30: =IF(B30="","",VLOOKUP(D30,Tablas!$B$2:$F$13,3,FALSE)) -> 0 | H30: 106386.696 | I30: 0 | J30: 0 | K30: 0 | L30: 0 | M30: 0 | N30: 0 | O30: 0 | P30: 0 | Q30: 0 | R30: 0 | S30: 0 | T30: 0 | U30: 0 | V30: 0 | W30: 0 | X30: 0 | Y30: 0
A31: =IF(ISBLANK(InfoPro!A24),"",InfoPro!A24) -> SC_1757_A1 | B31: =IF(ISBLANK(InfoPro!B24),"",InfoPro!B24) -> PGF La Escuela | C31: =IF(ISBLANK(InfoPro!E24),"",InfoPro!E24) -> 40 | D31: =IF(ISBLANK(InfoPro!F24),"",InfoPro!F24) -> Solar FV | E31: =IF(ISBLANK(InfoPro!I24),"",YEAR(InfoPro!I24)-$G$4) -> 2 | F31: =IF(B31="","",VLOOKUP(D31,Tablas!$B$2:$E$13,2,FALSE)) -> 0.26 | G31: =IF(B31="","",VLOOKUP(D31,Tablas!$B$2:$F$13,3,FALSE)) -> 0 | H31: 91104 | I31: 0 | J31: 0 | K31: 0 | L31: 0 | M31: 0 | N31: 0 | O31: 0 | P31: 0 | Q31: 0 | R31: 0 | S31: 0 | T31: 0 | U31: 0 | V31: 0 | W31: 0 | X31: 0 | Y31: 0
A32: =IF(ISBLANK(InfoPro!A25),"",InfoPro!A25) -> SC_1757_A3 | B32: =IF(ISBLANK(InfoPro!B25),"",InfoPro!B25) -> PGF La Escuela | C32: =IF(ISBLANK(InfoPro!E25),"",InfoPro!E25) -> 40 | D32: =IF(ISBLANK(InfoPro!F25),"",InfoPro!F25) -> Solar FV | E32: =IF(ISBLANK(InfoPro!I25),"",YEAR(InfoPro!I25)-$G$4) -> 2 | F32: =IF(B32="","",VLOOKUP(D32,Tablas!$B$2:$E$13,2,FALSE)) -> 0.26 | G32: =IF(B32="","",VLOOKUP(D32,Tablas!$B$2:$F$13,3,FALSE)) -> 0 | H32: 91104 | I32: 0 | J32: 0 | K32: 0 | L32: 0 | M32: 0 | N32: 0 | O32: 0 | P32: 0 | Q32: 0 | R32: 0 | S32: 0 | T32: 0 | U32: 0 | V32: 0 | W32: 0 | X32: 0 | Y32: 0
A33: =IF(ISBLANK(InfoPro!A26),"",InfoPro!A26) -> SC_1870_A1 | B33: =IF(ISBLANK(InfoPro!B26),"",InfoPro!B26) -> Helios Puerto Lopez - 15MW | C33: =IF(ISBLANK(InfoPro!E26),"",InfoPro!E26) -> 15 | D33: =IF(ISBLANK(InfoPro!F26),"",InfoPro!F26) -> Solar FV | E33: =IF(ISBLANK(InfoPro!I26),"",YEAR(InfoPro!I26)-$G$4) -> 1 | F33: =IF(B33="","",VLOOKUP(D33,Tablas!$B$2:$E$13,2,FALSE)) -> 0.26 | G33: =IF(B33="","",VLOOKUP(D33,Tablas!$B$2:$F$13,3,FALSE)) -> 0 | H33: 34164 | I33: 0 | J33: 0 | K33: 0 | L33: 0 | M33: 0 | N33: 0 | O33: 0 | P33: 0 | Q33: 0 | R33: 0 | S33: 0 | T33: 0 | U33: 0 | V33: 0 | W33: 0 | X33: 0 | Y33: 0
A34: =IF(ISBLANK(InfoPro!A27),"",InfoPro!A27) -> SC_1870_A2 | B34: =IF(ISBLANK(InfoPro!B27),"",InfoPro!B27) -> Helios Puerto Lopez - 15MW | C34: =IF(ISBLANK(InfoPro!E27),"",InfoPro!E27) -> 15 | D34: =IF(ISBLANK(InfoPro!F27),"",InfoPro!F27) -> Solar FV | E34: =IF(ISBLANK(InfoPro!I27),"",YEAR(InfoPro!I27)-$G$4) -> 1 | F34: =IF(B34="","",VLOOKUP(D34,Tablas!$B$2:$E$13,2,FALSE)) -> 0.26 | G34: =IF(B34="","",VLOOKUP(D34,Tablas!$B$2:$F$13,3,FALSE)) -> 0 | H34: 34164 | I34: 0 | J34: 0 | K34: 0 | L34: 0 | M34: 0 | N34: 0 | O34: 0 | P34: 0 | Q34: 0 | R34: 0 | S34: 0 | T34: 0 | U34: 0 | V34: 0 | W34: 0 | X34: 0 | Y34: 0
A35: =IF(ISBLANK(InfoPro!A28),"",InfoPro!A28) -> SC_1892_A1 | B35: =IF(ISBLANK(InfoPro!B28),"",InfoPro!B28) -> PARQUE SOLAR MESITAS | C35: =IF(ISBLANK(InfoPro!E28),"",InfoPro!E28) -> 9.9 | D35: =IF(ISBLANK(InfoPro!F28),"",InfoPro!F28) -> Solar FV | E35: =IF(ISBLANK(InfoPro!I28),"",YEAR(InfoPro!I28)-$G$4) -> 1 | F35: =IF(B35="","",VLOOKUP(D35,Tablas!$B$2:$E$13,2,FALSE)) -> 0.26 | G35: =IF(B35="","",VLOOKUP(D35,Tablas!$B$2:$F$13,3,FALSE)) -> 0 | H35: 22548.24 | I35: 0 | J35: 0 | K35: 0 | L35: 0 | M35: 0 | N35: 0 | O35: 0 | P35: 0 | Q35: 0 | R35: 0 | S35: 0 | T35: 0 | U35: 0 | V35: 0 | W35: 0 | X35: 0 | Y35: 0
A36: =IF(ISBLANK(InfoPro!A29),"",InfoPro!A29) -> SC_1892_A2 | B36: =IF(ISBLANK(InfoPro!B29),"",InfoPro!B29) -> PARQUE SOLAR MESITAS | C36: =IF(ISBLANK(InfoPro!E29),"",InfoPro!E29) -> 9.9 | D36: =IF(ISBLANK(InfoPro!F29),"",InfoPro!F29) -> Solar FV | E36: =IF(ISBLANK(InfoPro!I29),"",YEAR(InfoPro!I29)-$G$4) -> 1 | F36: =IF(B36="","",VLOOKUP(D36,Tablas!$B$2:$E$13,2,FALSE)) -> 0.26 | G36: =IF(B36="","",VLOOKUP(D36,Tablas!$B$2:$F$13,3,FALSE)) -> 0 | H36: 22548.24 | I36: 0 | J36: 0 | K36: 0 | L36: 0 | M36: 0 | N36: 0 | O36: 0 | P36: 0 | Q36: 0 | R36: 0 | S36: 0 | T36: 0 | U36: 0 | V36: 0 | W36: 0 | X36: 0 | Y36: 0
A37: =IF(ISBLANK(InfoPro!A30),"",InfoPro!A30) -> SC_1930_A2 | B37: =IF(ISBLANK(InfoPro!B30),"",InfoPro!B30) -> PV José Maria Cordova 9.9 MW | C37: =IF(ISBLANK(InfoPro!E30),"",InfoPro!E30) -> 9.9 | D37: =IF(ISBLANK(InfoPro!F30),"",InfoPro!F30) -> Solar FV | E37: =IF(ISBLANK(InfoPro!I30),"",YEAR(InfoPro!I30)-$G$4) -> 2 | F37: =IF(B37="","",VLOOKUP(D37,Tablas!$B$2:$E$13,2,FALSE)) -> 0.26 | G37: =IF(B37="","",VLOOKUP(D37,Tablas!$B$2:$F$13,3,FALSE)) -> 0 | H37: 22548.24 | I37: 0 | J37: 0 | K37: 0 | L37: 0 | M37: 0 | N37: 0 | O37: 0 | P37: 0 | Q37: 0 | R37: 0 | S37: 0 | T37: 0 | U37: 0 | V37: 0 | W37: 0 | X37: 0 | Y37: 0
A38: =IF(ISBLANK(InfoPro!A31),"",InfoPro!A31) -> SC_2060_A1 | B38: =IF(ISBLANK(InfoPro!B31),"",InfoPro!B31) -> EL DANUBIO - 50 MW | C38: =IF(ISBLANK(InfoPro!E31),"",InfoPro!E31) -> 50 | D38: =IF(ISBLANK(InfoPro!F31),"",InfoPro!F31) -> Solar FV | E38: =IF(ISBLANK(InfoPro!I31),"",YEAR(InfoPro!I31)-$G$4) -> 3 | F38: =IF(B38="","",VLOOKUP(D38,Tablas!$B$2:$E$13,2,FALSE)) -> 0.26 | G38: =IF(B38="","",VLOOKUP(D38,Tablas!$B$2:$F$13,3,FALSE)) -> 0 | H38: 113880 | I38: 0 | J38: 0 | K38: 0 | L38: 0 | M38: 0 | N38: 0 | O38: 0 | P38: 0 | Q38: 0 | R38: 0 | S38: 0 | T38: 0 | U38: 0 | V38: 0 | W38: 0 | X38: 0 | Y38: 0
A39: =IF(ISBLANK(InfoPro!A32),"",InfoPro!A32) -> SC_2060_A2 | B39: =IF(ISBLANK(InfoPro!B32),"",InfoPro!B32) -> EL DANUBIO - 50 MW | C39: =IF(ISBLANK(InfoPro!E32),"",InfoPro!E32) -> 50 | D39: =IF(ISBLANK(InfoPro!F32),"",InfoPro!F32) -> Solar FV | E39: =IF(ISBLANK(InfoPro!I32),"",YEAR(InfoPro!I32)-$G$4) -> 3 | F39: =IF(B39="","",VLOOKUP(D39,Tablas!$B$2:$E$13,2,FALSE)) -> 0.26 | G39: =IF(B39="","",VLOOKUP(D39,Tablas!$B$2:$F$13,3,FALSE)) -> 0 | H39: 113880 | I39: 0 | J39: 0 | K39: 0 | L39: 0 | M39: 0 | N39: 0 | O39: 0 | P39: 0 | Q39: 0 | R39: 0 | S39: 0 | T39: 0 | U39: 0 | V39: 0 | W39: 0 | X39: 0 | Y39: 0
A40: =IF(ISBLANK(InfoPro!A33),"",InfoPro!A33) -> SC_1836_A1 | B40: =IF(ISBLANK(InfoPro!B33),"",InfoPro!B33) -> PARQUE SOLAR LA MERCED 9.9 MW | C40: =IF(ISBLANK(InfoPro!E33),"",InfoPro!E33) -> 9.9 | D40: =IF(ISBLANK(InfoPro!F33),"",InfoPro!F33) -> Solar FV | E40: =IF(ISBLANK(InfoPro!I33),"",YEAR(InfoPro!I33)-$G$4) -> 1 | F40: =IF(B40="","",VLOOKUP(D40,Tablas!$B$2:$E$13,2,FALSE)) -> 0.26 | G40: =IF(B40="","",VLOOKUP(D40,Tablas!$B$2:$F$13,3,FALSE)) -> 0 | H40: 22548.24 | I40: 0 | J40: 0 | K40: 0 | L40: 0 | M40: 0 | N40: 0 | O40: 0 | P40: 0 | Q40: 0 | R40: 0 | S40: 0 | T40: 0 | U40: 0 | V40: 0 | W40: 0 | X40: 0 | Y40: 0
A41: =IF(ISBLANK(InfoPro!#REF!),"",InfoPro!#REF!) ->  | B41: =IF(ISBLANK(InfoPro!#REF!),"",InfoPro!#REF!) ->  | C41: =IF(ISBLANK(InfoPro!#REF!),"",InfoPro!#REF!) ->  | D41: =IF(ISBLANK(InfoPro!#REF!),"",InfoPro!#REF!) ->  | E41: =IF(ISBLANK(InfoPro!#REF!),"",YEAR(InfoPro!#REF!)-$G$4) ->  | F41: =IF(B41="","",VLOOKUP(D41,Tablas!$B$2:$E$13,2,FALSE)) ->  | G41: =IF(B41="","",VLOOKUP(D41,Tablas!$B$2:$F$13,3,FALSE)) -> 
A42: =IF(ISBLANK(InfoPro!A34),"",InfoPro!A34) -> SC_2071_A1 | B42: =IF(ISBLANK(InfoPro!B34),"",InfoPro!B34) -> Morichal - 9.9 MW | C42: =IF(ISBLANK(InfoPro!E34),"",InfoPro!E34) -> 9.9 | D42: =IF(ISBLANK(InfoPro!F34),"",InfoPro!F34) -> Solar FV | E42: =IF(ISBLANK(InfoPro!I34),"",YEAR(InfoPro!I34)-$G$4) -> 2 | F42: =IF(B42="","",VLOOKUP(D42,Tablas!$B$2:$E$13,2,FALSE)) -> 0.26 | G42: =IF(B42="","",VLOOKUP(D42,Tablas!$B$2:$F$13,3,FALSE)) -> 0 | H42: 22548.24 | I42: 0 | J42: 0 | K42: 0 | L42: 0 | M42: 0 | N42: 0 | O42: 0 | P42: 0 | Q42: 0 | R42: 0 | S42: 0 | T42: 0 | U42: 0 | V42: 0 | W42: 0 | X42: 0 | Y42: 0
A43: =IF(ISBLANK(InfoPro!A35),"",InfoPro!A35) -> SC_2281_A1 | B43: =IF(ISBLANK(InfoPro!B35),"",InfoPro!B35) -> PARQUE EÓLICO SAUCES de 288 MW | C43: =IF(ISBLANK(InfoPro!E35),"",InfoPro!E35) -> 288 | D43: =IF(ISBLANK(InfoPro!F35),"",InfoPro!F35) -> Eólico Onshore | E43: =IF(ISBLANK(InfoPro!I35),"",YEAR(InfoPro!I35)-$G$4) -> 2 | F43: =IF(B43="","",VLOOKUP(D43,Tablas!$B$2:$E$13,2,FALSE)) -> 0.57 | G43: =IF(B43="","",VLOOKUP(D43,Tablas!$B$2:$F$13,3,FALSE)) -> 0 | H43: 1438041.6 | I43: 0 | J43: 0 | K43: 0 | L43: 0 | M43: 0 | N43: 0 | O43: 0 | P43: 0 | Q43: 0 | R43: 0 | S43: 0 | T43: 0 | U43: 0 | V43: 0 | W43: 0 | X43: 0 | Y43: 0
A44: =IF(ISBLANK(InfoPro!A36),"",InfoPro!A36) -> SC_2281_A2 | B44: =IF(ISBLANK(InfoPro!B36),"",InfoPro!B36) -> PARQUE EÓLICO SAUCES de 288 MW | C44: =IF(ISBLANK(InfoPro!E36),"",InfoPro!E36) -> 288 | D44: =IF(ISBLANK(InfoPro!F36),"",InfoPro!F36) -> Eólico Onshore | E44: =IF(ISBLANK(InfoPro!I36),"",YEAR(InfoPro!I36)-$G$4) -> 2 | F44: =IF(B44="","",VLOOKUP(D44,Tablas!$B$2:$E$13,2,FALSE)) -> 0.57 | G44: =IF(B44="","",VLOOKUP(D44,Tablas!$B$2:$F$13,3,FALSE)) -> 0 | H44: 1438041.6 | I44: 0 | J44: 0 | K44: 0 | L44: 0 | M44: 0 | N44: 0 | O44: 0 | P44: 0 | Q44: 0 | R44: 0 | S44: 0 | T44: 0 | U44: 0 | V44: 0 | W44: 0 | X44: 0 | Y44: 0
A45: =IF(ISBLANK(InfoPro!A37),"",InfoPro!A37) -> SC_2116_A1 | B45: =IF(ISBLANK(InfoPro!B37),"",InfoPro!B37) -> Parque Eólico Los Cerezos 60 MW | C45: =IF(ISBLANK(InfoPro!E37),"",InfoPro!E37) -> 60 | D45: =IF(ISBLANK(InfoPro!F37),"",InfoPro!F37) -> Eólico Onshore | E45: =IF(ISBLANK(InfoPro!I37),"",YEAR(InfoPro!I37)-$G$4) -> 4 | F45: =IF(B45="","",VLOOKUP(D45,Tablas!$B$2:$E$13,2,FALSE)) -> 0.57 | G45: =IF(B45="","",VLOOKUP(D45,Tablas!$B$2:$F$13,3,FALSE)) -> 0 | H45: 299592 | I45: 0 | J45: 0 | K45: 0 | L45: 0 | M45: 0 | N45: 0 | O45: 0 | P45: 0 | Q45: 0 | R45: 0 | S45: 0 | T45: 0 | U45: 0 | V45: 0 | W45: 0 | X45: 0 | Y45: 0
A46: =IF(ISBLANK(InfoPro!A38),"",InfoPro!A38) -> SC_2116_A2 | B46: =IF(ISBLANK(InfoPro!B38),"",InfoPro!B38) -> Parque Eólico Los Cerezos 60 MW | C46: =IF(ISBLANK(InfoPro!E38),"",InfoPro!E38) -> 60 | D46: =IF(ISBLANK(InfoPro!F38),"",InfoPro!F38) -> Eólico Onshore | E46: =IF(ISBLANK(InfoPro!I38),"",YEAR(InfoPro!I38)-$G$4) -> 4 | F46: =IF(B46="","",VLOOKUP(D46,Tablas!$B$2:$E$13,2,FALSE)) -> 0.57 | G46: =IF(B46="","",VLOOKUP(D46,Tablas!$B$2:$F$13,3,FALSE)) -> 0 | H46: 299592 | I46: =IF($H46="","",(1/(1+$C$4)^(I$7+$E46))*$H46*$G46*$C$3) -> 0 | J46: 0 | K46: 0 | L46: 0 | M46: 0 | N46: 0 | O46: 0 | P46: 0 | Q46: 0 | R46: 0 | S46: 0 | T46: 0 | U46: 0 | V46: 0 | W46: 0 | X46: 0 | Y46: 0
A47: =IF(ISBLANK(InfoPro!A39),"",InfoPro!A39) -> SC_2078_A1 | B47: =IF(ISBLANK(InfoPro!B39),"",InfoPro!B39) -> PARQUE SOLAR SANTA HELENA 19.9 | C47: =IF(ISBLANK(InfoPro!E39),"",InfoPro!E39) -> 19.9 | D47: =IF(ISBLANK(InfoPro!F39),"",InfoPro!F39) -> Solar FV | E47: =IF(ISBLANK(InfoPro!I39),"",YEAR(InfoPro!I39)-$G$4) -> 1 | F47: =IF(B47="","",VLOOKUP(D47,Tablas!$B$2:$E$13,2,FALSE)) -> 0.26 | G47: =IF(B47="","",VLOOKUP(D47,Tablas!$B$2:$F$13,3,FALSE)) -> 0 | H47: 45324.24 | I47: 0 | J47: 0 | K47: 0 | L47: 0 | M47: 0 | N47: 0 | O47: 0 | P47: 0 | Q47: 0 | R47: 0 | S47: 0 | T47: 0 | U47: 0 | V47: 0 | W47: 0 | X47: 0 | Y47: 0
A48: =IF(ISBLANK(InfoPro!A40),"",InfoPro!A40) -> SC_1899_A1 | B48: =IF(ISBLANK(InfoPro!B40),"",InfoPro!B40) -> Sikaramá 9.9 MW | C48: =IF(ISBLANK(InfoPro!E40),"",InfoPro!E40) -> 9.9 | D48: =IF(ISBLANK(InfoPro!F40),"",InfoPro!F40) -> Solar FV | E48: =IF(ISBLANK(InfoPro!I40),"",YEAR(InfoPro!I40)-$G$4) -> 3 | F48: =IF(B48="","",VLOOKUP(D48,Tablas!$B$2:$E$13,2,FALSE)) -> 0.26 | G48: =IF(B48="","",VLOOKUP(D48,Tablas!$B$2:$F$13,3,FALSE)) -> 0 | H48: 22548.24 | I48: 0 | J48: 0 | K48: 0 | L48: 0 | M48: 0 | N48: 0 | O48: 0 | P48: 0 | Q48: 0 | R48: 0 | S48: 0 | T48: 0 | U48: 0 | V48: 0 | W48: 0 | X48: 0 | Y48: 0
A49: =IF(ISBLANK(InfoPro!A41),"",InfoPro!A41) -> SC_1899_A2 | B49: =IF(ISBLANK(InfoPro!B41),"",InfoPro!B41) -> Sikaramá 9.9 MW | C49: =IF(ISBLANK(InfoPro!E41),"",InfoPro!E41) -> 9.9 | D49: =IF(ISBLANK(InfoPro!F41),"",InfoPro!F41) -> Solar FV | E49: =IF(ISBLANK(InfoPro!I41),"",YEAR(InfoPro!I41)-$G$4) -> 3 | F49: =IF(B49="","",VLOOKUP(D49,Tablas!$B$2:$E$13,2,FALSE)) -> 0.26 | G49: =IF(B49="","",VLOOKUP(D49,Tablas!$B$2:$F$13,3,FALSE)) -> 0 | H49: 22548.24 | I49: 0 | J49: 0 | K49: 0 | L49: 0 | M49: 0 | N49: 0 | O49: 0 | P49: 0 | Q49: 0 | R49: 0 | S49: 0 | T49: 0 | U49: 0 | V49: 0 | W49: 0 | X49: 0 | Y49: 0
A50: =IF(ISBLANK(InfoPro!A42),"",InfoPro!A42) -> SC_2144_A1 | B50: =IF(ISBLANK(InfoPro!B42),"",InfoPro!B42) -> PGFV Andes I | C50: =IF(ISBLANK(InfoPro!E42),"",InfoPro!E42) -> 19.9 | D50: =IF(ISBLANK(InfoPro!F42),"",InfoPro!F42) -> Solar FV | E50: =IF(ISBLANK(InfoPro!I42),"",YEAR(InfoPro!I42)-$G$4) -> 1 | F50: =IF(B50="","",VLOOKUP(D50,Tablas!$B$2:$E$13,2,FALSE)) -> 0.26 | G50: =IF(B50="","",VLOOKUP(D50,Tablas!$B$2:$F$13,3,FALSE)) -> 0 | H50: 45324.24 | I50: 0 | J50: 0 | K50: 0 | L50: 0 | M50: 0 | N50: 0 | O50: 0 | P50: 0 | Q50: 0 | R50: 0 | S50: 0 | T50: 0 | U50: 0 | V50: 0 | W50: 0 | X50: 0 | Y50: 0
A51: =IF(ISBLANK(InfoPro!A43),"",InfoPro!A43) -> SC_2144_A2 | B51: =IF(ISBLANK(InfoPro!B43),"",InfoPro!B43) -> PGFV Andes I | C51: =IF(ISBLANK(InfoPro!E43),"",InfoPro!E43) -> 19.9 | D51: =IF(ISBLANK(InfoPro!F43),"",InfoPro!F43) -> Solar FV | E51: =IF(ISBLANK(InfoPro!I43),"",YEAR(InfoPro!I43)-$G$4) -> 1 | F51: =IF(B51="","",VLOOKUP(D51,Tablas!$B$2:$E$13,2,FALSE)) -> 0.26 | G51: =IF(B51="","",VLOOKUP(D51,Tablas!$B$2:$F$13,3,FALSE)) -> 0 | H51: 45324.24 | I51: 0 | J51: 0 | K51: 0 | L51: 0 | M51: 0 | N51: 0 | O51: 0 | P51: 0 | Q51: 0 | R51: 0 | S51: 0 | T51: 0 | U51: 0 | V51: 0 | W51: 0 | X51: 0 | Y51: 0
A52: =IF(ISBLANK(InfoPro!A44),"",InfoPro!A44) -> SC_2176_A1 | B52: =IF(ISBLANK(InfoPro!B44),"",InfoPro!B44) -> PGFV Andes II | C52: =IF(ISBLANK(InfoPro!E44),"",InfoPro!E44) -> 19.9 | D52: =IF(ISBLANK(InfoPro!F44),"",InfoPro!F44) -> Solar FV | E52: =IF(ISBLANK(InfoPro!I44),"",YEAR(InfoPro!I44)-$G$4) -> 1 | F52: =IF(B52="","",VLOOKUP(D52,Tablas!$B$2:$E$13,2,FALSE)) -> 0.26 | G52: =IF(B52="","",VLOOKUP(D52,Tablas!$B$2:$F$13,3,FALSE)) -> 0 | H52: 45324.24 | I52: 0 | J52: 0 | K52: 0 | L52: 0 | M52: 0 | N52: 0 | O52: 0 | P52: 0 | Q52: 0 | R52: 0 | S52: 0 | T52: 0 | U52: 0 | V52: 0 | W52: 0 | X52: 0 | Y52: 0
A53: =IF(ISBLANK(InfoPro!A45),"",InfoPro!A45) -> SC_2176_A2 | B53: =IF(ISBLANK(InfoPro!B45),"",InfoPro!B45) -> PGFV Andes II | C53: =IF(ISBLANK(InfoPro!E45),"",InfoPro!E45) -> 19.9 | D53: =IF(ISBLANK(InfoPro!F45),"",InfoPro!F45) -> Solar FV | E53: =IF(ISBLANK(InfoPro!I45),"",YEAR(InfoPro!I45)-$G$4) -> 1 | F53: =IF(B53="","",VLOOKUP(D53,Tablas!$B$2:$E$13,2,FALSE)) -> 0.26 | G53: =IF(B53="","",VLOOKUP(D53,Tablas!$B$2:$F$13,3,FALSE)) -> 0 | H53: 45324.24 | I53: 0 | J53: 0 | K53: 0 | L53: 0 | M53: 0 | N53: 0 | O53: 0 | P53: 0 | Q53: 0 | R53: 0 | S53: 0 | T53: 0 | U53: 0 | V53: 0 | W53: 0 | X53: 0 | Y53: 0
A54: =IF(ISBLANK(InfoPro!A46),"",InfoPro!A46) -> SC_1886_A1 | B54: =IF(ISBLANK(InfoPro!B46),"",InfoPro!B46) -> Rúkura 60 MW | C54: =IF(ISBLANK(InfoPro!E46),"",InfoPro!E46) -> 60 | D54: =IF(ISBLANK(InfoPro!F46),"",InfoPro!F46) -> Solar FV | E54: =IF(ISBLANK(InfoPro!I46),"",YEAR(InfoPro!I46)-$G$4) -> 5 | F54: =IF(B54="","",VLOOKUP(D54,Tablas!$B$2:$E$13,2,FALSE)) -> 0.26 | G54: =IF(B54="","",VLOOKUP(D54,Tablas!$B$2:$F$13,3,FALSE)) -> 0 | H54: 136656 | I54: 0 | J54: 0 | K54: 0 | L54: 0 | M54: 0 | N54: 0 | O54: 0 | P54: 0 | Q54: 0 | R54: 0 | S54: 0 | T54: 0 | U54: 0 | V54: 0 | W54: 0 | X54: 0 | Y54: 0
A55: =IF(ISBLANK(InfoPro!A47),"",InfoPro!A47) -> SC_1886_A2 | B55: =IF(ISBLANK(InfoPro!B47),"",InfoPro!B47) -> Rúkura 60 MW | C55: =IF(ISBLANK(InfoPro!E47),"",InfoPro!E47) -> 60 | D55: =IF(ISBLANK(InfoPro!F47),"",InfoPro!F47) -> Solar FV | E55: =IF(ISBLANK(InfoPro!I47),"",YEAR(InfoPro!I47)-$G$4) -> 5 | F55: =IF(B55="","",VLOOKUP(D55,Tablas!$B$2:$E$13,2,FALSE)) -> 0.26 | G55: =IF(B55="","",VLOOKUP(D55,Tablas!$B$2:$F$13,3,FALSE)) -> 0 | H55: 136656 | I55: 0 | J55: 0 | K55: 0 | L55: 0 | M55: 0 | N55: 0 | O55: 0 | P55: 0 | Q55: 0 | R55: 0 | S55: 0 | T55: 0 | U55: 0 | V55: 0 | W55: 0 | X55: 0 | Y55: 0
A56: =IF(ISBLANK(InfoPro!A48),"",InfoPro!A48) -> SC_2002_A1 | B56: =IF(ISBLANK(InfoPro!B48),"",InfoPro!B48) -> Bosques Solares de los Llanos 8 | C56: =IF(ISBLANK(InfoPro!E48),"",InfoPro!E48) -> 170 | D56: =IF(ISBLANK(InfoPro!F48),"",InfoPro!F48) -> Solar FV | E56: =IF(ISBLANK(InfoPro!I48),"",YEAR(InfoPro!I48)-$G$4) -> 3 | F56: =IF(B56="","",VLOOKUP(D56,Tablas!$B$2:$E$13,2,FALSE)) -> 0.26 | G56: =IF(B56="","",VLOOKUP(D56,Tablas!$B$2:$F$13,3,FALSE)) -> 0 | H56: 387192 | I56: 0 | J56: 0 | K56: 0 | L56: 0 | M56: 0 | N56: 0 | O56: 0 | P56: 0 | Q56: 0 | R56: 0 | S56: 0 | T56: 0 | U56: 0 | V56: 0 | W56: 0 | X56: 0 | Y56: 0
A57: =IF(ISBLANK(InfoPro!A49),"",InfoPro!A49) -> SC_2002_A2 | B57: =IF(ISBLANK(InfoPro!B49),"",InfoPro!B49) -> Bosques Solares de los Llanos 8 | C57: =IF(ISBLANK(InfoPro!E49),"",InfoPro!E49) -> 170 | D57: =IF(ISBLANK(InfoPro!F49),"",InfoPro!F49) -> Solar FV | E57: =IF(ISBLANK(InfoPro!I49),"",YEAR(InfoPro!I49)-$G$4) -> 3 | F57: =IF(B57="","",VLOOKUP(D57,Tablas!$B$2:$E$13,2,FALSE)) -> 0.26 | G57: =IF(B57="","",VLOOKUP(D57,Tablas!$B$2:$F$13,3,FALSE)) -> 0 | H57: 387192 | I57: 0 | J57: 0 | K57: 0 | L57: 0 | M57: 0 | N57: 0 | O57: 0 | P57: 0 | Q57: 0 | R57: 0 | S57: 0 | T57: 0 | U57: 0 | V57: 0 | W57: 0 | X57: 0 | Y57: 0
A58: =IF(ISBLANK(InfoPro!A50),"",InfoPro!A50) -> SC_1881_A1 | B58: =IF(ISBLANK(InfoPro!B50),"",InfoPro!B50) -> PARQUE FOTOVOLTAICO SIMIJACA | C58: =IF(ISBLANK(InfoPro!E50),"",InfoPro!E50) -> 60 | D58: =IF(ISBLANK(InfoPro!F50),"",InfoPro!F50) -> Solar FV | E58: =IF(ISBLANK(InfoPro!I50),"",YEAR(InfoPro!I50)-$G$4) -> 3 | F58: =IF(B58="","",VLOOKUP(D58,Tablas!$B$2:$E$13,2,FALSE)) -> 0.26 | G58: =IF(B58="","",VLOOKUP(D58,Tablas!$B$2:$F$13,3,FALSE)) -> 0 | H58: 136656 | I58: 0 | J58: 0 | K58: 0 | L58: 0 | M58: 0 | N58: 0 | O58: 0 | P58: 0 | Q58: 0 | R58: 0 | S58: 0 | T58: 0 | U58: 0 | V58: 0 | W58: 0 | X58: 0 | Y58: 0
A59: =IF(ISBLANK(InfoPro!A51),"",InfoPro!A51) -> SC_1881_A2 | B59: =IF(ISBLANK(InfoPro!B51),"",InfoPro!B51) -> PARQUE FOTOVOLTAICO SIMIJACA | C59: =IF(ISBLANK(InfoPro!E51),"",InfoPro!E51) -> 60 | D59: =IF(ISBLANK(InfoPro!F51),"",InfoPro!F51) -> Solar FV | E59: =IF(ISBLANK(InfoPro!I51),"",YEAR(InfoPro!I51)-$G$4) -> 3 | F59: =IF(B59="","",VLOOKUP(D59,Tablas!$B$2:$E$13,2,FALSE)) -> 0.26 | G59: =IF(B59="","",VLOOKUP(D59,Tablas!$B$2:$F$13,3,FALSE)) -> 0 | H59: 136656 | I59: 0 | J59: 0 | K59: 0 | L59: 0 | M59: 0 | N59: 0 | O59: 0 | P59: 0 | Q59: 0 | R59: 0 | S59: 0 | T59: 0 | U59: 0 | V59: 0 | W59: 0 | X59: 0 | Y59: 0
A60: =IF(ISBLANK(InfoPro!A52),"",InfoPro!A52) -> SC_2326_A1 | B60: =IF(ISBLANK(InfoPro!B52),"",InfoPro!B52) -> ARQUE EÓLICO ORQUIDEAS de 288 MW | C60: =IF(ISBLANK(InfoPro!E52),"",InfoPro!E52) -> 288 | D60: =IF(ISBLANK(InfoPro!F52),"",InfoPro!F52) -> Eólico Onshore | E60: =IF(ISBLANK(InfoPro!I52),"",YEAR(InfoPro!I52)-$G$4) -> 2 | F60: =IF(B60="","",VLOOKUP(D60,Tablas!$B$2:$E$13,2,FALSE)) -> 0.57 | G60: =IF(B60="","",VLOOKUP(D60,Tablas!$B$2:$F$13,3,FALSE)) -> 0 | H60: 1438041.6 | I60: 0 | J60: 0 | K60: 0 | L60: 0 | M60: 0 | N60: 0 | O60: 0 | P60: 0 | Q60: 0 | R60: 0 | S60: 0 | T60: 0 | U60: 0 | V60: 0 | W60: 0 | X60: 0 | Y60: 0
A61: =IF(ISBLANK(InfoPro!A53),"",InfoPro!A53) -> SC_2326_A2 | B61: =IF(ISBLANK(InfoPro!B53),"",InfoPro!B53) -> ARQUE EÓLICO ORQUIDEAS de 288 MW | C61: =IF(ISBLANK(InfoPro!E53),"",InfoPro!E53) -> 288 | D61: =IF(ISBLANK(InfoPro!F53),"",InfoPro!F53) -> Eólico Onshore | E61: =IF(ISBLANK(InfoPro!I53),"",YEAR(InfoPro!I53)-$G$4) -> 2 | F61: =IF(B61="","",VLOOKUP(D61,Tablas!$B$2:$E$13,2,FALSE)) -> 0.57 | G61: =IF(B61="","",VLOOKUP(D61,Tablas!$B$2:$F$13,3,FALSE)) -> 0 | H61: 1438041.6 | I61: 0 | J61: 0 | K61: 0 | L61: 0 | M61: 0 | N61: 0 | O61: 0 | P61: 0 | Q61: 0 | R61: 0 | S61: 0 | T61: 0 | U61: 0 | V61: 0 | W61: 0 | X61: 0 | Y61: 0
A62: =IF(ISBLANK(InfoPro!A54),"",InfoPro!A54) -> SC_2075_A1 | B62: =IF(ISBLANK(InfoPro!B54),"",InfoPro!B54) -> Ubaté Solar | C62: =IF(ISBLANK(InfoPro!E54),"",InfoPro!E54) -> 19.9 | D62: =IF(ISBLANK(InfoPro!F54),"",InfoPro!F54) -> Solar FV | E62: =IF(ISBLANK(InfoPro!I54),"",YEAR(InfoPro!I54)-$G$4) -> 0 | F62: =IF(B62="","",VLOOKUP(D62,Tablas!$B$2:$E$13,2,FALSE)) -> 0.26 | G62: =IF(B62="","",VLOOKUP(D62,Tablas!$B$2:$F$13,3,FALSE)) -> 0 | H62: 45324.24 | I62: 0 | J62: 0 | K62: 0 | L62: 0 | M62: 0 | N62: 0 | O62: 0 | P62: 0 | Q62: 0 | R62: 0 | S62: 0 | T62: 0 | U62: 0 | V62: 0 | W62: 0 | X62: 0 | Y62: 0
A63: =IF(ISBLANK(InfoPro!A55),"",InfoPro!A55) -> SC_2075_A2 | B63: =IF(ISBLANK(InfoPro!B55),"",InfoPro!B55) -> Ubaté Solar | C63: =IF(ISBLANK(InfoPro!E55),"",InfoPro!E55) -> 19.9 | D63: =IF(ISBLANK(InfoPro!F55),"",InfoPro!F55) -> Solar FV | E63: =IF(ISBLANK(InfoPro!I55),"",YEAR(InfoPro!I55)-$G$4) -> 0 | F63: =IF(B63="","",VLOOKUP(D63,Tablas!$B$2:$E$13,2,FALSE)) -> 0.26 | G63: =IF(B63="","",VLOOKUP(D63,Tablas!$B$2:$F$13,3,FALSE)) -> 0 | H63: 45324.24 | I63: =IF($H63="","",(1/(1+$C$4)^(I$7+$E63))*$H63*$G63*$C$3) -> 0 | J63: 0 | K63: 0 | L63: 0 | M63: 0 | N63: 0 | O63: 0 | P63: 0 | Q63: 0 | R63: 0 | S63: 0 | T63: 0 | U63: 0 | V63: 0 | W63: 0 | X63: 0 | Y63: 0
A64: =IF(ISBLANK(InfoPro!A56),"",InfoPro!A56) -> SC_2217_A1 | B64: =IF(ISBLANK(InfoPro!B56),"",InfoPro!B56) -> CENTRAL DE GENERACIÓN BIOMASA BOGOTÁ II 9,88 MW | C64: =IF(ISBLANK(InfoPro!E56),"",InfoPro!E56) -> 9.88 | D64: =IF(ISBLANK(InfoPro!F56),"",InfoPro!F56) -> Biomasa y Residuos | E64: =IF(ISBLANK(InfoPro!I56),"",YEAR(InfoPro!I56)-$G$4) -> 0 | F64: =IF(B64="","",VLOOKUP(D64,Tablas!$B$2:$E$13,2,FALSE)) -> 0.7 | G64: =IF(B64="","",VLOOKUP(D64,Tablas!$B$2:$F$13,3,FALSE)) -> 0.25 | H64: 60584.16 | I64: 1021645836 | J64: 913815595.8 | K64: 817366364.8 | L64: 731096927.3 | M64: 653932850.9 | N64: 584913104.6 | O64: 523178090 | P64: 467958935.6 | Q64: 418567920.9 | R64: 374389911.4 | S64: 334874697.1 | T64: 299530140.5 | U64: 267916047 | V64: 239638682.5 | W64: 214345869.8 | X64: 7863170974 | Y64: 795867.5075
A65: =IF(ISBLANK(InfoPro!A57),"",InfoPro!A57) -> SC_2217_A2 | B65: =IF(ISBLANK(InfoPro!B57),"",InfoPro!B57) -> CENTRAL DE GENERACIÓN BIOMASA BOGOTÁ II 9,88 MW | C65: =IF(ISBLANK(InfoPro!E57),"",InfoPro!E57) -> 9.88 | D65: =IF(ISBLANK(InfoPro!F57),"",InfoPro!F57) -> Biomasa y Residuos | E65: =IF(ISBLANK(InfoPro!I57),"",YEAR(InfoPro!I57)-$G$4) -> 0 | F65: =IF(B65="","",VLOOKUP(D65,Tablas!$B$2:$E$13,2,FALSE)) -> 0.7 | G65: =IF(B65="","",VLOOKUP(D65,Tablas!$B$2:$F$13,3,FALSE)) -> 0.25 | H65: 60584.16 | I65: 1021645836 | J65: 913815595.8 | K65: 817366364.8 | L65: 731096927.3 | M65: 653932850.9 | N65: 584913104.6 | O65: 523178090 | P65: 467958935.6 | Q65: 418567920.9 | R65: 374389911.4 | S65: 334874697.1 | T65: 299530140.5 | U65: 267916047 | V65: 239638682.5 | W65: 214345869.8 | X65: 7863170974 | Y65: 795867.5075

Sheet BT-Confi
H2: CR1 | I2: 2033920 | J2: COP/MWh
B3: Precio promedio de bolsa | C3: ='EC-RP'!C2 -> 192057 | D3: COP/MWh | H3: PE | I3: 884380 | J3: COP/MWh
B4: Tasa de descuento | C4: 0.118 | F4: Año de Referencia | G4: 2023 | H4: Proba | I4: 0.19 | J4: UPME Plan de expansion
F5: Mínimo | G5: =MIN(Y9:Y166) ->  | H5: CR1-PE | I5: =((I2-I3)) -> 1149540 | J5: COP/MWh
I7: 0 | J7: 1 | K7: 2 | L7: 3 | M7: 4 | N7: 5 | O7: 6 | P7: 7 | Q7: 8 | R7: 9 | S7: 10 | T7: 11 | U7: 12 | V7: 13 | W7: 14
A8: Codigo | B8: Nombre | C8: capacidad | D8: Tecnologia | E8: Año de entrada | F8: FP | G8: Factor ENFICC | H8: ENFICC/a MWh/a | I8: Flujo Descontado 0 | J8: Flujo Descontado 1 | K8: Flujo Descontado 2 | L8: Flujo Descontado 3 | M8: Flujo Descontado 4 | N8: Flujo Descontado 5 | O8: Flujo Descontado 6 | P8: Flujo Descontado 7 | Q8: Flujo Descontado 8 | R8: Flujo Descontado 9 | S8: Flujo Descontado 10 | T8: Flujo Descontado 11 | U8: Flujo Descontado 12 | V8: Flujo Descontado 13 | W8: Flujo Descontado 14 | X8: VPN | Y8: Beneficio/kW
A9: =IF(ISBLANK(InfoPro!A2),"",InfoPro!A2) -> SC_481_A1 | B9: =IF(ISBLANK(InfoPro!B2),"",InfoPro!B2) -> DIAMANTE | C9: =IF(ISBLANK(InfoPro!E2),"",InfoPro!E2) -> 70 | D9: =IF(ISBLANK(InfoPro!F2),"",InfoPro!F2) -> Solar FV | E9: =IF(ISBLANK(InfoPro!I2),"",YEAR(InfoPro!I2)-$G$4) -> 2 | F9: =IF(B9="","",VLOOKUP(D9,Tablas!$B$2:$E$13,2,FALSE)) -> 0.26 | G9: =IF(B9="","",VLOOKUP(D9,Tablas!$B$2:$F$13,5,FALSE)) -> 0.15 | H9: =IF(C9="","",+C9*G9*F9*24*365) -> 23914.8 | I9: =IF($H9="","",(1/(1+$C$4)^(I$7+$E9))*$H9*$I$5*$I$4) -> 4178888994 | J9: =IF($H9="","",(1/(1+$C$4)^(J$7+$E9))*$H9*$I$5*$I$4) -> 3737825576 | K9: 3343314468 | L9: 2990442279 | M9: 2674814203 | N9: 2392499288 | O9: 2139981474 | P9: 1914115808 | Q9: 1712089274 | R9: 1531385755 | S9: 1369754700 | T9: 1225183095 | U9: 1095870389 | V9: =IF($H9="","",(1/(1+$C$4)^(V$7+$E9))*$H9*$I$5*$I$4) -> 980206072.5 | W9: 876749617.7 | X9: =IF(W9="","",SUM(I9:W9)) -> 3.216312099e+10 | Y9: =IF(C9=0,0,IF(X9="","",X9/(C9*1000))) -> 459473.157
A10: =IF(ISBLANK(InfoPro!A3),"",InfoPro!A3) -> SC_2288_A1 | B10: =IF(ISBLANK(InfoPro!B3),"",InfoPro!B3) -> PARQUE SOLAR FOTOVOLTAICO ESTEROS SOL DE 199MW | C10: =IF(ISBLANK(InfoPro!E3),"",InfoPro!E3) -> 199 | D10: =IF(ISBLANK(InfoPro!F3),"",InfoPro!F3) -> Solar FV | E10: =IF(ISBLANK(InfoPro!I3),"",YEAR(InfoPro!I3)-$G$4) -> 2 | F10: =IF(B10="","",VLOOKUP(D10,Tablas!$B$2:$E$13,2,FALSE)) -> 0.26 | G10: =IF(B10="","",VLOOKUP(D10,Tablas!$B$2:$F$13,5,FALSE)) -> 0.15 | H10: =IF(C10="","",+C10*G10*F10*24*365) -> 67986.36 | I10: 1.187998442e+10 | J10: 1.062610414e+10 | K10: 9504565417 | L10: 8501400194 | M10: 7604114664 | N10: 6801533689 | O10: 6083661618 | P10: 5441557798 | Q10: 4867225222 | R10: 4353510932 | S10: 3894016934 | T10: 3483020513 | U10: 3115402963 | V10: 2786585835 | W10: 2492473913 | X10: =IF(W10="","",SUM(I10:W10)) -> 9.143515825e+10 | Y10: =IF(C10=0,0,IF(X10="","",X10/(C10*1000))) -> 459473.157
A11: =IF(ISBLANK(InfoPro!A4),"",InfoPro!A4) -> SC_2288_A2 | B11: =IF(ISBLANK(InfoPro!B4),"",InfoPro!B4) -> PARQUE SOLAR FOTOVOLTAICO ESTEROS SOL DE 199MW | C11: =IF(ISBLANK(InfoPro!E4),"",InfoPro!E4) -> 199 | D11: =IF(ISBLANK(InfoPro!F4),"",InfoPro!F4) -> Solar FV | E11: =IF(ISBLANK(InfoPro!I4),"",YEAR(InfoPro!I4)-$G$4) -> 2 | F11: =IF(B11="","",VLOOKUP(D11,Tablas!$B$2:$E$13,2,FALSE)) -> 0.26 | G11: =IF(B11="","",VLOOKUP(D11,Tablas!$B$2:$F$13,5,FALSE)) -> 0.15 | H11: 67986.36 | I11: 1.187998442e+10 | J11: 1.062610414e+10 | K11: 9504565417 | L11: 8501400194 | M11: 7604114664 | N11: 6801533689 | O11: 6083661618 | P11: 5441557798 | Q11: 4867225222 | R11: 4353510932 | S11: 3894016934 | T11: 3483020513 | U11: 3115402963 | V11: 2786585835 | W11: 2492473913 | X11: 9.143515825e+10 | Y11: 459473.157
A12: =IF(ISBLANK(InfoPro!A5),"",InfoPro!A5) -> SC_924_A1 | B12: =IF(ISBLANK(InfoPro!B5),"",InfoPro!B5) -> PARQUE FOTOVOLTAICO LA SABANA | C12: =IF(ISBLANK(InfoPro!E5),"",InfoPro!E5) -> 100 | D12: =IF(ISBLANK(InfoPro!F5),"",InfoPro!F5) -> Solar FV | E12: =IF(ISBLANK(InfoPro!I5),"",YEAR(InfoPro!I5)-$G$4) -> 3 | F12: =IF(B12="","",VLOOKUP(D12,Tablas!$B$2:$E$13,2,FALSE)) -> 0.26 | G12: =IF(B12="","",VLOOKUP(D12,Tablas!$B$2:$F$13,5,FALSE)) -> 0.15 | H12: 34164 | I12: 5339750822 | J12: 4776163526 | K12: 4272060399 | L12: 3821163148 | M12: 3417856125 | N12: 3057116391 | O12: 2734451155 | P12: 2445841820 | Q12: 2187693936 | R12: 1956792429 | S12: 1750261564 | T12: 1565529127 | U12: 1400294389 | V12: 1252499454 | W12: 1120303626 | X12: 4.109777791e+10 | Y12: 410977.7791
A13: =IF(ISBLANK(InfoPro!A6),"",InfoPro!A6) -> SC_924_A2 | B13: =IF(ISBLANK(InfoPro!B6),"",InfoPro!B6) -> PARQUE FOTOVOLTAICO LA SABANA | C13: =IF(ISBLANK(InfoPro!E6),"",InfoPro!E6) -> 100 | D13: =IF(ISBLANK(InfoPro!F6),"",InfoPro!F6) -> Solar FV | E13: =IF(ISBLANK(InfoPro!I6),"",YEAR(InfoPro!I6)-$G$4) -> 3 | F13: =IF(B13="","",VLOOKUP(D13,Tablas!$B$2:$E$13,2,FALSE)) -> 0.26 | G13: =IF(B13="","",VLOOKUP(D13,Tablas!$B$2:$F$13,5,FALSE)) -> 0.15 | H13: 34164 | I13: 5339750822 | J13: 4776163526 | K13: 4272060399 | L13: 3821163148 | M13: 3417856125 | N13: 3057116391 | O13: 2734451155 | P13: 2445841820 | Q13: 2187693936 | R13: 1956792429 | S13: 1750261564 | T13: 1565529127 | U13: 1400294389 | V13: 1252499454 | W13: 1120303626 | X13: 4.109777791e+10 | Y13: 410977.7791
A14: =IF(ISBLANK(InfoPro!A7),"",InfoPro!A7) -> SC_756_A1 | B14: =IF(ISBLANK(InfoPro!B7),"",InfoPro!B7) -> PARQUE FOTOVOLTAICO BALSILLAS | C14: =IF(ISBLANK(InfoPro!E7),"",InfoPro!E7) -> 100 | D14: =IF(ISBLANK(InfoPro!F7),"",InfoPro!F7) -> Solar FV | E14: =IF(ISBLANK(InfoPro!I7),"",YEAR(InfoPro!I7)-$G$4) -> 2 | F14: =IF(B14="","",VLOOKUP(D14,Tablas!$B$2:$E$13,2,FALSE)) -> 0.26 | G14: =IF(B14="","",VLOOKUP(D14,Tablas!$B$2:$F$13,5,FALSE)) -> 0.15 | H14: 34164 | I14: 5969841419 | J14: 5339750822 | K14: 4776163526 | L14: 4272060399 | M14: 3821163148 | N14: 3417856125 | O14: 3057116391 | P14: 2734451155 | Q14: 2445841820 | R14: 2187693936 | S14: 1956792429 | T14: 1750261564 | U14: 1565529127 | V14: 1400294389 | W14: 1252499454 | X14: 4.59473157e+10 | Y14: 459473.157
A15: =IF(ISBLANK(InfoPro!A8),"",InfoPro!A8) -> SC_756_A2 | B15: =IF(ISBLANK(InfoPro!B8),"",InfoPro!B8) -> PARQUE FOTOVOLTAICO BALSILLAS | C15: =IF(ISBLANK(InfoPro!E8),"",InfoPro!E8) -> 100 | D15: =IF(ISBLANK(InfoPro!F8),"",InfoPro!F8) -> Solar FV | E15: =IF(ISBLANK(InfoPro!I8),"",YEAR(InfoPro!I8)-$G$4) -> 2 | F15: =IF(B15="","",VLOOKUP(D15,Tablas!$B$2:$E$13,2,FALSE)) -> 0.26 | G15: =IF(B15="","",VLOOKUP(D15,Tablas!$B$2:$F$13,5,FALSE)) -> 0.15 | H15: 34164 | I15: 5969841419 | J15: 5339750822 | K15: 4776163526 | L15: 4272060399 | M15: 3821163148 | N15: 3417856125 | O15: 3057116391 | P15: 2734451155 | Q15: 2445841820 | R15: 2187693936 | S15: 1956792429 | T15: 1750261564 | U15: 1565529127 | V15: 1400294389 | W15: 1252499454 | X15: 4.59473157e+10 | Y15: 459473.157
A16: =IF(ISBLANK(InfoPro!A9),"",InfoPro!A9) -> SC_1207_A1 | B16: =IF(ISBLANK(InfoPro!B9),"",InfoPro!B9) -> Guacaná | C16: =IF(ISBLANK(InfoPro!E9),"",InfoPro!E9) -> 19.9 | D16: =IF(ISBLANK(InfoPro!F9),"",InfoPro!F9) -> Solar FV | E16: =IF(ISBLANK(InfoPro!I9),"",YEAR(InfoPro!I9)-$G$4) -> 2 | F16: =IF(B16="","",VLOOKUP(D16,Tablas!$B$2:$E$13,2,FALSE)) -> 0.26 | G16: =IF(B16="","",VLOOKUP(D16,Tablas!$B$2:$F$13,5,FALSE)) -> 0.15 | H16: 6798.636 | I16: 1187998442 | J16: 1062610414 | K16: 950456541.7 | L16: 850140019.4 | M16: 760411466.4 | N16: 680153368.9 | O16: 608366161.8 | P16: 544155779.8 | Q16: 486722522.2 | R16: 435351093.2 | S16: 389401693.4 | T16: 348302051.3 | U16: 311540296.3 | V16: 278658583.5 | W16: 249247391.3 | X16: 9143515825 | Y16: 459473.157
A17: =IF(ISBLANK(InfoPro!A10),"",InfoPro!A10) -> SC_709_A1 | B17: =IF(ISBLANK(InfoPro!B10),"",InfoPro!B10) -> PARQUE FOTOVOLTAICO SUÉ 2 | C17: =IF(ISBLANK(InfoPro!E10),"",InfoPro!E10) -> 9.9 | D17: =IF(ISBLANK(InfoPro!F10),"",InfoPro!F10) -> Solar FV | E17: =IF(ISBLANK(InfoPro!I10),"",YEAR(InfoPro!I10)-$G$4) -> 3 | F17: =IF(B17="","",VLOOKUP(D17,Tablas!$B$2:$E$13,2,FALSE)) -> 0.26 | G17: =IF(B17="","",VLOOKUP(D17,Tablas!$B$2:$F$13,5,FALSE)) -> 0.15 | H17: 3382.236 | I17: 528635331.4 | J17: 472840189.1 | K17: 422933979.5 | L17: 378295151.6 | M17: 338367756.4 | N17: 302654522.7 | O17: 270710664.3 | P17: 242138340.2 | Q17: 216581699.6 | R17: 193722450.5 | S17: 173275894.9 | T17: 154987383.6 | U17: 138629144.5 | V17: 123997445.9 | W17: 110910059 | X17: 4068680013 | Y17: 410977.7791
A18: =IF(ISBLANK(InfoPro!A11),"",InfoPro!A11) -> SC_1299_A1 | B18: =IF(ISBLANK(InfoPro!B11),"",InfoPro!B11) -> Parque Eólico Sisga | C18: =IF(ISBLANK(InfoPro!E11),"",InfoPro!E11) -> 20 | D18: =IF(ISBLANK(InfoPro!F11),"",InfoPro!F11) -> Eólico Onshore | E18: =IF(ISBLANK(InfoPro!I11),"",YEAR(InfoPro!I11)-$G$4) -> 4 | F18: =IF(B18="","",VLOOKUP(D18,Tablas!$B$2:$E$13,2,FALSE)) -> 0.57 | G18: =IF(B18="","",VLOOKUP(D18,Tablas!$B$2:$F$13,5,FALSE)) -> 0.06 | H18: 5991.84 | I18: 837665603.1 | J18: 749253670 | K18: 670173229 | L18: 599439381.9 | M18: 536171182.4 | N18: 479580664 | O18: 428963026.9 | P18: 383687859.5 | Q18: 343191287.5 | R18: 306968951.3 | S18: 274569723.9 | T18: 245590092.9 | U18: 219669135 | V18: 196484020.5 | W18: 175745993.3 | X18: 6447153821 | Y18: 322357.6911
A19: =IF(ISBLANK(InfoPro!A12),"",InfoPro!A12) -> SC_1299_A2 | B19: =IF(ISBLANK(InfoPro!B12),"",InfoPro!B12) -> Parque Eólico Sisga | C19: =IF(ISBLANK(InfoPro!E12),"",InfoPro!E12) -> 20 | D19: =IF(ISBLANK(InfoPro!F12),"",InfoPro!F12) -> Eólico Onshore | E19: =IF(ISBLANK(InfoPro!I12),"",YEAR(InfoPro!I12)-$G$4) -> 4 | F19: =IF(B19="","",VLOOKUP(D19,Tablas!$B$2:$E$13,2,FALSE)) -> 0.57 | G19: =IF(B19="","",VLOOKUP(D19,Tablas!$B$2:$F$13,5,FALSE)) -> 0.06 | H19: 5991.84 | I19: =IF($H19="","",(1/(1+$C$4)^(I$7+$E19))*$H19*$I$5*$I$4) -> 837665603.1 | J19: 749253670 | K19: 670173229 | L19: 599439381.9 | M19: 536171182.4 | N19: 479580664 | O19: 428963026.9 | P19: 383687859.5 | Q19: 343191287.5 | R19: 306968951.3 | S19: 274569723.9 | T19: 245590092.9 | U19: 219669135 | V19: 196484020.5 | W19: 175745993.3 | X19: 6447153821 | Y19: 322357.6911
A20: =IF(ISBLANK(InfoPro!A13),"",InfoPro!A13) -> SC_416_A1 | B20: =IF(ISBLANK(InfoPro!B13),"",InfoPro!B13) -> Solar Jagüey | C20: =IF(ISBLANK(InfoPro!E13),"",InfoPro!E13) -> 112 | D20: =IF(ISBLANK(InfoPro!F13),"",InfoPro!F13) -> Solar FV | E20: =IF(ISBLANK(InfoPro!I13),"",YEAR(InfoPro!I13)-$G$4) -> 3 | F20: =IF(B20="","",VLOOKUP(D20,Tablas!$B$2:$E$13,2,FALSE)) -> 0.26 | G20: =IF(B20="","",VLOOKUP(D20,Tablas!$B$2:$F$13,5,FALSE)) -> 0.15 | H20: 38263.68 | I20: 5980520921 | J20: 5349303149 | K20: 4784707647 | L20: 4279702726 | M20: 3827998860 | N20: 3423970358 | O20: 3062585293 | P20: 2739342838 | Q20: 2450217208 | R20: 2191607520 | S20: 1960292952 | T20: 1753392623 | U20: 1568329716 | V20: 1402799388 | W20: 1254740061 | X20: 4.602951126e+10 | Y20: 410977.7791
